Workbook

Sheet Intro
A8: Welcome to the M6100 switch series configurator.
A10: We made it easy to use:
C13: 1 - | D13: Enable Content
C22: 2 - | D22: Configure your NETGEAR M6100 Series Chassis Switch in "Configurator"
C24: 3 - | D24: Find your edited BOM in "SKU List"
B27: Very fast: only Green cells are editable
J36: M6100 Configurator
J37: Type: | K37: Basic
J38: Version: | K38: 5.1

Sheet Configurator
B2: Green cells are editable
A5: The M6100 switch series consists of Gigabit access layer and 10 Gigabit distribution layer switches in NETGEAR modular chassis switch product line.
A6: The M6100 switch series offers high-quality, high-density chassis alternative to stackable switches in campus LAN and midsize organizations demanding networks.
A7: With more than 1.4 Tbps switching and routing capacity, passive backplane, management and fabric nonstop forwarding redundancy, the M6100 series delivers world-class resiliency and scalability.
A8: Ultimately, operating software and system management features take the complexity out of delivering L2/L3/L4 rich services for enterprise edge and SMB core deployments.
A9: Information and datasheet | B9: here
O15: =IFERROR(VLOOKUP(First_index,SwitchList!$A:$AE,27,FALSE),"") -> M6100-3S
A16: Size | E16: Þ
A18: 1+1 Fabric and 1+1 Management Redundancy Required | E18: Þ | Q18: =First_index -> 112No110V1
A20: 10GBASE-T RJ45 Ports…....Fast Ethernet / Gigabit / 10 Gigabit Copper | E20: Þ | O20: =IFERROR(IF(LEN(B16&B18&B22&B23&B20&B21&B25&B26&B28&B29&B31)>1,IFERROR(VLOOKUP(First_index,SwitchList!$A:$AE,29,FALSE),""),""),"") -> 
A21: 10GBASE-X SFP+ Ports..….Gigabit / 10 Gigabit Fiber | E21: =IF(B21<>"",IF(COUNTIF(Configurator!$O$19:$O$68,"*XCM8924X*")>=1,"Þ ssssv","Þ"),"Þ") -> Þ | F21: =IF(B21<>"",IF(COUNTIF(Configurator!$O$19:$O$68,"*XCM8924X*")>=1,IF(COUNTIF(Configurator!$O$19:$O$68,"*XCM8924X*")*16=B21,"The "&COUNTIF(Configurator!$O$19:$O$68,"*XCM8924X*")*16&" SFP+ ports are 'combo' ...hence shared with "&COUNTIF(Configurator!$O$19:$O$68,"*XCM8924X*")*16&" ports 10GBASE-T above.","Out of "&B21&" ports SFP+ here, "&COUNTIF(Configurator!$O$19:$O$68,"*XCM8924X*")*16&" ports are 'combo'........... ...hence shared with "&COUNTIF(Configurator!$O$19:$O$68,"*XCM8924X*")*16&" ports 10GBASE-T above."),""),"") -> 
A22: 1G RJ45 Ports……………..…..Ethernet / Fast Ethernet / Gigabit Copper | E22: Þ | O22: =IFERROR(IF(LEN(B16&B18&B22&B23&B20&B21&B25&B26&B28&B29&B31)>1,IFERROR(VLOOKUP(First_index,SwitchList!$A:$AE,28,FALSE),""),""),"") -> 
A23: 1G SFP Ports……….………....Fast Ethernet / Gigabit Fiber | E23: Þ
O24: =IFERROR(IF(LEN(B16&B18&B22&B23&B20&B21&B25&B26&B28&B29&B31)>1,IFERROR(VLOOKUP(First_index,SwitchList!$A:$AE,30,FALSE),""),""),"") -> 
A25: 1G RJ45 PoE+ Ports (Backward Compatible with PoE) | E25: Þ
A26: 1G RJ45 UPOE Ports (Backward Compatible with PoE+ and PoE) | E26: Þ
A28: N+1 Power Supply Unit Redundancy Required | E28: Þ | O28: =IFERROR(IF(LEN(B16&B18&B22&B23&B20&B21&B25&B26&B28&B29&B31)>1,IFERROR(VLOOKUP(First_index,SwitchList!$A:$AE,31,FALSE),""),""),"") ->  | P28: =IFERROR(VLOOKUP(First_index,SwitchList!$A:$AC,26,FALSE),"") -> 1 | Q28: =IFERROR(VLOOKUP(First_index,SwitchList!$A:$AC,26,FALSE),"") -> 1
A29: AC Voltage (110V or 220V+) | E29: Þ | O29: =IFERROR(VLOOKUP(First_index,SwitchList!$A:$AC,26,FALSE),"") -> 1 | P29: =IFERROR(VLOOKUP(First_index,SwitchList!$A:$AC,26,FALSE),"") -> 1 | Q29: =IFERROR(VLOOKUP(First_index,SwitchList!$A:$AC,26,FALSE),"") -> 1
O30: =IFERROR(VLOOKUP(First_index,SwitchList!$A:$AC,26,FALSE),"") -> 1 | P30: =IFERROR(VLOOKUP(First_index,SwitchList!$A:$AC,26,FALSE),"") -> 1 | Q30: =IFERROR(VLOOKUP(First_index,SwitchList!$A:$AC,26,FALSE),"") -> 1
A31: =IF(SUM(B25:D26)=0,"Power Budget Remaining (Watts)","PoE Budget Requirement (Watts)") -> Power Budget Remaining (Watts) | E31: Þ
A32: =IFERROR(SwitchListUnique!$L$23,"") -> 112No110V1
A42: Required Number of Spare Fan Tray units | B42: 0 | E42: Þ | O42: =IF(B42>0,IF(B42=1,B42&" unit "&VLOOKUP($O$15,List!$L$47:$V$48,9,FALSE),B42&" units "&VLOOKUP($O$15,List!$L$47:$V$48,9,FALSE)),"-") -> -
A45: Installation Service Required | B45: No service required | E45: Þ | O45: =IF(VLOOKUP($B$45,List!$L$43:$T$45,9,FALSE)<>"-",VLOOKUP($B$45,List!$L$43:$T$45,9,FALSE)&" contract",VLOOKUP($B$45,List!$L$43:$T$45,9,FALSE)) -> -
B51: Information and datasheet | C51: here | D51: * Available Only with Onsite Installation
A53: NETGEAR Fully Managed Switches offer 24x7 Lifetime Technical Support and Lifetime Next Business Day Shipping Hardware Replacement - for products purchased on of after June 1, 2014
G54: =COUNTIF($O$19:$O$26,"*XCM8944*")*2+COUNTIF($O$19:$O$26,"XCM8924X")*16 -> 0 | H54: SFP+ ports
A55: Optics, DAC Cables | F55: =IF($G$54+$G$55>1,($G$54+$G$55)&" SFP / SFP+ ports in above configuration:","") ->  | G55: =COUNTIF($O$19:$O$26,"*XCM8944F*")*40 -> 0 | H55: SFP ports
A56: =IF(SFP>1,"For "&SFP&" SFP ports, how many 100BASE-FX SFP LC GBIC (multimode, 2km OM4/OM3/OM2/OM1 50/125µm and 62.5/125µm)?","") ->  | F56: 0 | H56: Þ | O56: =IF(F56="","-",IF(SFP>1,IF(F56>=1,IF(F56=1,F56&" unit AFM735",F56&" units AFM735"),"-"),"")) -> 
A57: =IF(SFPP>1,IF(SFP>1,"For "&SFP+SFPP&" SFP/SFP+ ports, how many 1000BASE-SX SFP LC GBIC (multimode, 1000m OM4, 550m OM3 50/125µm, 275m OM2/OM1 62.5/125µm)?","For "&SFPP&" SFP+ ports, how many 1000BASE-SX SFP LC GBIC (multimode, 1000m OM4, 550m OM3 50/125µm, 275m OM2/OM1 62.5/125µm)?"),IF(SFP>1,"For "&SFP&" SFP ports, how many 1000BASE-SX SFP LC GBIC (multimode, 1000m OM4, 550m OM3 50/125µm, 275m OM2/OM1 62.5/125µm)?","")) ->  | F57: 0 | H57: Þ | O57: =IF(F57="","-",IF(SFP+SFPP>1,IF(F57>=1,IF(F57=1,F57&" unit AGM731F",F57&" units AGM731F"),"-"),"")) -> 
A58: =IF(SFPP>1,IF(SFP>1,"For "&SFP+SFPP&" SFP/SFP+ ports, how many 1000BASE-LX SFP LC GBIC (single mode, 10km 9/125µm)?","For "&SFPP&" SFP+ ports, how many 1000BASE-LX SFP LC GBIC (single mode, 10km 9/125µm)?"),IF(SFP>1,"For "&SFP&" SFP ports, how many 1000BASE-LX SFP LC GBIC (single mode, 10km 9/125µm)?","")) ->  | F58: 0 | H58: Þ | O58: =IF(F58="","-",IF(SFP+SFPP>1,IF(F58>=1,IF(F58=1,F58&" unit AGM732F",F58&" units AGM732F"),"-"),"")) -> 
A59: =IF(SFP>1,"For "&SFP&" SFP ports, how many 1000BASE-T SFP RJ45 GBIC?","") ->  | F59: 0 | H59: Þ | O59: =IF(F59="","-",IF(SFP>1,IF(F59>=1,IF(F59=1,F59&" unit AGM734",F59&" units AGM734"),"-"),"")) -> 
B60: =IF(SFP+SFPP>1,"","No optics required in above M6100 switch series configuration") -> No optics required in above M6100 switch series configuration
A61: =IF(SFPP>1,"For "&SFPP&" SFP+ ports, how many 10GBASE-SR SFP+ LC GBIC (multimode, 550m OM4, 300m OM3 50/125µm, 33m OM2/OM1 62.5/125µm)?","") ->  | F61: 0 | H61: Þ | O61: =IF(F61="","-",IF(SFPP>1,IF(F61>=1,IF(F61=1,F61&" unit AXM761",F61&" units AXM761"),"-"),"")) -> 
A62: =IF(SFPP>1,"For "&SFPP&" SFP+ ports, how many 10GBASE-LR SFP+ LC GBIC (single mode, 10km 9/125µm)?","") ->  | F62: 0 | H62: Þ | O62: =IF(F62="","-",IF(SFPP>1,IF(F62>=1,IF(F62=1,F62&" unit AXM762",F62&" units AXM762"),"-"),"")) -> 
A63: =IF(SFPP>1,"For "&SFPP&" SFP+ ports, how many 10GBASE-LRM SFP+ LC GBIC (multimode, 260m OM4/OM3 50/125µm, 220m OM2/OM1 62.5/125µm)?","") ->  | F63: 0 | H63: Þ | O63: =IF(F63="","-",IF(SFPP>1,IF(F63>=1,IF(F63=1,F63&" unit AXM763",F63&" units AXM763"),"-"),"")) -> 
A64: =IF(SFPP>1,"For "&SFPP&" SFP+ ports, how many 10GBASE-LR LITE SFP+ LC GBIC (single mode, 2km 9/125µm)?","") ->  | F64: 0 | H64: Þ | O64: =IF(F64="","-",IF(SFPP>1,IF(F64>=1,IF(F64=1,F64&" unit AXM764",F64&" units AXM764"),"-"),"")) -> 
A65: =IF(SFPP>1,"For "&SFPP&" SFP+ ports, how many passive Direct Attach SFP+ copper DAC cables (1m)?","") ->  | F65: 0 | H65: Þ | O65: =IF(F65="","-",IF(SFPP>1,IF(F65>=1,IF(F65=1,F65&" unit AXC761",F65&" units AXC761"),"-"),"")) -> 
A66: =IF(SFPP>1,"For "&SFPP&" SFP+ ports, how many passive Direct Attach SFP+ copper DAC cables (3m)?","") ->  | F66: 0 | H66: Þ | O66: =IF(F66="","-",IF(SFPP>1,IF(F66>=1,IF(F66=1,F66&" unit AXC763",F66&" units AXC763"),"-"),"")) -> 
A68: M6100 switch series will only support genuine NETGEAR SFP and SFP+ mini-GBIC transceivers. Third-party DAC cables may be used. | H68: END

Sheet SKU list
A5: Category | B5: Quantity | C5: Ordering Number | D5: Description
A6: Chassis Starter Kit | B6: =IF(LEN(Configurator!$O$20&Configurator!$O$22&Configurator!$O$24)>3,1,"") ->  | C6: =IF(LEN(Configurator!$O$20&Configurator!$O$22&Configurator!$O$24)>3,IF(COUNTIF(Configurator!$O$20:'Configurator'!$O$24,"XCM8924X")>=1,"XCM8903SX-10000S",IF(COUNTIF(Configurator!$O$20:'Configurator'!$O$24,"XCM8944F")>=1,"XCM8903SF-10000S","XCM8903SK-10000S")),"") ->  | D6: =IF($B6<>"",VLOOKUP($C6,List!$C$5:$H$55,2,FALSE)&" Starter kit includes:","") -> 
D8: =IF($B6<>""," -> 1 empty chassis M6100-3S (XCM8903) -> 2 blank panels for open blade slots","") -> 
D9: =IF($B6<>"",IF($C$6="XCM8903SK-10000S"," -> 1 blade 40x1G 2x10GBT 2xSFP+ (XCM8944) -> 3 power supply panels for empty PSU slots",IF($C$6="XCM8903SF-10000S"," -> 1 blade 40xSFP 2x10GBT 2xSFP+ (XCM8944F) -> 3 power supply panels for empty PSU slots",IF($C$6="XCM8903SX-10000S"," -> 1 blade 24x10GBT or 16xSFP+ (XCM8924X) -> 3 power supply panels for empty PSU slots","else"))),"") -> 
D10: =IF($B6<>"",IF($C$6="XCM8903SK-10000S"," -> 1 PoE+ daughter card (XCM89P) -> Rack-mount kit for 2-post racks and wiring cabinets"," -> Rack-mount kit for 2-post racks and wiring cabinets"),"") -> 
D11: =IF($B6<>""," -> 1 power supply unit (APS1000W) -> Complimentary handles for rack-mount kit","") -> 
D12: =IF($B6<>""," -> 1 front-to-back fan tray (AFT603) -> Complimentary sliding rails kit for 4-post racks and wiring cabinets","") -> 
A14: I/O Blades | B14: =IF(COUNTIF(Configurator!$O$19:$P$68,"*XCM8948*")>=1,COUNTIF(Configurator!$O$19:$P$68,"*XCM8948*"),"") ->  | C14: =IF($B14<>"",List!$C8,"") ->  | D14: =IF($B14<>"",VLOOKUP($C14,List!$C$5:$H$55,2,FALSE),"") -> 
B15: =IF(COUNTIF(Configurator!$O$19:$P$67,"*XCM8944*")-COUNTIF(Configurator!$O$19:$P$67,"*XCM8944F*")>=1,IF($C$6="XCM8903SK-10000S",IF( (COUNTIF(Configurator!$O$19:$P$67,"*XCM8944*")-COUNTIF(Configurator!$O$19:$P$67,"*XCM8944F*"))>=2, COUNTIF(Configurator!$O$19:$P$67,"*XCM8944*")-COUNTIF(Configurator!$O$19:$P$67,"*XCM8944F*")-1,""),COUNTIF(Configurator!$O$19:$P$67,"*XCM8944*")-COUNTIF(Configurator!$O$19:$P$67,"*XCM8944F*")), "") ->  | C15: =IF($B15<>"",List!$C9,"") ->  | D15: =IF($B15<>"",VLOOKUP($C15,List!$C$5:$H$55,2,FALSE),"") -> 
B16: =IF( COUNTIF(Configurator!$O$19:$P$68,"*XCM8944F*")>=1, IF($C$6="XCM8903SF-10000S",IF(COUNTIF(Configurator!$O$19:$P$68,"*XCM8944F*")>=2, COUNTIF(Configurator!$O$19:$P$68,"*XCM8944F*")-1,""), COUNTIF(Configurator!$O$19:$P$68,"*XCM8944F*")),"") ->  | C16: =IF($B16<>"",List!$C10,"") ->  | D16: =IF($B16<>"",VLOOKUP($C16,List!$C$5:$H$55,2,FALSE),"") -> 
B17: =IF( COUNTIF(Configurator!$O$19:$P$68,"*XCM8924X*")>=1, IF($C$6="XCM8903SX-10000S",IF(COUNTIF(Configurator!$O$19:$P$68,"*XCM8924X*")>=2, COUNTIF(Configurator!$O$19:$P$68,"*XCM8924X*")-1,""), COUNTIF(Configurator!$O$19:$P$68,"*XCM8924X*")),"") ->  | C17: =IF($B17<>"",List!$C11,"") ->  | D17: =IF($B17<>"",VLOOKUP($C17,List!$C$5:$H$55,2,FALSE),"") -> 
A18: Accessories | B18: =IF(COUNTIF(Configurator!$O$19:$O$68,"*XCM89P*")>=2,COUNTIF(Configurator!$O$19:$O$68,"*XCM89P*")-1,"") ->  | C18: =IF($B18<>"",List!$C12,"") ->  | D18: =IF($B18<>"",VLOOKUP($C18,List!$C$5:$H$55,2,FALSE),"") -> 
B19: =IF(COUNTIF(Configurator!$O$19:$O$68,"*XCM89UP*")>=1,COUNTIF(Configurator!$O$19:$O$68,"*XCM89UP*"),"") ->  | C19: =IF($B19<>"",List!$C13,"") ->  | D19: =IF($B19<>"",VLOOKUP($C19,List!$C$5:$H$55,2,FALSE),"") -> 
B20: =IFERROR(IF(VLOOKUP(Configurator!$O$28,List!T34:Y41,6,FALSE)>=2,VLOOKUP(Configurator!$O$28,List!T34:Y41,6,FALSE)-1,""),"") ->  | C20: =IF($B20<>"",IF($F$20="NA/EMEA","APS1000W-100NES",IF($F$20="APAC","APS1000W-100AJS","")),"") ->  | D20: =IF($B20<>"",VLOOKUP($C20,List!$C$5:$H$55,2,FALSE),"") ->  | E20: Localization | F20: NA/EMEA | G20: Þ
B21: =IF(COUNTIF(Configurator!$O$19:$O$68,"*AFT603*")>=1,COUNTIF(Configurator!$O$19:$O$68,"*AFT603*"),"") ->  | C21: =IF($B21<>"",List!$C16,"") ->  | D21: =IF($B21<>"",VLOOKUP($C21,List!$C$5:$H$55,2,FALSE),"") -> 
B22: =IF(COUNTIF(Configurator!$O$19:$O$68,"*RPS4000v2*")>=1,COUNTIF(Configurator!$O$19:$O$68,"*RPS4000v2*"),"") ->  | C22: =IF($B22<>"",IF($F$20="NA/EMEA","RPS4000-200NES",IF($F$20="APAC","RPS4000-200AJS","")),"") ->  | D22: =IF($B22<>"",VLOOKUP($C22,List!$C$5:$H$55,2,FALSE),"") -> 
A23: Service | B23: =IF(COUNTIF(Configurator!$O$19:$O$68,"*PSB0304*")>=1,COUNTIF(Configurator!$O$19:$O$68,"*PSB0304*"),"") ->  | C23: =IF($B23<>"",List!$C19,"") ->  | D23: =IF($B23<>"",VLOOKUP($C23,List!$C$5:$H$55,2,FALSE),"") -> 
B24: =IF(COUNTIF(Configurator!$O$19:$O$68,"*PSP1104*")>=1,COUNTIF(Configurator!$O$19:$O$68,"*PSP1104*"),"") ->  | C24: =IF($B24<>"",List!$C20,"") ->  | D24: =IF($B24<>"",VLOOKUP($C24,List!$C$5:$H$55,2,FALSE),"") -> 
A25: Optics_Cables | B25: =IF(COUNTIF(Configurator!$O$19:$O$68,"*AFM735*")>=1,Configurator!$F56,"") ->  | C25: =IF($B25<>"",List!$C21,"") ->  | D25: =IF($B25<>"",VLOOKUP($C25,List!$C$5:$H$55,2,FALSE),"") -> 
B26: =IF(COUNTIF(Configurator!$O$19:$O$68,"*AGM731F*")>=1,Configurator!$F57,"") ->  | C26: =IF($B26<>"",List!$C22,"") ->  | D26: =IF($B26<>"",VLOOKUP($C26,List!$C$5:$H$55,2,FALSE),"") -> 
B27: =IF(COUNTIF(Configurator!$O$19:$O$68,"*AGM732F*")>=1,Configurator!$F58,"") ->  | C27: =IF($B27<>"",List!$C23,"") ->  | D27: =IF($B27<>"",VLOOKUP($C27,List!$C$5:$H$55,2,FALSE),"") -> 
B28: =IF(COUNTIF(Configurator!$O$19:$O$68,"*AGM734*")>=1,Configurator!$F59,"") ->  | C28: =IF($B28<>"",List!$C24,"") ->  | D28: =IF($B28<>"",VLOOKUP($C28,List!$C$5:$H$55,2,FALSE),"") -> 
B29: =IF(COUNTIF(Configurator!$O$19:$O$68,"*AXM761*")>=1,IF(Configurator!$F61<10,Configurator!$F61,IF(MOD(Configurator!$F61/10,1)=0,"",Configurator!$F61-10*INT(Configurator!$F61/10))),"") ->  | C29: =IF($B29<>"",List!$C25,"") ->  | D29: =IF($B29<>"",VLOOKUP($C29,List!$C$5:$H$55,2,FALSE),"") -> 
B30: =IF(COUNTIF(Configurator!$O$19:$O$68,"*AXM761*")>=1,IF(Configurator!$F61>=10,INT(Configurator!$F61/10),""),"") ->  | C30: =IF($B30<>"",List!$C26,"") ->  | D30: =IF($B30<>"",VLOOKUP($C30,List!$C$5:$H$55,2,FALSE),"") -> 
B31: =IF(COUNTIF(Configurator!$O$19:$O$68,"*AXM762*")>=1,IF(Configurator!$F62<10,Configurator!$F62,IF(MOD(Configurator!$F62/10,1)=0,"",Configurator!$F62-10*INT(Configurator!$F62/10))),"") ->  | C31: =IF($B31<>"",List!$C27,"") ->  | D31: =IF($B31<>"",VLOOKUP($C31,List!$C$5:$H$55,2,FALSE),"") -> 
B32: =IF(COUNTIF(Configurator!$O$19:$O$68,"*AXM762*")>=1,IF(Configurator!$F62>=10,INT(Configurator!$F62/10),""),"") ->  | C32: =IF($B32<>"",List!$C28,"") ->  | D32: =IF($B32<>"",VLOOKUP($C32,List!$C$5:$H$55,2,FALSE),"") -> 
B33: =IF(COUNTIF(Configurator!$O$19:$O$68,"*AXM763*")>=1,Configurator!$F63,"") ->  | C33: =IF($B33<>"",List!$C29,"") ->  | D33: =IF($B33<>"",VLOOKUP($C33,List!$C$5:$H$55,2,FALSE),"") -> 
B34: =IF(COUNTIF(Configurator!$O$19:$O$68,"*AXM764*")>=1,Configurator!$F64,"") ->  | C34: =IF($B34<>"",List!$C30,"") ->  | D34: =IF($B34<>"",VLOOKUP($C34,List!$C$5:$H$55,2,FALSE),"") -> 
B35: =IF(COUNTIF(Configurator!$O$19:$O$68,"*AXC761*")>=1,Configurator!$F65,"") ->  | C35: =IF($B35<>"",List!$C31,"") ->  | D35: =IF($B35<>"",VLOOKUP($C35,List!$C$5:$H$55,2,FALSE),"") -> 
B36: =IF(COUNTIF(Configurator!$O$19:$O$68,"*AXC763*")>=1,Configurator!$F66,"") ->  | C36: =IF($B36<>"",List!$C32,"") ->  | D36: =IF($B36<>"",VLOOKUP($C36,List!$C$5:$H$55,2,FALSE),"") -> 
A38: Total | B38: =IF(SUM(B6:B36)>=1,SUM(B6:B36),"") -> 
D39: =IFERROR(VLOOKUP($C39,List!$C$5:$H$153,2,FALSE),"") -> 
D40: =IFERROR(VLOOKUP($C40,List!$C$5:$H$153,2,FALSE),"") -> 
D41: =IFERROR(VLOOKUP($C41,List!$C$5:$H$153,2,FALSE),"") -> 
D42: =IFERROR(VLOOKUP($C42,List!$C$5:$H$153,2,FALSE),"") -> 
D43: =IFERROR(VLOOKUP($C43,List!$C$5:$H$153,2,FALSE),"") -> 
D44: =IFERROR(VLOOKUP($C44,List!$C$5:$H$153,2,FALSE),"") -> 
D45: =IFERROR(VLOOKUP($C45,List!$C$5:$H$153,2,FALSE),"") -> 
D46: =IFERROR(VLOOKUP($C46,List!$C$5:$H$153,2,FALSE),"") -> 
D47: =IFERROR(VLOOKUP($C47,List!$C$5:$H$153,2,FALSE),"") -> 
D48: =IFERROR(VLOOKUP($C48,List!$C$5:$H$153,2,FALSE),"") -> 
D49: =IFERROR(VLOOKUP($C49,List!$C$5:$H$153,2,FALSE),"") -> 
D50: =IFERROR(VLOOKUP($C50,List!$C$5:$H$153,2,FALSE),"") -> 
D51: =IFERROR(VLOOKUP($C51,List!$C$5:$H$153,2,FALSE),"") -> 
D52: =IFERROR(VLOOKUP($C52,List!$C$5:$H$153,2,FALSE),"") -> 
D53: =IFERROR(VLOOKUP($C53,List!$C$5:$H$153,2,FALSE),"") -> 
D54: =IFERROR(VLOOKUP($C54,List!$C$5:$H$153,2,FALSE),"") -> 
D55: =IFERROR(VLOOKUP($C55,List!$C$5:$H$153,2,FALSE),"") -> 
D56: =IFERROR(VLOOKUP($C56,List!$C$5:$H$153,2,FALSE),"") -> 
D57: =IFERROR(VLOOKUP($C57,List!$C$5:$H$153,2,FALSE),"") -> 
D58: =IFERROR(VLOOKUP($C58,List!$C$5:$H$153,2,FALSE),"") -> 
D59: =IFERROR(VLOOKUP($C59,List!$C$5:$H$153,2,FALSE),"") -> 
D60: =IFERROR(VLOOKUP($C60,List!$C$5:$H$153,2,FALSE),"") -> 
D61: =IFERROR(VLOOKUP($C61,List!$C$5:$H$153,2,FALSE),"") -> 
D62: =IFERROR(VLOOKUP($C62,List!$C$5:$H$153,2,FALSE),"") -> 
D63: =IFERROR(VLOOKUP($C63,List!$C$5:$H$153,2,FALSE),"") -> 
D64: =IFERROR(VLOOKUP($C64,List!$C$5:$H$153,2,FALSE),"") -> 
D65: =IFERROR(VLOOKUP($C65,List!$C$5:$H$153,2,FALSE),"") -> 
D66: =IFERROR(VLOOKUP($C66,List!$C$5:$H$153,2,FALSE),"") -> 
D67: =IFERROR(VLOOKUP($C67,List!$C$5:$H$153,2,FALSE),"") -> 
D68: =IFERROR(VLOOKUP($C68,List!$C$5:$H$153,2,FALSE),"") -> 
D69: =IFERROR(VLOOKUP($C69,List!$C$5:$H$153,2,FALSE),"") -> 

Sheet SwitchList (hidden)
A1: Index | B1: Size | C1: Fabric_Management_Redundancy | D1: 1G_copper | E1: 1G_fiber | F1: 10G_copper | G1: 10G_fiber | H1: 1G_PoE+ | I1: 1G_UPOE | J1: N+1_Redundancy | K1: AC_in | L1: PoE_Budget | M1: Future need | N1: Future need | O1: Slot_1 | P1: Slot_2 | Q1: Slot_3 | R1: Future need | S1: Future need | T1: Future need | U1: Future need | V1: Future need | W1: Future need | X1: 12V_Consumption_ Watts | Y1: 12V_Remaining_Watts | Z1: PSU | AA1: Chassis | AB1: Slot 1 | AC1: Slot 2 | AD1: Slot 3 | AE1: PSU
A2: 123No110V1 | B2: 3-slot (4U) | C2: Yes | D2: 88 | E2: 40 | F2: 4 | G2: 4 | H2: 0 | I2: 0 | J2: No | K2: 110V | L2: =Y2 -> 360 | M2: - | N2: - | O2: 1 | P2: 2 | Q2: 3 | R2: - | S2: - | T2: - | U2: - | V2: - | W2: - | X2: =SUMIFS(blades!$I$2:$I$10,blades!$A$2:$A$10,$O2)+SUMIFS(blades!$I$2:$I$10,blades!$A$2:$A$10,$P2)+SUMIFS(blades!$I$2:$I$10,blades!$A$2:$A$10,$Q2) -> 280 | Y2: =IF(K2="110V",IF(J2="No",VLOOKUP(Z2,blades!$A$14:$G$21,3,FALSE),VLOOKUP(Z2,blades!$A$14:$G$21,4,FALSE)),IF(J2="No",VLOOKUP(Z2,blades!$A$14:$G$21,5,FALSE),VLOOKUP(Z2,blades!$A$14:$G$21,6,FALSE)))-X2 -> 360 | Z2: 1 | AA2: M6100-3S | AB2: XCM8948 | AC2: XCM8944 | AD2: XCM8944F | AE2: One unit APS1000W
A3: 124No110V1 | B3: 3-slot (4U) | C3: Yes | D3: 88 | E3: 0 | F3: 26 | G3: 18 | H3: 0 | I3: 0 | J3: No | K3: 110V | L3: =Y3 -> 310 | M3: - | N3: - | O3: 1 | P3: 2 | Q3: 4 | R3: - | S3: - | T3: - | U3: - | V3: - | W3: - | X3: =SUMIFS(blades!$I$2:$I$10,blades!$A$2:$A$10,$O3)+SUMIFS(blades!$I$2:$I$10,blades!$A$2:$A$10,$P3)+SUMIFS(blades!$I$2:$I$10,blades!$A$2:$A$10,$Q3) -> 330 | Y3: =IF(K3="110V",IF(J3="No",VLOOKUP(Z3,blades!$A$14:$G$21,3,FALSE),VLOOKUP(Z3,blades!$A$14:$G$21,4,FALSE)),IF(J3="No",VLOOKUP(Z3,blades!$A$14:$G$21,5,FALSE),VLOOKUP(Z3,blades!$A$14:$G$21,6,FALSE)))-X3 -> 310 | Z3: 1 | AA3: M6100-3S | AB3: XCM8948 | AC3: XCM8944 | AD3: XCM8924X | AE3: One unit APS1000W
A4: 125No110V1 | B4: 3-slot (4U) | C4: Yes | D4: 88 | E4: 0 | F4: 2 | G4: 2 | H4: 0 | I4: 0 | J4: No | K4: 110V | L4: 510 | M4: - | N4: - | O4: 1 | P4: 2 | Q4: 5 | R4: - | S4: - | T4: - | U4: - | V4: - | W4: - | X4: =SUMIFS(blades!$I$2:$I$10,blades!$A$2:$A$10,$O4)+SUMIFS(blades!$I$2:$I$10,blades!$A$2:$A$10,$P4)+SUMIFS(blades!$I$2:$I$10,blades!$A$2:$A$10,$Q4) -> 130 | Y4: =IF(K4="110V",IF(J4="No",VLOOKUP(Z4,blades!$A$14:$G$21,3,FALSE),VLOOKUP(Z4,blades!$A$14:$G$21,4,FALSE)),IF(J4="No",VLOOKUP(Z4,blades!$A$14:$G$21,5,FALSE),VLOOKUP(Z4,blades!$A$14:$G$21,6,FALSE)))-X4 -> 510 | Z4: 1 | AA4: M6100-3S | AB4: XCM8948 | AC4: XCM8944 | AD4: Empty | AE4: One unit APS1000W
A5: 126No110V1 | B5: 3-slot (4U) | C5: Yes | D5: 136 | E5: 0 | F5: 2 | G5: 2 | H5: 48 | I5: 0 | J5: No | K5: 110V | L5: 450 | M5: - | N5: - | O5: 1 | P5: 2 | Q5: 6 | R5: - | S5: - | T5: - | U5: - | V5: - | W5: - | X5: =SUMIFS(blades!$I$2:$I$10,blades!$A$2:$A$10,$O5)+SUMIFS(blades!$I$2:$I$10,blades!$A$2:$A$10,$P5)+SUMIFS(blades!$I$2:$I$10,blades!$A$2:$A$10,$Q5) -> 190 | Y5: =IF(K5="110V",IF(J5="No",VLOOKUP(Z5,blades!$A$14:$G$21,3,FALSE),VLOOKUP(Z5,blades!$A$14:$G$21,4,FALSE)),IF(J5="No",VLOOKUP(Z5,blades!$A$14:$G$21,5,FALSE),VLOOKUP(Z5,blades!$A$14:$G$21,6,FALSE)))-X5 -> 450 | Z5: 1 | AA5: M6100-3S | AB5: XCM8948 | AC5: XCM8944 | AD5: XCM8948 & XCM89P | AE5: One unit APS1000W
A6: 127No110V1 | B6: 3-slot (4U) | C6: Yes | D6: 136 | E6: 0 | F6: 2 | G6: 2 | H6: 0 | I6: 48 | J6: No | K6: 110V | L6: 450 | M6: - | N6: - | O6: 1 | P6: 2 | Q6: 7 | R6: - | S6: - | T6: - | U6: - | V6: - | W6: - | X6: =SUMIFS(blades!$I$2:$I$10,blades!$A$2:$A$10,$O6)+SUMIFS(blades!$I$2:$I$10,blades!$A$2:$A$10,$P6)+SUMIFS(blades!$I$2:$I$10,blades!$A$2:$A$10,$Q6) -> 190 | Y6: =IF(K6="110V",IF(J6="No",VLOOKUP(Z6,blades!$A$14:$G$21,3,FALSE),VLOOKUP(Z6,blades!$A$14:$G$21,4,FALSE)),IF(J6="No",VLOOKUP(Z6,blades!$A$14:$G$21,5,FALSE),VLOOKUP(Z6,blades!$A$14:$G$21,6,FALSE)))-X6 -> 450 | Z6: 1 | AA6: M6100-3S | AB6: XCM8948 | AC6: XCM8944 | AD6: XCM8948 & XCM89UP | AE6: One unit APS1000W
A7: 128No110V1 | B7: 3-slot (4U) | C7: Yes | D7: 128 | E7: 0 | F7: 4 | G7: 4 | H7: 40 | I7: 0 | J7: No | K7: 110V | L7: 440 | M7: - | N7: - | O7: 1 | P7: 2 | Q7: 8 | R7: - | S7: - | T7: - | U7: - | V7: - | W7: - | X7: =SUMIFS(blades!$I$2:$I$10,blades!$A$2:$A$10,$O7)+SUMIFS(blades!$I$2:$I$10,blades!$A$2:$A$10,$P7)+SUMIFS(blades!$I$2:$I$10,blades!$A$2:$A$10,$Q7) -> 200 | Y7: =IF(K7="110V",IF(J7="No",VLOOKUP(Z7,blades!$A$14:$G$21,3,FALSE),VLOOKUP(Z7,blades!$A$14:$G$21,4,FALSE)),IF(J7="No",VLOOKUP(Z7,blades!$A$14:$G$21,5,FALSE),VLOOKUP(Z7,blades!$A$14:$G$21,6,FALSE)))-X7 -> 440 | Z7: 1 | AA7: M6100-3S | AB7: XCM8948 | AC7: XCM8944 | AD7: XCM8944 & XCM89P | AE7: One unit APS1000W
A8: 129No110V1 | B8: 3-slot (4U) | C8: Yes | D8: 128 | E8: 0 | F8: 4 | G8: 4 | H8: 0 | I8: 40 | J8: No | K8: 110V | L8: 440 | M8: - | N8: - | O8: 1 | P8: 2 | Q8: 9 | R8: - | S8: - | T8: - | U8: - | V8: - | W8: - | X8: =SUMIFS(blades!$I$2:$I$10,blades!$A$2:$A$10,$O8)+SUMIFS(blades!$I$2:$I$10,blades!$A$2:$A$10,$P8)+SUMIFS(blades!$I$2:$I$10,blades!$A$2:$A$10,$Q8) -> 200 | Y8: =IF(K8="110V",IF(J8="No",VLOOKUP(Z8,blades!$A$14:$G$21,3,FALSE),VLOOKUP(Z8,blades!$A$14:$G$21,4,FALSE)),IF(J8="No",VLOOKUP(Z8,blades!$A$14:$G$21,5,FALSE),VLOOKUP(Z8,blades!$A$14:$G$21,6,FALSE)))-X8 -> 440 | Z8: 1 | AA8: M6100-3S | AB8: XCM8948 | AC8: XCM8944 | AD8: XCM8944 & XCM89UP | AE8: One unit APS1000W
A9: 112No110V1 | B9: 3-slot (4U) | C9: Yes | D9: 136 | E9: 0 | F9: 2 | G9: 2 | H9: 0 | I9: 0 | J9: No | K9: 110V | L9: 450 | M9: - | N9: - | O9: 1 | P9: 1 | Q9: 2 | R9: - | S9: - | T9: - | U9: - | V9: - | W9: - | X9: =SUMIFS(blades!$I$2:$I$10,blades!$A$2:$A$10,$O9)+SUMIFS(blades!$I$2:$I$10,blades!$A$2:$A$10,$P9)+SUMIFS(blades!$I$2:$I$10,blades!$A$2:$A$10,$Q9) -> 190 | Y9: =IF(K9="110V",IF(J9="No",VLOOKUP(Z9,blades!$A$14:$G$21,3,FALSE),VLOOKUP(Z9,blades!$A$14:$G$21,4,FALSE)),IF(J9="No",VLOOKUP(Z9,blades!$A$14:$G$21,5,FALSE),VLOOKUP(Z9,blades!$A$14:$G$21,6,FALSE)))-X9 -> 450 | Z9: 1 | AA9: M6100-3S | AB9: XCM8948 | AC9: XCM8948 | AD9: XCM8944 | AE9: One unit APS1000W
A10: 122No110V1 | B10: 3-slot (4U) | C10: Yes | D10: 128 | E10: 0 | F10: 4 | G10: 4 | H10: 0 | I10: 0 | J10: No | K10: 110V | L10: 440 | M10: - | N10: - | O10: 1 | P10: 2 | Q10: 2 | R10: - | S10: - | T10: - | U10: - | V10: - | W10: - | X10: =SUMIFS(blades!$I$2:$I$10,blades!$A$2:$A$10,$O10)+SUMIFS(blades!$I$2:$I$10,blades!$A$2:$A$10,$P10)+SUMIFS(blades!$I$2:$I$10,blades!$A$2:$A$10,$Q10) -> 200 | Y10: =IF(K10="110V",IF(J10="No",VLOOKUP(Z10,blades!$A$14:$G$21,3,FALSE),VLOOKUP(Z10,blades!$A$14:$G$21,4,FALSE)),IF(J10="No",VLOOKUP(Z10,blades!$A$14:$G$21,5,FALSE),VLOOKUP(Z10,blades!$A$14:$G$21,6,FALSE)))-X10 -> 440 | Z10: 1 | AA10: M6100-3S | AB10: XCM8948 | AC10: XCM8944 | AD10: XCM8944 | AE10: One unit APS1000W
A11: 134No110V1 | B11: 3-slot (4U) | C11: Yes | D11: 48 | E11: 40 | F11: 26 | G11: 18 | H11: 0 | I11: 0 | J11: No | K11: 110V | L11: 230 | M11: - | N11: - | O11: 1 | P11: 3 | Q11: 4 | R11: - | S11: - | T11: - | U11: - | V11: - | W11: - | X11: =SUMIFS(blades!$I$2:$I$10,blades!$A$2:$A$10,$O11)+SUMIFS(blades!$I$2:$I$10,blades!$A$2:$A$10,$P11)+SUMIFS(blades!$I$2:$I$10,blades!$A$2:$A$10,$Q11) -> 410 | Y11: =IF(K11="110V",IF(J11="No",VLOOKUP(Z11,blades!$A$14:$G$21,3,FALSE),VLOOKUP(Z11,blades!$A$14:$G$21,4,FALSE)),IF(J11="No",VLOOKUP(Z11,blades!$A$14:$G$21,5,FALSE),VLOOKUP(Z11,blades!$A$14:$G$21,6,FALSE)))-X11 -> 230 | Z11: 1 | AA11: M6100-3S | AB11: XCM8948 | AC11: XCM8944F | AD11: XCM8924X | AE11: One unit APS1000W
A12: 135No110V1 | B12: 3-slot (4U) | C12: Yes | D12: 48 | E12: 40 | F12: 2 | G12: 2 | H12: 0 | I12: 0 | J12: No | K12: 110V | L12: 430 | M12: - | N12: - | O12: 1 | P12: 3 | Q12: 5 | R12: - | S12: - | T12: - | U12: - | V12: - | W12: - | X12: =SUMIFS(blades!$I$2:$I$10,blades!$A$2:$A$10,$O12)+SUMIFS(blades!$I$2:$I$10,blades!$A$2:$A$10,$P12)+SUMIFS(blades!$I$2:$I$10,blades!$A$2:$A$10,$Q12) -> 210 | Y12: =IF(K12="110V",IF(J12="No",VLOOKUP(Z12,blades!$A$14:$G$21,3,FALSE),VLOOKUP(Z12,blades!$A$14:$G$21,4,FALSE)),IF(J12="No",VLOOKUP(Z12,blades!$A$14:$G$21,5,FALSE),VLOOKUP(Z12,blades!$A$14:$G$21,6,FALSE)))-X12 -> 430 | Z12: 1 | AA12: M6100-3S | AB12: XCM8948 | AC12: XCM8944F | AD12: Empty | AE12: One unit APS1000W
A13: 136No110V1 | B13: 3-slot (4U) | C13: Yes | D13: 96 | E13: 40 | F13: 2 | G13: 2 | H13: 48 | I13: 0 | J13: No | K13: 110V | L13: 370 | M13: - | N13: - | O13: 1 | P13: 3 | Q13: 6 | R13: - | S13: - | T13: - | U13: - | V13: - | W13: - | X13: =SUMIFS(blades!$I$2:$I$10,blades!$A$2:$A$10,$O13)+SUMIFS(blades!$I$2:$I$10,blades!$A$2:$A$10,$P13)+SUMIFS(blades!$I$2:$I$10,blades!$A$2:$A$10,$Q13) -> 270 | Y13: =IF(K13="110V",IF(J13="No",VLOOKUP(Z13,blades!$A$14:$G$21,3,FALSE),VLOOKUP(Z13,blades!$A$14:$G$21,4,FALSE)),IF(J13="No",VLOOKUP(Z13,blades!$A$14:$G$21,5,FALSE),VLOOKUP(Z13,blades!$A$14:$G$21,6,FALSE)))-X13 -> 370 | Z13: 1 | AA13: M6100-3S | AB13: XCM8948 | AC13: XCM8944F | AD13: XCM8948 & XCM89P | AE13: One unit APS1000W
A14: 137No110V1 | B14: 3-slot (4U) | C14: Yes | D14: 96 | E14: 40 | F14: 2 | G14: 2 | H14: 0 | I14: 48 | J14: No | K14: 110V | L14: 370 | M14: - | N14: - | O14: 1 | P14: 3 | Q14: 7 | R14: - | S14: - | T14: - | U14: - | V14: - | W14: - | X14: =SUMIFS(blades!$I$2:$I$10,blades!$A$2:$A$10,$O14)+SUMIFS(blades!$I$2:$I$10,blades!$A$2:$A$10,$P14)+SUMIFS(blades!$I$2:$I$10,blades!$A$2:$A$10,$Q14) -> 270 | Y14: =IF(K14="110V",IF(J14="No",VLOOKUP(Z14,blades!$A$14:$G$21,3,FALSE),VLOOKUP(Z14,blades!$A$14:$G$21,4,FALSE)),IF(J14="No",VLOOKUP(Z14,blades!$A$14:$G$21,5,FALSE),VLOOKUP(Z14,blades!$A$14:$G$21,6,FALSE)))-X14 -> 370 | Z14: 1 | AA14: M6100-3S | AB14: XCM8948 | AC14: XCM8944F | AD14: XCM8948 & XCM89UP | AE14: One unit APS1000W
A15: 138No110V1 | B15: 3-slot (4U) | C15: Yes | D15: 88 | E15: 40 | F15: 4 | G15: 4 | H15: 40 | I15: 0 | J15: No | K15: 110V | L15: 360 | M15: - | N15: - | O15: 1 | P15: 3 | Q15: 8 | R15: - | S15: - | T15: - | U15: - | V15: - | W15: - | X15: =SUMIFS(blades!$I$2:$I$10,blades!$A$2:$A$10,$O15)+SUMIFS(blades!$I$2:$I$10,blades!$A$2:$A$10,$P15)+SUMIFS(blades!$I$2:$I$10,blades!$A$2:$A$10,$Q15) -> 280 | Y15: =IF(K15="110V",IF(J15="No",VLOOKUP(Z15,blades!$A$14:$G$21,3,FALSE),VLOOKUP(Z15,blades!$A$14:$G$21,4,FALSE)),IF(J15="No",VLOOKUP(Z15,blades!$A$14:$G$21,5,FALSE),VLOOKUP(Z15,blades!$A$14:$G$21,6,FALSE)))-X15 -> 360 | Z15: 1 | AA15: M6100-3S | AB15: XCM8948 | AC15: XCM8944F | AD15: XCM8944 & XCM89P | AE15: One unit APS1000W
A16: 139No110V1 | B16: 3-slot (4U) | C16: Yes | D16: 88 | E16: 40 | F16: 4 | G16: 4 | H16: 0 | I16: 40 | J16: No | K16: 110V | L16: 360 | M16: - | N16: - | O16: 1 | P16: 3 | Q16: 9 | R16: - | S16: - | T16: - | U16: - | V16: - | W16: - | X16: =SUMIFS(blades!$I$2:$I$10,blades!$A$2:$A$10,$O16)+SUMIFS(blades!$I$2:$I$10,blades!$A$2:$A$10,$P16)+SUMIFS(blades!$I$2:$I$10,blades!$A$2:$A$10,$Q16) -> 280 | Y16: =IF(K16="110V",IF(J16="No",VLOOKUP(Z16,blades!$A$14:$G$21,3,FALSE),VLOOKUP(Z16,blades!$A$14:$G$21,4,FALSE)),IF(J16="No",VLOOKUP(Z16,blades!$A$14:$G$21,5,FALSE),VLOOKUP(Z16,blades!$A$14:$G$21,6,FALSE)))-X16 -> 360 | Z16: 1 | AA16: M6100-3S | AB16: XCM8948 | AC16: XCM8944F | AD16: XCM8944 & XCM89UP | AE16: One unit APS1000W
A17: 113No110V1 | B17: 3-slot (4U) | C17: Yes | D17: 96 | E17: 40 | F17: 2 | G17: 2 | H17: 0 | I17: 0 | J17: No | K17: 110V | L17: 370 | M17: - | N17: - | O17: 1 | P17: 1 | Q17: 3 | R17: - | S17: - | T17: - | U17: - | V17: - | W17: - | X17: =SUMIFS(blades!$I$2:$I$10,blades!$A$2:$A$10,$O17)+SUMIFS(blades!$I$2:$I$10,blades!$A$2:$A$10,$P17)+SUMIFS(blades!$I$2:$I$10,blades!$A$2:$A$10,$Q17) -> 270 | Y17: =IF(K17="110V",IF(J17="No",VLOOKUP(Z17,blades!$A$14:$G$21,3,FALSE),VLOOKUP(Z17,blades!$A$14:$G$21,4,FALSE)),IF(J17="No",VLOOKUP(Z17,blades!$A$14:$G$21,5,FALSE),VLOOKUP(Z17,blades!$A$14:$G$21,6,FALSE)))-X17 -> 370 | Z17: 1 | AA17: M6100-3S | AB17: XCM8948 | AC17: XCM8948 | AD17: XCM8944F | AE17: One unit APS1000W
A18: 133No110V1 | B18: 3-slot (4U) | C18: Yes | D18: 48 | E18: 80 | F18: 4 | G18: 4 | H18: 0 | I18: 0 | J18: No | K18: 110V | L18: 280 | M18: - | N18: - | O18: 1 | P18: 3 | Q18: 3 | R18: - | S18: - | T18: - | U18: - | V18: - | W18: - | X18: =SUMIFS(blades!$I$2:$I$10,blades!$A$2:$A$10,$O18)+SUMIFS(blades!$I$2:$I$10,blades!$A$2:$A$10,$P18)+SUMIFS(blades!$I$2:$I$10,blades!$A$2:$A$10,$Q18) -> 360 | Y18: =IF(K18="110V",IF(J18="No",VLOOKUP(Z18,blades!$A$14:$G$21,3,FALSE),VLOOKUP(Z18,blades!$A$14:$G$21,4,FALSE)),IF(J18="No",VLOOKUP(Z18,blades!$A$14:$G$21,5,FALSE),VLOOKUP(Z18,blades!$A$14:$G$21,6,FALSE)))-X18 -> 280 | Z18: 1 | AA18: M6100-3S | AB18: XCM8948 | AC18: XCM8944F | AD18: XCM8944F | AE18: One unit APS1000W
A19: 145No110V1 | B19: 3-slot (4U) | C19: Yes | D19: 48 | E19: 0 | F19: 24 | G19: 16 | H19: 0 | I19: 0 | J19: No | K19: 110V | L19: 380 | M19: - | N19: - | O19: 1 | P19: 4 | Q19: 5 | R19: - | S19: - | T19: - | U19: - | V19: - | W19: - | X19: =SUMIFS(blades!$I$2:$I$10,blades!$A$2:$A$10,$O19)+SUMIFS(blades!$I$2:$I$10,blades!$A$2:$A$10,$P19)+SUMIFS(blades!$I$2:$I$10,blades!$A$2:$A$10,$Q19) -> 260 | Y19: =IF(K19="110V",IF(J19="No",VLOOKUP(Z19,blades!$A$14:$G$21,3,FALSE),VLOOKUP(Z19,blades!$A$14:$G$21,4,FALSE)),IF(J19="No",VLOOKUP(Z19,blades!$A$14:$G$21,5,FALSE),VLOOKUP(Z19,blades!$A$14:$G$21,6,FALSE)))-X19 -> 380 | Z19: 1 | AA19: M6100-3S | AB19: XCM8948 | AC19: XCM8924X | AD19: Empty | AE19: One unit APS1000W
A20: 146No110V1 | B20: 3-slot (4U) | C20: Yes | D20: 96 | E20: 0 | F20: 24 | G20: 16 | H20: 48 | I20: 0 | J20: No | K20: 110V | L20: 320 | M20: - | N20: - | O20: 1 | P20: 4 | Q20: 6 | R20: - | S20: - | T20: - | U20: - | V20: - | W20: - | X20: =SUMIFS(blades!$I$2:$I$10,blades!$A$2:$A$10,$O20)+SUMIFS(blades!$I$2:$I$10,blades!$A$2:$A$10,$P20)+SUMIFS(blades!$I$2:$I$10,blades!$A$2:$A$10,$Q20) -> 320 | Y20: =IF(K20="110V",IF(J20="No",VLOOKUP(Z20,blades!$A$14:$G$21,3,FALSE),VLOOKUP(Z20,blades!$A$14:$G$21,4,FALSE)),IF(J20="No",VLOOKUP(Z20,blades!$A$14:$G$21,5,FALSE),VLOOKUP(Z20,blades!$A$14:$G$21,6,FALSE)))-X20 -> 320 | Z20: 1 | AA20: M6100-3S | AB20: XCM8948 | AC20: XCM8924X | AD20: XCM8948 & XCM89P | AE20: One unit APS1000W
A21: 147No110V1 | B21: 3-slot (4U) | C21: Yes | D21: 96 | E21: 0 | F21: 24 | G21: 16 | H21: 0 | I21: 48 | J21: No | K21: 110V | L21: 320 | M21: - | N21: - | O21: 1 | P21: 4 | Q21: 7 | R21: - | S21: - | T21: - | U21: - | V21: - | W21: - | X21: =SUMIFS(blades!$I$2:$I$10,blades!$A$2:$A$10,$O21)+SUMIFS(blades!$I$2:$I$10,blades!$A$2:$A$10,$P21)+SUMIFS(blades!$I$2:$I$10,blades!$A$2:$A$10,$Q21) -> 320 | Y21: =IF(K21="110V",IF(J21="No",VLOOKUP(Z21,blades!$A$14:$G$21,3,FALSE),VLOOKUP(Z21,blades!$A$14:$G$21,4,FALSE)),IF(J21="No",VLOOKUP(Z21,blades!$A$14:$G$21,5,FALSE),VLOOKUP(Z21,blades!$A$14:$G$21,6,FALSE)))-X21 -> 320 | Z21: 1 | AA21: M6100-3S | AB21: XCM8948 | AC21: XCM8924X | AD21: XCM8948 & XCM89UP | AE21: One unit APS1000W
A22: 148No110V1 | B22: 3-slot (4U) | C22: Yes | D22: 88 | E22: 0 | F22: 26 | G22: 18 | H22: 40 | I22: 0 | J22: No | K22: 110V | L22: 310 | M22: - | N22: - | O22: 1 | P22: 4 | Q22: 8 | R22: - | S22: - | T22: - | U22: - | V22: - | W22: - | X22: =SUMIFS(blades!$I$2:$I$10,blades!$A$2:$A$10,$O22)+SUMIFS(blades!$I$2:$I$10,blades!$A$2:$A$10,$P22)+SUMIFS(blades!$I$2:$I$10,blades!$A$2:$A$10,$Q22) -> 330 | Y22: =IF(K22="110V",IF(J22="No",VLOOKUP(Z22,blades!$A$14:$G$21,3,FALSE),VLOOKUP(Z22,blades!$A$14:$G$21,4,FALSE)),IF(J22="No",VLOOKUP(Z22,blades!$A$14:$G$21,5,FALSE),VLOOKUP(Z22,blades!$A$14:$G$21,6,FALSE)))-X22 -> 310 | Z22: 1 | AA22: M6100-3S | AB22: XCM8948 | AC22: XCM8924X | AD22: XCM8944 & XCM89P | AE22: One unit APS1000W
A23: 149No110V1 | B23: 3-slot (4U) | C23: Yes | D23: 88 | E23: 0 | F23: 26 | G23: 18 | H23: 0 | I23: 40 | J23: No | K23: 110V | L23: 310 | M23: - | N23: - | O23: 1 | P23: 4 | Q23: 9 | R23: - | S23: - | T23: - | U23: - | V23: - | W23: - | X23: =SUMIFS(blades!$I$2:$I$10,blades!$A$2:$A$10,$O23)+SUMIFS(blades!$I$2:$I$10,blades!$A$2:$A$10,$P23)+SUMIFS(blades!$I$2:$I$10,blades!$A$2:$A$10,$Q23) -> 330 | Y23: =IF(K23="110V",IF(J23="No",VLOOKUP(Z23,blades!$A$14:$G$21,3,FALSE),VLOOKUP(Z23,blades!$A$14:$G$21,4,FALSE)),IF(J23="No",VLOOKUP(Z23,blades!$A$14:$G$21,5,FALSE),VLOOKUP(Z23,blades!$A$14:$G$21,6,FALSE)))-X23 -> 310 | Z23: 1 | AA23: M6100-3S | AB23: XCM8948 | AC23: XCM8924X | AD23: XCM8944 & XCM89UP | AE23: One unit APS1000W
A24: 114No110V1 | B24: 3-slot (4U) | C24: Yes | D24: 96 | E24: 0 | F24: 24 | G24: 16 | H24: 0 | I24: 0 | J24: No | K24: 110V | L24: 320 | M24: - | N24: - | O24: 1 | P24: 1 | Q24: 4 | R24: - | S24: - | T24: - | U24: - | V24: - | W24: - | X24: =SUMIFS(blades!$I$2:$I$10,blades!$A$2:$A$10,$O24)+SUMIFS(blades!$I$2:$I$10,blades!$A$2:$A$10,$P24)+SUMIFS(blades!$I$2:$I$10,blades!$A$2:$A$10,$Q24) -> 320 | Y24: =IF(K24="110V",IF(J24="No",VLOOKUP(Z24,blades!$A$14:$G$21,3,FALSE),VLOOKUP(Z24,blades!$A$14:$G$21,4,FALSE)),IF(J24="No",VLOOKUP(Z24,blades!$A$14:$G$21,5,FALSE),VLOOKUP(Z24,blades!$A$14:$G$21,6,FALSE)))-X24 -> 320 | Z24: 1 | AA24: M6100-3S | AB24: XCM8948 | AC24: XCM8948 | AD24: XCM8924X | AE24: One unit APS1000W
A25: 144No110V1 | B25: 3-slot (4U) | C25: Yes | D25: 48 | E25: 0 | F25: 48 | G25: 32 | H25: 0 | I25: 0 | J25: No | K25: 110V | L25: 180 | M25: - | N25: - | O25: 1 | P25: 4 | Q25: 4 | R25: - | S25: - | T25: - | U25: - | V25: - | W25: - | X25: =SUMIFS(blades!$I$2:$I$10,blades!$A$2:$A$10,$O25)+SUMIFS(blades!$I$2:$I$10,blades!$A$2:$A$10,$P25)+SUMIFS(blades!$I$2:$I$10,blades!$A$2:$A$10,$Q25) -> 460 | Y25: =IF(K25="110V",IF(J25="No",VLOOKUP(Z25,blades!$A$14:$G$21,3,FALSE),VLOOKUP(Z25,blades!$A$14:$G$21,4,FALSE)),IF(J25="No",VLOOKUP(Z25,blades!$A$14:$G$21,5,FALSE),VLOOKUP(Z25,blades!$A$14:$G$21,6,FALSE)))-X25 -> 180 | Z25: 1 | AA25: M6100-3S | AB25: XCM8948 | AC25: XCM8924X | AD25: XCM8924X | AE25: One unit APS1000W
A26: 156No110V1 | B26: 3-slot (4U) | C26: Yes | D26: 96 | E26: 0 | F26: 0 | G26: 0 | H26: 48 | I26: 0 | J26: No | K26: 110V | L26: 520 | M26: - | N26: - | O26: 1 | P26: 5 | Q26: 6 | R26: - | S26: - | T26: - | U26: - | V26: - | W26: - | X26: =SUMIFS(blades!$I$2:$I$10,blades!$A$2:$A$10,$O26)+SUMIFS(blades!$I$2:$I$10,blades!$A$2:$A$10,$P26)+SUMIFS(blades!$I$2:$I$10,blades!$A$2:$A$10,$Q26) -> 120 | Y26: =IF(K26="110V",IF(J26="No",VLOOKUP(Z26,blades!$A$14:$G$21,3,FALSE),VLOOKUP(Z26,blades!$A$14:$G$21,4,FALSE)),IF(J26="No",VLOOKUP(Z26,blades!$A$14:$G$21,5,FALSE),VLOOKUP(Z26,blades!$A$14:$G$21,6,FALSE)))-X26 -> 520 | Z26: 1 | AA26: M6100-3S | AB26: XCM8948 | AC26: Empty | AD26: XCM8948 & XCM89P | AE26: One unit APS1000W
A27: 157No110V1 | B27: 3-slot (4U) | C27: Yes | D27: 96 | E27: 0 | F27: 0 | G27: 0 | H27: 0 | I27: 48 | J27: No | K27: 110V | L27: 520 | M27: - | N27: - | O27: 1 | P27: 5 | Q27: 7 | R27: - | S27: - | T27: - | U27: - | V27: - | W27: - | X27: =SUMIFS(blades!$I$2:$I$10,blades!$A$2:$A$10,$O27)+SUMIFS(blades!$I$2:$I$10,blades!$A$2:$A$10,$P27)+SUMIFS(blades!$I$2:$I$10,blades!$A$2:$A$10,$Q27) -> 120 | Y27: =IF(K27="110V",IF(J27="No",VLOOKUP(Z27,blades!$A$14:$G$21,3,FALSE),VLOOKUP(Z27,blades!$A$14:$G$21,4,FALSE)),IF(J27="No",VLOOKUP(Z27,blades!$A$14:$G$21,5,FALSE),VLOOKUP(Z27,blades!$A$14:$G$21,6,FALSE)))-X27 -> 520 | Z27: 1 | AA27: M6100-3S | AB27: XCM8948 | AC27: Empty | AD27: XCM8948 & XCM89UP | AE27: One unit APS1000W
A28: 158No110V1 | B28: 3-slot (4U) | C28: Yes | D28: 88 | E28: 0 | F28: 2 | G28: 2 | H28: 40 | I28: 0 | J28: No | K28: 110V | L28: 510 | M28: - | N28: - | O28: 1 | P28: 5 | Q28: 8 | R28: - | S28: - | T28: - | U28: - | V28: - | W28: - | X28: =SUMIFS(blades!$I$2:$I$10,blades!$A$2:$A$10,$O28)+SUMIFS(blades!$I$2:$I$10,blades!$A$2:$A$10,$P28)+SUMIFS(blades!$I$2:$I$10,blades!$A$2:$A$10,$Q28) -> 130 | Y28: =IF(K28="110V",IF(J28="No",VLOOKUP(Z28,blades!$A$14:$G$21,3,FALSE),VLOOKUP(Z28,blades!$A$14:$G$21,4,FALSE)),IF(J28="No",VLOOKUP(Z28,blades!$A$14:$G$21,5,FALSE),VLOOKUP(Z28,blades!$A$14:$G$21,6,FALSE)))-X28 -> 510 | Z28: 1 | AA28: M6100-3S | AB28: XCM8948 | AC28: Empty | AD28: XCM8944 & XCM89P | AE28: One unit APS1000W
A29: 159No110V1 | B29: 3-slot (4U) | C29: Yes | D29: 88 | E29: 0 | F29: 2 | G29: 2 | H29: 0 | I29: 40 | J29: No | K29: 110V | L29: 510 | M29: - | N29: - | O29: 1 | P29: 5 | Q29: 9 | R29: - | S29: - | T29: - | U29: - | V29: - | W29: - | X29: =SUMIFS(blades!$I$2:$I$10,blades!$A$2:$A$10,$O29)+SUMIFS(blades!$I$2:$I$10,blades!$A$2:$A$10,$P29)+SUMIFS(blades!$I$2:$I$10,blades!$A$2:$A$10,$Q29) -> 130 | Y29: =IF(K29="110V",IF(J29="No",VLOOKUP(Z29,blades!$A$14:$G$21,3,FALSE),VLOOKUP(Z29,blades!$A$14:$G$21,4,FALSE)),IF(J29="No",VLOOKUP(Z29,blades!$A$14:$G$21,5,FALSE),VLOOKUP(Z29,blades!$A$14:$G$21,6,FALSE)))-X29 -> 510 | Z29: 1 | AA29: M6100-3S | AB29: XCM8948 | AC29: Empty | AD29: XCM8944 & XCM89UP | AE29: One unit APS1000W
A30: 115No110V1 | B30: 3-slot (4U) | C30: Yes | D30: 96 | E30: 0 | F30: 0 | G30: 0 | H30: 0 | I30: 0 | J30: No | K30: 110V | L30: 520 | M30: - | N30: - | O30: 1 | P30: 1 | Q30: 5 | R30: - | S30: - | T30: - | U30: - | V30: - | W30: - | X30: =SUMIFS(blades!$I$2:$I$10,blades!$A$2:$A$10,$O30)+SUMIFS(blades!$I$2:$I$10,blades!$A$2:$A$10,$P30)+SUMIFS(blades!$I$2:$I$10,blades!$A$2:$A$10,$Q30) -> 120 | Y30: =IF(K30="110V",IF(J30="No",VLOOKUP(Z30,blades!$A$14:$G$21,3,FALSE),VLOOKUP(Z30,blades!$A$14:$G$21,4,FALSE)),IF(J30="No",VLOOKUP(Z30,blades!$A$14:$G$21,5,FALSE),VLOOKUP(Z30,blades!$A$14:$G$21,6,FALSE)))-X30 -> 520 | Z30: 1 | AA30: M6100-3S | AB30: XCM8948 | AC30: XCM8948 | AD30: Empty | AE30: One unit APS1000W
A31: 155No110V1 | B31: 3-slot (4U) | C31: Yes | D31: 48 | E31: 0 | F31: 0 | G31: 0 | H31: 0 | I31: 0 | J31: No | K31: 110V | L31: 580 | M31: - | N31: - | O31: 1 | P31: 5 | Q31: 5 | R31: - | S31: - | T31: - | U31: - | V31: - | W31: - | X31: =SUMIFS(blades!$I$2:$I$10,blades!$A$2:$A$10,$O31)+SUMIFS(blades!$I$2:$I$10,blades!$A$2:$A$10,$P31)+SUMIFS(blades!$I$2:$I$10,blades!$A$2:$A$10,$Q31) -> 60 | Y31: =IF(K31="110V",IF(J31="No",VLOOKUP(Z31,blades!$A$14:$G$21,3,FALSE),VLOOKUP(Z31,blades!$A$14:$G$21,4,FALSE)),IF(J31="No",VLOOKUP(Z31,blades!$A$14:$G$21,5,FALSE),VLOOKUP(Z31,blades!$A$14:$G$21,6,FALSE)))-X31 -> 580 | Z31: 1 | AA31: M6100-3S | AB31: XCM8948 | AC31: Empty | AD31: Empty | AE31: One unit APS1000W
A32: 167No110V1 | B32: 3-slot (4U) | C32: Yes | D32: 144 | E32: 0 | F32: 0 | G32: 0 | H32: 48 | I32: 48 | J32: No | K32: 110V | L32: 460 | M32: - | N32: - | O32: 1 | P32: 6 | Q32: 7 | R32: - | S32: - | T32: - | U32: - | V32: - | W32: - | X32: =SUMIFS(blades!$I$2:$I$10,blades!$A$2:$A$10,$O32)+SUMIFS(blades!$I$2:$I$10,blades!$A$2:$A$10,$P32)+SUMIFS(blades!$I$2:$I$10,blades!$A$2:$A$10,$Q32) -> 180 | Y32: =IF(K32="110V",IF(J32="No",VLOOKUP(Z32,blades!$A$14:$G$21,3,FALSE),VLOOKUP(Z32,blades!$A$14:$G$21,4,FALSE)),IF(J32="No",VLOOKUP(Z32,blades!$A$14:$G$21,5,FALSE),VLOOKUP(Z32,blades!$A$14:$G$21,6,FALSE)))-X32 -> 460 | Z32: 1 | AA32: M6100-3S | AB32: XCM8948 | AC32: XCM8948 & XCM89P | AD32: XCM8948 & XCM89UP | AE32: One unit APS1000W
A33: 168No110V1 | B33: 3-slot (4U) | C33: Yes | D33: 136 | E33: 0 | F33: 2 | G33: 2 | H33: 88 | I33: 0 | J33: No | K33: 110V | L33: 450 | M33: - | N33: - | O33: 1 | P33: 6 | Q33: 8 | R33: - | S33: - | T33: - | U33: - | V33: - | W33: - | X33: =SUMIFS(blades!$I$2:$I$10,blades!$A$2:$A$10,$O33)+SUMIFS(blades!$I$2:$I$10,blades!$A$2:$A$10,$P33)+SUMIFS(blades!$I$2:$I$10,blades!$A$2:$A$10,$Q33) -> 190 | Y33: =IF(K33="110V",IF(J33="No",VLOOKUP(Z33,blades!$A$14:$G$21,3,FALSE),VLOOKUP(Z33,blades!$A$14:$G$21,4,FALSE)),IF(J33="No",VLOOKUP(Z33,blades!$A$14:$G$21,5,FALSE),VLOOKUP(Z33,blades!$A$14:$G$21,6,FALSE)))-X33 -> 450 | Z33: 1 | AA33: M6100-3S | AB33: XCM8948 | AC33: XCM8948 & XCM89P | AD33: XCM8944 & XCM89P | AE33: One unit APS1000W
A34: 169No110V1 | B34: 3-slot (4U) | C34: Yes | D34: 136 | E34: 0 | F34: 2 | G34: 2 | H34: 48 | I34: 40 | J34: No | K34: 110V | L34: 450 | M34: - | N34: - | O34: 1 | P34: 6 | Q34: 9 | R34: - | S34: - | T34: - | U34: - | V34: - | W34: - | X34: =SUMIFS(blades!$I$2:$I$10,blades!$A$2:$A$10,$O34)+SUMIFS(blades!$I$2:$I$10,blades!$A$2:$A$10,$P34)+SUMIFS(blades!$I$2:$I$10,blades!$A$2:$A$10,$Q34) -> 190 | Y34: =IF(K34="110V",IF(J34="No",VLOOKUP(Z34,blades!$A$14:$G$21,3,FALSE),VLOOKUP(Z34,blades!$A$14:$G$21,4,FALSE)),IF(J34="No",VLOOKUP(Z34,blades!$A$14:$G$21,5,FALSE),VLOOKUP(Z34,blades!$A$14:$G$21,6,FALSE)))-X34 -> 450 | Z34: 1 | AA34: M6100-3S | AB34: XCM8948 | AC34: XCM8948 & XCM89P | AD34: XCM8944 & XCM89UP | AE34: One unit APS1000W
A35: 116No110V1 | B35: 3-slot (4U) | C35: Yes | D35: 144 | E35: 0 | F35: 0 | G35: 0 | H35: 48 | I35: 0 | J35: No | K35: 110V | L35: 460 | M35: - | N35: - | O35: 1 | P35: 1 | Q35: 6 | R35: - | S35: - | T35: - | U35: - | V35: - | W35: - | X35: =SUMIFS(blades!$I$2:$I$10,blades!$A$2:$A$10,$O35)+SUMIFS(blades!$I$2:$I$10,blades!$A$2:$A$10,$P35)+SUMIFS(blades!$I$2:$I$10,blades!$A$2:$A$10,$Q35) -> 180 | Y35: =IF(K35="110V",IF(J35="No",VLOOKUP(Z35,blades!$A$14:$G$21,3,FALSE),VLOOKUP(Z35,blades!$A$14:$G$21,4,FALSE)),IF(J35="No",VLOOKUP(Z35,blades!$A$14:$G$21,5,FALSE),VLOOKUP(Z35,blades!$A$14:$G$21,6,FALSE)))-X35 -> 460 | Z35: 1 | AA35: M6100-3S | AB35: XCM8948 | AC35: XCM8948 | AD35: XCM8948 & XCM89P | AE35: One unit APS1000W
A36: 166No110V1 | B36: 3-slot (4U) | C36: Yes | D36: 144 | E36: 0 | F36: 0 | G36: 0 | H36: 96 | I36: 0 | J36: No | K36: 110V | L36: 460 | M36: - | N36: - | O36: 1 | P36: 6 | Q36: 6 | R36: - | S36: - | T36: - | U36: - | V36: - | W36: - | X36: =SUMIFS(blades!$I$2:$I$10,blades!$A$2:$A$10,$O36)+SUMIFS(blades!$I$2:$I$10,blades!$A$2:$A$10,$P36)+SUMIFS(blades!$I$2:$I$10,blades!$A$2:$A$10,$Q36) -> 180 | Y36: =IF(K36="110V",IF(J36="No",VLOOKUP(Z36,blades!$A$14:$G$21,3,FALSE),VLOOKUP(Z36,blades!$A$14:$G$21,4,FALSE)),IF(J36="No",VLOOKUP(Z36,blades!$A$14:$G$21,5,FALSE),VLOOKUP(Z36,blades!$A$14:$G$21,6,FALSE)))-X36 -> 460 | Z36: 1 | AA36: M6100-3S | AB36: XCM8948 | AC36: XCM8948 & XCM89P | AD36: XCM8948 & XCM89P | AE36: One unit APS1000W
A37: 178No110V1 | B37: 3-slot (4U) | C37: Yes | D37: 136 | E37: 0 | F37: 2 | G37: 2 | H37: 40 | I37: 48 | J37: No | K37: 110V | L37: 450 | M37: - | N37: - | O37: 1 | P37: 7 | Q37: 8 | R37: - | S37: - | T37: - | U37: - | V37: - | W37: - | X37: =SUMIFS(blades!$I$2:$I$10,blades!$A$2:$A$10,$O37)+SUMIFS(blades!$I$2:$I$10,blades!$A$2:$A$10,$P37)+SUMIFS(blades!$I$2:$I$10,blades!$A$2:$A$10,$Q37) -> 190 | Y37: =IF(K37="110V",IF(J37="No",VLOOKUP(Z37,blades!$A$14:$G$21,3,FALSE),VLOOKUP(Z37,blades!$A$14:$G$21,4,FALSE)),IF(J37="No",VLOOKUP(Z37,blades!$A$14:$G$21,5,FALSE),VLOOKUP(Z37,blades!$A$14:$G$21,6,FALSE)))-X37 -> 450 | Z37: 1 | AA37: M6100-3S | AB37: XCM8948 | AC37: XCM8948 & XCM89UP | AD37: XCM8944 & XCM89P | AE37: One unit APS1000W
A38: 179No110V1 | B38: 3-slot (4U) | C38: Yes | D38: 136 | E38: 0 | F38: 2 | G38: 2 | H38: 0 | I38: 88 | J38: No | K38: 110V | L38: 450 | M38: - | N38: - | O38: 1 | P38: 7 | Q38: 9 | R38: - | S38: - | T38: - | U38: - | V38: - | W38: - | X38: =SUMIFS(blades!$I$2:$I$10,blades!$A$2:$A$10,$O38)+SUMIFS(blades!$I$2:$I$10,blades!$A$2:$A$10,$P38)+SUMIFS(blades!$I$2:$I$10,blades!$A$2:$A$10,$Q38) -> 190 | Y38: =IF(K38="110V",IF(J38="No",VLOOKUP(Z38,blades!$A$14:$G$21,3,FALSE),VLOOKUP(Z38,blades!$A$14:$G$21,4,FALSE)),IF(J38="No",VLOOKUP(Z38,blades!$A$14:$G$21,5,FALSE),VLOOKUP(Z38,blades!$A$14:$G$21,6,FALSE)))-X38 -> 450 | Z38: 1 | AA38: M6100-3S | AB38: XCM8948 | AC38: XCM8948 & XCM89UP | AD38: XCM8944 & XCM89UP | AE38: One unit APS1000W
A39: 117No110V1 | B39: 3-slot (4U) | C39: Yes | D39: 144 | E39: 0 | F39: 0 | G39: 0 | H39: 0 | I39: 48 | J39: No | K39: 110V | L39: 460 | M39: - | N39: - | O39: 1 | P39: 1 | Q39: 7 | R39: - | S39: - | T39: - | U39: - | V39: - | W39: - | X39: =SUMIFS(blades!$I$2:$I$10,blades!$A$2:$A$10,$O39)+SUMIFS(blades!$I$2:$I$10,blades!$A$2:$A$10,$P39)+SUMIFS(blades!$I$2:$I$10,blades!$A$2:$A$10,$Q39) -> 180 | Y39: =IF(K39="110V",IF(J39="No",VLOOKUP(Z39,blades!$A$14:$G$21,3,FALSE),VLOOKUP(Z39,blades!$A$14:$G$21,4,FALSE)),IF(J39="No",VLOOKUP(Z39,blades!$A$14:$G$21,5,FALSE),VLOOKUP(Z39,blades!$A$14:$G$21,6,FALSE)))-X39 -> 460 | Z39: 1 | AA39: M6100-3S | AB39: XCM8948 | AC39: XCM8948 | AD39: XCM8948 & XCM89UP | AE39: One unit APS1000W
A40: 177No110V1 | B40: 3-slot (4U) | C40: Yes | D40: 144 | E40: 0 | F40: 0 | G40: 0 | H40: 0 | I40: 96 | J40: No | K40: 110V | L40: 460 | M40: - | N40: - | O40: 1 | P40: 7 | Q40: 7 | R40: - | S40: - | T40: - | U40: - | V40: - | W40: - | X40: =SUMIFS(blades!$I$2:$I$10,blades!$A$2:$A$10,$O40)+SUMIFS(blades!$I$2:$I$10,blades!$A$2:$A$10,$P40)+SUMIFS(blades!$I$2:$I$10,blades!$A$2:$A$10,$Q40) -> 180 | Y40: =IF(K40="110V",IF(J40="No",VLOOKUP(Z40,blades!$A$14:$G$21,3,FALSE),VLOOKUP(Z40,blades!$A$14:$G$21,4,FALSE)),IF(J40="No",VLOOKUP(Z40,blades!$A$14:$G$21,5,FALSE),VLOOKUP(Z40,blades!$A$14:$G$21,6,FALSE)))-X40 -> 460 | Z40: 1 | AA40: M6100-3S | AB40: XCM8948 | AC40: XCM8948 & XCM89UP | AD40: XCM8948 & XCM89UP | AE40: One unit APS1000W
A41: 189No110V1 | B41: 3-slot (4U) | C41: Yes | D41: 128 | E41: 0 | F41: 4 | G41: 4 | H41: 40 | I41: 40 | J41: No | K41: 110V | L41: 440 | M41: - | N41: - | O41: 1 | P41: 8 | Q41: 9 | R41: - | S41: - | T41: - | U41: - | V41: - | W41: - | X41: =SUMIFS(blades!$I$2:$I$10,blades!$A$2:$A$10,$O41)+SUMIFS(blades!$I$2:$I$10,blades!$A$2:$A$10,$P41)+SUMIFS(blades!$I$2:$I$10,blades!$A$2:$A$10,$Q41) -> 200 | Y41: =IF(K41="110V",IF(J41="No",VLOOKUP(Z41,blades!$A$14:$G$21,3,FALSE),VLOOKUP(Z41,blades!$A$14:$G$21,4,FALSE)),IF(J41="No",VLOOKUP(Z41,blades!$A$14:$G$21,5,FALSE),VLOOKUP(Z41,blades!$A$14:$G$21,6,FALSE)))-X41 -> 440 | Z41: 1 | AA41: M6100-3S | AB41: XCM8948 | AC41: XCM8944 & XCM89P | AD41: XCM8944 & XCM89UP | AE41: One unit APS1000W
A42: 118No110V1 | B42: 3-slot (4U) | C42: Yes | D42: 136 | E42: 0 | F42: 2 | G42: 2 | H42: 40 | I42: 0 | J42: No | K42: 110V | L42: 450 | M42: - | N42: - | O42: 1 | P42: 1 | Q42: 8 | R42: - | S42: - | T42: - | U42: - | V42: - | W42: - | X42: =SUMIFS(blades!$I$2:$I$10,blades!$A$2:$A$10,$O42)+SUMIFS(blades!$I$2:$I$10,blades!$A$2:$A$10,$P42)+SUMIFS(blades!$I$2:$I$10,blades!$A$2:$A$10,$Q42) -> 190 | Y42: =IF(K42="110V",IF(J42="No",VLOOKUP(Z42,blades!$A$14:$G$21,3,FALSE),VLOOKUP(Z42,blades!$A$14:$G$21,4,FALSE)),IF(J42="No",VLOOKUP(Z42,blades!$A$14:$G$21,5,FALSE),VLOOKUP(Z42,blades!$A$14:$G$21,6,FALSE)))-X42 -> 450 | Z42: 1 | AA42: M6100-3S | AB42: XCM8948 | AC42: XCM8948 | AD42: XCM8944 & XCM89P | AE42: One unit APS1000W
A43: 188No110V1 | B43: 3-slot (4U) | C43: Yes | D43: 128 | E43: 0 | F43: 4 | G43: 4 | H43: 80 | I43: 0 | J43: No | K43: 110V | L43: 440 | M43: - | N43: - | O43: 1 | P43: 8 | Q43: 8 | R43: - | S43: - | T43: - | U43: - | V43: - | W43: - | X43: =SUMIFS(blades!$I$2:$I$10,blades!$A$2:$A$10,$O43)+SUMIFS(blades!$I$2:$I$10,blades!$A$2:$A$10,$P43)+SUMIFS(blades!$I$2:$I$10,blades!$A$2:$A$10,$Q43) -> 200 | Y43: =IF(K43="110V",IF(J43="No",VLOOKUP(Z43,blades!$A$14:$G$21,3,FALSE),VLOOKUP(Z43,blades!$A$14:$G$21,4,FALSE)),IF(J43="No",VLOOKUP(Z43,blades!$A$14:$G$21,5,FALSE),VLOOKUP(Z43,blades!$A$14:$G$21,6,FALSE)))-X43 -> 440 | Z43: 1 | AA43: M6100-3S | AB43: XCM8948 | AC43: XCM8944 & XCM89P | AD43: XCM8944 & XCM89P | AE43: One unit APS1000W
A44: 119No110V1 | B44: 3-slot (4U) | C44: Yes | D44: 136 | E44: 0 | F44: 2 | G44: 2 | H44: 0 | I44: 40 | J44: No | K44: 110V | L44: 450 | M44: - | N44: - | O44: 1 | P44: 1 | Q44: 9 | R44: - | S44: - | T44: - | U44: - | V44: - | W44: - | X44: =SUMIFS(blades!$I$2:$I$10,blades!$A$2:$A$10,$O44)+SUMIFS(blades!$I$2:$I$10,blades!$A$2:$A$10,$P44)+SUMIFS(blades!$I$2:$I$10,blades!$A$2:$A$10,$Q44) -> 190 | Y44: =IF(K44="110V",IF(J44="No",VLOOKUP(Z44,blades!$A$14:$G$21,3,FALSE),VLOOKUP(Z44,blades!$A$14:$G$21,4,FALSE)),IF(J44="No",VLOOKUP(Z44,blades!$A$14:$G$21,5,FALSE),VLOOKUP(Z44,blades!$A$14:$G$21,6,FALSE)))-X44 -> 450 | Z44: 1 | AA44: M6100-3S | AB44: XCM8948 | AC44: XCM8948 | AD44: XCM8944 & XCM89UP | AE44: One unit APS1000W
A45: 199No110V1 | B45: 3-slot (4U) | C45: Yes | D45: 128 | E45: 0 | F45: 4 | G45: 4 | H45: 0 | I45: 80 | J45: No | K45: 110V | L45: 440 | M45: - | N45: - | O45: 1 | P45: 9 | Q45: 9 | R45: - | S45: - | T45: - | U45: - | V45: - | W45: - | X45: =SUMIFS(blades!$I$2:$I$10,blades!$A$2:$A$10,$O45)+SUMIFS(blades!$I$2:$I$10,blades!$A$2:$A$10,$P45)+SUMIFS(blades!$I$2:$I$10,blades!$A$2:$A$10,$Q45) -> 200 | Y45: =IF(K45="110V",IF(J45="No",VLOOKUP(Z45,blades!$A$14:$G$21,3,FALSE),VLOOKUP(Z45,blades!$A$14:$G$21,4,FALSE)),IF(J45="No",VLOOKUP(Z45,blades!$A$14:$G$21,5,FALSE),VLOOKUP(Z45,blades!$A$14:$G$21,6,FALSE)))-X45 -> 440 | Z45: 1 | AA45: M6100-3S | AB45: XCM8948 | AC45: XCM8944 & XCM89UP | AD45: XCM8944 & XCM89UP | AE45: One unit APS1000W
A46: 111No110V1 | B46: 3-slot (4U) | C46: Yes | D46: 144 | E46: 0 | F46: 0 | G46: 0 | H46: 0 | I46: 0 | J46: No | K46: 110V | L46: 460 | M46: - | N46: - | O46: 1 | P46: 1 | Q46: 1 | R46: - | S46: - | T46: - | U46: - | V46: - | W46: - | X46: =SUMIFS(blades!$I$2:$I$10,blades!$A$2:$A$10,$O46)+SUMIFS(blades!$I$2:$I$10,blades!$A$2:$A$10,$P46)+SUMIFS(blades!$I$2:$I$10,blades!$A$2:$A$10,$Q46) -> 180 | Y46: =IF(K46="110V",IF(J46="No",VLOOKUP(Z46,blades!$A$14:$G$21,3,FALSE),VLOOKUP(Z46,blades!$A$14:$G$21,4,FALSE)),IF(J46="No",VLOOKUP(Z46,blades!$A$14:$G$21,5,FALSE),VLOOKUP(Z46,blades!$A$14:$G$21,6,FALSE)))-X46 -> 460 | Z46: 1 | AA46: M6100-3S | AB46: XCM8948 | AC46: XCM8948 | AD46: XCM8948 | AE46: One unit APS1000W
A47: 234No110V1 | B47: 3-slot (4U) | C47: Yes | D47: 40 | E47: 40 | F47: 28 | G47: 20 | H47: 0 | I47: 0 | J47: No | K47: 110V | L47: 220 | M47: - | N47: - | O47: 2 | P47: 3 | Q47: 4 | R47: - | S47: - | T47: - | U47: - | V47: - | W47: - | X47: =SUMIFS(blades!$I$2:$I$10,blades!$A$2:$A$10,$O47)+SUMIFS(blades!$I$2:$I$10,blades!$A$2:$A$10,$P47)+SUMIFS(blades!$I$2:$I$10,blades!$A$2:$A$10,$Q47) -> 420 | Y47: =IF(K47="110V",IF(J47="No",VLOOKUP(Z47,blades!$A$14:$G$21,3,FALSE),VLOOKUP(Z47,blades!$A$14:$G$21,4,FALSE)),IF(J47="No",VLOOKUP(Z47,blades!$A$14:$G$21,5,FALSE),VLOOKUP(Z47,blades!$A$14:$G$21,6,FALSE)))-X47 -> 220 | Z47: 1 | AA47: M6100-3S | AB47: XCM8944 | AC47: XCM8944F | AD47: XCM8924X | AE47: One unit APS1000W
A48: 235No110V1 | B48: 3-slot (4U) | C48: Yes | D48: 40 | E48: 40 | F48: 4 | G48: 4 | H48: 0 | I48: 0 | J48: No | K48: 110V | L48: 420 | M48: - | N48: - | O48: 2 | P48: 3 | Q48: 5 | R48: - | S48: - | T48: - | U48: - | V48: - | W48: - | X48: =SUMIFS(blades!$I$2:$I$10,blades!$A$2:$A$10,$O48)+SUMIFS(blades!$I$2:$I$10,blades!$A$2:$A$10,$P48)+SUMIFS(blades!$I$2:$I$10,blades!$A$2:$A$10,$Q48) -> 220 | Y48: =IF(K48="110V",IF(J48="No",VLOOKUP(Z48,blades!$A$14:$G$21,3,FALSE),VLOOKUP(Z48,blades!$A$14:$G$21,4,FALSE)),IF(J48="No",VLOOKUP(Z48,blades!$A$14:$G$21,5,FALSE),VLOOKUP(Z48,blades!$A$14:$G$21,6,FALSE)))-X48 -> 420 | Z48: 1 | AA48: M6100-3S | AB48: XCM8944 | AC48: XCM8944F | AD48: Empty | AE48: One unit APS1000W
A49: 236No110V1 | B49: 3-slot (4U) | C49: Yes | D49: 88 | E49: 40 | F49: 4 | G49: 4 | H49: 48 | I49: 0 | J49: No | K49: 110V | L49: 360 | M49: - | N49: - | O49: 2 | P49: 3 | Q49: 6 | R49: - | S49: - | T49: - | U49: - | V49: - | W49: - | X49: =SUMIFS(blades!$I$2:$I$10,blades!$A$2:$A$10,$O49)+SUMIFS(blades!$I$2:$I$10,blades!$A$2:$A$10,$P49)+SUMIFS(blades!$I$2:$I$10,blades!$A$2:$A$10,$Q49) -> 280 | Y49: =IF(K49="110V",IF(J49="No",VLOOKUP(Z49,blades!$A$14:$G$21,3,FALSE),VLOOKUP(Z49,blades!$A$14:$G$21,4,FALSE)),IF(J49="No",VLOOKUP(Z49,blades!$A$14:$G$21,5,FALSE),VLOOKUP(Z49,blades!$A$14:$G$21,6,FALSE)))-X49 -> 360 | Z49: 1 | AA49: M6100-3S | AB49: XCM8944 | AC49: XCM8944F | AD49: XCM8948 & XCM89P | AE49: One unit APS1000W
A50: 237No110V1 | B50: 3-slot (4U) | C50: Yes | D50: 88 | E50: 40 | F50: 4 | G50: 4 | H50: 0 | I50: 48 | J50: No | K50: 110V | L50: 360 | M50: - | N50: - | O50: 2 | P50: 3 | Q50: 7 | R50: - | S50: - | T50: - | U50: - | V50: - | W50: - | X50: =SUMIFS(blades!$I$2:$I$10,blades!$A$2:$A$10,$O50)+SUMIFS(blades!$I$2:$I$10,blades!$A$2:$A$10,$P50)+SUMIFS(blades!$I$2:$I$10,blades!$A$2:$A$10,$Q50) -> 280 | Y50: =IF(K50="110V",IF(J50="No",VLOOKUP(Z50,blades!$A$14:$G$21,3,FALSE),VLOOKUP(Z50,blades!$A$14:$G$21,4,FALSE)),IF(J50="No",VLOOKUP(Z50,blades!$A$14:$G$21,5,FALSE),VLOOKUP(Z50,blades!$A$14:$G$21,6,FALSE)))-X50 -> 360 | Z50: 1 | AA50: M6100-3S | AB50: XCM8944 | AC50: XCM8944F | AD50: XCM8948 & XCM89UP | AE50: One unit APS1000W
A51: 238No110V1 | B51: 3-slot (4U) | C51: Yes | D51: 80 | E51: 40 | F51: 6 | G51: 6 | H51: 40 | I51: 0 | J51: No | K51: 110V | L51: 350 | M51: - | N51: - | O51: 2 | P51: 3 | Q51: 8 | R51: - | S51: - | T51: - | U51: - | V51: - | W51: - | X51: =SUMIFS(blades!$I$2:$I$10,blades!$A$2:$A$10,$O51)+SUMIFS(blades!$I$2:$I$10,blades!$A$2:$A$10,$P51)+SUMIFS(blades!$I$2:$I$10,blades!$A$2:$A$10,$Q51) -> 290 | Y51: =IF(K51="110V",IF(J51="No",VLOOKUP(Z51,blades!$A$14:$G$21,3,FALSE),VLOOKUP(Z51,blades!$A$14:$G$21,4,FALSE)),IF(J51="No",VLOOKUP(Z51,blades!$A$14:$G$21,5,FALSE),VLOOKUP(Z51,blades!$A$14:$G$21,6,FALSE)))-X51 -> 350 | Z51: 1 | AA51: M6100-3S | AB51: XCM8944 | AC51: XCM8944F | AD51: XCM8944 & XCM89P | AE51: One unit APS1000W
A52: 239No110V1 | B52: 3-slot (4U) | C52: Yes | D52: 80 | E52: 40 | F52: 6 | G52: 6 | H52: 0 | I52: 40 | J52: No | K52: 110V | L52: 350 | M52: - | N52: - | O52: 2 | P52: 3 | Q52: 9 | R52: - | S52: - | T52: - | U52: - | V52: - | W52: - | X52: =SUMIFS(blades!$I$2:$I$10,blades!$A$2:$A$10,$O52)+SUMIFS(blades!$I$2:$I$10,blades!$A$2:$A$10,$P52)+SUMIFS(blades!$I$2:$I$10,blades!$A$2:$A$10,$Q52) -> 290 | Y52: =IF(K52="110V",IF(J52="No",VLOOKUP(Z52,blades!$A$14:$G$21,3,FALSE),VLOOKUP(Z52,blades!$A$14:$G$21,4,FALSE)),IF(J52="No",VLOOKUP(Z52,blades!$A$14:$G$21,5,FALSE),VLOOKUP(Z52,blades!$A$14:$G$21,6,FALSE)))-X52 -> 350 | Z52: 1 | AA52: M6100-3S | AB52: XCM8944 | AC52: XCM8944F | AD52: XCM8944 & XCM89UP | AE52: One unit APS1000W
A53: 223No110V1 | B53: 3-slot (4U) | C53: Yes | D53: 80 | E53: 40 | F53: 6 | G53: 6 | H53: 0 | I53: 0 | J53: No | K53: 110V | L53: 350 | M53: - | N53: - | O53: 2 | P53: 2 | Q53: 3 | R53: - | S53: - | T53: - | U53: - | V53: - | W53: - | X53: =SUMIFS(blades!$I$2:$I$10,blades!$A$2:$A$10,$O53)+SUMIFS(blades!$I$2:$I$10,blades!$A$2:$A$10,$P53)+SUMIFS(blades!$I$2:$I$10,blades!$A$2:$A$10,$Q53) -> 290 | Y53: =IF(K53="110V",IF(J53="No",VLOOKUP(Z53,blades!$A$14:$G$21,3,FALSE),VLOOKUP(Z53,blades!$A$14:$G$21,4,FALSE)),IF(J53="No",VLOOKUP(Z53,blades!$A$14:$G$21,5,FALSE),VLOOKUP(Z53,blades!$A$14:$G$21,6,FALSE)))-X53 -> 350 | Z53: 1 | AA53: M6100-3S | AB53: XCM8944 | AC53: XCM8944 | AD53: XCM8944F | AE53: One unit APS1000W
A54: 233No110V1 | B54: 3-slot (4U) | C54: Yes | D54: 40 | E54: 80 | F54: 6 | G54: 6 | H54: 0 | I54: 0 | J54: No | K54: 110V | L54: 270 | M54: - | N54: - | O54: 2 | P54: 3 | Q54: 3 | R54: - | S54: - | T54: - | U54: - | V54: - | W54: - | X54: =SUMIFS(blades!$I$2:$I$10,blades!$A$2:$A$10,$O54)+SUMIFS(blades!$I$2:$I$10,blades!$A$2:$A$10,$P54)+SUMIFS(blades!$I$2:$I$10,blades!$A$2:$A$10,$Q54) -> 370 | Y54: =IF(K54="110V",IF(J54="No",VLOOKUP(Z54,blades!$A$14:$G$21,3,FALSE),VLOOKUP(Z54,blades!$A$14:$G$21,4,FALSE)),IF(J54="No",VLOOKUP(Z54,blades!$A$14:$G$21,5,FALSE),VLOOKUP(Z54,blades!$A$14:$G$21,6,FALSE)))-X54 -> 270 | Z54: 1 | AA54: M6100-3S | AB54: XCM8944 | AC54: XCM8944F | AD54: XCM8944F | AE54: One unit APS1000W
A55: 245No110V1 | B55: 3-slot (4U) | C55: Yes | D55: 40 | E55: 0 | F55: 26 | G55: 18 | H55: 0 | I55: 0 | J55: No | K55: 110V | L55: 370 | M55: - | N55: - | O55: 2 | P55: 4 | Q55: 5 | R55: - | S55: - | T55: - | U55: - | V55: - | W55: - | X55: =SUMIFS(blades!$I$2:$I$10,blades!$A$2:$A$10,$O55)+SUMIFS(blades!$I$2:$I$10,blades!$A$2:$A$10,$P55)+SUMIFS(blades!$I$2:$I$10,blades!$A$2:$A$10,$Q55) -> 270 | Y55: =IF(K55="110V",IF(J55="No",VLOOKUP(Z55,blades!$A$14:$G$21,3,FALSE),VLOOKUP(Z55,blades!$A$14:$G$21,4,FALSE)),IF(J55="No",VLOOKUP(Z55,blades!$A$14:$G$21,5,FALSE),VLOOKUP(Z55,blades!$A$14:$G$21,6,FALSE)))-X55 -> 370 | Z55: 1 | AA55: M6100-3S | AB55: XCM8944 | AC55: XCM8924X | AD55: Empty | AE55: One unit APS1000W
A56: 246No110V1 | B56: 3-slot (4U) | C56: Yes | D56: 88 | E56: 0 | F56: 26 | G56: 18 | H56: 48 | I56: 0 | J56: No | K56: 110V | L56: 310 | M56: - | N56: - | O56: 2 | P56: 4 | Q56: 6 | R56: - | S56: - | T56: - | U56: - | V56: - | W56: - | X56: =SUMIFS(blades!$I$2:$I$10,blades!$A$2:$A$10,$O56)+SUMIFS(blades!$I$2:$I$10,blades!$A$2:$A$10,$P56)+SUMIFS(blades!$I$2:$I$10,blades!$A$2:$A$10,$Q56) -> 330 | Y56: =IF(K56="110V",IF(J56="No",VLOOKUP(Z56,blades!$A$14:$G$21,3,FALSE),VLOOKUP(Z56,blades!$A$14:$G$21,4,FALSE)),IF(J56="No",VLOOKUP(Z56,blades!$A$14:$G$21,5,FALSE),VLOOKUP(Z56,blades!$A$14:$G$21,6,FALSE)))-X56 -> 310 | Z56: 1 | AA56: M6100-3S | AB56: XCM8944 | AC56: XCM8924X | AD56: XCM8948 & XCM89P | AE56: One unit APS1000W
A57: 247No110V1 | B57: 3-slot (4U) | C57: Yes | D57: 88 | E57: 0 | F57: 26 | G57: 18 | H57: 0 | I57: 48 | J57: No | K57: 110V | L57: 310 | M57: - | N57: - | O57: 2 | P57: 4 | Q57: 7 | R57: - | S57: - | T57: - | U57: - | V57: - | W57: - | X57: =SUMIFS(blades!$I$2:$I$10,blades!$A$2:$A$10,$O57)+SUMIFS(blades!$I$2:$I$10,blades!$A$2:$A$10,$P57)+SUMIFS(blades!$I$2:$I$10,blades!$A$2:$A$10,$Q57) -> 330 | Y57: =IF(K57="110V",IF(J57="No",VLOOKUP(Z57,blades!$A$14:$G$21,3,FALSE),VLOOKUP(Z57,blades!$A$14:$G$21,4,FALSE)),IF(J57="No",VLOOKUP(Z57,blades!$A$14:$G$21,5,FALSE),VLOOKUP(Z57,blades!$A$14:$G$21,6,FALSE)))-X57 -> 310 | Z57: 1 | AA57: M6100-3S | AB57: XCM8944 | AC57: XCM8924X | AD57: XCM8948 & XCM89UP | AE57: One unit APS1000W
A58: 248No110V1 | B58: 3-slot (4U) | C58: Yes | D58: 80 | E58: 0 | F58: 28 | G58: 20 | H58: 40 | I58: 0 | J58: No | K58: 110V | L58: 300 | M58: - | N58: - | O58: 2 | P58: 4 | Q58: 8 | R58: - | S58: - | T58: - | U58: - | V58: - | W58: - | X58: =SUMIFS(blades!$I$2:$I$10,blades!$A$2:$A$10,$O58)+SUMIFS(blades!$I$2:$I$10,blades!$A$2:$A$10,$P58)+SUMIFS(blades!$I$2:$I$10,blades!$A$2:$A$10,$Q58) -> 340 | Y58: =IF(K58="110V",IF(J58="No",VLOOKUP(Z58,blades!$A$14:$G$21,3,FALSE),VLOOKUP(Z58,blades!$A$14:$G$21,4,FALSE)),IF(J58="No",VLOOKUP(Z58,blades!$A$14:$G$21,5,FALSE),VLOOKUP(Z58,blades!$A$14:$G$21,6,FALSE)))-X58 -> 300 | Z58: 1 | AA58: M6100-3S | AB58: XCM8944 | AC58: XCM8924X | AD58: XCM8944 & XCM89P | AE58: One unit APS1000W
A59: 249No110V1 | B59: 3-slot (4U) | C59: Yes | D59: 80 | E59: 0 | F59: 28 | G59: 20 | H59: 0 | I59: 40 | J59: No | K59: 110V | L59: 300 | M59: - | N59: - | O59: 2 | P59: 4 | Q59: 9 | R59: - | S59: - | T59: - | U59: - | V59: - | W59: - | X59: =SUMIFS(blades!$I$2:$I$10,blades!$A$2:$A$10,$O59)+SUMIFS(blades!$I$2:$I$10,blades!$A$2:$A$10,$P59)+SUMIFS(blades!$I$2:$I$10,blades!$A$2:$A$10,$Q59) -> 340 | Y59: =IF(K59="110V",IF(J59="No",VLOOKUP(Z59,blades!$A$14:$G$21,3,FALSE),VLOOKUP(Z59,blades!$A$14:$G$21,4,FALSE)),IF(J59="No",VLOOKUP(Z59,blades!$A$14:$G$21,5,FALSE),VLOOKUP(Z59,blades!$A$14:$G$21,6,FALSE)))-X59 -> 300 | Z59: 1 | AA59: M6100-3S | AB59: XCM8944 | AC59: XCM8924X | AD59: XCM8944 & XCM89UP | AE59: One unit APS1000W
A60: 224No110V1 | B60: 3-slot (4U) | C60: Yes | D60: 80 | E60: 0 | F60: 28 | G60: 20 | H60: 0 | I60: 0 | J60: No | K60: 110V | L60: 300 | M60: - | N60: - | O60: 2 | P60: 2 | Q60: 4 | R60: - | S60: - | T60: - | U60: - | V60: - | W60: - | X60: =SUMIFS(blades!$I$2:$I$10,blades!$A$2:$A$10,$O60)+SUMIFS(blades!$I$2:$I$10,blades!$A$2:$A$10,$P60)+SUMIFS(blades!$I$2:$I$10,blades!$A$2:$A$10,$Q60) -> 340 | Y60: =IF(K60="110V",IF(J60="No",VLOOKUP(Z60,blades!$A$14:$G$21,3,FALSE),VLOOKUP(Z60,blades!$A$14:$G$21,4,FALSE)),IF(J60="No",VLOOKUP(Z60,blades!$A$14:$G$21,5,FALSE),VLOOKUP(Z60,blades!$A$14:$G$21,6,FALSE)))-X60 -> 300 | Z60: 1 | AA60: M6100-3S | AB60: XCM8944 | AC60: XCM8944 | AD60: XCM8924X | AE60: One unit APS1000W
A61: 244No110V1 | B61: 3-slot (4U) | C61: Yes | D61: 40 | E61: 0 | F61: 50 | G61: 34 | H61: 0 | I61: 0 | J61: No | K61: 110V | L61: 170 | M61: - | N61: - | O61: 2 | P61: 4 | Q61: 4 | R61: - | S61: - | T61: - | U61: - | V61: - | W61: - | X61: =SUMIFS(blades!$I$2:$I$10,blades!$A$2:$A$10,$O61)+SUMIFS(blades!$I$2:$I$10,blades!$A$2:$A$10,$P61)+SUMIFS(blades!$I$2:$I$10,blades!$A$2:$A$10,$Q61) -> 470 | Y61: =IF(K61="110V",IF(J61="No",VLOOKUP(Z61,blades!$A$14:$G$21,3,FALSE),VLOOKUP(Z61,blades!$A$14:$G$21,4,FALSE)),IF(J61="No",VLOOKUP(Z61,blades!$A$14:$G$21,5,FALSE),VLOOKUP(Z61,blades!$A$14:$G$21,6,FALSE)))-X61 -> 170 | Z61: 1 | AA61: M6100-3S | AB61: XCM8944 | AC61: XCM8924X | AD61: XCM8924X | AE61: One unit APS1000W
A62: 256No110V1 | B62: 3-slot (4U) | C62: Yes | D62: 88 | E62: 0 | F62: 2 | G62: 2 | H62: 48 | I62: 0 | J62: No | K62: 110V | L62: 510 | M62: - | N62: - | O62: 2 | P62: 5 | Q62: 6 | R62: - | S62: - | T62: - | U62: - | V62: - | W62: - | X62: =SUMIFS(blades!$I$2:$I$10,blades!$A$2:$A$10,$O62)+SUMIFS(blades!$I$2:$I$10,blades!$A$2:$A$10,$P62)+SUMIFS(blades!$I$2:$I$10,blades!$A$2:$A$10,$Q62) -> 130 | Y62: =IF(K62="110V",IF(J62="No",VLOOKUP(Z62,blades!$A$14:$G$21,3,FALSE),VLOOKUP(Z62,blades!$A$14:$G$21,4,FALSE)),IF(J62="No",VLOOKUP(Z62,blades!$A$14:$G$21,5,FALSE),VLOOKUP(Z62,blades!$A$14:$G$21,6,FALSE)))-X62 -> 510 | Z62: 1 | AA62: M6100-3S | AB62: XCM8944 | AC62: Empty | AD62: XCM8948 & XCM89P | AE62: One unit APS1000W
A63: 257No110V1 | B63: 3-slot (4U) | C63: Yes | D63: 88 | E63: 0 | F63: 2 | G63: 2 | H63: 0 | I63: 48 | J63: No | K63: 110V | L63: 510 | M63: - | N63: - | O63: 2 | P63: 5 | Q63: 7 | R63: - | S63: - | T63: - | U63: - | V63: - | W63: - | X63: =SUMIFS(blades!$I$2:$I$10,blades!$A$2:$A$10,$O63)+SUMIFS(blades!$I$2:$I$10,blades!$A$2:$A$10,$P63)+SUMIFS(blades!$I$2:$I$10,blades!$A$2:$A$10,$Q63) -> 130 | Y63: =IF(K63="110V",IF(J63="No",VLOOKUP(Z63,blades!$A$14:$G$21,3,FALSE),VLOOKUP(Z63,blades!$A$14:$G$21,4,FALSE)),IF(J63="No",VLOOKUP(Z63,blades!$A$14:$G$21,5,FALSE),VLOOKUP(Z63,blades!$A$14:$G$21,6,FALSE)))-X63 -> 510 | Z63: 1 | AA63: M6100-3S | AB63: XCM8944 | AC63: Empty | AD63: XCM8948 & XCM89UP | AE63: One unit APS1000W
A64: 258No110V1 | B64: 3-slot (4U) | C64: Yes | D64: 80 | E64: 0 | F64: 4 | G64: 4 | H64: 40 | I64: 0 | J64: No | K64: 110V | L64: 500 | M64: - | N64: - | O64: 2 | P64: 5 | Q64: 8 | R64: - | S64: - | T64: - | U64: - | V64: - | W64: - | X64: =SUMIFS(blades!$I$2:$I$10,blades!$A$2:$A$10,$O64)+SUMIFS(blades!$I$2:$I$10,blades!$A$2:$A$10,$P64)+SUMIFS(blades!$I$2:$I$10,blades!$A$2:$A$10,$Q64) -> 140 | Y64: =IF(K64="110V",IF(J64="No",VLOOKUP(Z64,blades!$A$14:$G$21,3,FALSE),VLOOKUP(Z64,blades!$A$14:$G$21,4,FALSE)),IF(J64="No",VLOOKUP(Z64,blades!$A$14:$G$21,5,FALSE),VLOOKUP(Z64,blades!$A$14:$G$21,6,FALSE)))-X64 -> 500 | Z64: 1 | AA64: M6100-3S | AB64: XCM8944 | AC64: Empty | AD64: XCM8944 & XCM89P | AE64: One unit APS1000W
A65: 259No110V1 | B65: 3-slot (4U) | C65: Yes | D65: 80 | E65: 0 | F65: 4 | G65: 4 | H65: 0 | I65: 40 | J65: No | K65: 110V | L65: 500 | M65: - | N65: - | O65: 2 | P65: 5 | Q65: 9 | R65: - | S65: - | T65: - | U65: - | V65: - | W65: - | X65: =SUMIFS(blades!$I$2:$I$10,blades!$A$2:$A$10,$O65)+SUMIFS(blades!$I$2:$I$10,blades!$A$2:$A$10,$P65)+SUMIFS(blades!$I$2:$I$10,blades!$A$2:$A$10,$Q65) -> 140 | Y65: =IF(K65="110V",IF(J65="No",VLOOKUP(Z65,blades!$A$14:$G$21,3,FALSE),VLOOKUP(Z65,blades!$A$14:$G$21,4,FALSE)),IF(J65="No",VLOOKUP(Z65,blades!$A$14:$G$21,5,FALSE),VLOOKUP(Z65,blades!$A$14:$G$21,6,FALSE)))-X65 -> 500 | Z65: 1 | AA65: M6100-3S | AB65: XCM8944 | AC65: Empty | AD65: XCM8944 & XCM89UP | AE65: One unit APS1000W
A66: 225No110V1 | B66: 3-slot (4U) | C66: Yes | D66: 80 | E66: 0 | F66: 4 | G66: 4 | H66: 0 | I66: 0 | J66: No | K66: 110V | L66: 500 | M66: - | N66: - | O66: 2 | P66: 2 | Q66: 5 | R66: - | S66: - | T66: - | U66: - | V66: - | W66: - | X66: =SUMIFS(blades!$I$2:$I$10,blades!$A$2:$A$10,$O66)+SUMIFS(blades!$I$2:$I$10,blades!$A$2:$A$10,$P66)+SUMIFS(blades!$I$2:$I$10,blades!$A$2:$A$10,$Q66) -> 140 | Y66: =IF(K66="110V",IF(J66="No",VLOOKUP(Z66,blades!$A$14:$G$21,3,FALSE),VLOOKUP(Z66,blades!$A$14:$G$21,4,FALSE)),IF(J66="No",VLOOKUP(Z66,blades!$A$14:$G$21,5,FALSE),VLOOKUP(Z66,blades!$A$14:$G$21,6,FALSE)))-X66 -> 500 | Z66: 1 | AA66: M6100-3S | AB66: XCM8944 | AC66: XCM8944 | AD66: Empty | AE66: One unit APS1000W
A67: 255No110V1 | B67: 3-slot (4U) | C67: Yes | D67: 40 | E67: 0 | F67: 2 | G67: 2 | H67: 0 | I67: 0 | J67: No | K67: 110V | L67: =Y67 -> 570 | M67: - | N67: - | O67: 2 | P67: 5 | Q67: 5 | R67: - | S67: - | T67: - | U67: - | V67: - | W67: - | X67: =SUMIFS(blades!$I$2:$I$10,blades!$A$2:$A$10,$O67)+SUMIFS(blades!$I$2:$I$10,blades!$A$2:$A$10,$P67)+SUMIFS(blades!$I$2:$I$10,blades!$A$2:$A$10,$Q67) -> 70 | Y67: =IF(K67="110V",IF(J67="No",VLOOKUP(Z67,blades!$A$14:$G$21,3,FALSE),VLOOKUP(Z67,blades!$A$14:$G$21,4,FALSE)),IF(J67="No",VLOOKUP(Z67,blades!$A$14:$G$21,5,FALSE),VLOOKUP(Z67,blades!$A$14:$G$21,6,FALSE)))-X67 -> 570 | Z67: 1 | AA67: M6100-3S | AB67: XCM8944 | AC67: Empty | AD67: Empty | AE67: One unit APS1000W
A68: 267No110V1 | B68: 3-slot (4U) | C68: Yes | D68: 136 | E68: 0 | F68: 2 | G68: 2 | H68: 48 | I68: 48 | J68: No | K68: 110V | L68: 450 | M68: - | N68: - | O68: 2 | P68: 6 | Q68: 7 | R68: - | S68: - | T68: - | U68: - | V68: - | W68: - | X68: =SUMIFS(blades!$I$2:$I$10,blades!$A$2:$A$10,$O68)+SUMIFS(blades!$I$2:$I$10,blades!$A$2:$A$10,$P68)+SUMIFS(blades!$I$2:$I$10,blades!$A$2:$A$10,$Q68) -> 190 | Y68: =IF(K68="110V",IF(J68="No",VLOOKUP(Z68,blades!$A$14:$G$21,3,FALSE),VLOOKUP(Z68,blades!$A$14:$G$21,4,FALSE)),IF(J68="No",VLOOKUP(Z68,blades!$A$14:$G$21,5,FALSE),VLOOKUP(Z68,blades!$A$14:$G$21,6,FALSE)))-X68 -> 450 | Z68: 1 | AA68: M6100-3S | AB68: XCM8944 | AC68: XCM8948 & XCM89P | AD68: XCM8948 & XCM89UP | AE68: One unit APS1000W
A69: 268No110V1 | B69: 3-slot (4U) | C69: Yes | D69: 128 | E69: 0 | F69: 4 | G69: 4 | H69: 88 | I69: 0 | J69: No | K69: 110V | L69: 440 | M69: - | N69: - | O69: 2 | P69: 6 | Q69: 8 | R69: - | S69: - | T69: - | U69: - | V69: - | W69: - | X69: =SUMIFS(blades!$I$2:$I$10,blades!$A$2:$A$10,$O69)+SUMIFS(blades!$I$2:$I$10,blades!$A$2:$A$10,$P69)+SUMIFS(blades!$I$2:$I$10,blades!$A$2:$A$10,$Q69) -> 200 | Y69: =IF(K69="110V",IF(J69="No",VLOOKUP(Z69,blades!$A$14:$G$21,3,FALSE),VLOOKUP(Z69,blades!$A$14:$G$21,4,FALSE)),IF(J69="No",VLOOKUP(Z69,blades!$A$14:$G$21,5,FALSE),VLOOKUP(Z69,blades!$A$14:$G$21,6,FALSE)))-X69 -> 440 | Z69: 1 | AA69: M6100-3S | AB69: XCM8944 | AC69: XCM8948 & XCM89P | AD69: XCM8944 & XCM89P | AE69: One unit APS1000W
A70: 269No110V1 | B70: 3-slot (4U) | C70: Yes | D70: 128 | E70: 0 | F70: 4 | G70: 4 | H70: 48 | I70: 40 | J70: No | K70: 110V | L70: 440 | M70: - | N70: - | O70: 2 | P70: 6 | Q70: 9 | R70: - | S70: - | T70: - | U70: - | V70: - | W70: - | X70: =SUMIFS(blades!$I$2:$I$10,blades!$A$2:$A$10,$O70)+SUMIFS(blades!$I$2:$I$10,blades!$A$2:$A$10,$P70)+SUMIFS(blades!$I$2:$I$10,blades!$A$2:$A$10,$Q70) -> 200 | Y70: =IF(K70="110V",IF(J70="No",VLOOKUP(Z70,blades!$A$14:$G$21,3,FALSE),VLOOKUP(Z70,blades!$A$14:$G$21,4,FALSE)),IF(J70="No",VLOOKUP(Z70,blades!$A$14:$G$21,5,FALSE),VLOOKUP(Z70,blades!$A$14:$G$21,6,FALSE)))-X70 -> 440 | Z70: 1 | AA70: M6100-3S | AB70: XCM8944 | AC70: XCM8948 & XCM89P | AD70: XCM8944 & XCM89UP | AE70: One unit APS1000W
A71: 226No110V1 | B71: 3-slot (4U) | C71: Yes | D71: 128 | E71: 0 | F71: 4 | G71: 4 | H71: 48 | I71: 0 | J71: No | K71: 110V | L71: 440 | M71: - | N71: - | O71: 2 | P71: 2 | Q71: 6 | R71: - | S71: - | T71: - | U71: - | V71: - | W71: - | X71: =SUMIFS(blades!$I$2:$I$10,blades!$A$2:$A$10,$O71)+SUMIFS(blades!$I$2:$I$10,blades!$A$2:$A$10,$P71)+SUMIFS(blades!$I$2:$I$10,blades!$A$2:$A$10,$Q71) -> 200 | Y71: =IF(K71="110V",IF(J71="No",VLOOKUP(Z71,blades!$A$14:$G$21,3,FALSE),VLOOKUP(Z71,blades!$A$14:$G$21,4,FALSE)),IF(J71="No",VLOOKUP(Z71,blades!$A$14:$G$21,5,FALSE),VLOOKUP(Z71,blades!$A$14:$G$21,6,FALSE)))-X71 -> 440 | Z71: 1 | AA71: M6100-3S | AB71: XCM8944 | AC71: XCM8944 | AD71: XCM8948 & XCM89P | AE71: One unit APS1000W
A72: 266No110V1 | B72: 3-slot (4U) | C72: Yes | D72: 136 | E72: 0 | F72: 2 | G72: 2 | H72: 96 | I72: 0 | J72: No | K72: 110V | L72: 450 | M72: - | N72: - | O72: 2 | P72: 6 | Q72: 6 | R72: - | S72: - | T72: - | U72: - | V72: - | W72: - | X72: =SUMIFS(blades!$I$2:$I$10,blades!$A$2:$A$10,$O72)+SUMIFS(blades!$I$2:$I$10,blades!$A$2:$A$10,$P72)+SUMIFS(blades!$I$2:$I$10,blades!$A$2:$A$10,$Q72) -> 190 | Y72: =IF(K72="110V",IF(J72="No",VLOOKUP(Z72,blades!$A$14:$G$21,3,FALSE),VLOOKUP(Z72,blades!$A$14:$G$21,4,FALSE)),IF(J72="No",VLOOKUP(Z72,blades!$A$14:$G$21,5,FALSE),VLOOKUP(Z72,blades!$A$14:$G$21,6,FALSE)))-X72 -> 450 | Z72: 1 | AA72: M6100-3S | AB72: XCM8944 | AC72: XCM8948 & XCM89P | AD72: XCM8948 & XCM89P | AE72: One unit APS1000W
A73: 278No110V1 | B73: 3-slot (4U) | C73: Yes | D73: 128 | E73: 0 | F73: 4 | G73: 4 | H73: 40 | I73: 48 | J73: No | K73: 110V | L73: 440 | M73: - | N73: - | O73: 2 | P73: 7 | Q73: 8 | R73: - | S73: - | T73: - | U73: - | V73: - | W73: - | X73: =SUMIFS(blades!$I$2:$I$10,blades!$A$2:$A$10,$O73)+SUMIFS(blades!$I$2:$I$10,blades!$A$2:$A$10,$P73)+SUMIFS(blades!$I$2:$I$10,blades!$A$2:$A$10,$Q73) -> 200 | Y73: =IF(K73="110V",IF(J73="No",VLOOKUP(Z73,blades!$A$14:$G$21,3,FALSE),VLOOKUP(Z73,blades!$A$14:$G$21,4,FALSE)),IF(J73="No",VLOOKUP(Z73,blades!$A$14:$G$21,5,FALSE),VLOOKUP(Z73,blades!$A$14:$G$21,6,FALSE)))-X73 -> 440 | Z73: 1 | AA73: M6100-3S | AB73: XCM8944 | AC73: XCM8948 & XCM89UP | AD73: XCM8944 & XCM89P | AE73: One unit APS1000W
A74: 279No110V1 | B74: 3-slot (4U) | C74: Yes | D74: 128 | E74: 0 | F74: 4 | G74: 4 | H74: 0 | I74: 88 | J74: No | K74: 110V | L74: 440 | M74: - | N74: - | O74: 2 | P74: 7 | Q74: 9 | R74: - | S74: - | T74: - | U74: - | V74: - | W74: - | X74: =SUMIFS(blades!$I$2:$I$10,blades!$A$2:$A$10,$O74)+SUMIFS(blades!$I$2:$I$10,blades!$A$2:$A$10,$P74)+SUMIFS(blades!$I$2:$I$10,blades!$A$2:$A$10,$Q74) -> 200 | Y74: =IF(K74="110V",IF(J74="No",VLOOKUP(Z74,blades!$A$14:$G$21,3,FALSE),VLOOKUP(Z74,blades!$A$14:$G$21,4,FALSE)),IF(J74="No",VLOOKUP(Z74,blades!$A$14:$G$21,5,FALSE),VLOOKUP(Z74,blades!$A$14:$G$21,6,FALSE)))-X74 -> 440 | Z74: 1 | AA74: M6100-3S | AB74: XCM8944 | AC74: XCM8948 & XCM89UP | AD74: XCM8944 & XCM89UP | AE74: One unit APS1000W
A75: 227No110V1 | B75: 3-slot (4U) | C75: Yes | D75: 128 | E75: 0 | F75: 4 | G75: 4 | H75: 0 | I75: 48 | J75: No | K75: 110V | L75: 440 | M75: - | N75: - | O75: 2 | P75: 2 | Q75: 7 | R75: - | S75: - | T75: - | U75: - | V75: - | W75: - | X75: =SUMIFS(blades!$I$2:$I$10,blades!$A$2:$A$10,$O75)+SUMIFS(blades!$I$2:$I$10,blades!$A$2:$A$10,$P75)+SUMIFS(blades!$I$2:$I$10,blades!$A$2:$A$10,$Q75) -> 200 | Y75: =IF(K75="110V",IF(J75="No",VLOOKUP(Z75,blades!$A$14:$G$21,3,FALSE),VLOOKUP(Z75,blades!$A$14:$G$21,4,FALSE)),IF(J75="No",VLOOKUP(Z75,blades!$A$14:$G$21,5,FALSE),VLOOKUP(Z75,blades!$A$14:$G$21,6,FALSE)))-X75 -> 440 | Z75: 1 | AA75: M6100-3S | AB75: XCM8944 | AC75: XCM8944 | AD75: XCM8948 & XCM89UP | AE75: One unit APS1000W
A76: 277No110V1 | B76: 3-slot (4U) | C76: Yes | D76: 136 | E76: 0 | F76: 2 | G76: 2 | H76: 0 | I76: 96 | J76: No | K76: 110V | L76: 450 | M76: - | N76: - | O76: 2 | P76: 7 | Q76: 7 | R76: - | S76: - | T76: - | U76: - | V76: - | W76: - | X76: =SUMIFS(blades!$I$2:$I$10,blades!$A$2:$A$10,$O76)+SUMIFS(blades!$I$2:$I$10,blades!$A$2:$A$10,$P76)+SUMIFS(blades!$I$2:$I$10,blades!$A$2:$A$10,$Q76) -> 190 | Y76: =IF(K76="110V",IF(J76="No",VLOOKUP(Z76,blades!$A$14:$G$21,3,FALSE),VLOOKUP(Z76,blades!$A$14:$G$21,4,FALSE)),IF(J76="No",VLOOKUP(Z76,blades!$A$14:$G$21,5,FALSE),VLOOKUP(Z76,blades!$A$14:$G$21,6,FALSE)))-X76 -> 450 | Z76: 1 | AA76: M6100-3S | AB76: XCM8944 | AC76: XCM8948 & XCM89UP | AD76: XCM8948 & XCM89UP | AE76: One unit APS1000W
A77: 289No110V1 | B77: 3-slot (4U) | C77: Yes | D77: 120 | E77: 0 | F77: 6 | G77: 6 | H77: 40 | I77: 40 | J77: No | K77: 110V | L77: 430 | M77: - | N77: - | O77: 2 | P77: 8 | Q77: 9 | R77: - | S77: - | T77: - | U77: - | V77: - | W77: - | X77: =SUMIFS(blades!$I$2:$I$10,blades!$A$2:$A$10,$O77)+SUMIFS(blades!$I$2:$I$10,blades!$A$2:$A$10,$P77)+SUMIFS(blades!$I$2:$I$10,blades!$A$2:$A$10,$Q77) -> 210 | Y77: =IF(K77="110V",IF(J77="No",VLOOKUP(Z77,blades!$A$14:$G$21,3,FALSE),VLOOKUP(Z77,blades!$A$14:$G$21,4,FALSE)),IF(J77="No",VLOOKUP(Z77,blades!$A$14:$G$21,5,FALSE),VLOOKUP(Z77,blades!$A$14:$G$21,6,FALSE)))-X77 -> 430 | Z77: 1 | AA77: M6100-3S | AB77: XCM8944 | AC77: XCM8944 & XCM89P | AD77: XCM8944 & XCM89UP | AE77: One unit APS1000W
A78: 228No110V1 | B78: 3-slot (4U) | C78: Yes | D78: 120 | E78: 0 | F78: 6 | G78: 6 | H78: 40 | I78: 0 | J78: No | K78: 110V | L78: 430 | M78: - | N78: - | O78: 2 | P78: 2 | Q78: 8 | R78: - | S78: - | T78: - | U78: - | V78: - | W78: - | X78: =SUMIFS(blades!$I$2:$I$10,blades!$A$2:$A$10,$O78)+SUMIFS(blades!$I$2:$I$10,blades!$A$2:$A$10,$P78)+SUMIFS(blades!$I$2:$I$10,blades!$A$2:$A$10,$Q78) -> 210 | Y78: =IF(K78="110V",IF(J78="No",VLOOKUP(Z78,blades!$A$14:$G$21,3,FALSE),VLOOKUP(Z78,blades!$A$14:$G$21,4,FALSE)),IF(J78="No",VLOOKUP(Z78,blades!$A$14:$G$21,5,FALSE),VLOOKUP(Z78,blades!$A$14:$G$21,6,FALSE)))-X78 -> 430 | Z78: 1 | AA78: M6100-3S | AB78: XCM8944 | AC78: XCM8944 | AD78: XCM8944 & XCM89P | AE78: One unit APS1000W
A79: 288No110V1 | B79: 3-slot (4U) | C79: Yes | D79: 120 | E79: 0 | F79: 6 | G79: 6 | H79: 80 | I79: 0 | J79: No | K79: 110V | L79: 430 | M79: - | N79: - | O79: 2 | P79: 8 | Q79: 8 | R79: - | S79: - | T79: - | U79: - | V79: - | W79: - | X79: =SUMIFS(blades!$I$2:$I$10,blades!$A$2:$A$10,$O79)+SUMIFS(blades!$I$2:$I$10,blades!$A$2:$A$10,$P79)+SUMIFS(blades!$I$2:$I$10,blades!$A$2:$A$10,$Q79) -> 210 | Y79: =IF(K79="110V",IF(J79="No",VLOOKUP(Z79,blades!$A$14:$G$21,3,FALSE),VLOOKUP(Z79,blades!$A$14:$G$21,4,FALSE)),IF(J79="No",VLOOKUP(Z79,blades!$A$14:$G$21,5,FALSE),VLOOKUP(Z79,blades!$A$14:$G$21,6,FALSE)))-X79 -> 430 | Z79: 1 | AA79: M6100-3S | AB79: XCM8944 | AC79: XCM8944 & XCM89P | AD79: XCM8944 & XCM89P | AE79: One unit APS1000W
A80: 229No110V1 | B80: 3-slot (4U) | C80: Yes | D80: 120 | E80: 0 | F80: 6 | G80: 6 | H80: 0 | I80: 40 | J80: No | K80: 110V | L80: 430 | M80: - | N80: - | O80: 2 | P80: 2 | Q80: 9 | R80: - | S80: - | T80: - | U80: - | V80: - | W80: - | X80: =SUMIFS(blades!$I$2:$I$10,blades!$A$2:$A$10,$O80)+SUMIFS(blades!$I$2:$I$10,blades!$A$2:$A$10,$P80)+SUMIFS(blades!$I$2:$I$10,blades!$A$2:$A$10,$Q80) -> 210 | Y80: =IF(K80="110V",IF(J80="No",VLOOKUP(Z80,blades!$A$14:$G$21,3,FALSE),VLOOKUP(Z80,blades!$A$14:$G$21,4,FALSE)),IF(J80="No",VLOOKUP(Z80,blades!$A$14:$G$21,5,FALSE),VLOOKUP(Z80,blades!$A$14:$G$21,6,FALSE)))-X80 -> 430 | Z80: 1 | AA80: M6100-3S | AB80: XCM8944 | AC80: XCM8944 | AD80: XCM8944 & XCM89UP | AE80: One unit APS1000W
A81: 299No110V1 | B81: 3-slot (4U) | C81: Yes | D81: 120 | E81: 0 | F81: 6 | G81: 6 | H81: 0 | I81: 80 | J81: No | K81: 110V | L81: 430 | M81: - | N81: - | O81: 2 | P81: 9 | Q81: 9 | R81: - | S81: - | T81: - | U81: - | V81: - | W81: - | X81: =SUMIFS(blades!$I$2:$I$10,blades!$A$2:$A$10,$O81)+SUMIFS(blades!$I$2:$I$10,blades!$A$2:$A$10,$P81)+SUMIFS(blades!$I$2:$I$10,blades!$A$2:$A$10,$Q81) -> 210 | Y81: =IF(K81="110V",IF(J81="No",VLOOKUP(Z81,blades!$A$14:$G$21,3,FALSE),VLOOKUP(Z81,blades!$A$14:$G$21,4,FALSE)),IF(J81="No",VLOOKUP(Z81,blades!$A$14:$G$21,5,FALSE),VLOOKUP(Z81,blades!$A$14:$G$21,6,FALSE)))-X81 -> 430 | Z81: 1 | AA81: M6100-3S | AB81: XCM8944 | AC81: XCM8944 & XCM89UP | AD81: XCM8944 & XCM89UP | AE81: One unit APS1000W
A82: 222No110V1 | B82: 3-slot (4U) | C82: Yes | D82: 120 | E82: 0 | F82: 6 | G82: 6 | H82: 0 | I82: 0 | J82: No | K82: 110V | L82: 430 | M82: - | N82: - | O82: 2 | P82: 2 | Q82: 2 | R82: - | S82: - | T82: - | U82: - | V82: - | W82: - | X82: =SUMIFS(blades!$I$2:$I$10,blades!$A$2:$A$10,$O82)+SUMIFS(blades!$I$2:$I$10,blades!$A$2:$A$10,$P82)+SUMIFS(blades!$I$2:$I$10,blades!$A$2:$A$10,$Q82) -> 210 | Y82: =IF(K82="110V",IF(J82="No",VLOOKUP(Z82,blades!$A$14:$G$21,3,FALSE),VLOOKUP(Z82,blades!$A$14:$G$21,4,FALSE)),IF(J82="No",VLOOKUP(Z82,blades!$A$14:$G$21,5,FALSE),VLOOKUP(Z82,blades!$A$14:$G$21,6,FALSE)))-X82 -> 430 | Z82: 1 | AA82: M6100-3S | AB82: XCM8944 | AC82: XCM8944 | AD82: XCM8944 | AE82: One unit APS1000W
A83: 345No110V1 | B83: 3-slot (4U) | C83: Yes | D83: 0 | E83: 40 | F83: 26 | G83: 18 | H83: 0 | I83: 0 | J83: No | K83: 110V | L83: 290 | M83: - | N83: - | O83: 3 | P83: 4 | Q83: 5 | R83: - | S83: - | T83: - | U83: - | V83: - | W83: - | X83: =SUMIFS(blades!$I$2:$I$10,blades!$A$2:$A$10,$O83)+SUMIFS(blades!$I$2:$I$10,blades!$A$2:$A$10,$P83)+SUMIFS(blades!$I$2:$I$10,blades!$A$2:$A$10,$Q83) -> 350 | Y83: =IF(K83="110V",IF(J83="No",VLOOKUP(Z83,blades!$A$14:$G$21,3,FALSE),VLOOKUP(Z83,blades!$A$14:$G$21,4,FALSE)),IF(J83="No",VLOOKUP(Z83,blades!$A$14:$G$21,5,FALSE),VLOOKUP(Z83,blades!$A$14:$G$21,6,FALSE)))-X83 -> 290 | Z83: 1 | AA83: M6100-3S | AB83: XCM8944F | AC83: XCM8924X | AD83: Empty | AE83: One unit APS1000W
A84: 346No110V1 | B84: 3-slot (4U) | C84: Yes | D84: 48 | E84: 40 | F84: 26 | G84: 18 | H84: 48 | I84: 0 | J84: No | K84: 110V | L84: 230 | M84: - | N84: - | O84: 3 | P84: 4 | Q84: 6 | R84: - | S84: - | T84: - | U84: - | V84: - | W84: - | X84: =SUMIFS(blades!$I$2:$I$10,blades!$A$2:$A$10,$O84)+SUMIFS(blades!$I$2:$I$10,blades!$A$2:$A$10,$P84)+SUMIFS(blades!$I$2:$I$10,blades!$A$2:$A$10,$Q84) -> 410 | Y84: =IF(K84="110V",IF(J84="No",VLOOKUP(Z84,blades!$A$14:$G$21,3,FALSE),VLOOKUP(Z84,blades!$A$14:$G$21,4,FALSE)),IF(J84="No",VLOOKUP(Z84,blades!$A$14:$G$21,5,FALSE),VLOOKUP(Z84,blades!$A$14:$G$21,6,FALSE)))-X84 -> 230 | Z84: 1 | AA84: M6100-3S | AB84: XCM8944F | AC84: XCM8924X | AD84: XCM8948 & XCM89P | AE84: One unit APS1000W
A85: 347No110V1 | B85: 3-slot (4U) | C85: Yes | D85: 48 | E85: 40 | F85: 26 | G85: 18 | H85: 0 | I85: 48 | J85: No | K85: 110V | L85: 230 | M85: - | N85: - | O85: 3 | P85: 4 | Q85: 7 | R85: - | S85: - | T85: - | U85: - | V85: - | W85: - | X85: =SUMIFS(blades!$I$2:$I$10,blades!$A$2:$A$10,$O85)+SUMIFS(blades!$I$2:$I$10,blades!$A$2:$A$10,$P85)+SUMIFS(blades!$I$2:$I$10,blades!$A$2:$A$10,$Q85) -> 410 | Y85: =IF(K85="110V",IF(J85="No",VLOOKUP(Z85,blades!$A$14:$G$21,3,FALSE),VLOOKUP(Z85,blades!$A$14:$G$21,4,FALSE)),IF(J85="No",VLOOKUP(Z85,blades!$A$14:$G$21,5,FALSE),VLOOKUP(Z85,blades!$A$14:$G$21,6,FALSE)))-X85 -> 230 | Z85: 1 | AA85: M6100-3S | AB85: XCM8944F | AC85: XCM8924X | AD85: XCM8948 & XCM89UP | AE85: One unit APS1000W
A86: 348No110V1 | B86: 3-slot (4U) | C86: Yes | D86: 40 | E86: 40 | F86: 28 | G86: 20 | H86: 40 | I86: 0 | J86: No | K86: 110V | L86: 220 | M86: - | N86: - | O86: 3 | P86: 4 | Q86: 8 | R86: - | S86: - | T86: - | U86: - | V86: - | W86: - | X86: =SUMIFS(blades!$I$2:$I$10,blades!$A$2:$A$10,$O86)+SUMIFS(blades!$I$2:$I$10,blades!$A$2:$A$10,$P86)+SUMIFS(blades!$I$2:$I$10,blades!$A$2:$A$10,$Q86) -> 420 | Y86: =IF(K86="110V",IF(J86="No",VLOOKUP(Z86,blades!$A$14:$G$21,3,FALSE),VLOOKUP(Z86,blades!$A$14:$G$21,4,FALSE)),IF(J86="No",VLOOKUP(Z86,blades!$A$14:$G$21,5,FALSE),VLOOKUP(Z86,blades!$A$14:$G$21,6,FALSE)))-X86 -> 220 | Z86: 1 | AA86: M6100-3S | AB86: XCM8944F | AC86: XCM8924X | AD86: XCM8944 & XCM89P | AE86: One unit APS1000W
A87: 349No110V1 | B87: 3-slot (4U) | C87: Yes | D87: 40 | E87: 40 | F87: 28 | G87: 20 | H87: 0 | I87: 40 | J87: No | K87: 110V | L87: 220 | M87: - | N87: - | O87: 3 | P87: 4 | Q87: 9 | R87: - | S87: - | T87: - | U87: - | V87: - | W87: - | X87: =SUMIFS(blades!$I$2:$I$10,blades!$A$2:$A$10,$O87)+SUMIFS(blades!$I$2:$I$10,blades!$A$2:$A$10,$P87)+SUMIFS(blades!$I$2:$I$10,blades!$A$2:$A$10,$Q87) -> 420 | Y87: =IF(K87="110V",IF(J87="No",VLOOKUP(Z87,blades!$A$14:$G$21,3,FALSE),VLOOKUP(Z87,blades!$A$14:$G$21,4,FALSE)),IF(J87="No",VLOOKUP(Z87,blades!$A$14:$G$21,5,FALSE),VLOOKUP(Z87,blades!$A$14:$G$21,6,FALSE)))-X87 -> 220 | Z87: 1 | AA87: M6100-3S | AB87: XCM8944F | AC87: XCM8924X | AD87: XCM8944 & XCM89UP | AE87: One unit APS1000W
A88: 334No110V1 | B88: 3-slot (4U) | C88: Yes | D88: 0 | E88: 80 | F88: 28 | G88: 20 | H88: 0 | I88: 0 | J88: No | K88: 110V | L88: 140 | M88: - | N88: - | O88: 3 | P88: 3 | Q88: 4 | R88: - | S88: - | T88: - | U88: - | V88: - | W88: - | X88: =SUMIFS(blades!$I$2:$I$10,blades!$A$2:$A$10,$O88)+SUMIFS(blades!$I$2:$I$10,blades!$A$2:$A$10,$P88)+SUMIFS(blades!$I$2:$I$10,blades!$A$2:$A$10,$Q88) -> 500 | Y88: =IF(K88="110V",IF(J88="No",VLOOKUP(Z88,blades!$A$14:$G$21,3,FALSE),VLOOKUP(Z88,blades!$A$14:$G$21,4,FALSE)),IF(J88="No",VLOOKUP(Z88,blades!$A$14:$G$21,5,FALSE),VLOOKUP(Z88,blades!$A$14:$G$21,6,FALSE)))-X88 -> 140 | Z88: 1 | AA88: M6100-3S | AB88: XCM8944F | AC88: XCM8944F | AD88: XCM8924X | AE88: One unit APS1000W
A89: 356No110V1 | B89: 3-slot (4U) | C89: Yes | D89: 48 | E89: 40 | F89: 2 | G89: 2 | H89: 48 | I89: 0 | J89: No | K89: 110V | L89: 430 | M89: - | N89: - | O89: 3 | P89: 5 | Q89: 6 | R89: - | S89: - | T89: - | U89: - | V89: - | W89: - | X89: =SUMIFS(blades!$I$2:$I$10,blades!$A$2:$A$10,$O89)+SUMIFS(blades!$I$2:$I$10,blades!$A$2:$A$10,$P89)+SUMIFS(blades!$I$2:$I$10,blades!$A$2:$A$10,$Q89) -> 210 | Y89: =IF(K89="110V",IF(J89="No",VLOOKUP(Z89,blades!$A$14:$G$21,3,FALSE),VLOOKUP(Z89,blades!$A$14:$G$21,4,FALSE)),IF(J89="No",VLOOKUP(Z89,blades!$A$14:$G$21,5,FALSE),VLOOKUP(Z89,blades!$A$14:$G$21,6,FALSE)))-X89 -> 430 | Z89: 1 | AA89: M6100-3S | AB89: XCM8944F | AC89: Empty | AD89: XCM8948 & XCM89P | AE89: One unit APS1000W
A90: 357No110V1 | B90: 3-slot (4U) | C90: Yes | D90: 48 | E90: 40 | F90: 2 | G90: 2 | H90: 0 | I90: 48 | J90: No | K90: 110V | L90: 430 | M90: - | N90: - | O90: 3 | P90: 5 | Q90: 7 | R90: - | S90: - | T90: - | U90: - | V90: - | W90: - | X90: =SUMIFS(blades!$I$2:$I$10,blades!$A$2:$A$10,$O90)+SUMIFS(blades!$I$2:$I$10,blades!$A$2:$A$10,$P90)+SUMIFS(blades!$I$2:$I$10,blades!$A$2:$A$10,$Q90) -> 210 | Y90: =IF(K90="110V",IF(J90="No",VLOOKUP(Z90,blades!$A$14:$G$21,3,FALSE),VLOOKUP(Z90,blades!$A$14:$G$21,4,FALSE)),IF(J90="No",VLOOKUP(Z90,blades!$A$14:$G$21,5,FALSE),VLOOKUP(Z90,blades!$A$14:$G$21,6,FALSE)))-X90 -> 430 | Z90: 1 | AA90: M6100-3S | AB90: XCM8944F | AC90: Empty | AD90: XCM8948 & XCM89UP | AE90: One unit APS1000W
A91: 358No110V1 | B91: 3-slot (4U) | C91: Yes | D91: 40 | E91: 40 | F91: 4 | G91: 4 | H91: 40 | I91: 0 | J91: No | K91: 110V | L91: 420 | M91: - | N91: - | O91: 3 | P91: 5 | Q91: 8 | R91: - | S91: - | T91: - | U91: - | V91: - | W91: - | X91: =SUMIFS(blades!$I$2:$I$10,blades!$A$2:$A$10,$O91)+SUMIFS(blades!$I$2:$I$10,blades!$A$2:$A$10,$P91)+SUMIFS(blades!$I$2:$I$10,blades!$A$2:$A$10,$Q91) -> 220 | Y91: =IF(K91="110V",IF(J91="No",VLOOKUP(Z91,blades!$A$14:$G$21,3,FALSE),VLOOKUP(Z91,blades!$A$14:$G$21,4,FALSE)),IF(J91="No",VLOOKUP(Z91,blades!$A$14:$G$21,5,FALSE),VLOOKUP(Z91,blades!$A$14:$G$21,6,FALSE)))-X91 -> 420 | Z91: 1 | AA91: M6100-3S | AB91: XCM8944F | AC91: Empty | AD91: XCM8944 & XCM89P | AE91: One unit APS1000W
A92: 359No110V1 | B92: 3-slot (4U) | C92: Yes | D92: 40 | E92: 40 | F92: 4 | G92: 4 | H92: 0 | I92: 40 | J92: No | K92: 110V | L92: 420 | M92: - | N92: - | O92: 3 | P92: 5 | Q92: 9 | R92: - | S92: - | T92: - | U92: - | V92: - | W92: - | X92: =SUMIFS(blades!$I$2:$I$10,blades!$A$2:$A$10,$O92)+SUMIFS(blades!$I$2:$I$10,blades!$A$2:$A$10,$P92)+SUMIFS(blades!$I$2:$I$10,blades!$A$2:$A$10,$Q92) -> 220 | Y92: =IF(K92="110V",IF(J92="No",VLOOKUP(Z92,blades!$A$14:$G$21,3,FALSE),VLOOKUP(Z92,blades!$A$14:$G$21,4,FALSE)),IF(J92="No",VLOOKUP(Z92,blades!$A$14:$G$21,5,FALSE),VLOOKUP(Z92,blades!$A$14:$G$21,6,FALSE)))-X92 -> 420 | Z92: 1 | AA92: M6100-3S | AB92: XCM8944F | AC92: Empty | AD92: XCM8944 & XCM89UP | AE92: One unit APS1000W
A93: 335No110V1 | B93: 3-slot (4U) | C93: Yes | D93: 0 | E93: 80 | F93: 4 | G93: 4 | H93: 0 | I93: 0 | J93: No | K93: 110V | L93: 340 | M93: - | N93: - | O93: 3 | P93: 3 | Q93: 5 | R93: - | S93: - | T93: - | U93: - | V93: - | W93: - | X93: =SUMIFS(blades!$I$2:$I$10,blades!$A$2:$A$10,$O93)+SUMIFS(blades!$I$2:$I$10,blades!$A$2:$A$10,$P93)+SUMIFS(blades!$I$2:$I$10,blades!$A$2:$A$10,$Q93) -> 300 | Y93: =IF(K93="110V",IF(J93="No",VLOOKUP(Z93,blades!$A$14:$G$21,3,FALSE),VLOOKUP(Z93,blades!$A$14:$G$21,4,FALSE)),IF(J93="No",VLOOKUP(Z93,blades!$A$14:$G$21,5,FALSE),VLOOKUP(Z93,blades!$A$14:$G$21,6,FALSE)))-X93 -> 340 | Z93: 1 | AA93: M6100-3S | AB93: XCM8944F | AC93: XCM8944F | AD93: Empty | AE93: One unit APS1000W
A94: 355No110V1 | B94: 3-slot (4U) | C94: Yes | D94: 0 | E94: 40 | F94: 2 | G94: 2 | H94: 0 | I94: 0 | J94: No | K94: 110V | L94: 490 | M94: - | N94: - | O94: 3 | P94: 5 | Q94: 5 | R94: - | S94: - | T94: - | U94: - | V94: - | W94: - | X94: =SUMIFS(blades!$I$2:$I$10,blades!$A$2:$A$10,$O94)+SUMIFS(blades!$I$2:$I$10,blades!$A$2:$A$10,$P94)+SUMIFS(blades!$I$2:$I$10,blades!$A$2:$A$10,$Q94) -> 150 | Y94: =IF(K94="110V",IF(J94="No",VLOOKUP(Z94,blades!$A$14:$G$21,3,FALSE),VLOOKUP(Z94,blades!$A$14:$G$21,4,FALSE)),IF(J94="No",VLOOKUP(Z94,blades!$A$14:$G$21,5,FALSE),VLOOKUP(Z94,blades!$A$14:$G$21,6,FALSE)))-X94 -> 490 | Z94: 1 | AA94: M6100-3S | AB94: XCM8944F | AC94: Empty | AD94: Empty | AE94: One unit APS1000W
A95: 367No110V1 | B95: 3-slot (4U) | C95: Yes | D95: 96 | E95: 40 | F95: 2 | G95: 2 | H95: 48 | I95: 48 | J95: No | K95: 110V | L95: 370 | M95: - | N95: - | O95: 3 | P95: 6 | Q95: 7 | R95: - | S95: - | T95: - | U95: - | V95: - | W95: - | X95: =SUMIFS(blades!$I$2:$I$10,blades!$A$2:$A$10,$O95)+SUMIFS(blades!$I$2:$I$10,blades!$A$2:$A$10,$P95)+SUMIFS(blades!$I$2:$I$10,blades!$A$2:$A$10,$Q95) -> 270 | Y95: =IF(K95="110V",IF(J95="No",VLOOKUP(Z95,blades!$A$14:$G$21,3,FALSE),VLOOKUP(Z95,blades!$A$14:$G$21,4,FALSE)),IF(J95="No",VLOOKUP(Z95,blades!$A$14:$G$21,5,FALSE),VLOOKUP(Z95,blades!$A$14:$G$21,6,FALSE)))-X95 -> 370 | Z95: 1 | AA95: M6100-3S | AB95: XCM8944F | AC95: XCM8948 & XCM89P | AD95: XCM8948 & XCM89UP | AE95: One unit APS1000W
A96: 368No110V1 | B96: 3-slot (4U) | C96: Yes | D96: 88 | E96: 40 | F96: 4 | G96: 4 | H96: 88 | I96: 0 | J96: No | K96: 110V | L96: 360 | M96: - | N96: - | O96: 3 | P96: 6 | Q96: 8 | R96: - | S96: - | T96: - | U96: - | V96: - | W96: - | X96: =SUMIFS(blades!$I$2:$I$10,blades!$A$2:$A$10,$O96)+SUMIFS(blades!$I$2:$I$10,blades!$A$2:$A$10,$P96)+SUMIFS(blades!$I$2:$I$10,blades!$A$2:$A$10,$Q96) -> 280 | Y96: =IF(K96="110V",IF(J96="No",VLOOKUP(Z96,blades!$A$14:$G$21,3,FALSE),VLOOKUP(Z96,blades!$A$14:$G$21,4,FALSE)),IF(J96="No",VLOOKUP(Z96,blades!$A$14:$G$21,5,FALSE),VLOOKUP(Z96,blades!$A$14:$G$21,6,FALSE)))-X96 -> 360 | Z96: 1 | AA96: M6100-3S | AB96: XCM8944F | AC96: XCM8948 & XCM89P | AD96: XCM8944 & XCM89P | AE96: One unit APS1000W
A97: 369No110V1 | B97: 3-slot (4U) | C97: Yes | D97: 88 | E97: 40 | F97: 4 | G97: 4 | H97: 48 | I97: 40 | J97: No | K97: 110V | L97: 360 | M97: - | N97: - | O97: 3 | P97: 6 | Q97: 9 | R97: - | S97: - | T97: - | U97: - | V97: - | W97: - | X97: =SUMIFS(blades!$I$2:$I$10,blades!$A$2:$A$10,$O97)+SUMIFS(blades!$I$2:$I$10,blades!$A$2:$A$10,$P97)+SUMIFS(blades!$I$2:$I$10,blades!$A$2:$A$10,$Q97) -> 280 | Y97: =IF(K97="110V",IF(J97="No",VLOOKUP(Z97,blades!$A$14:$G$21,3,FALSE),VLOOKUP(Z97,blades!$A$14:$G$21,4,FALSE)),IF(J97="No",VLOOKUP(Z97,blades!$A$14:$G$21,5,FALSE),VLOOKUP(Z97,blades!$A$14:$G$21,6,FALSE)))-X97 -> 360 | Z97: 1 | AA97: M6100-3S | AB97: XCM8944F | AC97: XCM8948 & XCM89P | AD97: XCM8944 & XCM89UP | AE97: One unit APS1000W
A98: 336No110V1 | B98: 3-slot (4U) | C98: Yes | D98: 48 | E98: 80 | F98: 4 | G98: 4 | H98: 48 | I98: 0 | J98: No | K98: 110V | L98: 280 | M98: - | N98: - | O98: 3 | P98: 3 | Q98: 6 | R98: - | S98: - | T98: - | U98: - | V98: - | W98: - | X98: =SUMIFS(blades!$I$2:$I$10,blades!$A$2:$A$10,$O98)+SUMIFS(blades!$I$2:$I$10,blades!$A$2:$A$10,$P98)+SUMIFS(blades!$I$2:$I$10,blades!$A$2:$A$10,$Q98) -> 360 | Y98: =IF(K98="110V",IF(J98="No",VLOOKUP(Z98,blades!$A$14:$G$21,3,FALSE),VLOOKUP(Z98,blades!$A$14:$G$21,4,FALSE)),IF(J98="No",VLOOKUP(Z98,blades!$A$14:$G$21,5,FALSE),VLOOKUP(Z98,blades!$A$14:$G$21,6,FALSE)))-X98 -> 280 | Z98: 1 | AA98: M6100-3S | AB98: XCM8944F | AC98: XCM8944F | AD98: XCM8948 & XCM89P | AE98: One unit APS1000W
A99: 366No110V1 | B99: 3-slot (4U) | C99: Yes | D99: 96 | E99: 40 | F99: 2 | G99: 2 | H99: 96 | I99: 0 | J99: No | K99: 110V | L99: 370 | M99: - | N99: - | O99: 3 | P99: 6 | Q99: 6 | R99: - | S99: - | T99: - | U99: - | V99: - | W99: - | X99: =SUMIFS(blades!$I$2:$I$10,blades!$A$2:$A$10,$O99)+SUMIFS(blades!$I$2:$I$10,blades!$A$2:$A$10,$P99)+SUMIFS(blades!$I$2:$I$10,blades!$A$2:$A$10,$Q99) -> 270 | Y99: =IF(K99="110V",IF(J99="No",VLOOKUP(Z99,blades!$A$14:$G$21,3,FALSE),VLOOKUP(Z99,blades!$A$14:$G$21,4,FALSE)),IF(J99="No",VLOOKUP(Z99,blades!$A$14:$G$21,5,FALSE),VLOOKUP(Z99,blades!$A$14:$G$21,6,FALSE)))-X99 -> 370 | Z99: 1 | AA99: M6100-3S | AB99: XCM8944F | AC99: XCM8948 & XCM89P | AD99: XCM8948 & XCM89P | AE99: One unit APS1000W
A100: 378No110V1 | B100: 3-slot (4U) | C100: Yes | D100: 88 | E100: 40 | F100: 4 | G100: 4 | H100: 40 | I100: 48 | J100: No | K100: 110V | L100: 360 | M100: - | N100: - | O100: 3 | P100: 7 | Q100: 8 | R100: - | S100: - | T100: - | U100: - | V100: - | W100: - | X100: =SUMIFS(blades!$I$2:$I$10,blades!$A$2:$A$10,$O100)+SUMIFS(blades!$I$2:$I$10,blades!$A$2:$A$10,$P100)+SUMIFS(blades!$I$2:$I$10,blades!$A$2:$A$10,$Q100) -> 280 | Y100: =IF(K100="110V",IF(J100="No",VLOOKUP(Z100,blades!$A$14:$G$21,3,FALSE),VLOOKUP(Z100,blades!$A$14:$G$21,4,FALSE)),IF(J100="No",VLOOKUP(Z100,blades!$A$14:$G$21,5,FALSE),VLOOKUP(Z100,blades!$A$14:$G$21,6,FALSE)))-X100 -> 360 | Z100: 1 | AA100: M6100-3S | AB100: XCM8944F | AC100: XCM8948 & XCM89UP | AD100: XCM8944 & XCM89P | AE100: One unit APS1000W
A101: 379No110V1 | B101: 3-slot (4U) | C101: Yes | D101: 88 | E101: 40 | F101: 4 | G101: 4 | H101: 0 | I101: 88 | J101: No | K101: 110V | L101: 360 | M101: - | N101: - | O101: 3 | P101: 7 | Q101: 9 | R101: - | S101: - | T101: - | U101: - | V101: - | W101: - | X101: =SUMIFS(blades!$I$2:$I$10,blades!$A$2:$A$10,$O101)+SUMIFS(blades!$I$2:$I$10,blades!$A$2:$A$10,$P101)+SUMIFS(blades!$I$2:$I$10,blades!$A$2:$A$10,$Q101) -> 280 | Y101: =IF(K101="110V",IF(J101="No",VLOOKUP(Z101,blades!$A$14:$G$21,3,FALSE),VLOOKUP(Z101,blades!$A$14:$G$21,4,FALSE)),IF(J101="No",VLOOKUP(Z101,blades!$A$14:$G$21,5,FALSE),VLOOKUP(Z101,blades!$A$14:$G$21,6,FALSE)))-X101 -> 360 | Z101: 1 | AA101: M6100-3S | AB101: XCM8944F | AC101: XCM8948 & XCM89UP | AD101: XCM8944 & XCM89UP | AE101: One unit APS1000W
A102: 337No110V1 | B102: 3-slot (4U) | C102: Yes | D102: 48 | E102: 80 | F102: 4 | G102: 4 | H102: 0 | I102: 48 | J102: No | K102: 110V | L102: 280 | M102: - | N102: - | O102: 3 | P102: 3 | Q102: 7 | R102: - | S102: - | T102: - | U102: - | V102: - | W102: - | X102: =SUMIFS(blades!$I$2:$I$10,blades!$A$2:$A$10,$O102)+SUMIFS(blades!$I$2:$I$10,blades!$A$2:$A$10,$P102)+SUMIFS(blades!$I$2:$I$10,blades!$A$2:$A$10,$Q102) -> 360 | Y102: =IF(K102="110V",IF(J102="No",VLOOKUP(Z102,blades!$A$14:$G$21,3,FALSE),VLOOKUP(Z102,blades!$A$14:$G$21,4,FALSE)),IF(J102="No",VLOOKUP(Z102,blades!$A$14:$G$21,5,FALSE),VLOOKUP(Z102,blades!$A$14:$G$21,6,FALSE)))-X102 -> 280 | Z102: 1 | AA102: M6100-3S | AB102: XCM8944F | AC102: XCM8944F | AD102: XCM8948 & XCM89UP | AE102: One unit APS1000W
A103: 377No110V1 | B103: 3-slot (4U) | C103: Yes | D103: 96 | E103: 40 | F103: 2 | G103: 2 | H103: 0 | I103: 96 | J103: No | K103: 110V | L103: 370 | M103: - | N103: - | O103: 3 | P103: 7 | Q103: 7 | R103: - | S103: - | T103: - | U103: - | V103: - | W103: - | X103: =SUMIFS(blades!$I$2:$I$10,blades!$A$2:$A$10,$O103)+SUMIFS(blades!$I$2:$I$10,blades!$A$2:$A$10,$P103)+SUMIFS(blades!$I$2:$I$10,blades!$A$2:$A$10,$Q103) -> 270 | Y103: =IF(K103="110V",IF(J103="No",VLOOKUP(Z103,blades!$A$14:$G$21,3,FALSE),VLOOKUP(Z103,blades!$A$14:$G$21,4,FALSE)),IF(J103="No",VLOOKUP(Z103,blades!$A$14:$G$21,5,FALSE),VLOOKUP(Z103,blades!$A$14:$G$21,6,FALSE)))-X103 -> 370 | Z103: 1 | AA103: M6100-3S | AB103: XCM8944F | AC103: XCM8948 & XCM89UP | AD103: XCM8948 & XCM89UP | AE103: One unit APS1000W
A104: 389No110V1 | B104: 3-slot (4U) | C104: Yes | D104: 80 | E104: 40 | F104: 6 | G104: 6 | H104: 40 | I104: 40 | J104: No | K104: 110V | L104: 350 | M104: - | N104: - | O104: 3 | P104: 8 | Q104: 9 | R104: - | S104: - | T104: - | U104: - | V104: - | W104: - | X104: =SUMIFS(blades!$I$2:$I$10,blades!$A$2:$A$10,$O104)+SUMIFS(blades!$I$2:$I$10,blades!$A$2:$A$10,$P104)+SUMIFS(blades!$I$2:$I$10,blades!$A$2:$A$10,$Q104) -> 290 | Y104: =IF(K104="110V",IF(J104="No",VLOOKUP(Z104,blades!$A$14:$G$21,3,FALSE),VLOOKUP(Z104,blades!$A$14:$G$21,4,FALSE)),IF(J104="No",VLOOKUP(Z104,blades!$A$14:$G$21,5,FALSE),VLOOKUP(Z104,blades!$A$14:$G$21,6,FALSE)))-X104 -> 350 | Z104: 1 | AA104: M6100-3S | AB104: XCM8944F | AC104: XCM8944 & XCM89P | AD104: XCM8944 & XCM89UP | AE104: One unit APS1000W
A105: 338No110V1 | B105: 3-slot (4U) | C105: Yes | D105: 40 | E105: 80 | F105: 6 | G105: 6 | H105: 40 | I105: 0 | J105: No | K105: 110V | L105: 270 | M105: - | N105: - | O105: 3 | P105: 3 | Q105: 8 | R105: - | S105: - | T105: - | U105: - | V105: - | W105: - | X105: =SUMIFS(blades!$I$2:$I$10,blades!$A$2:$A$10,$O105)+SUMIFS(blades!$I$2:$I$10,blades!$A$2:$A$10,$P105)+SUMIFS(blades!$I$2:$I$10,blades!$A$2:$A$10,$Q105) -> 370 | Y105: =IF(K105="110V",IF(J105="No",VLOOKUP(Z105,blades!$A$14:$G$21,3,FALSE),VLOOKUP(Z105,blades!$A$14:$G$21,4,FALSE)),IF(J105="No",VLOOKUP(Z105,blades!$A$14:$G$21,5,FALSE),VLOOKUP(Z105,blades!$A$14:$G$21,6,FALSE)))-X105 -> 270 | Z105: 1 | AA105: M6100-3S | AB105: XCM8944F | AC105: XCM8944F | AD105: XCM8944 & XCM89P | AE105: One unit APS1000W
A106: 388No110V1 | B106: 3-slot (4U) | C106: Yes | D106: 80 | E106: 40 | F106: 6 | G106: 6 | H106: 80 | I106: 0 | J106: No | K106: 110V | L106: 350 | M106: - | N106: - | O106: 3 | P106: 8 | Q106: 8 | R106: - | S106: - | T106: - | U106: - | V106: - | W106: - | X106: =SUMIFS(blades!$I$2:$I$10,blades!$A$2:$A$10,$O106)+SUMIFS(blades!$I$2:$I$10,blades!$A$2:$A$10,$P106)+SUMIFS(blades!$I$2:$I$10,blades!$A$2:$A$10,$Q106) -> 290 | Y106: =IF(K106="110V",IF(J106="No",VLOOKUP(Z106,blades!$A$14:$G$21,3,FALSE),VLOOKUP(Z106,blades!$A$14:$G$21,4,FALSE)),IF(J106="No",VLOOKUP(Z106,blades!$A$14:$G$21,5,FALSE),VLOOKUP(Z106,blades!$A$14:$G$21,6,FALSE)))-X106 -> 350 | Z106: 1 | AA106: M6100-3S | AB106: XCM8944F | AC106: XCM8944 & XCM89P | AD106: XCM8944 & XCM89P | AE106: One unit APS1000W
A107: 339No110V1 | B107: 3-slot (4U) | C107: Yes | D107: 40 | E107: 80 | F107: 6 | G107: 6 | H107: 0 | I107: 40 | J107: No | K107: 110V | L107: 270 | M107: - | N107: - | O107: 3 | P107: 3 | Q107: 9 | R107: - | S107: - | T107: - | U107: - | V107: - | W107: - | X107: =SUMIFS(blades!$I$2:$I$10,blades!$A$2:$A$10,$O107)+SUMIFS(blades!$I$2:$I$10,blades!$A$2:$A$10,$P107)+SUMIFS(blades!$I$2:$I$10,blades!$A$2:$A$10,$Q107) -> 370 | Y107: =IF(K107="110V",IF(J107="No",VLOOKUP(Z107,blades!$A$14:$G$21,3,FALSE),VLOOKUP(Z107,blades!$A$14:$G$21,4,FALSE)),IF(J107="No",VLOOKUP(Z107,blades!$A$14:$G$21,5,FALSE),VLOOKUP(Z107,blades!$A$14:$G$21,6,FALSE)))-X107 -> 270 | Z107: 1 | AA107: M6100-3S | AB107: XCM8944F | AC107: XCM8944F | AD107: XCM8944 & XCM89UP | AE107: One unit APS1000W
A108: 399No110V1 | B108: 3-slot (4U) | C108: Yes | D108: 80 | E108: 40 | F108: 6 | G108: 6 | H108: 0 | I108: 80 | J108: No | K108: 110V | L108: 350 | M108: - | N108: - | O108: 3 | P108: 9 | Q108: 9 | R108: - | S108: - | T108: - | U108: - | V108: - | W108: - | X108: =SUMIFS(blades!$I$2:$I$10,blades!$A$2:$A$10,$O108)+SUMIFS(blades!$I$2:$I$10,blades!$A$2:$A$10,$P108)+SUMIFS(blades!$I$2:$I$10,blades!$A$2:$A$10,$Q108) -> 290 | Y108: =IF(K108="110V",IF(J108="No",VLOOKUP(Z108,blades!$A$14:$G$21,3,FALSE),VLOOKUP(Z108,blades!$A$14:$G$21,4,FALSE)),IF(J108="No",VLOOKUP(Z108,blades!$A$14:$G$21,5,FALSE),VLOOKUP(Z108,blades!$A$14:$G$21,6,FALSE)))-X108 -> 350 | Z108: 1 | AA108: M6100-3S | AB108: XCM8944F | AC108: XCM8944 & XCM89UP | AD108: XCM8944 & XCM89UP | AE108: One unit APS1000W
A109: 333No110V1 | B109: 3-slot (4U) | C109: Yes | D109: 0 | E109: 120 | F109: 6 | G109: 6 | H109: 0 | I109: 0 | J109: No | K109: 110V | L109: 190 | M109: - | N109: - | O109: 3 | P109: 3 | Q109: 3 | R109: - | S109: - | T109: - | U109: - | V109: - | W109: - | X109: =SUMIFS(blades!$I$2:$I$10,blades!$A$2:$A$10,$O109)+SUMIFS(blades!$I$2:$I$10,blades!$A$2:$A$10,$P109)+SUMIFS(blades!$I$2:$I$10,blades!$A$2:$A$10,$Q109) -> 450 | Y109: =IF(K109="110V",IF(J109="No",VLOOKUP(Z109,blades!$A$14:$G$21,3,FALSE),VLOOKUP(Z109,blades!$A$14:$G$21,4,FALSE)),IF(J109="No",VLOOKUP(Z109,blades!$A$14:$G$21,5,FALSE),VLOOKUP(Z109,blades!$A$14:$G$21,6,FALSE)))-X109 -> 190 | Z109: 1 | AA109: M6100-3S | AB109: XCM8944F | AC109: XCM8944F | AD109: XCM8944F | AE109: One unit APS1000W
A110: 456No110V1 | B110: 3-slot (4U) | C110: Yes | D110: 48 | E110: 0 | F110: 24 | G110: 16 | H110: 48 | I110: 0 | J110: No | K110: 110V | L110: 380 | M110: - | N110: - | O110: 4 | P110: 5 | Q110: 6 | R110: - | S110: - | T110: - | U110: - | V110: - | W110: - | X110: =SUMIFS(blades!$I$2:$I$10,blades!$A$2:$A$10,$O110)+SUMIFS(blades!$I$2:$I$10,blades!$A$2:$A$10,$P110)+SUMIFS(blades!$I$2:$I$10,blades!$A$2:$A$10,$Q110) -> 260 | Y110: =IF(K110="110V",IF(J110="No",VLOOKUP(Z110,blades!$A$14:$G$21,3,FALSE),VLOOKUP(Z110,blades!$A$14:$G$21,4,FALSE)),IF(J110="No",VLOOKUP(Z110,blades!$A$14:$G$21,5,FALSE),VLOOKUP(Z110,blades!$A$14:$G$21,6,FALSE)))-X110 -> 380 | Z110: 1 | AA110: M6100-3S | AB110: XCM8924X | AC110: Empty | AD110: XCM8948 & XCM89P | AE110: One unit APS1000W
A111: 457No110V1 | B111: 3-slot (4U) | C111: Yes | D111: 48 | E111: 0 | F111: 24 | G111: 16 | H111: 0 | I111: 48 | J111: No | K111: 110V | L111: 380 | M111: - | N111: - | O111: 4 | P111: 5 | Q111: 7 | R111: - | S111: - | T111: - | U111: - | V111: - | W111: - | X111: =SUMIFS(blades!$I$2:$I$10,blades!$A$2:$A$10,$O111)+SUMIFS(blades!$I$2:$I$10,blades!$A$2:$A$10,$P111)+SUMIFS(blades!$I$2:$I$10,blades!$A$2:$A$10,$Q111) -> 260 | Y111: =IF(K111="110V",IF(J111="No",VLOOKUP(Z111,blades!$A$14:$G$21,3,FALSE),VLOOKUP(Z111,blades!$A$14:$G$21,4,FALSE)),IF(J111="No",VLOOKUP(Z111,blades!$A$14:$G$21,5,FALSE),VLOOKUP(Z111,blades!$A$14:$G$21,6,FALSE)))-X111 -> 380 | Z111: 1 | AA111: M6100-3S | AB111: XCM8924X | AC111: Empty | AD111: XCM8948 & XCM89UP | AE111: One unit APS1000W
A112: 458No110V1 | B112: 3-slot (4U) | C112: Yes | D112: 40 | E112: 0 | F112: 26 | G112: 18 | H112: 40 | I112: 0 | J112: No | K112: 110V | L112: 370 | M112: - | N112: - | O112: 4 | P112: 5 | Q112: 8 | R112: - | S112: - | T112: - | U112: - | V112: - | W112: - | X112: =SUMIFS(blades!$I$2:$I$10,blades!$A$2:$A$10,$O112)+SUMIFS(blades!$I$2:$I$10,blades!$A$2:$A$10,$P112)+SUMIFS(blades!$I$2:$I$10,blades!$A$2:$A$10,$Q112) -> 270 | Y112: =IF(K112="110V",IF(J112="No",VLOOKUP(Z112,blades!$A$14:$G$21,3,FALSE),VLOOKUP(Z112,blades!$A$14:$G$21,4,FALSE)),IF(J112="No",VLOOKUP(Z112,blades!$A$14:$G$21,5,FALSE),VLOOKUP(Z112,blades!$A$14:$G$21,6,FALSE)))-X112 -> 370 | Z112: 1 | AA112: M6100-3S | AB112: XCM8924X | AC112: Empty | AD112: XCM8944 & XCM89P | AE112: One unit APS1000W
A113: 459No110V1 | B113: 3-slot (4U) | C113: Yes | D113: 40 | E113: 0 | F113: 26 | G113: 18 | H113: 0 | I113: 40 | J113: No | K113: 110V | L113: 370 | M113: - | N113: - | O113: 4 | P113: 5 | Q113: 9 | R113: - | S113: - | T113: - | U113: - | V113: - | W113: - | X113: =SUMIFS(blades!$I$2:$I$10,blades!$A$2:$A$10,$O113)+SUMIFS(blades!$I$2:$I$10,blades!$A$2:$A$10,$P113)+SUMIFS(blades!$I$2:$I$10,blades!$A$2:$A$10,$Q113) -> 270 | Y113: =IF(K113="110V",IF(J113="No",VLOOKUP(Z113,blades!$A$14:$G$21,3,FALSE),VLOOKUP(Z113,blades!$A$14:$G$21,4,FALSE)),IF(J113="No",VLOOKUP(Z113,blades!$A$14:$G$21,5,FALSE),VLOOKUP(Z113,blades!$A$14:$G$21,6,FALSE)))-X113 -> 370 | Z113: 1 | AA113: M6100-3S | AB113: XCM8924X | AC113: Empty | AD113: XCM8944 & XCM89UP | AE113: One unit APS1000W
A114: 445No110V1 | B114: 3-slot (4U) | C114: Yes | D114: 0 | E114: 0 | F114: 48 | G114: 32 | H114: 0 | I114: 0 | J114: No | K114: 110V | L114: 240 | M114: - | N114: - | O114: 4 | P114: 4 | Q114: 5 | R114: - | S114: - | T114: - | U114: - | V114: - | W114: - | X114: =SUMIFS(blades!$I$2:$I$10,blades!$A$2:$A$10,$O114)+SUMIFS(blades!$I$2:$I$10,blades!$A$2:$A$10,$P114)+SUMIFS(blades!$I$2:$I$10,blades!$A$2:$A$10,$Q114) -> 400 | Y114: =IF(K114="110V",IF(J114="No",VLOOKUP(Z114,blades!$A$14:$G$21,3,FALSE),VLOOKUP(Z114,blades!$A$14:$G$21,4,FALSE)),IF(J114="No",VLOOKUP(Z114,blades!$A$14:$G$21,5,FALSE),VLOOKUP(Z114,blades!$A$14:$G$21,6,FALSE)))-X114 -> 240 | Z114: 1 | AA114: M6100-3S | AB114: XCM8924X | AC114: XCM8924X | AD114: Empty | AE114: One unit APS1000W
A115: 455No110V1 | B115: 3-slot (4U) | C115: Yes | D115: 0 | E115: 0 | F115: 24 | G115: 16 | H115: 0 | I115: 0 | J115: No | K115: 110V | L115: 440 | M115: - | N115: - | O115: 4 | P115: 5 | Q115: 5 | R115: - | S115: - | T115: - | U115: - | V115: - | W115: - | X115: =SUMIFS(blades!$I$2:$I$10,blades!$A$2:$A$10,$O115)+SUMIFS(blades!$I$2:$I$10,blades!$A$2:$A$10,$P115)+SUMIFS(blades!$I$2:$I$10,blades!$A$2:$A$10,$Q115) -> 200 | Y115: =IF(K115="110V",IF(J115="No",VLOOKUP(Z115,blades!$A$14:$G$21,3,FALSE),VLOOKUP(Z115,blades!$A$14:$G$21,4,FALSE)),IF(J115="No",VLOOKUP(Z115,blades!$A$14:$G$21,5,FALSE),VLOOKUP(Z115,blades!$A$14:$G$21,6,FALSE)))-X115 -> 440 | Z115: 1 | AA115: M6100-3S | AB115: XCM8924X | AC115: Empty | AD115: Empty | AE115: One unit APS1000W
A116: 467No110V1 | B116: 3-slot (4U) | C116: Yes | D116: 96 | E116: 0 | F116: 24 | G116: 16 | H116: 48 | I116: 48 | J116: No | K116: 110V | L116: 320 | M116: - | N116: - | O116: 4 | P116: 6 | Q116: 7 | R116: - | S116: - | T116: - | U116: - | V116: - | W116: - | X116: =SUMIFS(blades!$I$2:$I$10,blades!$A$2:$A$10,$O116)+SUMIFS(blades!$I$2:$I$10,blades!$A$2:$A$10,$P116)+SUMIFS(blades!$I$2:$I$10,blades!$A$2:$A$10,$Q116) -> 320 | Y116: =IF(K116="110V",IF(J116="No",VLOOKUP(Z116,blades!$A$14:$G$21,3,FALSE),VLOOKUP(Z116,blades!$A$14:$G$21,4,FALSE)),IF(J116="No",VLOOKUP(Z116,blades!$A$14:$G$21,5,FALSE),VLOOKUP(Z116,blades!$A$14:$G$21,6,FALSE)))-X116 -> 320 | Z116: 1 | AA116: M6100-3S | AB116: XCM8924X | AC116: XCM8948 & XCM89P | AD116: XCM8948 & XCM89UP | AE116: One unit APS1000W
A117: 468No110V1 | B117: 3-slot (4U) | C117: Yes | D117: 88 | E117: 0 | F117: 26 | G117: 18 | H117: 88 | I117: 0 | J117: No | K117: 110V | L117: 310 | M117: - | N117: - | O117: 4 | P117: 6 | Q117: 8 | R117: - | S117: - | T117: - | U117: - | V117: - | W117: - | X117: =SUMIFS(blades!$I$2:$I$10,blades!$A$2:$A$10,$O117)+SUMIFS(blades!$I$2:$I$10,blades!$A$2:$A$10,$P117)+SUMIFS(blades!$I$2:$I$10,blades!$A$2:$A$10,$Q117) -> 330 | Y117: =IF(K117="110V",IF(J117="No",VLOOKUP(Z117,blades!$A$14:$G$21,3,FALSE),VLOOKUP(Z117,blades!$A$14:$G$21,4,FALSE)),IF(J117="No",VLOOKUP(Z117,blades!$A$14:$G$21,5,FALSE),VLOOKUP(Z117,blades!$A$14:$G$21,6,FALSE)))-X117 -> 310 | Z117: 1 | AA117: M6100-3S | AB117: XCM8924X | AC117: XCM8948 & XCM89P | AD117: XCM8944 & XCM89P | AE117: One unit APS1000W
A118: 469No110V1 | B118: 3-slot (4U) | C118: Yes | D118: 88 | E118: 0 | F118: 26 | G118: 18 | H118: 48 | I118: 40 | J118: No | K118: 110V | L118: 310 | M118: - | N118: - | O118: 4 | P118: 6 | Q118: 9 | R118: - | S118: - | T118: - | U118: - | V118: - | W118: - | X118: =SUMIFS(blades!$I$2:$I$10,blades!$A$2:$A$10,$O118)+SUMIFS(blades!$I$2:$I$10,blades!$A$2:$A$10,$P118)+SUMIFS(blades!$I$2:$I$10,blades!$A$2:$A$10,$Q118) -> 330 | Y118: =IF(K118="110V",IF(J118="No",VLOOKUP(Z118,blades!$A$14:$G$21,3,FALSE),VLOOKUP(Z118,blades!$A$14:$G$21,4,FALSE)),IF(J118="No",VLOOKUP(Z118,blades!$A$14:$G$21,5,FALSE),VLOOKUP(Z118,blades!$A$14:$G$21,6,FALSE)))-X118 -> 310 | Z118: 1 | AA118: M6100-3S | AB118: XCM8924X | AC118: XCM8948 & XCM89P | AD118: XCM8944 & XCM89UP | AE118: One unit APS1000W
A119: 446No110V1 | B119: 3-slot (4U) | C119: Yes | D119: 48 | E119: 0 | F119: 48 | G119: 32 | H119: 48 | I119: 0 | J119: No | K119: 110V | L119: 180 | M119: - | N119: - | O119: 4 | P119: 4 | Q119: 6 | R119: - | S119: - | T119: - | U119: - | V119: - | W119: - | X119: =SUMIFS(blades!$I$2:$I$10,blades!$A$2:$A$10,$O119)+SUMIFS(blades!$I$2:$I$10,blades!$A$2:$A$10,$P119)+SUMIFS(blades!$I$2:$I$10,blades!$A$2:$A$10,$Q119) -> 460 | Y119: =IF(K119="110V",IF(J119="No",VLOOKUP(Z119,blades!$A$14:$G$21,3,FALSE),VLOOKUP(Z119,blades!$A$14:$G$21,4,FALSE)),IF(J119="No",VLOOKUP(Z119,blades!$A$14:$G$21,5,FALSE),VLOOKUP(Z119,blades!$A$14:$G$21,6,FALSE)))-X119 -> 180 | Z119: 1 | AA119: M6100-3S | AB119: XCM8924X | AC119: XCM8924X | AD119: XCM8948 & XCM89P | AE119: One unit APS1000W
A120: 466No110V1 | B120: 3-slot (4U) | C120: Yes | D120: 96 | E120: 0 | F120: 24 | G120: 16 | H120: 96 | I120: 0 | J120: No | K120: 110V | L120: 320 | M120: - | N120: - | O120: 4 | P120: 6 | Q120: 6 | R120: - | S120: - | T120: - | U120: - | V120: - | W120: - | X120: =SUMIFS(blades!$I$2:$I$10,blades!$A$2:$A$10,$O120)+SUMIFS(blades!$I$2:$I$10,blades!$A$2:$A$10,$P120)+SUMIFS(blades!$I$2:$I$10,blades!$A$2:$A$10,$Q120) -> 320 | Y120: =IF(K120="110V",IF(J120="No",VLOOKUP(Z120,blades!$A$14:$G$21,3,FALSE),VLOOKUP(Z120,blades!$A$14:$G$21,4,FALSE)),IF(J120="No",VLOOKUP(Z120,blades!$A$14:$G$21,5,FALSE),VLOOKUP(Z120,blades!$A$14:$G$21,6,FALSE)))-X120 -> 320 | Z120: 1 | AA120: M6100-3S | AB120: XCM8924X | AC120: XCM8948 & XCM89P | AD120: XCM8948 & XCM89P | AE120: One unit APS1000W
A121: 478No110V1 | B121: 3-slot (4U) | C121: Yes | D121: 88 | E121: 0 | F121: 26 | G121: 18 | H121: 40 | I121: 48 | J121: No | K121: 110V | L121: 310 | M121: - | N121: - | O121: 4 | P121: 7 | Q121: 8 | R121: - | S121: - | T121: - | U121: - | V121: - | W121: - | X121: =SUMIFS(blades!$I$2:$I$10,blades!$A$2:$A$10,$O121)+SUMIFS(blades!$I$2:$I$10,blades!$A$2:$A$10,$P121)+SUMIFS(blades!$I$2:$I$10,blades!$A$2:$A$10,$Q121) -> 330 | Y121: =IF(K121="110V",IF(J121="No",VLOOKUP(Z121,blades!$A$14:$G$21,3,FALSE),VLOOKUP(Z121,blades!$A$14:$G$21,4,FALSE)),IF(J121="No",VLOOKUP(Z121,blades!$A$14:$G$21,5,FALSE),VLOOKUP(Z121,blades!$A$14:$G$21,6,FALSE)))-X121 -> 310 | Z121: 1 | AA121: M6100-3S | AB121: XCM8924X | AC121: XCM8948 & XCM89UP | AD121: XCM8944 & XCM89P | AE121: One unit APS1000W
A122: 479No110V1 | B122: 3-slot (4U) | C122: Yes | D122: 88 | E122: 0 | F122: 26 | G122: 18 | H122: 0 | I122: 88 | J122: No | K122: 110V | L122: 310 | M122: - | N122: - | O122: 4 | P122: 7 | Q122: 9 | R122: - | S122: - | T122: - | U122: - | V122: - | W122: - | X122: =SUMIFS(blades!$I$2:$I$10,blades!$A$2:$A$10,$O122)+SUMIFS(blades!$I$2:$I$10,blades!$A$2:$A$10,$P122)+SUMIFS(blades!$I$2:$I$10,blades!$A$2:$A$10,$Q122) -> 330 | Y122: =IF(K122="110V",IF(J122="No",VLOOKUP(Z122,blades!$A$14:$G$21,3,FALSE),VLOOKUP(Z122,blades!$A$14:$G$21,4,FALSE)),IF(J122="No",VLOOKUP(Z122,blades!$A$14:$G$21,5,FALSE),VLOOKUP(Z122,blades!$A$14:$G$21,6,FALSE)))-X122 -> 310 | Z122: 1 | AA122: M6100-3S | AB122: XCM8924X | AC122: XCM8948 & XCM89UP | AD122: XCM8944 & XCM89UP | AE122: One unit APS1000W
A123: 447No110V1 | B123: 3-slot (4U) | C123: Yes | D123: 48 | E123: 0 | F123: 48 | G123: 32 | H123: 0 | I123: 48 | J123: No | K123: 110V | L123: 180 | M123: - | N123: - | O123: 4 | P123: 4 | Q123: 7 | R123: - | S123: - | T123: - | U123: - | V123: - | W123: - | X123: =SUMIFS(blades!$I$2:$I$10,blades!$A$2:$A$10,$O123)+SUMIFS(blades!$I$2:$I$10,blades!$A$2:$A$10,$P123)+SUMIFS(blades!$I$2:$I$10,blades!$A$2:$A$10,$Q123) -> 460 | Y123: =IF(K123="110V",IF(J123="No",VLOOKUP(Z123,blades!$A$14:$G$21,3,FALSE),VLOOKUP(Z123,blades!$A$14:$G$21,4,FALSE)),IF(J123="No",VLOOKUP(Z123,blades!$A$14:$G$21,5,FALSE),VLOOKUP(Z123,blades!$A$14:$G$21,6,FALSE)))-X123 -> 180 | Z123: 1 | AA123: M6100-3S | AB123: XCM8924X | AC123: XCM8924X | AD123: XCM8948 & XCM89UP | AE123: One unit APS1000W
A124: 477No110V1 | B124: 3-slot (4U) | C124: Yes | D124: 96 | E124: 0 | F124: 24 | G124: 16 | H124: 0 | I124: 96 | J124: No | K124: 110V | L124: 320 | M124: - | N124: - | O124: 4 | P124: 7 | Q124: 7 | R124: - | S124: - | T124: - | U124: - | V124: - | W124: - | X124: =SUMIFS(blades!$I$2:$I$10,blades!$A$2:$A$10,$O124)+SUMIFS(blades!$I$2:$I$10,blades!$A$2:$A$10,$P124)+SUMIFS(blades!$I$2:$I$10,blades!$A$2:$A$10,$Q124) -> 320 | Y124: =IF(K124="110V",IF(J124="No",VLOOKUP(Z124,blades!$A$14:$G$21,3,FALSE),VLOOKUP(Z124,blades!$A$14:$G$21,4,FALSE)),IF(J124="No",VLOOKUP(Z124,blades!$A$14:$G$21,5,FALSE),VLOOKUP(Z124,blades!$A$14:$G$21,6,FALSE)))-X124 -> 320 | Z124: 1 | AA124: M6100-3S | AB124: XCM8924X | AC124: XCM8948 & XCM89UP | AD124: XCM8948 & XCM89UP | AE124: One unit APS1000W
A125: 489No110V1 | B125: 3-slot (4U) | C125: Yes | D125: 80 | E125: 0 | F125: 28 | G125: 20 | H125: 40 | I125: 40 | J125: No | K125: 110V | L125: 300 | M125: - | N125: - | O125: 4 | P125: 8 | Q125: 9 | R125: - | S125: - | T125: - | U125: - | V125: - | W125: - | X125: =SUMIFS(blades!$I$2:$I$10,blades!$A$2:$A$10,$O125)+SUMIFS(blades!$I$2:$I$10,blades!$A$2:$A$10,$P125)+SUMIFS(blades!$I$2:$I$10,blades!$A$2:$A$10,$Q125) -> 340 | Y125: =IF(K125="110V",IF(J125="No",VLOOKUP(Z125,blades!$A$14:$G$21,3,FALSE),VLOOKUP(Z125,blades!$A$14:$G$21,4,FALSE)),IF(J125="No",VLOOKUP(Z125,blades!$A$14:$G$21,5,FALSE),VLOOKUP(Z125,blades!$A$14:$G$21,6,FALSE)))-X125 -> 300 | Z125: 1 | AA125: M6100-3S | AB125: XCM8924X | AC125: XCM8944 & XCM89P | AD125: XCM8944 & XCM89UP | AE125: One unit APS1000W
A126: 448No110V1 | B126: 3-slot (4U) | C126: Yes | D126: 40 | E126: 0 | F126: 50 | G126: 34 | H126: 40 | I126: 0 | J126: No | K126: 110V | L126: 170 | M126: - | N126: - | O126: 4 | P126: 4 | Q126: 8 | R126: - | S126: - | T126: - | U126: - | V126: - | W126: - | X126: =SUMIFS(blades!$I$2:$I$10,blades!$A$2:$A$10,$O126)+SUMIFS(blades!$I$2:$I$10,blades!$A$2:$A$10,$P126)+SUMIFS(blades!$I$2:$I$10,blades!$A$2:$A$10,$Q126) -> 470 | Y126: =IF(K126="110V",IF(J126="No",VLOOKUP(Z126,blades!$A$14:$G$21,3,FALSE),VLOOKUP(Z126,blades!$A$14:$G$21,4,FALSE)),IF(J126="No",VLOOKUP(Z126,blades!$A$14:$G$21,5,FALSE),VLOOKUP(Z126,blades!$A$14:$G$21,6,FALSE)))-X126 -> 170 | Z126: 1 | AA126: M6100-3S | AB126: XCM8924X | AC126: XCM8924X | AD126: XCM8944 & XCM89P | AE126: One unit APS1000W
A127: 488No110V1 | B127: 3-slot (4U) | C127: Yes | D127: 80 | E127: 0 | F127: 28 | G127: 20 | H127: 80 | I127: 0 | J127: No | K127: 110V | L127: 300 | M127: - | N127: - | O127: 4 | P127: 8 | Q127: 8 | R127: - | S127: - | T127: - | U127: - | V127: - | W127: - | X127: =SUMIFS(blades!$I$2:$I$10,blades!$A$2:$A$10,$O127)+SUMIFS(blades!$I$2:$I$10,blades!$A$2:$A$10,$P127)+SUMIFS(blades!$I$2:$I$10,blades!$A$2:$A$10,$Q127) -> 340 | Y127: =IF(K127="110V",IF(J127="No",VLOOKUP(Z127,blades!$A$14:$G$21,3,FALSE),VLOOKUP(Z127,blades!$A$14:$G$21,4,FALSE)),IF(J127="No",VLOOKUP(Z127,blades!$A$14:$G$21,5,FALSE),VLOOKUP(Z127,blades!$A$14:$G$21,6,FALSE)))-X127 -> 300 | Z127: 1 | AA127: M6100-3S | AB127: XCM8924X | AC127: XCM8944 & XCM89P | AD127: XCM8944 & XCM89P | AE127: One unit APS1000W
A128: 449No110V1 | B128: 3-slot (4U) | C128: Yes | D128: 40 | E128: 0 | F128: 50 | G128: 34 | H128: 0 | I128: 40 | J128: No | K128: 110V | L128: 170 | M128: - | N128: - | O128: 4 | P128: 4 | Q128: 9 | R128: - | S128: - | T128: - | U128: - | V128: - | W128: - | X128: =SUMIFS(blades!$I$2:$I$10,blades!$A$2:$A$10,$O128)+SUMIFS(blades!$I$2:$I$10,blades!$A$2:$A$10,$P128)+SUMIFS(blades!$I$2:$I$10,blades!$A$2:$A$10,$Q128) -> 470 | Y128: =IF(K128="110V",IF(J128="No",VLOOKUP(Z128,blades!$A$14:$G$21,3,FALSE),VLOOKUP(Z128,blades!$A$14:$G$21,4,FALSE)),IF(J128="No",VLOOKUP(Z128,blades!$A$14:$G$21,5,FALSE),VLOOKUP(Z128,blades!$A$14:$G$21,6,FALSE)))-X128 -> 170 | Z128: 1 | AA128: M6100-3S | AB128: XCM8924X | AC128: XCM8924X | AD128: XCM8944 & XCM89UP | AE128: One unit APS1000W
A129: 499No110V1 | B129: 3-slot (4U) | C129: Yes | D129: 80 | E129: 0 | F129: 28 | G129: 20 | H129: 0 | I129: 80 | J129: No | K129: 110V | L129: 300 | M129: - | N129: - | O129: 4 | P129: 9 | Q129: 9 | R129: - | S129: - | T129: - | U129: - | V129: - | W129: - | X129: =SUMIFS(blades!$I$2:$I$10,blades!$A$2:$A$10,$O129)+SUMIFS(blades!$I$2:$I$10,blades!$A$2:$A$10,$P129)+SUMIFS(blades!$I$2:$I$10,blades!$A$2:$A$10,$Q129) -> 340 | Y129: =IF(K129="110V",IF(J129="No",VLOOKUP(Z129,blades!$A$14:$G$21,3,FALSE),VLOOKUP(Z129,blades!$A$14:$G$21,4,FALSE)),IF(J129="No",VLOOKUP(Z129,blades!$A$14:$G$21,5,FALSE),VLOOKUP(Z129,blades!$A$14:$G$21,6,FALSE)))-X129 -> 300 | Z129: 1 | AA129: M6100-3S | AB129: XCM8924X | AC129: XCM8944 & XCM89UP | AD129: XCM8944 & XCM89UP | AE129: One unit APS1000W
A130: 567No110V1 | B130: 3-slot (4U) | C130: Yes | D130: 96 | E130: 0 | F130: 0 | G130: 0 | H130: 48 | I130: 48 | J130: No | K130: 110V | L130: 520 | M130: - | N130: - | O130: 5 | P130: 6 | Q130: 7 | R130: - | S130: - | T130: - | U130: - | V130: - | W130: - | X130: =SUMIFS(blades!$I$2:$I$10,blades!$A$2:$A$10,$O130)+SUMIFS(blades!$I$2:$I$10,blades!$A$2:$A$10,$P130)+SUMIFS(blades!$I$2:$I$10,blades!$A$2:$A$10,$Q130) -> 120 | Y130: =IF(K130="110V",IF(J130="No",VLOOKUP(Z130,blades!$A$14:$G$21,3,FALSE),VLOOKUP(Z130,blades!$A$14:$G$21,4,FALSE)),IF(J130="No",VLOOKUP(Z130,blades!$A$14:$G$21,5,FALSE),VLOOKUP(Z130,blades!$A$14:$G$21,6,FALSE)))-X130 -> 520 | Z130: 1 | AA130: M6100-3S | AB130: Empty | AC130: XCM8948 & XCM89P | AD130: XCM8948 & XCM89UP | AE130: One unit APS1000W
A131: 568No110V1 | B131: 3-slot (4U) | C131: Yes | D131: 88 | E131: 0 | F131: 2 | G131: 2 | H131: 88 | I131: 0 | J131: No | K131: 110V | L131: =Y131 -> 510 | M131: - | N131: - | O131: 5 | P131: 6 | Q131: 8 | R131: - | S131: - | T131: - | U131: - | V131: - | W131: - | X131: =SUMIFS(blades!$I$2:$I$10,blades!$A$2:$A$10,$O131)+SUMIFS(blades!$I$2:$I$10,blades!$A$2:$A$10,$P131)+SUMIFS(blades!$I$2:$I$10,blades!$A$2:$A$10,$Q131) -> 130 | Y131: =IF(K131="110V",IF(J131="No",VLOOKUP(Z131,blades!$A$14:$G$21,3,FALSE),VLOOKUP(Z131,blades!$A$14:$G$21,4,FALSE)),IF(J131="No",VLOOKUP(Z131,blades!$A$14:$G$21,5,FALSE),VLOOKUP(Z131,blades!$A$14:$G$21,6,FALSE)))-X131 -> 510 | Z131: 1 | AA131: M6100-3S | AB131: Empty | AC131: XCM8948 & XCM89P | AD131: XCM8944 & XCM89P | AE131: One unit APS1000W
A132: 569No110V1 | B132: 3-slot (4U) | C132: Yes | D132: 88 | E132: 0 | F132: 2 | G132: 2 | H132: 48 | I132: 40 | J132: No | K132: 110V | L132: 510 | M132: - | N132: - | O132: 5 | P132: 6 | Q132: 9 | R132: - | S132: - | T132: - | U132: - | V132: - | W132: - | X132: =SUMIFS(blades!$I$2:$I$10,blades!$A$2:$A$10,$O132)+SUMIFS(blades!$I$2:$I$10,blades!$A$2:$A$10,$P132)+SUMIFS(blades!$I$2:$I$10,blades!$A$2:$A$10,$Q132) -> 130 | Y132: =IF(K132="110V",IF(J132="No",VLOOKUP(Z132,blades!$A$14:$G$21,3,FALSE),VLOOKUP(Z132,blades!$A$14:$G$21,4,FALSE)),IF(J132="No",VLOOKUP(Z132,blades!$A$14:$G$21,5,FALSE),VLOOKUP(Z132,blades!$A$14:$G$21,6,FALSE)))-X132 -> 510 | Z132: 1 | AA132: M6100-3S | AB132: Empty | AC132: XCM8948 & XCM89P | AD132: XCM8944 & XCM89UP | AE132: One unit APS1000W
A133: 556No110V1 | B133: 3-slot (4U) | C133: Yes | D133: 48 | E133: 0 | F133: 0 | G133: 0 | H133: 48 | I133: 0 | J133: No | K133: 110V | L133: 580 | M133: - | N133: - | O133: 5 | P133: 5 | Q133: 6 | R133: - | S133: - | T133: - | U133: - | V133: - | W133: - | X133: =SUMIFS(blades!$I$2:$I$10,blades!$A$2:$A$10,$O133)+SUMIFS(blades!$I$2:$I$10,blades!$A$2:$A$10,$P133)+SUMIFS(blades!$I$2:$I$10,blades!$A$2:$A$10,$Q133) -> 60 | Y133: =IF(K133="110V",IF(J133="No",VLOOKUP(Z133,blades!$A$14:$G$21,3,FALSE),VLOOKUP(Z133,blades!$A$14:$G$21,4,FALSE)),IF(J133="No",VLOOKUP(Z133,blades!$A$14:$G$21,5,FALSE),VLOOKUP(Z133,blades!$A$14:$G$21,6,FALSE)))-X133 -> 580 | Z133: 1 | AA133: M6100-3S | AB133: Empty | AC133: Empty | AD133: XCM8948 & XCM89P | AE133: One unit APS1000W
A134: 566No110V1 | B134: 3-slot (4U) | C134: Yes | D134: 96 | E134: 0 | F134: 0 | G134: 0 | H134: 96 | I134: 0 | J134: No | K134: 110V | L134: 520 | M134: - | N134: - | O134: 5 | P134: 6 | Q134: 6 | R134: - | S134: - | T134: - | U134: - | V134: - | W134: - | X134: =SUMIFS(blades!$I$2:$I$10,blades!$A$2:$A$10,$O134)+SUMIFS(blades!$I$2:$I$10,blades!$A$2:$A$10,$P134)+SUMIFS(blades!$I$2:$I$10,blades!$A$2:$A$10,$Q134) -> 120 | Y134: =IF(K134="110V",IF(J134="No",VLOOKUP(Z134,blades!$A$14:$G$21,3,FALSE),VLOOKUP(Z134,blades!$A$14:$G$21,4,FALSE)),IF(J134="No",VLOOKUP(Z134,blades!$A$14:$G$21,5,FALSE),VLOOKUP(Z134,blades!$A$14:$G$21,6,FALSE)))-X134 -> 520 | Z134: 1 | AA134: M6100-3S | AB134: Empty | AC134: XCM8948 & XCM89P | AD134: XCM8948 & XCM89P | AE134: One unit APS1000W
A135: 578No110V1 | B135: 3-slot (4U) | C135: Yes | D135: 88 | E135: 0 | F135: 2 | G135: 2 | H135: 40 | I135: 48 | J135: No | K135: 110V | L135: 510 | M135: - | N135: - | O135: 5 | P135: 7 | Q135: 8 | R135: - | S135: - | T135: - | U135: - | V135: - | W135: - | X135: =SUMIFS(blades!$I$2:$I$10,blades!$A$2:$A$10,$O135)+SUMIFS(blades!$I$2:$I$10,blades!$A$2:$A$10,$P135)+SUMIFS(blades!$I$2:$I$10,blades!$A$2:$A$10,$Q135) -> 130 | Y135: =IF(K135="110V",IF(J135="No",VLOOKUP(Z135,blades!$A$14:$G$21,3,FALSE),VLOOKUP(Z135,blades!$A$14:$G$21,4,FALSE)),IF(J135="No",VLOOKUP(Z135,blades!$A$14:$G$21,5,FALSE),VLOOKUP(Z135,blades!$A$14:$G$21,6,FALSE)))-X135 -> 510 | Z135: 1 | AA135: M6100-3S | AB135: Empty | AC135: XCM8948 & XCM89UP | AD135: XCM8944 & XCM89P | AE135: One unit APS1000W
A136: 579No110V1 | B136: 3-slot (4U) | C136: Yes | D136: 88 | E136: 0 | F136: 2 | G136: 2 | H136: 0 | I136: 88 | J136: No | K136: 110V | L136: 510 | M136: - | N136: - | O136: 5 | P136: 7 | Q136: 9 | R136: - | S136: - | T136: - | U136: - | V136: - | W136: - | X136: =SUMIFS(blades!$I$2:$I$10,blades!$A$2:$A$10,$O136)+SUMIFS(blades!$I$2:$I$10,blades!$A$2:$A$10,$P136)+SUMIFS(blades!$I$2:$I$10,blades!$A$2:$A$10,$Q136) -> 130 | Y136: =IF(K136="110V",IF(J136="No",VLOOKUP(Z136,blades!$A$14:$G$21,3,FALSE),VLOOKUP(Z136,blades!$A$14:$G$21,4,FALSE)),IF(J136="No",VLOOKUP(Z136,blades!$A$14:$G$21,5,FALSE),VLOOKUP(Z136,blades!$A$14:$G$21,6,FALSE)))-X136 -> 510 | Z136: 1 | AA136: M6100-3S | AB136: Empty | AC136: XCM8948 & XCM89UP | AD136: XCM8944 & XCM89UP | AE136: One unit APS1000W
A137: 557No110V1 | B137: 3-slot (4U) | C137: Yes | D137: 48 | E137: 0 | F137: 0 | G137: 0 | H137: 0 | I137: 48 | J137: No | K137: 110V | L137: 580 | M137: - | N137: - | O137: 5 | P137: 5 | Q137: 7 | R137: - | S137: - | T137: - | U137: - | V137: - | W137: - | X137: =SUMIFS(blades!$I$2:$I$10,blades!$A$2:$A$10,$O137)+SUMIFS(blades!$I$2:$I$10,blades!$A$2:$A$10,$P137)+SUMIFS(blades!$I$2:$I$10,blades!$A$2:$A$10,$Q137) -> 60 | Y137: =IF(K137="110V",IF(J137="No",VLOOKUP(Z137,blades!$A$14:$G$21,3,FALSE),VLOOKUP(Z137,blades!$A$14:$G$21,4,FALSE)),IF(J137="No",VLOOKUP(Z137,blades!$A$14:$G$21,5,FALSE),VLOOKUP(Z137,blades!$A$14:$G$21,6,FALSE)))-X137 -> 580 | Z137: 1 | AA137: M6100-3S | AB137: Empty | AC137: Empty | AD137: XCM8948 & XCM89UP | AE137: One unit APS1000W
A138: 577No110V1 | B138: 3-slot (4U) | C138: Yes | D138: 96 | E138: 0 | F138: 0 | G138: 0 | H138: 0 | I138: 96 | J138: No | K138: 110V | L138: 520 | M138: - | N138: - | O138: 5 | P138: 7 | Q138: 7 | R138: - | S138: - | T138: - | U138: - | V138: - | W138: - | X138: =SUMIFS(blades!$I$2:$I$10,blades!$A$2:$A$10,$O138)+SUMIFS(blades!$I$2:$I$10,blades!$A$2:$A$10,$P138)+SUMIFS(blades!$I$2:$I$10,blades!$A$2:$A$10,$Q138) -> 120 | Y138: =IF(K138="110V",IF(J138="No",VLOOKUP(Z138,blades!$A$14:$G$21,3,FALSE),VLOOKUP(Z138,blades!$A$14:$G$21,4,FALSE)),IF(J138="No",VLOOKUP(Z138,blades!$A$14:$G$21,5,FALSE),VLOOKUP(Z138,blades!$A$14:$G$21,6,FALSE)))-X138 -> 520 | Z138: 1 | AA138: M6100-3S | AB138: Empty | AC138: XCM8948 & XCM89UP | AD138: XCM8948 & XCM89UP | AE138: One unit APS1000W
A139: 589No110V1 | B139: 3-slot (4U) | C139: Yes | D139: 80 | E139: 0 | F139: 4 | G139: 4 | H139: 40 | I139: 40 | J139: No | K139: 110V | L139: 500 | M139: - | N139: - | O139: 5 | P139: 8 | Q139: 9 | R139: - | S139: - | T139: - | U139: - | V139: - | W139: - | X139: =SUMIFS(blades!$I$2:$I$10,blades!$A$2:$A$10,$O139)+SUMIFS(blades!$I$2:$I$10,blades!$A$2:$A$10,$P139)+SUMIFS(blades!$I$2:$I$10,blades!$A$2:$A$10,$Q139) -> 140 | Y139: =IF(K139="110V",IF(J139="No",VLOOKUP(Z139,blades!$A$14:$G$21,3,FALSE),VLOOKUP(Z139,blades!$A$14:$G$21,4,FALSE)),IF(J139="No",VLOOKUP(Z139,blades!$A$14:$G$21,5,FALSE),VLOOKUP(Z139,blades!$A$14:$G$21,6,FALSE)))-X139 -> 500 | Z139: 1 | AA139: M6100-3S | AB139: Empty | AC139: XCM8944 & XCM89P | AD139: XCM8944 & XCM89UP | AE139: One unit APS1000W
A140: 558No110V1 | B140: 3-slot (4U) | C140: Yes | D140: 40 | E140: 0 | F140: 2 | G140: 2 | H140: 40 | I140: 0 | J140: No | K140: 110V | L140: 570 | M140: - | N140: - | O140: 5 | P140: 5 | Q140: 8 | R140: - | S140: - | T140: - | U140: - | V140: - | W140: - | X140: =SUMIFS(blades!$I$2:$I$10,blades!$A$2:$A$10,$O140)+SUMIFS(blades!$I$2:$I$10,blades!$A$2:$A$10,$P140)+SUMIFS(blades!$I$2:$I$10,blades!$A$2:$A$10,$Q140) -> 70 | Y140: =IF(K140="110V",IF(J140="No",VLOOKUP(Z140,blades!$A$14:$G$21,3,FALSE),VLOOKUP(Z140,blades!$A$14:$G$21,4,FALSE)),IF(J140="No",VLOOKUP(Z140,blades!$A$14:$G$21,5,FALSE),VLOOKUP(Z140,blades!$A$14:$G$21,6,FALSE)))-X140 -> 570 | Z140: 1 | AA140: M6100-3S | AB140: Empty | AC140: Empty | AD140: XCM8944 & XCM89P | AE140: One unit APS1000W
A141: 588No110V1 | B141: 3-slot (4U) | C141: Yes | D141: 80 | E141: 0 | F141: 4 | G141: 4 | H141: 80 | I141: 0 | J141: No | K141: 110V | L141: 500 | M141: - | N141: - | O141: 5 | P141: 8 | Q141: 8 | R141: - | S141: - | T141: - | U141: - | V141: - | W141: - | X141: =SUMIFS(blades!$I$2:$I$10,blades!$A$2:$A$10,$O141)+SUMIFS(blades!$I$2:$I$10,blades!$A$2:$A$10,$P141)+SUMIFS(blades!$I$2:$I$10,blades!$A$2:$A$10,$Q141) -> 140 | Y141: =IF(K141="110V",IF(J141="No",VLOOKUP(Z141,blades!$A$14:$G$21,3,FALSE),VLOOKUP(Z141,blades!$A$14:$G$21,4,FALSE)),IF(J141="No",VLOOKUP(Z141,blades!$A$14:$G$21,5,FALSE),VLOOKUP(Z141,blades!$A$14:$G$21,6,FALSE)))-X141 -> 500 | Z141: 1 | AA141: M6100-3S | AB141: Empty | AC141: XCM8944 & XCM89P | AD141: XCM8944 & XCM89P | AE141: One unit APS1000W
A142: 559No110V1 | B142: 3-slot (4U) | C142: Yes | D142: 40 | E142: 0 | F142: 2 | G142: 2 | H142: 0 | I142: 40 | J142: No | K142: 110V | L142: 570 | M142: - | N142: - | O142: 5 | P142: 5 | Q142: 9 | R142: - | S142: - | T142: - | U142: - | V142: - | W142: - | X142: =SUMIFS(blades!$I$2:$I$10,blades!$A$2:$A$10,$O142)+SUMIFS(blades!$I$2:$I$10,blades!$A$2:$A$10,$P142)+SUMIFS(blades!$I$2:$I$10,blades!$A$2:$A$10,$Q142) -> 70 | Y142: =IF(K142="110V",IF(J142="No",VLOOKUP(Z142,blades!$A$14:$G$21,3,FALSE),VLOOKUP(Z142,blades!$A$14:$G$21,4,FALSE)),IF(J142="No",VLOOKUP(Z142,blades!$A$14:$G$21,5,FALSE),VLOOKUP(Z142,blades!$A$14:$G$21,6,FALSE)))-X142 -> 570 | Z142: 1 | AA142: M6100-3S | AB142: Empty | AC142: Empty | AD142: XCM8944 & XCM89UP | AE142: One unit APS1000W
A143: 599No110V1 | B143: 3-slot (4U) | C143: Yes | D143: 80 | E143: 0 | F143: 4 | G143: 4 | H143: 0 | I143: 80 | J143: No | K143: 110V | L143: 500 | M143: - | N143: - | O143: 5 | P143: 9 | Q143: 9 | R143: - | S143: - | T143: - | U143: - | V143: - | W143: - | X143: =SUMIFS(blades!$I$2:$I$10,blades!$A$2:$A$10,$O143)+SUMIFS(blades!$I$2:$I$10,blades!$A$2:$A$10,$P143)+SUMIFS(blades!$I$2:$I$10,blades!$A$2:$A$10,$Q143) -> 140 | Y143: =IF(K143="110V",IF(J143="No",VLOOKUP(Z143,blades!$A$14:$G$21,3,FALSE),VLOOKUP(Z143,blades!$A$14:$G$21,4,FALSE)),IF(J143="No",VLOOKUP(Z143,blades!$A$14:$G$21,5,FALSE),VLOOKUP(Z143,blades!$A$14:$G$21,6,FALSE)))-X143 -> 500 | Z143: 1 | AA143: M6100-3S | AB143: Empty | AC143: XCM8944 & XCM89UP | AD143: XCM8944 & XCM89UP | AE143: One unit APS1000W
A144: 555No110V1 | B144: 3-slot (4U) | C144: Yes | D144: 0 | E144: 0 | F144: 0 | G144: 0 | H144: 0 | I144: 0 | J144: No | K144: 110V | L144: 640 | M144: - | N144: - | O144: 5 | P144: 5 | Q144: 5 | R144: - | S144: - | T144: - | U144: - | V144: - | W144: - | X144: =SUMIFS(blades!$I$2:$I$10,blades!$A$2:$A$10,$O144)+SUMIFS(blades!$I$2:$I$10,blades!$A$2:$A$10,$P144)+SUMIFS(blades!$I$2:$I$10,blades!$A$2:$A$10,$Q144) -> 0 | Y144: =IF(K144="110V",IF(J144="No",VLOOKUP(Z144,blades!$A$14:$G$21,3,FALSE),VLOOKUP(Z144,blades!$A$14:$G$21,4,FALSE)),IF(J144="No",VLOOKUP(Z144,blades!$A$14:$G$21,5,FALSE),VLOOKUP(Z144,blades!$A$14:$G$21,6,FALSE)))-X144 -> 640 | Z144: 1 | AA144: M6100-3S | AB144: Empty | AC144: Empty | AD144: Empty | AE144: One unit APS1000W
A145: 678No110V1 | B145: 3-slot (4U) | C145: Yes | D145: 136 | E145: 0 | F145: 2 | G145: 2 | H145: 88 | I145: 48 | J145: No | K145: 110V | L145: 450 | M145: - | N145: - | O145: 6 | P145: 7 | Q145: 8 | R145: - | S145: - | T145: - | U145: - | V145: - | W145: - | X145: =SUMIFS(blades!$I$2:$I$10,blades!$A$2:$A$10,$O145)+SUMIFS(blades!$I$2:$I$10,blades!$A$2:$A$10,$P145)+SUMIFS(blades!$I$2:$I$10,blades!$A$2:$A$10,$Q145) -> 190 | Y145: =IF(K145="110V",IF(J145="No",VLOOKUP(Z145,blades!$A$14:$G$21,3,FALSE),VLOOKUP(Z145,blades!$A$14:$G$21,4,FALSE)),IF(J145="No",VLOOKUP(Z145,blades!$A$14:$G$21,5,FALSE),VLOOKUP(Z145,blades!$A$14:$G$21,6,FALSE)))-X145 -> 450 | Z145: 1 | AA145: M6100-3S | AB145: XCM8948 & XCM89P | AC145: XCM8948 & XCM89UP | AD145: XCM8944 & XCM89P | AE145: One unit APS1000W
A146: 679No110V1 | B146: 3-slot (4U) | C146: Yes | D146: 136 | E146: 0 | F146: 2 | G146: 2 | H146: 48 | I146: 88 | J146: No | K146: 110V | L146: 450 | M146: - | N146: - | O146: 6 | P146: 7 | Q146: 9 | R146: - | S146: - | T146: - | U146: - | V146: - | W146: - | X146: =SUMIFS(blades!$I$2:$I$10,blades!$A$2:$A$10,$O146)+SUMIFS(blades!$I$2:$I$10,blades!$A$2:$A$10,$P146)+SUMIFS(blades!$I$2:$I$10,blades!$A$2:$A$10,$Q146) -> 190 | Y146: =IF(K146="110V",IF(J146="No",VLOOKUP(Z146,blades!$A$14:$G$21,3,FALSE),VLOOKUP(Z146,blades!$A$14:$G$21,4,FALSE)),IF(J146="No",VLOOKUP(Z146,blades!$A$14:$G$21,5,FALSE),VLOOKUP(Z146,blades!$A$14:$G$21,6,FALSE)))-X146 -> 450 | Z146: 1 | AA146: M6100-3S | AB146: XCM8948 & XCM89P | AC146: XCM8948 & XCM89UP | AD146: XCM8944 & XCM89UP | AE146: One unit APS1000W
A147: 667No110V1 | B147: 3-slot (4U) | C147: Yes | D147: 144 | E147: 0 | F147: 0 | G147: 0 | H147: 96 | I147: 48 | J147: No | K147: 110V | L147: 460 | M147: - | N147: - | O147: 6 | P147: 6 | Q147: 7 | R147: - | S147: - | T147: - | U147: - | V147: - | W147: - | X147: =SUMIFS(blades!$I$2:$I$10,blades!$A$2:$A$10,$O147)+SUMIFS(blades!$I$2:$I$10,blades!$A$2:$A$10,$P147)+SUMIFS(blades!$I$2:$I$10,blades!$A$2:$A$10,$Q147) -> 180 | Y147: =IF(K147="110V",IF(J147="No",VLOOKUP(Z147,blades!$A$14:$G$21,3,FALSE),VLOOKUP(Z147,blades!$A$14:$G$21,4,FALSE)),IF(J147="No",VLOOKUP(Z147,blades!$A$14:$G$21,5,FALSE),VLOOKUP(Z147,blades!$A$14:$G$21,6,FALSE)))-X147 -> 460 | Z147: 1 | AA147: M6100-3S | AB147: XCM8948 & XCM89P | AC147: XCM8948 & XCM89P | AD147: XCM8948 & XCM89UP | AE147: One unit APS1000W
A148: 677No110V1 | B148: 3-slot (4U) | C148: Yes | D148: 144 | E148: 0 | F148: 0 | G148: 0 | H148: 48 | I148: 96 | J148: No | K148: 110V | L148: 460 | M148: - | N148: - | O148: 6 | P148: 7 | Q148: 7 | R148: - | S148: - | T148: - | U148: - | V148: - | W148: - | X148: =SUMIFS(blades!$I$2:$I$10,blades!$A$2:$A$10,$O148)+SUMIFS(blades!$I$2:$I$10,blades!$A$2:$A$10,$P148)+SUMIFS(blades!$I$2:$I$10,blades!$A$2:$A$10,$Q148) -> 180 | Y148: =IF(K148="110V",IF(J148="No",VLOOKUP(Z148,blades!$A$14:$G$21,3,FALSE),VLOOKUP(Z148,blades!$A$14:$G$21,4,FALSE)),IF(J148="No",VLOOKUP(Z148,blades!$A$14:$G$21,5,FALSE),VLOOKUP(Z148,blades!$A$14:$G$21,6,FALSE)))-X148 -> 460 | Z148: 1 | AA148: M6100-3S | AB148: XCM8948 & XCM89P | AC148: XCM8948 & XCM89UP | AD148: XCM8948 & XCM89UP | AE148: One unit APS1000W
A149: 689No110V1 | B149: 3-slot (4U) | C149: Yes | D149: 128 | E149: 0 | F149: 4 | G149: 4 | H149: 88 | I149: 40 | J149: No | K149: 110V | L149: 440 | M149: - | N149: - | O149: 6 | P149: 8 | Q149: 9 | R149: - | S149: - | T149: - | U149: - | V149: - | W149: - | X149: =SUMIFS(blades!$I$2:$I$10,blades!$A$2:$A$10,$O149)+SUMIFS(blades!$I$2:$I$10,blades!$A$2:$A$10,$P149)+SUMIFS(blades!$I$2:$I$10,blades!$A$2:$A$10,$Q149) -> 200 | Y149: =IF(K149="110V",IF(J149="No",VLOOKUP(Z149,blades!$A$14:$G$21,3,FALSE),VLOOKUP(Z149,blades!$A$14:$G$21,4,FALSE)),IF(J149="No",VLOOKUP(Z149,blades!$A$14:$G$21,5,FALSE),VLOOKUP(Z149,blades!$A$14:$G$21,6,FALSE)))-X149 -> 440 | Z149: 1 | AA149: M6100-3S | AB149: XCM8948 & XCM89P | AC149: XCM8944 & XCM89P | AD149: XCM8944 & XCM89UP | AE149: One unit APS1000W
A150: 668No110V1 | B150: 3-slot (4U) | C150: Yes | D150: 136 | E150: 0 | F150: 2 | G150: 2 | H150: 136 | I150: 0 | J150: No | K150: 110V | L150: 450 | M150: - | N150: - | O150: 6 | P150: 6 | Q150: 8 | R150: - | S150: - | T150: - | U150: - | V150: - | W150: - | X150: =SUMIFS(blades!$I$2:$I$10,blades!$A$2:$A$10,$O150)+SUMIFS(blades!$I$2:$I$10,blades!$A$2:$A$10,$P150)+SUMIFS(blades!$I$2:$I$10,blades!$A$2:$A$10,$Q150) -> 190 | Y150: =IF(K150="110V",IF(J150="No",VLOOKUP(Z150,blades!$A$14:$G$21,3,FALSE),VLOOKUP(Z150,blades!$A$14:$G$21,4,FALSE)),IF(J150="No",VLOOKUP(Z150,blades!$A$14:$G$21,5,FALSE),VLOOKUP(Z150,blades!$A$14:$G$21,6,FALSE)))-X150 -> 450 | Z150: 1 | AA150: M6100-3S | AB150: XCM8948 & XCM89P | AC150: XCM8948 & XCM89P | AD150: XCM8944 & XCM89P | AE150: One unit APS1000W
A151: 688No110V1 | B151: 3-slot (4U) | C151: Yes | D151: 128 | E151: 0 | F151: 4 | G151: 4 | H151: 128 | I151: 0 | J151: No | K151: 110V | L151: 440 | M151: - | N151: - | O151: 6 | P151: 8 | Q151: 8 | R151: - | S151: - | T151: - | U151: - | V151: - | W151: - | X151: =SUMIFS(blades!$I$2:$I$10,blades!$A$2:$A$10,$O151)+SUMIFS(blades!$I$2:$I$10,blades!$A$2:$A$10,$P151)+SUMIFS(blades!$I$2:$I$10,blades!$A$2:$A$10,$Q151) -> 200 | Y151: =IF(K151="110V",IF(J151="No",VLOOKUP(Z151,blades!$A$14:$G$21,3,FALSE),VLOOKUP(Z151,blades!$A$14:$G$21,4,FALSE)),IF(J151="No",VLOOKUP(Z151,blades!$A$14:$G$21,5,FALSE),VLOOKUP(Z151,blades!$A$14:$G$21,6,FALSE)))-X151 -> 440 | Z151: 1 | AA151: M6100-3S | AB151: XCM8948 & XCM89P | AC151: XCM8944 & XCM89P | AD151: XCM8944 & XCM89P | AE151: One unit APS1000W
A152: 669No110V1 | B152: 3-slot (4U) | C152: Yes | D152: 136 | E152: 0 | F152: 2 | G152: 2 | H152: 96 | I152: 40 | J152: No | K152: 110V | L152: 450 | M152: - | N152: - | O152: 6 | P152: 6 | Q152: 9 | R152: - | S152: - | T152: - | U152: - | V152: - | W152: - | X152: =SUMIFS(blades!$I$2:$I$10,blades!$A$2:$A$10,$O152)+SUMIFS(blades!$I$2:$I$10,blades!$A$2:$A$10,$P152)+SUMIFS(blades!$I$2:$I$10,blades!$A$2:$A$10,$Q152) -> 190 | Y152: =IF(K152="110V",IF(J152="No",VLOOKUP(Z152,blades!$A$14:$G$21,3,FALSE),VLOOKUP(Z152,blades!$A$14:$G$21,4,FALSE)),IF(J152="No",VLOOKUP(Z152,blades!$A$14:$G$21,5,FALSE),VLOOKUP(Z152,blades!$A$14:$G$21,6,FALSE)))-X152 -> 450 | Z152: 1 | AA152: M6100-3S | AB152: XCM8948 & XCM89P | AC152: XCM8948 & XCM89P | AD152: XCM8944 & XCM89UP | AE152: One unit APS1000W
A153: 699No110V1 | B153: 3-slot (4U) | C153: Yes | D153: 128 | E153: 0 | F153: 4 | G153: 4 | H153: 48 | I153: 80 | J153: No | K153: 110V | L153: 440 | M153: - | N153: - | O153: 6 | P153: 9 | Q153: 9 | R153: - | S153: - | T153: - | U153: - | V153: - | W153: - | X153: =SUMIFS(blades!$I$2:$I$10,blades!$A$2:$A$10,$O153)+SUMIFS(blades!$I$2:$I$10,blades!$A$2:$A$10,$P153)+SUMIFS(blades!$I$2:$I$10,blades!$A$2:$A$10,$Q153) -> 200 | Y153: =IF(K153="110V",IF(J153="No",VLOOKUP(Z153,blades!$A$14:$G$21,3,FALSE),VLOOKUP(Z153,blades!$A$14:$G$21,4,FALSE)),IF(J153="No",VLOOKUP(Z153,blades!$A$14:$G$21,5,FALSE),VLOOKUP(Z153,blades!$A$14:$G$21,6,FALSE)))-X153 -> 440 | Z153: 1 | AA153: M6100-3S | AB153: XCM8948 & XCM89P | AC153: XCM8944 & XCM89UP | AD153: XCM8944 & XCM89UP | AE153: One unit APS1000W
A154: 666No110V1 | B154: 3-slot (4U) | C154: Yes | D154: 144 | E154: 0 | F154: 0 | G154: 0 | H154: 144 | I154: 0 | J154: No | K154: 110V | L154: 460 | M154: - | N154: - | O154: 6 | P154: 6 | Q154: 6 | R154: - | S154: - | T154: - | U154: - | V154: - | W154: - | X154: =SUMIFS(blades!$I$2:$I$10,blades!$A$2:$A$10,$O154)+SUMIFS(blades!$I$2:$I$10,blades!$A$2:$A$10,$P154)+SUMIFS(blades!$I$2:$I$10,blades!$A$2:$A$10,$Q154) -> 180 | Y154: =IF(K154="110V",IF(J154="No",VLOOKUP(Z154,blades!$A$14:$G$21,3,FALSE),VLOOKUP(Z154,blades!$A$14:$G$21,4,FALSE)),IF(J154="No",VLOOKUP(Z154,blades!$A$14:$G$21,5,FALSE),VLOOKUP(Z154,blades!$A$14:$G$21,6,FALSE)))-X154 -> 460 | Z154: 1 | AA154: M6100-3S | AB154: XCM8948 & XCM89P | AC154: XCM8948 & XCM89P | AD154: XCM8948 & XCM89P | AE154: One unit APS1000W
A155: 789No110V1 | B155: 3-slot (4U) | C155: Yes | D155: 128 | E155: 0 | F155: 4 | G155: 4 | H155: 40 | I155: 88 | J155: No | K155: 110V | L155: 440 | M155: - | N155: - | O155: 7 | P155: 8 | Q155: 9 | R155: - | S155: - | T155: - | U155: - | V155: - | W155: - | X155: =SUMIFS(blades!$I$2:$I$10,blades!$A$2:$A$10,$O155)+SUMIFS(blades!$I$2:$I$10,blades!$A$2:$A$10,$P155)+SUMIFS(blades!$I$2:$I$10,blades!$A$2:$A$10,$Q155) -> 200 | Y155: =IF(K155="110V",IF(J155="No",VLOOKUP(Z155,blades!$A$14:$G$21,3,FALSE),VLOOKUP(Z155,blades!$A$14:$G$21,4,FALSE)),IF(J155="No",VLOOKUP(Z155,blades!$A$14:$G$21,5,FALSE),VLOOKUP(Z155,blades!$A$14:$G$21,6,FALSE)))-X155 -> 440 | Z155: 1 | AA155: M6100-3S | AB155: XCM8948 & XCM89UP | AC155: XCM8944 & XCM89P | AD155: XCM8944 & XCM89UP | AE155: One unit APS1000W
A156: 778No110V1 | B156: 3-slot (4U) | C156: Yes | D156: 136 | E156: 0 | F156: 2 | G156: 2 | H156: 40 | I156: 96 | J156: No | K156: 110V | L156: 450 | M156: - | N156: - | O156: 7 | P156: 7 | Q156: 8 | R156: - | S156: - | T156: - | U156: - | V156: - | W156: - | X156: =SUMIFS(blades!$I$2:$I$10,blades!$A$2:$A$10,$O156)+SUMIFS(blades!$I$2:$I$10,blades!$A$2:$A$10,$P156)+SUMIFS(blades!$I$2:$I$10,blades!$A$2:$A$10,$Q156) -> 190 | Y156: =IF(K156="110V",IF(J156="No",VLOOKUP(Z156,blades!$A$14:$G$21,3,FALSE),VLOOKUP(Z156,blades!$A$14:$G$21,4,FALSE)),IF(J156="No",VLOOKUP(Z156,blades!$A$14:$G$21,5,FALSE),VLOOKUP(Z156,blades!$A$14:$G$21,6,FALSE)))-X156 -> 450 | Z156: 1 | AA156: M6100-3S | AB156: XCM8948 & XCM89UP | AC156: XCM8948 & XCM89UP | AD156: XCM8944 & XCM89P | AE156: One unit APS1000W
A157: 788No110V1 | B157: 3-slot (4U) | C157: Yes | D157: 128 | E157: 0 | F157: 4 | G157: 4 | H157: 80 | I157: 48 | J157: No | K157: 110V | L157: 440 | M157: - | N157: - | O157: 7 | P157: 8 | Q157: 8 | R157: - | S157: - | T157: - | U157: - | V157: - | W157: - | X157: =SUMIFS(blades!$I$2:$I$10,blades!$A$2:$A$10,$O157)+SUMIFS(blades!$I$2:$I$10,blades!$A$2:$A$10,$P157)+SUMIFS(blades!$I$2:$I$10,blades!$A$2:$A$10,$Q157) -> 200 | Y157: =IF(K157="110V",IF(J157="No",VLOOKUP(Z157,blades!$A$14:$G$21,3,FALSE),VLOOKUP(Z157,blades!$A$14:$G$21,4,FALSE)),IF(J157="No",VLOOKUP(Z157,blades!$A$14:$G$21,5,FALSE),VLOOKUP(Z157,blades!$A$14:$G$21,6,FALSE)))-X157 -> 440 | Z157: 1 | AA157: M6100-3S | AB157: XCM8948 & XCM89UP | AC157: XCM8944 & XCM89P | AD157: XCM8944 & XCM89P | AE157: One unit APS1000W
A158: 779No110V1 | B158: 3-slot (4U) | C158: Yes | D158: 136 | E158: 0 | F158: 2 | G158: 2 | H158: 0 | I158: 136 | J158: No | K158: 110V | L158: 450 | M158: - | N158: - | O158: 7 | P158: 7 | Q158: 9 | R158: - | S158: - | T158: - | U158: - | V158: - | W158: - | X158: =SUMIFS(blades!$I$2:$I$10,blades!$A$2:$A$10,$O158)+SUMIFS(blades!$I$2:$I$10,blades!$A$2:$A$10,$P158)+SUMIFS(blades!$I$2:$I$10,blades!$A$2:$A$10,$Q158) -> 190 | Y158: =IF(K158="110V",IF(J158="No",VLOOKUP(Z158,blades!$A$14:$G$21,3,FALSE),VLOOKUP(Z158,blades!$A$14:$G$21,4,FALSE)),IF(J158="No",VLOOKUP(Z158,blades!$A$14:$G$21,5,FALSE),VLOOKUP(Z158,blades!$A$14:$G$21,6,FALSE)))-X158 -> 450 | Z158: 1 | AA158: M6100-3S | AB158: XCM8948 & XCM89UP | AC158: XCM8948 & XCM89UP | AD158: XCM8944 & XCM89UP | AE158: One unit APS1000W
A159: 799No110V1 | B159: 3-slot (4U) | C159: Yes | D159: 128 | E159: 0 | F159: 4 | G159: 4 | H159: 0 | I159: 128 | J159: No | K159: 110V | L159: 440 | M159: - | N159: - | O159: 7 | P159: 9 | Q159: 9 | R159: - | S159: - | T159: - | U159: - | V159: - | W159: - | X159: =SUMIFS(blades!$I$2:$I$10,blades!$A$2:$A$10,$O159)+SUMIFS(blades!$I$2:$I$10,blades!$A$2:$A$10,$P159)+SUMIFS(blades!$I$2:$I$10,blades!$A$2:$A$10,$Q159) -> 200 | Y159: =IF(K159="110V",IF(J159="No",VLOOKUP(Z159,blades!$A$14:$G$21,3,FALSE),VLOOKUP(Z159,blades!$A$14:$G$21,4,FALSE)),IF(J159="No",VLOOKUP(Z159,blades!$A$14:$G$21,5,FALSE),VLOOKUP(Z159,blades!$A$14:$G$21,6,FALSE)))-X159 -> 440 | Z159: 1 | AA159: M6100-3S | AB159: XCM8948 & XCM89UP | AC159: XCM8944 & XCM89UP | AD159: XCM8944 & XCM89UP | AE159: One unit APS1000W
A160: 777No110V1 | B160: 3-slot (4U) | C160: Yes | D160: 144 | E160: 0 | F160: 0 | G160: 0 | H160: 0 | I160: 144 | J160: No | K160: 110V | L160: 460 | M160: - | N160: - | O160: 7 | P160: 7 | Q160: 7 | R160: - | S160: - | T160: - | U160: - | V160: - | W160: - | X160: =SUMIFS(blades!$I$2:$I$10,blades!$A$2:$A$10,$O160)+SUMIFS(blades!$I$2:$I$10,blades!$A$2:$A$10,$P160)+SUMIFS(blades!$I$2:$I$10,blades!$A$2:$A$10,$Q160) -> 180 | Y160: =IF(K160="110V",IF(J160="No",VLOOKUP(Z160,blades!$A$14:$G$21,3,FALSE),VLOOKUP(Z160,blades!$A$14:$G$21,4,FALSE)),IF(J160="No",VLOOKUP(Z160,blades!$A$14:$G$21,5,FALSE),VLOOKUP(Z160,blades!$A$14:$G$21,6,FALSE)))-X160 -> 460 | Z160: 1 | AA160: M6100-3S | AB160: XCM8948 & XCM89UP | AC160: XCM8948 & XCM89UP | AD160: XCM8948 & XCM89UP | AE160: One unit APS1000W
A161: 889No110V1 | B161: 3-slot (4U) | C161: Yes | D161: 120 | E161: 0 | F161: 6 | G161: 6 | H161: 80 | I161: 40 | J161: No | K161: 110V | L161: 430 | M161: - | N161: - | O161: 8 | P161: 8 | Q161: 9 | R161: - | S161: - | T161: - | U161: - | V161: - | W161: - | X161: =SUMIFS(blades!$I$2:$I$10,blades!$A$2:$A$10,$O161)+SUMIFS(blades!$I$2:$I$10,blades!$A$2:$A$10,$P161)+SUMIFS(blades!$I$2:$I$10,blades!$A$2:$A$10,$Q161) -> 210 | Y161: =IF(K161="110V",IF(J161="No",VLOOKUP(Z161,blades!$A$14:$G$21,3,FALSE),VLOOKUP(Z161,blades!$A$14:$G$21,4,FALSE)),IF(J161="No",VLOOKUP(Z161,blades!$A$14:$G$21,5,FALSE),VLOOKUP(Z161,blades!$A$14:$G$21,6,FALSE)))-X161 -> 430 | Z161: 1 | AA161: M6100-3S | AB161: XCM8944 & XCM89P | AC161: XCM8944 & XCM89P | AD161: XCM8944 & XCM89UP | AE161: One unit APS1000W
A162: 899No110V1 | B162: 3-slot (4U) | C162: Yes | D162: 120 | E162: 0 | F162: 6 | G162: 6 | H162: 40 | I162: 80 | J162: No | K162: 110V | L162: 430 | M162: - | N162: - | O162: 8 | P162: 9 | Q162: 9 | R162: - | S162: - | T162: - | U162: - | V162: - | W162: - | X162: =SUMIFS(blades!$I$2:$I$10,blades!$A$2:$A$10,$O162)+SUMIFS(blades!$I$2:$I$10,blades!$A$2:$A$10,$P162)+SUMIFS(blades!$I$2:$I$10,blades!$A$2:$A$10,$Q162) -> 210 | Y162: =IF(K162="110V",IF(J162="No",VLOOKUP(Z162,blades!$A$14:$G$21,3,FALSE),VLOOKUP(Z162,blades!$A$14:$G$21,4,FALSE)),IF(J162="No",VLOOKUP(Z162,blades!$A$14:$G$21,5,FALSE),VLOOKUP(Z162,blades!$A$14:$G$21,6,FALSE)))-X162 -> 430 | Z162: 1 | AA162: M6100-3S | AB162: XCM8944 & XCM89P | AC162: XCM8944 & XCM89UP | AD162: XCM8944 & XCM89UP | AE162: One unit APS1000W
A163: 888No110V1 | B163: 3-slot (4U) | C163: Yes | D163: 120 | E163: 0 | F163: 6 | G163: 6 | H163: 120 | I163: 0 | J163: No | K163: 110V | L163: 430 | M163: - | N163: - | O163: 8 | P163: 8 | Q163: 8 | R163: - | S163: - | T163: - | U163: - | V163: - | W163: - | X163: =SUMIFS(blades!$I$2:$I$10,blades!$A$2:$A$10,$O163)+SUMIFS(blades!$I$2:$I$10,blades!$A$2:$A$10,$P163)+SUMIFS(blades!$I$2:$I$10,blades!$A$2:$A$10,$Q163) -> 210 | Y163: =IF(K163="110V",IF(J163="No",VLOOKUP(Z163,blades!$A$14:$G$21,3,FALSE),VLOOKUP(Z163,blades!$A$14:$G$21,4,FALSE)),IF(J163="No",VLOOKUP(Z163,blades!$A$14:$G$21,5,FALSE),VLOOKUP(Z163,blades!$A$14:$G$21,6,FALSE)))-X163 -> 430 | Z163: 1 | AA163: M6100-3S | AB163: XCM8944 & XCM89P | AC163: XCM8944 & XCM89P | AD163: XCM8944 & XCM89P | AE163: One unit APS1000W
A164: 999No110V1 | B164: 3-slot (4U) | C164: Yes | D164: 120 | E164: 0 | F164: 6 | G164: 6 | H164: 0 | I164: 120 | J164: No | K164: 110V | L164: 430 | M164: - | N164: - | O164: 9 | P164: 9 | Q164: 9 | R164: - | S164: - | T164: - | U164: - | V164: - | W164: - | X164: =SUMIFS(blades!$I$2:$I$10,blades!$A$2:$A$10,$O164)+SUMIFS(blades!$I$2:$I$10,blades!$A$2:$A$10,$P164)+SUMIFS(blades!$I$2:$I$10,blades!$A$2:$A$10,$Q164) -> 210 | Y164: =IF(K164="110V",IF(J164="No",VLOOKUP(Z164,blades!$A$14:$G$21,3,FALSE),VLOOKUP(Z164,blades!$A$14:$G$21,4,FALSE)),IF(J164="No",VLOOKUP(Z164,blades!$A$14:$G$21,5,FALSE),VLOOKUP(Z164,blades!$A$14:$G$21,6,FALSE)))-X164 -> 430 | Z164: 1 | AA164: M6100-3S | AB164: XCM8944 & XCM89UP | AC164: XCM8944 & XCM89UP | AD164: XCM8944 & XCM89UP | AE164: One unit APS1000W
A165: 555Yes110V1 | B165: 3-slot (4U) | C165: Yes | D165: 0 | E165: 0 | F165: 0 | G165: 0 | H165: 0 | I165: 0 | J165: Yes | K165: 110V | L165: 0 | M165: - | N165: - | O165: 5 | P165: 5 | Q165: 5 | R165: - | S165: - | T165: - | U165: - | V165: - | W165: - | X165: =SUMIFS(blades!$I$2:$I$10,blades!$A$2:$A$10,$O165)+SUMIFS(blades!$I$2:$I$10,blades!$A$2:$A$10,$P165)+SUMIFS(blades!$I$2:$I$10,blades!$A$2:$A$10,$Q165) -> 0 | Y165: =IF(K165="110V",IF(J165="No",VLOOKUP(Z165,blades!$A$14:$G$21,3,FALSE),VLOOKUP(Z165,blades!$A$14:$G$21,4,FALSE)),IF(J165="No",VLOOKUP(Z165,blades!$A$14:$G$21,5,FALSE),VLOOKUP(Z165,blades!$A$14:$G$21,6,FALSE)))-X165 -> 0 | Z165: 1 | AA165: M6100-3S | AB165: Empty | AC165: Empty | AD165: Empty | AE165: One unit APS1000W
A166: 123No220V1 | B166: 3-slot (4U) | C166: Yes | D166: 88 | E166: 40 | F166: 4 | G166: 4 | H166: 0 | I166: 0 | J166: No | K166: 220V | L166: 630 | M166: - | N166: - | O166: 1 | P166: 2 | Q166: 3 | R166: - | S166: - | T166: - | U166: - | V166: - | W166: - | X166: =SUMIFS(blades!$I$2:$I$10,blades!$A$2:$A$10,$O166)+SUMIFS(blades!$I$2:$I$10,blades!$A$2:$A$10,$P166)+SUMIFS(blades!$I$2:$I$10,blades!$A$2:$A$10,$Q166) -> 280 | Y166: =IF(K166="110V",IF(J166="No",VLOOKUP(Z166,blades!$A$14:$G$21,3,FALSE),VLOOKUP(Z166,blades!$A$14:$G$21,4,FALSE)),IF(J166="No",VLOOKUP(Z166,blades!$A$14:$G$21,5,FALSE),VLOOKUP(Z166,blades!$A$14:$G$21,6,FALSE)))-X166 -> 630 | Z166: 1 | AA166: M6100-3S | AB166: XCM8948 | AC166: XCM8944 | AD166: XCM8944F | AE166: One unit APS1000W
A167: 124No220V1 | B167: 3-slot (4U) | C167: Yes | D167: 88 | E167: 0 | F167: 26 | G167: 18 | H167: 0 | I167: 0 | J167: No | K167: 220V | L167: 580 | M167: - | N167: - | O167: 1 | P167: 2 | Q167: 4 | R167: - | S167: - | T167: - | U167: - | V167: - | W167: - | X167: =SUMIFS(blades!$I$2:$I$10,blades!$A$2:$A$10,$O167)+SUMIFS(blades!$I$2:$I$10,blades!$A$2:$A$10,$P167)+SUMIFS(blades!$I$2:$I$10,blades!$A$2:$A$10,$Q167) -> 330 | Y167: =IF(K167="110V",IF(J167="No",VLOOKUP(Z167,blades!$A$14:$G$21,3,FALSE),VLOOKUP(Z167,blades!$A$14:$G$21,4,FALSE)),IF(J167="No",VLOOKUP(Z167,blades!$A$14:$G$21,5,FALSE),VLOOKUP(Z167,blades!$A$14:$G$21,6,FALSE)))-X167 -> 580 | Z167: 1 | AA167: M6100-3S | AB167: XCM8948 | AC167: XCM8944 | AD167: XCM8924X | AE167: One unit APS1000W
A168: 125No220V1 | B168: 3-slot (4U) | C168: Yes | D168: 88 | E168: 0 | F168: 2 | G168: 2 | H168: 0 | I168: 0 | J168: No | K168: 220V | L168: 780 | M168: - | N168: - | O168: 1 | P168: 2 | Q168: 5 | R168: - | S168: - | T168: - | U168: - | V168: - | W168: - | X168: =SUMIFS(blades!$I$2:$I$10,blades!$A$2:$A$10,$O168)+SUMIFS(blades!$I$2:$I$10,blades!$A$2:$A$10,$P168)+SUMIFS(blades!$I$2:$I$10,blades!$A$2:$A$10,$Q168) -> 130 | Y168: =IF(K168="110V",IF(J168="No",VLOOKUP(Z168,blades!$A$14:$G$21,3,FALSE),VLOOKUP(Z168,blades!$A$14:$G$21,4,FALSE)),IF(J168="No",VLOOKUP(Z168,blades!$A$14:$G$21,5,FALSE),VLOOKUP(Z168,blades!$A$14:$G$21,6,FALSE)))-X168 -> 780 | Z168: 1 | AA168: M6100-3S | AB168: XCM8948 | AC168: XCM8944 | AD168: Empty | AE168: One unit APS1000W
A169: 126No220V1 | B169: 3-slot (4U) | C169: Yes | D169: 136 | E169: 0 | F169: 2 | G169: 2 | H169: 48 | I169: 0 | J169: No | K169: 220V | L169: 720 | M169: - | N169: - | O169: 1 | P169: 2 | Q169: 6 | R169: - | S169: - | T169: - | U169: - | V169: - | W169: - | X169: =SUMIFS(blades!$I$2:$I$10,blades!$A$2:$A$10,$O169)+SUMIFS(blades!$I$2:$I$10,blades!$A$2:$A$10,$P169)+SUMIFS(blades!$I$2:$I$10,blades!$A$2:$A$10,$Q169) -> 190 | Y169: =IF(K169="110V",IF(J169="No",VLOOKUP(Z169,blades!$A$14:$G$21,3,FALSE),VLOOKUP(Z169,blades!$A$14:$G$21,4,FALSE)),IF(J169="No",VLOOKUP(Z169,blades!$A$14:$G$21,5,FALSE),VLOOKUP(Z169,blades!$A$14:$G$21,6,FALSE)))-X169 -> 720 | Z169: 1 | AA169: M6100-3S | AB169: XCM8948 | AC169: XCM8944 | AD169: XCM8948 & XCM89P | AE169: One unit APS1000W
A170: 127No220V1 | B170: 3-slot (4U) | C170: Yes | D170: 136 | E170: 0 | F170: 2 | G170: 2 | H170: 0 | I170: 48 | J170: No | K170: 220V | L170: 720 | M170: - | N170: - | O170: 1 | P170: 2 | Q170: 7 | R170: - | S170: - | T170: - | U170: - | V170: - | W170: - | X170: =SUMIFS(blades!$I$2:$I$10,blades!$A$2:$A$10,$O170)+SUMIFS(blades!$I$2:$I$10,blades!$A$2:$A$10,$P170)+SUMIFS(blades!$I$2:$I$10,blades!$A$2:$A$10,$Q170) -> 190 | Y170: =IF(K170="110V",IF(J170="No",VLOOKUP(Z170,blades!$A$14:$G$21,3,FALSE),VLOOKUP(Z170,blades!$A$14:$G$21,4,FALSE)),IF(J170="No",VLOOKUP(Z170,blades!$A$14:$G$21,5,FALSE),VLOOKUP(Z170,blades!$A$14:$G$21,6,FALSE)))-X170 -> 720 | Z170: 1 | AA170: M6100-3S | AB170: XCM8948 | AC170: XCM8944 | AD170: XCM8948 & XCM89UP | AE170: One unit APS1000W
A171: 128No220V1 | B171: 3-slot (4U) | C171: Yes | D171: 128 | E171: 0 | F171: 4 | G171: 4 | H171: 40 | I171: 0 | J171: No | K171: 220V | L171: 710 | M171: - | N171: - | O171: 1 | P171: 2 | Q171: 8 | R171: - | S171: - | T171: - | U171: - | V171: - | W171: - | X171: =SUMIFS(blades!$I$2:$I$10,blades!$A$2:$A$10,$O171)+SUMIFS(blades!$I$2:$I$10,blades!$A$2:$A$10,$P171)+SUMIFS(blades!$I$2:$I$10,blades!$A$2:$A$10,$Q171) -> 200 | Y171: =IF(K171="110V",IF(J171="No",VLOOKUP(Z171,blades!$A$14:$G$21,3,FALSE),VLOOKUP(Z171,blades!$A$14:$G$21,4,FALSE)),IF(J171="No",VLOOKUP(Z171,blades!$A$14:$G$21,5,FALSE),VLOOKUP(Z171,blades!$A$14:$G$21,6,FALSE)))-X171 -> 710 | Z171: 1 | AA171: M6100-3S | AB171: XCM8948 | AC171: XCM8944 | AD171: XCM8944 & XCM89P | AE171: One unit APS1000W
A172: 129No220V1 | B172: 3-slot (4U) | C172: Yes | D172: 128 | E172: 0 | F172: 4 | G172: 4 | H172: 0 | I172: 40 | J172: No | K172: 220V | L172: 710 | M172: - | N172: - | O172: 1 | P172: 2 | Q172: 9 | R172: - | S172: - | T172: - | U172: - | V172: - | W172: - | X172: =SUMIFS(blades!$I$2:$I$10,blades!$A$2:$A$10,$O172)+SUMIFS(blades!$I$2:$I$10,blades!$A$2:$A$10,$P172)+SUMIFS(blades!$I$2:$I$10,blades!$A$2:$A$10,$Q172) -> 200 | Y172: =IF(K172="110V",IF(J172="No",VLOOKUP(Z172,blades!$A$14:$G$21,3,FALSE),VLOOKUP(Z172,blades!$A$14:$G$21,4,FALSE)),IF(J172="No",VLOOKUP(Z172,blades!$A$14:$G$21,5,FALSE),VLOOKUP(Z172,blades!$A$14:$G$21,6,FALSE)))-X172 -> 710 | Z172: 1 | AA172: M6100-3S | AB172: XCM8948 | AC172: XCM8944 | AD172: XCM8944 & XCM89UP | AE172: One unit APS1000W
A173: 112No220V1 | B173: 3-slot (4U) | C173: Yes | D173: 136 | E173: 0 | F173: 2 | G173: 2 | H173: 0 | I173: 0 | J173: No | K173: 220V | L173: 720 | M173: - | N173: - | O173: 1 | P173: 1 | Q173: 2 | R173: - | S173: - | T173: - | U173: - | V173: - | W173: - | X173: =SUMIFS(blades!$I$2:$I$10,blades!$A$2:$A$10,$O173)+SUMIFS(blades!$I$2:$I$10,blades!$A$2:$A$10,$P173)+SUMIFS(blades!$I$2:$I$10,blades!$A$2:$A$10,$Q173) -> 190 | Y173: =IF(K173="110V",IF(J173="No",VLOOKUP(Z173,blades!$A$14:$G$21,3,FALSE),VLOOKUP(Z173,blades!$A$14:$G$21,4,FALSE)),IF(J173="No",VLOOKUP(Z173,blades!$A$14:$G$21,5,FALSE),VLOOKUP(Z173,blades!$A$14:$G$21,6,FALSE)))-X173 -> 720 | Z173: 1 | AA173: M6100-3S | AB173: XCM8948 | AC173: XCM8948 | AD173: XCM8944 | AE173: One unit APS1000W
A174: 122No220V1 | B174: 3-slot (4U) | C174: Yes | D174: 128 | E174: 0 | F174: 4 | G174: 4 | H174: 0 | I174: 0 | J174: No | K174: 220V | L174: 710 | M174: - | N174: - | O174: 1 | P174: 2 | Q174: 2 | R174: - | S174: - | T174: - | U174: - | V174: - | W174: - | X174: =SUMIFS(blades!$I$2:$I$10,blades!$A$2:$A$10,$O174)+SUMIFS(blades!$I$2:$I$10,blades!$A$2:$A$10,$P174)+SUMIFS(blades!$I$2:$I$10,blades!$A$2:$A$10,$Q174) -> 200 | Y174: =IF(K174="110V",IF(J174="No",VLOOKUP(Z174,blades!$A$14:$G$21,3,FALSE),VLOOKUP(Z174,blades!$A$14:$G$21,4,FALSE)),IF(J174="No",VLOOKUP(Z174,blades!$A$14:$G$21,5,FALSE),VLOOKUP(Z174,blades!$A$14:$G$21,6,FALSE)))-X174 -> 710 | Z174: 1 | AA174: M6100-3S | AB174: XCM8948 | AC174: XCM8944 | AD174: XCM8944 | AE174: One unit APS1000W
A175: 134No220V1 | B175: 3-slot (4U) | C175: Yes | D175: 48 | E175: 40 | F175: 26 | G175: 18 | H175: 0 | I175: 0 | J175: No | K175: 220V | L175: 500 | M175: - | N175: - | O175: 1 | P175: 3 | Q175: 4 | R175: - | S175: - | T175: - | U175: - | V175: - | W175: - | X175: =SUMIFS(blades!$I$2:$I$10,blades!$A$2:$A$10,$O175)+SUMIFS(blades!$I$2:$I$10,blades!$A$2:$A$10,$P175)+SUMIFS(blades!$I$2:$I$10,blades!$A$2:$A$10,$Q175) -> 410 | Y175: =IF(K175="110V",IF(J175="No",VLOOKUP(Z175,blades!$A$14:$G$21,3,FALSE),VLOOKUP(Z175,blades!$A$14:$G$21,4,FALSE)),IF(J175="No",VLOOKUP(Z175,blades!$A$14:$G$21,5,FALSE),VLOOKUP(Z175,blades!$A$14:$G$21,6,FALSE)))-X175 -> 500 | Z175: 1 | AA175: M6100-3S | AB175: XCM8948 | AC175: XCM8944F | AD175: XCM8924X | AE175: One unit APS1000W
A176: 135No220V1 | B176: 3-slot (4U) | C176: Yes | D176: 48 | E176: 40 | F176: 2 | G176: 2 | H176: 0 | I176: 0 | J176: No | K176: 220V | L176: 700 | M176: - | N176: - | O176: 1 | P176: 3 | Q176: 5 | R176: - | S176: - | T176: - | U176: - | V176: - | W176: - | X176: =SUMIFS(blades!$I$2:$I$10,blades!$A$2:$A$10,$O176)+SUMIFS(blades!$I$2:$I$10,blades!$A$2:$A$10,$P176)+SUMIFS(blades!$I$2:$I$10,blades!$A$2:$A$10,$Q176) -> 210 | Y176: =IF(K176="110V",IF(J176="No",VLOOKUP(Z176,blades!$A$14:$G$21,3,FALSE),VLOOKUP(Z176,blades!$A$14:$G$21,4,FALSE)),IF(J176="No",VLOOKUP(Z176,blades!$A$14:$G$21,5,FALSE),VLOOKUP(Z176,blades!$A$14:$G$21,6,FALSE)))-X176 -> 700 | Z176: 1 | AA176: M6100-3S | AB176: XCM8948 | AC176: XCM8944F | AD176: Empty | AE176: One unit APS1000W
A177: 136No220V1 | B177: 3-slot (4U) | C177: Yes | D177: 96 | E177: 40 | F177: 2 | G177: 2 | H177: 48 | I177: 0 | J177: No | K177: 220V | L177: 640 | M177: - | N177: - | O177: 1 | P177: 3 | Q177: 6 | R177: - | S177: - | T177: - | U177: - | V177: - | W177: - | X177: =SUMIFS(blades!$I$2:$I$10,blades!$A$2:$A$10,$O177)+SUMIFS(blades!$I$2:$I$10,blades!$A$2:$A$10,$P177)+SUMIFS(blades!$I$2:$I$10,blades!$A$2:$A$10,$Q177) -> 270 | Y177: =IF(K177="110V",IF(J177="No",VLOOKUP(Z177,blades!$A$14:$G$21,3,FALSE),VLOOKUP(Z177,blades!$A$14:$G$21,4,FALSE)),IF(J177="No",VLOOKUP(Z177,blades!$A$14:$G$21,5,FALSE),VLOOKUP(Z177,blades!$A$14:$G$21,6,FALSE)))-X177 -> 640 | Z177: 1 | AA177: M6100-3S | AB177: XCM8948 | AC177: XCM8944F | AD177: XCM8948 & XCM89P | AE177: One unit APS1000W
A178: 137No220V1 | B178: 3-slot (4U) | C178: Yes | D178: 96 | E178: 40 | F178: 2 | G178: 2 | H178: 0 | I178: 48 | J178: No | K178: 220V | L178: 640 | M178: - | N178: - | O178: 1 | P178: 3 | Q178: 7 | R178: - | S178: - | T178: - | U178: - | V178: - | W178: - | X178: =SUMIFS(blades!$I$2:$I$10,blades!$A$2:$A$10,$O178)+SUMIFS(blades!$I$2:$I$10,blades!$A$2:$A$10,$P178)+SUMIFS(blades!$I$2:$I$10,blades!$A$2:$A$10,$Q178) -> 270 | Y178: =IF(K178="110V",IF(J178="No",VLOOKUP(Z178,blades!$A$14:$G$21,3,FALSE),VLOOKUP(Z178,blades!$A$14:$G$21,4,FALSE)),IF(J178="No",VLOOKUP(Z178,blades!$A$14:$G$21,5,FALSE),VLOOKUP(Z178,blades!$A$14:$G$21,6,FALSE)))-X178 -> 640 | Z178: 1 | AA178: M6100-3S | AB178: XCM8948 | AC178: XCM8944F | AD178: XCM8948 & XCM89UP | AE178: One unit APS1000W
A179: 138No220V1 | B179: 3-slot (4U) | C179: Yes | D179: 88 | E179: 40 | F179: 4 | G179: 4 | H179: 40 | I179: 0 | J179: No | K179: 220V | L179: 630 | M179: - | N179: - | O179: 1 | P179: 3 | Q179: 8 | R179: - | S179: - | T179: - | U179: - | V179: - | W179: - | X179: =SUMIFS(blades!$I$2:$I$10,blades!$A$2:$A$10,$O179)+SUMIFS(blades!$I$2:$I$10,blades!$A$2:$A$10,$P179)+SUMIFS(blades!$I$2:$I$10,blades!$A$2:$A$10,$Q179) -> 280 | Y179: =IF(K179="110V",IF(J179="No",VLOOKUP(Z179,blades!$A$14:$G$21,3,FALSE),VLOOKUP(Z179,blades!$A$14:$G$21,4,FALSE)),IF(J179="No",VLOOKUP(Z179,blades!$A$14:$G$21,5,FALSE),VLOOKUP(Z179,blades!$A$14:$G$21,6,FALSE)))-X179 -> 630 | Z179: 1 | AA179: M6100-3S | AB179: XCM8948 | AC179: XCM8944F | AD179: XCM8944 & XCM89P | AE179: One unit APS1000W
A180: 139No220V1 | B180: 3-slot (4U) | C180: Yes | D180: 88 | E180: 40 | F180: 4 | G180: 4 | H180: 0 | I180: 40 | J180: No | K180: 220V | L180: 630 | M180: - | N180: - | O180: 1 | P180: 3 | Q180: 9 | R180: - | S180: - | T180: - | U180: - | V180: - | W180: - | X180: =SUMIFS(blades!$I$2:$I$10,blades!$A$2:$A$10,$O180)+SUMIFS(blades!$I$2:$I$10,blades!$A$2:$A$10,$P180)+SUMIFS(blades!$I$2:$I$10,blades!$A$2:$A$10,$Q180) -> 280 | Y180: =IF(K180="110V",IF(J180="No",VLOOKUP(Z180,blades!$A$14:$G$21,3,FALSE),VLOOKUP(Z180,blades!$A$14:$G$21,4,FALSE)),IF(J180="No",VLOOKUP(Z180,blades!$A$14:$G$21,5,FALSE),VLOOKUP(Z180,blades!$A$14:$G$21,6,FALSE)))-X180 -> 630 | Z180: 1 | AA180: M6100-3S | AB180: XCM8948 | AC180: XCM8944F | AD180: XCM8944 & XCM89UP | AE180: One unit APS1000W
A181: 113No220V1 | B181: 3-slot (4U) | C181: Yes | D181: 96 | E181: 40 | F181: 2 | G181: 2 | H181: 0 | I181: 0 | J181: No | K181: 220V | L181: 640 | M181: - | N181: - | O181: 1 | P181: 1 | Q181: 3 | R181: - | S181: - | T181: - | U181: - | V181: - | W181: - | X181: =SUMIFS(blades!$I$2:$I$10,blades!$A$2:$A$10,$O181)+SUMIFS(blades!$I$2:$I$10,blades!$A$2:$A$10,$P181)+SUMIFS(blades!$I$2:$I$10,blades!$A$2:$A$10,$Q181) -> 270 | Y181: =IF(K181="110V",IF(J181="No",VLOOKUP(Z181,blades!$A$14:$G$21,3,FALSE),VLOOKUP(Z181,blades!$A$14:$G$21,4,FALSE)),IF(J181="No",VLOOKUP(Z181,blades!$A$14:$G$21,5,FALSE),VLOOKUP(Z181,blades!$A$14:$G$21,6,FALSE)))-X181 -> 640 | Z181: 1 | AA181: M6100-3S | AB181: XCM8948 | AC181: XCM8948 | AD181: XCM8944F | AE181: One unit APS1000W
A182: 133No220V1 | B182: 3-slot (4U) | C182: Yes | D182: 48 | E182: 80 | F182: 4 | G182: 4 | H182: 0 | I182: 0 | J182: No | K182: 220V | L182: 550 | M182: - | N182: - | O182: 1 | P182: 3 | Q182: 3 | R182: - | S182: - | T182: - | U182: - | V182: - | W182: - | X182: =SUMIFS(blades!$I$2:$I$10,blades!$A$2:$A$10,$O182)+SUMIFS(blades!$I$2:$I$10,blades!$A$2:$A$10,$P182)+SUMIFS(blades!$I$2:$I$10,blades!$A$2:$A$10,$Q182) -> 360 | Y182: =IF(K182="110V",IF(J182="No",VLOOKUP(Z182,blades!$A$14:$G$21,3,FALSE),VLOOKUP(Z182,blades!$A$14:$G$21,4,FALSE)),IF(J182="No",VLOOKUP(Z182,blades!$A$14:$G$21,5,FALSE),VLOOKUP(Z182,blades!$A$14:$G$21,6,FALSE)))-X182 -> 550 | Z182: 1 | AA182: M6100-3S | AB182: XCM8948 | AC182: XCM8944F | AD182: XCM8944F | AE182: One unit APS1000W
A183: 145No220V1 | B183: 3-slot (4U) | C183: Yes | D183: 48 | E183: 0 | F183: 24 | G183: 16 | H183: 0 | I183: 0 | J183: No | K183: 220V | L183: 650 | M183: - | N183: - | O183: 1 | P183: 4 | Q183: 5 | R183: - | S183: - | T183: - | U183: - | V183: - | W183: - | X183: =SUMIFS(blades!$I$2:$I$10,blades!$A$2:$A$10,$O183)+SUMIFS(blades!$I$2:$I$10,blades!$A$2:$A$10,$P183)+SUMIFS(blades!$I$2:$I$10,blades!$A$2:$A$10,$Q183) -> 260 | Y183: =IF(K183="110V",IF(J183="No",VLOOKUP(Z183,blades!$A$14:$G$21,3,FALSE),VLOOKUP(Z183,blades!$A$14:$G$21,4,FALSE)),IF(J183="No",VLOOKUP(Z183,blades!$A$14:$G$21,5,FALSE),VLOOKUP(Z183,blades!$A$14:$G$21,6,FALSE)))-X183 -> 650 | Z183: 1 | AA183: M6100-3S | AB183: XCM8948 | AC183: XCM8924X | AD183: Empty | AE183: One unit APS1000W
A184: 146No220V1 | B184: 3-slot (4U) | C184: Yes | D184: 96 | E184: 0 | F184: 24 | G184: 16 | H184: 48 | I184: 0 | J184: No | K184: 220V | L184: 590 | M184: - | N184: - | O184: 1 | P184: 4 | Q184: 6 | R184: - | S184: - | T184: - | U184: - | V184: - | W184: - | X184: =SUMIFS(blades!$I$2:$I$10,blades!$A$2:$A$10,$O184)+SUMIFS(blades!$I$2:$I$10,blades!$A$2:$A$10,$P184)+SUMIFS(blades!$I$2:$I$10,blades!$A$2:$A$10,$Q184) -> 320 | Y184: =IF(K184="110V",IF(J184="No",VLOOKUP(Z184,blades!$A$14:$G$21,3,FALSE),VLOOKUP(Z184,blades!$A$14:$G$21,4,FALSE)),IF(J184="No",VLOOKUP(Z184,blades!$A$14:$G$21,5,FALSE),VLOOKUP(Z184,blades!$A$14:$G$21,6,FALSE)))-X184 -> 590 | Z184: 1 | AA184: M6100-3S | AB184: XCM8948 | AC184: XCM8924X | AD184: XCM8948 & XCM89P | AE184: One unit APS1000W
A185: 147No220V1 | B185: 3-slot (4U) | C185: Yes | D185: 96 | E185: 0 | F185: 24 | G185: 16 | H185: 0 | I185: 48 | J185: No | K185: 220V | L185: 590 | M185: - | N185: - | O185: 1 | P185: 4 | Q185: 7 | R185: - | S185: - | T185: - | U185: - | V185: - | W185: - | X185: =SUMIFS(blades!$I$2:$I$10,blades!$A$2:$A$10,$O185)+SUMIFS(blades!$I$2:$I$10,blades!$A$2:$A$10,$P185)+SUMIFS(blades!$I$2:$I$10,blades!$A$2:$A$10,$Q185) -> 320 | Y185: =IF(K185="110V",IF(J185="No",VLOOKUP(Z185,blades!$A$14:$G$21,3,FALSE),VLOOKUP(Z185,blades!$A$14:$G$21,4,FALSE)),IF(J185="No",VLOOKUP(Z185,blades!$A$14:$G$21,5,FALSE),VLOOKUP(Z185,blades!$A$14:$G$21,6,FALSE)))-X185 -> 590 | Z185: 1 | AA185: M6100-3S | AB185: XCM8948 | AC185: XCM8924X | AD185: XCM8948 & XCM89UP | AE185: One unit APS1000W
A186: 148No220V1 | B186: 3-slot (4U) | C186: Yes | D186: 88 | E186: 0 | F186: 26 | G186: 18 | H186: 40 | I186: 0 | J186: No | K186: 220V | L186: 580 | M186: - | N186: - | O186: 1 | P186: 4 | Q186: 8 | R186: - | S186: - | T186: - | U186: - | V186: - | W186: - | X186: =SUMIFS(blades!$I$2:$I$10,blades!$A$2:$A$10,$O186)+SUMIFS(blades!$I$2:$I$10,blades!$A$2:$A$10,$P186)+SUMIFS(blades!$I$2:$I$10,blades!$A$2:$A$10,$Q186) -> 330 | Y186: =IF(K186="110V",IF(J186="No",VLOOKUP(Z186,blades!$A$14:$G$21,3,FALSE),VLOOKUP(Z186,blades!$A$14:$G$21,4,FALSE)),IF(J186="No",VLOOKUP(Z186,blades!$A$14:$G$21,5,FALSE),VLOOKUP(Z186,blades!$A$14:$G$21,6,FALSE)))-X186 -> 580 | Z186: 1 | AA186: M6100-3S | AB186: XCM8948 | AC186: XCM8924X | AD186: XCM8944 & XCM89P | AE186: One unit APS1000W
A187: 149No220V1 | B187: 3-slot (4U) | C187: Yes | D187: 88 | E187: 0 | F187: 26 | G187: 18 | H187: 0 | I187: 40 | J187: No | K187: 220V | L187: 580 | M187: - | N187: - | O187: 1 | P187: 4 | Q187: 9 | R187: - | S187: - | T187: - | U187: - | V187: - | W187: - | X187: =SUMIFS(blades!$I$2:$I$10,blades!$A$2:$A$10,$O187)+SUMIFS(blades!$I$2:$I$10,blades!$A$2:$A$10,$P187)+SUMIFS(blades!$I$2:$I$10,blades!$A$2:$A$10,$Q187) -> 330 | Y187: =IF(K187="110V",IF(J187="No",VLOOKUP(Z187,blades!$A$14:$G$21,3,FALSE),VLOOKUP(Z187,blades!$A$14:$G$21,4,FALSE)),IF(J187="No",VLOOKUP(Z187,blades!$A$14:$G$21,5,FALSE),VLOOKUP(Z187,blades!$A$14:$G$21,6,FALSE)))-X187 -> 580 | Z187: 1 | AA187: M6100-3S | AB187: XCM8948 | AC187: XCM8924X | AD187: XCM8944 & XCM89UP | AE187: One unit APS1000W
A188: 114No220V1 | B188: 3-slot (4U) | C188: Yes | D188: 96 | E188: 0 | F188: 24 | G188: 16 | H188: 0 | I188: 0 | J188: No | K188: 220V | L188: 590 | M188: - | N188: - | O188: 1 | P188: 1 | Q188: 4 | R188: - | S188: - | T188: - | U188: - | V188: - | W188: - | X188: =SUMIFS(blades!$I$2:$I$10,blades!$A$2:$A$10,$O188)+SUMIFS(blades!$I$2:$I$10,blades!$A$2:$A$10,$P188)+SUMIFS(blades!$I$2:$I$10,blades!$A$2:$A$10,$Q188) -> 320 | Y188: =IF(K188="110V",IF(J188="No",VLOOKUP(Z188,blades!$A$14:$G$21,3,FALSE),VLOOKUP(Z188,blades!$A$14:$G$21,4,FALSE)),IF(J188="No",VLOOKUP(Z188,blades!$A$14:$G$21,5,FALSE),VLOOKUP(Z188,blades!$A$14:$G$21,6,FALSE)))-X188 -> 590 | Z188: 1 | AA188: M6100-3S | AB188: XCM8948 | AC188: XCM8948 | AD188: XCM8924X | AE188: One unit APS1000W
A189: 144No220V1 | B189: 3-slot (4U) | C189: Yes | D189: 48 | E189: 0 | F189: 48 | G189: 32 | H189: 0 | I189: 0 | J189: No | K189: 220V | L189: 450 | M189: - | N189: - | O189: 1 | P189: 4 | Q189: 4 | R189: - | S189: - | T189: - | U189: - | V189: - | W189: - | X189: =SUMIFS(blades!$I$2:$I$10,blades!$A$2:$A$10,$O189)+SUMIFS(blades!$I$2:$I$10,blades!$A$2:$A$10,$P189)+SUMIFS(blades!$I$2:$I$10,blades!$A$2:$A$10,$Q189) -> 460 | Y189: =IF(K189="110V",IF(J189="No",VLOOKUP(Z189,blades!$A$14:$G$21,3,FALSE),VLOOKUP(Z189,blades!$A$14:$G$21,4,FALSE)),IF(J189="No",VLOOKUP(Z189,blades!$A$14:$G$21,5,FALSE),VLOOKUP(Z189,blades!$A$14:$G$21,6,FALSE)))-X189 -> 450 | Z189: 1 | AA189: M6100-3S | AB189: XCM8948 | AC189: XCM8924X | AD189: XCM8924X | AE189: One unit APS1000W
A190: 156No220V1 | B190: 3-slot (4U) | C190: Yes | D190: 96 | E190: 0 | F190: 0 | G190: 0 | H190: 48 | I190: 0 | J190: No | K190: 220V | L190: 790 | M190: - | N190: - | O190: 1 | P190: 5 | Q190: 6 | R190: - | S190: - | T190: - | U190: - | V190: - | W190: - | X190: =SUMIFS(blades!$I$2:$I$10,blades!$A$2:$A$10,$O190)+SUMIFS(blades!$I$2:$I$10,blades!$A$2:$A$10,$P190)+SUMIFS(blades!$I$2:$I$10,blades!$A$2:$A$10,$Q190) -> 120 | Y190: =IF(K190="110V",IF(J190="No",VLOOKUP(Z190,blades!$A$14:$G$21,3,FALSE),VLOOKUP(Z190,blades!$A$14:$G$21,4,FALSE)),IF(J190="No",VLOOKUP(Z190,blades!$A$14:$G$21,5,FALSE),VLOOKUP(Z190,blades!$A$14:$G$21,6,FALSE)))-X190 -> 790 | Z190: 1 | AA190: M6100-3S | AB190: XCM8948 | AC190: Empty | AD190: XCM8948 & XCM89P | AE190: One unit APS1000W
A191: 157No220V1 | B191: 3-slot (4U) | C191: Yes | D191: 96 | E191: 0 | F191: 0 | G191: 0 | H191: 0 | I191: 48 | J191: No | K191: 220V | L191: 790 | M191: - | N191: - | O191: 1 | P191: 5 | Q191: 7 | R191: - | S191: - | T191: - | U191: - | V191: - | W191: - | X191: =SUMIFS(blades!$I$2:$I$10,blades!$A$2:$A$10,$O191)+SUMIFS(blades!$I$2:$I$10,blades!$A$2:$A$10,$P191)+SUMIFS(blades!$I$2:$I$10,blades!$A$2:$A$10,$Q191) -> 120 | Y191: =IF(K191="110V",IF(J191="No",VLOOKUP(Z191,blades!$A$14:$G$21,3,FALSE),VLOOKUP(Z191,blades!$A$14:$G$21,4,FALSE)),IF(J191="No",VLOOKUP(Z191,blades!$A$14:$G$21,5,FALSE),VLOOKUP(Z191,blades!$A$14:$G$21,6,FALSE)))-X191 -> 790 | Z191: 1 | AA191: M6100-3S | AB191: XCM8948 | AC191: Empty | AD191: XCM8948 & XCM89UP | AE191: One unit APS1000W
A192: 158No220V1 | B192: 3-slot (4U) | C192: Yes | D192: 88 | E192: 0 | F192: 2 | G192: 2 | H192: 40 | I192: 0 | J192: No | K192: 220V | L192: 780 | M192: - | N192: - | O192: 1 | P192: 5 | Q192: 8 | R192: - | S192: - | T192: - | U192: - | V192: - | W192: - | X192: =SUMIFS(blades!$I$2:$I$10,blades!$A$2:$A$10,$O192)+SUMIFS(blades!$I$2:$I$10,blades!$A$2:$A$10,$P192)+SUMIFS(blades!$I$2:$I$10,blades!$A$2:$A$10,$Q192) -> 130 | Y192: =IF(K192="110V",IF(J192="No",VLOOKUP(Z192,blades!$A$14:$G$21,3,FALSE),VLOOKUP(Z192,blades!$A$14:$G$21,4,FALSE)),IF(J192="No",VLOOKUP(Z192,blades!$A$14:$G$21,5,FALSE),VLOOKUP(Z192,blades!$A$14:$G$21,6,FALSE)))-X192 -> 780 | Z192: 1 | AA192: M6100-3S | AB192: XCM8948 | AC192: Empty | AD192: XCM8944 & XCM89P | AE192: One unit APS1000W
A193: 159No220V1 | B193: 3-slot (4U) | C193: Yes | D193: 88 | E193: 0 | F193: 2 | G193: 2 | H193: 0 | I193: 40 | J193: No | K193: 220V | L193: 780 | M193: - | N193: - | O193: 1 | P193: 5 | Q193: 9 | R193: - | S193: - | T193: - | U193: - | V193: - | W193: - | X193: =SUMIFS(blades!$I$2:$I$10,blades!$A$2:$A$10,$O193)+SUMIFS(blades!$I$2:$I$10,blades!$A$2:$A$10,$P193)+SUMIFS(blades!$I$2:$I$10,blades!$A$2:$A$10,$Q193) -> 130 | Y193: =IF(K193="110V",IF(J193="No",VLOOKUP(Z193,blades!$A$14:$G$21,3,FALSE),VLOOKUP(Z193,blades!$A$14:$G$21,4,FALSE)),IF(J193="No",VLOOKUP(Z193,blades!$A$14:$G$21,5,FALSE),VLOOKUP(Z193,blades!$A$14:$G$21,6,FALSE)))-X193 -> 780 | Z193: 1 | AA193: M6100-3S | AB193: XCM8948 | AC193: Empty | AD193: XCM8944 & XCM89UP | AE193: One unit APS1000W
A194: 115No220V1 | B194: 3-slot (4U) | C194: Yes | D194: 96 | E194: 0 | F194: 0 | G194: 0 | H194: 0 | I194: 0 | J194: No | K194: 220V | L194: 790 | M194: - | N194: - | O194: 1 | P194: 1 | Q194: 5 | R194: - | S194: - | T194: - | U194: - | V194: - | W194: - | X194: =SUMIFS(blades!$I$2:$I$10,blades!$A$2:$A$10,$O194)+SUMIFS(blades!$I$2:$I$10,blades!$A$2:$A$10,$P194)+SUMIFS(blades!$I$2:$I$10,blades!$A$2:$A$10,$Q194) -> 120 | Y194: =IF(K194="110V",IF(J194="No",VLOOKUP(Z194,blades!$A$14:$G$21,3,FALSE),VLOOKUP(Z194,blades!$A$14:$G$21,4,FALSE)),IF(J194="No",VLOOKUP(Z194,blades!$A$14:$G$21,5,FALSE),VLOOKUP(Z194,blades!$A$14:$G$21,6,FALSE)))-X194 -> 790 | Z194: 1 | AA194: M6100-3S | AB194: XCM8948 | AC194: XCM8948 | AD194: Empty | AE194: One unit APS1000W
A195: 155No220V1 | B195: 3-slot (4U) | C195: Yes | D195: 48 | E195: 0 | F195: 0 | G195: 0 | H195: 0 | I195: 0 | J195: No | K195: 220V | L195: =Y195 -> 850 | M195: - | N195: - | O195: 1 | P195: 5 | Q195: 5 | R195: - | S195: - | T195: - | U195: - | V195: - | W195: - | X195: =SUMIFS(blades!$I$2:$I$10,blades!$A$2:$A$10,$O195)+SUMIFS(blades!$I$2:$I$10,blades!$A$2:$A$10,$P195)+SUMIFS(blades!$I$2:$I$10,blades!$A$2:$A$10,$Q195) -> 60 | Y195: =IF(K195="110V",IF(J195="No",VLOOKUP(Z195,blades!$A$14:$G$21,3,FALSE),VLOOKUP(Z195,blades!$A$14:$G$21,4,FALSE)),IF(J195="No",VLOOKUP(Z195,blades!$A$14:$G$21,5,FALSE),VLOOKUP(Z195,blades!$A$14:$G$21,6,FALSE)))-X195 -> 850 | Z195: 1 | AA195: M6100-3S | AB195: XCM8948 | AC195: Empty | AD195: Empty | AE195: One unit APS1000W
A196: 167No220V1 | B196: 3-slot (4U) | C196: Yes | D196: 144 | E196: 0 | F196: 0 | G196: 0 | H196: 48 | I196: 48 | J196: No | K196: 220V | L196: 730 | M196: - | N196: - | O196: 1 | P196: 6 | Q196: 7 | R196: - | S196: - | T196: - | U196: - | V196: - | W196: - | X196: =SUMIFS(blades!$I$2:$I$10,blades!$A$2:$A$10,$O196)+SUMIFS(blades!$I$2:$I$10,blades!$A$2:$A$10,$P196)+SUMIFS(blades!$I$2:$I$10,blades!$A$2:$A$10,$Q196) -> 180 | Y196: =IF(K196="110V",IF(J196="No",VLOOKUP(Z196,blades!$A$14:$G$21,3,FALSE),VLOOKUP(Z196,blades!$A$14:$G$21,4,FALSE)),IF(J196="No",VLOOKUP(Z196,blades!$A$14:$G$21,5,FALSE),VLOOKUP(Z196,blades!$A$14:$G$21,6,FALSE)))-X196 -> 730 | Z196: 1 | AA196: M6100-3S | AB196: XCM8948 | AC196: XCM8948 & XCM89P | AD196: XCM8948 & XCM89UP | AE196: One unit APS1000W
A197: 168No220V1 | B197: 3-slot (4U) | C197: Yes | D197: 136 | E197: 0 | F197: 2 | G197: 2 | H197: 88 | I197: 0 | J197: No | K197: 220V | L197: 720 | M197: - | N197: - | O197: 1 | P197: 6 | Q197: 8 | R197: - | S197: - | T197: - | U197: - | V197: - | W197: - | X197: =SUMIFS(blades!$I$2:$I$10,blades!$A$2:$A$10,$O197)+SUMIFS(blades!$I$2:$I$10,blades!$A$2:$A$10,$P197)+SUMIFS(blades!$I$2:$I$10,blades!$A$2:$A$10,$Q197) -> 190 | Y197: =IF(K197="110V",IF(J197="No",VLOOKUP(Z197,blades!$A$14:$G$21,3,FALSE),VLOOKUP(Z197,blades!$A$14:$G$21,4,FALSE)),IF(J197="No",VLOOKUP(Z197,blades!$A$14:$G$21,5,FALSE),VLOOKUP(Z197,blades!$A$14:$G$21,6,FALSE)))-X197 -> 720 | Z197: 1 | AA197: M6100-3S | AB197: XCM8948 | AC197: XCM8948 & XCM89P | AD197: XCM8944 & XCM89P | AE197: One unit APS1000W
A198: 169No220V1 | B198: 3-slot (4U) | C198: Yes | D198: 136 | E198: 0 | F198: 2 | G198: 2 | H198: 48 | I198: 40 | J198: No | K198: 220V | L198: 720 | M198: - | N198: - | O198: 1 | P198: 6 | Q198: 9 | R198: - | S198: - | T198: - | U198: - | V198: - | W198: - | X198: =SUMIFS(blades!$I$2:$I$10,blades!$A$2:$A$10,$O198)+SUMIFS(blades!$I$2:$I$10,blades!$A$2:$A$10,$P198)+SUMIFS(blades!$I$2:$I$10,blades!$A$2:$A$10,$Q198) -> 190 | Y198: =IF(K198="110V",IF(J198="No",VLOOKUP(Z198,blades!$A$14:$G$21,3,FALSE),VLOOKUP(Z198,blades!$A$14:$G$21,4,FALSE)),IF(J198="No",VLOOKUP(Z198,blades!$A$14:$G$21,5,FALSE),VLOOKUP(Z198,blades!$A$14:$G$21,6,FALSE)))-X198 -> 720 | Z198: 1 | AA198: M6100-3S | AB198: XCM8948 | AC198: XCM8948 & XCM89P | AD198: XCM8944 & XCM89UP | AE198: One unit APS1000W
A199: 116No220V1 | B199: 3-slot (4U) | C199: Yes | D199: 144 | E199: 0 | F199: 0 | G199: 0 | H199: 48 | I199: 0 | J199: No | K199: 220V | L199: 730 | M199: - | N199: - | O199: 1 | P199: 1 | Q199: 6 | R199: - | S199: - | T199: - | U199: - | V199: - | W199: - | X199: =SUMIFS(blades!$I$2:$I$10,blades!$A$2:$A$10,$O199)+SUMIFS(blades!$I$2:$I$10,blades!$A$2:$A$10,$P199)+SUMIFS(blades!$I$2:$I$10,blades!$A$2:$A$10,$Q199) -> 180 | Y199: =IF(K199="110V",IF(J199="No",VLOOKUP(Z199,blades!$A$14:$G$21,3,FALSE),VLOOKUP(Z199,blades!$A$14:$G$21,4,FALSE)),IF(J199="No",VLOOKUP(Z199,blades!$A$14:$G$21,5,FALSE),VLOOKUP(Z199,blades!$A$14:$G$21,6,FALSE)))-X199 -> 730 | Z199: 1 | AA199: M6100-3S | AB199: XCM8948 | AC199: XCM8948 | AD199: XCM8948 & XCM89P | AE199: One unit APS1000W
A200: 166No220V1 | B200: 3-slot (4U) | C200: Yes | D200: 144 | E200: 0 | F200: 0 | G200: 0 | H200: 96 | I200: 0 | J200: No | K200: 220V | L200: 730 | M200: - | N200: - | O200: 1 | P200: 6 | Q200: 6 | R200: - | S200: - | T200: - | U200: - | V200: - | W200: - | X200: =SUMIFS(blades!$I$2:$I$10,blades!$A$2:$A$10,$O200)+SUMIFS(blades!$I$2:$I$10,blades!$A$2:$A$10,$P200)+SUMIFS(blades!$I$2:$I$10,blades!$A$2:$A$10,$Q200) -> 180 | Y200: =IF(K200="110V",IF(J200="No",VLOOKUP(Z200,blades!$A$14:$G$21,3,FALSE),VLOOKUP(Z200,blades!$A$14:$G$21,4,FALSE)),IF(J200="No",VLOOKUP(Z200,blades!$A$14:$G$21,5,FALSE),VLOOKUP(Z200,blades!$A$14:$G$21,6,FALSE)))-X200 -> 730 | Z200: 1 | AA200: M6100-3S | AB200: XCM8948 | AC200: XCM8948 & XCM89P | AD200: XCM8948 & XCM89P | AE200: One unit APS1000W
... 2050 more rows

Sheet SwitchListUnique (hidden)
A1: =SwitchList!B1 -> Size | B1: =SwitchList!C1 -> Fabric_Management_Redundancy | C1: =SwitchList!D1 -> 1G_copper | D1: =SwitchList!E1 -> 1G_fiber | E1: =SwitchList!F1 -> 10G_copper | F1: =SwitchList!G1 -> 10G_fiber | G1: =SwitchList!H1 -> 1G_PoE+ | H1: =SwitchList!I1 -> 1G_UPOE | I1: =SwitchList!J1 -> N+1_Redundancy | J1: =SwitchList!K1 -> AC_in | K1: =SwitchList!L1 -> PoE_Budget | L1: =SwitchList!A1 -> Index
A2: =INDEX(size,MATCH(0,COUNTIF($A$1:A1,size) +IF(Configurator!$B$18<>"",(fabric<>Configurator!$B$18)) +IF(Configurator!$B$22<>"",(OneG_copper<>Configurator!$B$22)) +IF(Configurator!$B$23<>"",(OneG_fiber<>Configurator!$B$23)) +IF(Configurator!$B$20<>"",(TenG_copper<>Configurator!$B$20)) +IF(Configurator!$B$21<>"",(TenG_fiber<>Configurator!$B$21)) +IF(Configurator!$B$25<>"",(OneG_PoE_Plus<>Configurator!$B$25)) +IF(Configurator!$B$26<>"",(OneG_UPOE<>Configurator!$B$26)) +IF(Configurator!$B$28<>"",(NPlusOne<>Configurator!$B$28)) +IF(Configurator!$B$29<>"",(AC_in<>Configurator!$B$29)) +IF(Configurator!$B$31<>"",(Budget<>Configurator!$B$31)), 0)) -> 3-slot (4U) | B2: =INDEX(fabric,MATCH(0,COUNTIF($B$1:B1,fabric) +IF(Configurator!$B$16<>"",(size<>Configurator!$B$16)) +IF(Configurator!$B$22<>"",(OneG_copper<>Configurator!$B$22)) +IF(Configurator!$B$23<>"",(OneG_fiber<>Configurator!$B$23)) +IF(Configurator!$B$20<>"",(TenG_copper<>Configurator!$B$20)) +IF(Configurator!$B$21<>"",(TenG_fiber<>Configurator!$B$21)) +IF(Configurator!$B$25<>"",(OneG_PoE_Plus<>Configurator!$B$25)) +IF(Configurator!$B$26<>"",(OneG_UPOE<>Configurator!$B$26)) +IF(Configurator!$B$28<>"",(NPlusOne<>Configurator!$B$28)) +IF(Configurator!$B$29<>"",(AC_in<>Configurator!$B$29)) +IF(Configurator!$B$31<>"",(Budget<>Configurator!$B$31)), 0)) -> Yes | C2: =INDEX(OneG_copper,MATCH(0,COUNTIF(C$1:C1,OneG_copper) +IF(Configurator!$B$16<>"",(size<>Configurator!$B$16)) +IF(Configurator!$B$18<>"",(fabric<>Configurator!$B$18)) +IF(Configurator!$B$23<>"",(OneG_fiber<>Configurator!$B$23)) +IF(Configurator!$B$20<>"",(TenG_copper<>Configurator!$B$20)) +IF(Configurator!$B$21<>"",(TenG_fiber<>Configurator!$B$21)) +IF(Configurator!$B$25<>"",(OneG_PoE_Plus<>Configurator!$B$25)) +IF(Configurator!$B$26<>"",(OneG_UPOE<>Configurator!$B$26)) +IF(Configurator!$B$28<>"",(NPlusOne<>Configurator!$B$28)) +IF(Configurator!$B$29<>"",(AC_in<>Configurator!$B$29)) +IF(Configurator!$B$31<>"",(Budget<>Configurator!$B$31)), 0)) -> 88 | D2: =INDEX(OneG_fiber,MATCH(0,COUNTIF(D$1:D1,OneG_fiber) +IF(Configurator!$B$16<>"",(size<>Configurator!$B$16)) +IF(Configurator!$B$18<>"",(fabric<>Configurator!$B$18)) +IF(Configurator!$B$22<>"",(OneG_copper<>Configurator!$B$22)) +IF(Configurator!$B$20<>"",(TenG_copper<>Configurator!$B$20)) +IF(Configurator!$B$21<>"",(TenG_fiber<>Configurator!$B$21)) +IF(Configurator!$B$25<>"",(OneG_PoE_Plus<>Configurator!$B$25)) +IF(Configurator!$B$26<>"",(OneG_UPOE<>Configurator!$B$26)) +IF(Configurator!$B$28<>"",(NPlusOne<>Configurator!$B$28)) +IF(Configurator!$B$29<>"",(AC_in<>Configurator!$B$29)) +IF(Configurator!$B$31<>"",(Budget<>Configurator!$B$31)), 0)) -> 40 | E2: =INDEX(TenG_copper,MATCH(0,COUNTIF(E$1:E1,TenG_copper) +IF(Configurator!$B$16<>"",(size<>Configurator!$B$16)) +IF(Configurator!$B$18<>"",(fabric<>Configurator!$B$18)) +IF(Configurator!$B$22<>"",(OneG_copper<>Configurator!$B$22)) +IF(Configurator!$B$23<>"",(OneG_fiber<>Configurator!$B$23)) +IF(Configurator!$B$21<>"",(TenG_fiber<>Configurator!$B$21)) +IF(Configurator!$B$25<>"",(OneG_PoE_Plus<>Configurator!$B$25)) +IF(Configurator!$B$26<>"",(OneG_UPOE<>Configurator!$B$26)) +IF(Configurator!$B$28<>"",(NPlusOne<>Configurator!$B$28)) +IF(Configurator!$B$29<>"",(AC_in<>Configurator!$B$29)) +IF(Configurator!$B$31<>"",(Budget<>Configurator!$B$31)), 0)) -> 4 | F2: =INDEX(TenG_fiber,MATCH(0,COUNTIF(F$1:F1,TenG_fiber) +IF(Configurator!$B$16<>"",(size<>Configurator!$B$16)) +IF(Configurator!$B$18<>"",(fabric<>Configurator!$B$18)) +IF(Configurator!$B$22<>"",(OneG_copper<>Configurator!$B$22)) +IF(Configurator!$B$23<>"",(OneG_fiber<>Configurator!$B$23)) +IF(Configurator!$B$20<>"",(TenG_copper<>Configurator!$B$20)) +IF(Configurator!$B$25<>"",(OneG_PoE_Plus<>Configurator!$B$25)) +IF(Configurator!$B$26<>"",(OneG_UPOE<>Configurator!$B$26)) +IF(Configurator!$B$28<>"",(NPlusOne<>Configurator!$B$28)) +IF(Configurator!$B$29<>"",(AC_in<>Configurator!$B$29)) +IF(Configurator!$B$31<>"",(Budget<>Configurator!$B$31)), 0)) -> 4 | G2: =INDEX(OneG_PoE_Plus,MATCH(0,COUNTIF(G$1:G1,OneG_PoE_Plus) +IF(Configurator!$B$16<>"",(size<>Configurator!$B$16)) +IF(Configurator!$B$18<>"",(fabric<>Configurator!$B$18)) +IF(Configurator!$B$22<>"",(OneG_copper<>Configurator!$B$22)) +IF(Configurator!$B$23<>"",(OneG_fiber<>Configurator!$B$23)) +IF(Configurator!$B$20<>"",(TenG_copper<>Configurator!$B$20)) +IF(Configurator!$B$21<>"",(TenG_fiber<>Configurator!$B$21)) +IF(Configurator!$B$26<>"",(OneG_UPOE<>Configurator!$B$26)) +IF(Configurator!$B$28<>"",(NPlusOne<>Configurator!$B$28)) +IF(Configurator!$B$29<>"",(AC_in<>Configurator!$B$29)) +IF(Configurator!$B$31<>"",(Budget<>Configurator!$B$31)), 0)) -> 0 | H2: =INDEX(OneG_UPOE,MATCH(0,COUNTIF(H$1:H1,OneG_UPOE) +IF(Configurator!$B$16<>"",(size<>Configurator!$B$16)) +IF(Configurator!$B$18<>"",(fabric<>Configurator!$B$18)) +IF(Configurator!$B$22<>"",(OneG_copper<>Configurator!$B$22)) +IF(Configurator!$B$23<>"",(OneG_fiber<>Configurator!$B$23)) +IF(Configurator!$B$20<>"",(TenG_copper<>Configurator!$B$20)) +IF(Configurator!$B$21<>"",(TenG_fiber<>Configurator!$B$21)) +IF(Configurator!$B$25<>"",(OneG_PoE_Plus<>Configurator!$B$25)) +IF(Configurator!$B$28<>"",(NPlusOne<>Configurator!$B$28)) +IF(Configurator!$B$29<>"",(AC_in<>Configurator!$B$29)) +IF(Configurator!$B$31<>"",(Budget<>Configurator!$B$31)), 0)) -> 0 | I2: =INDEX(NPlusOne,MATCH(0,COUNTIF(I$1:I1,NPlusOne) +IF(Configurator!$B$16<>"",(size<>Configurator!$B$16)) +IF(Configurator!$B$18<>"",(fabric<>Configurator!$B$18)) +IF(Configurator!$B$22<>"",(OneG_copper<>Configurator!$B$22)) +IF(Configurator!$B$23<>"",(OneG_fiber<>Configurator!$B$23)) +IF(Configurator!$B$20<>"",(TenG_copper<>Configurator!$B$20)) +IF(Configurator!$B$21<>"",(TenG_fiber<>Configurator!$B$21)) +IF(Configurator!$B$25<>"",(OneG_PoE_Plus<>Configurator!$B$25)) +IF(Configurator!$B$26<>"",(OneG_UPOE<>Configurator!$B$26)) +IF(Configurator!$B$29<>"",(AC_in<>Configurator!$B$29)) +IF(Configurator!$B$31<>"",(Budget<>Configurator!$B$31)), 0)) -> No | J2: =INDEX(AC_in,MATCH(0,COUNTIF(J$1:J1,AC_in) +IF(Configurator!$B$16<>"",(size<>Configurator!$B$16)) +IF(Configurator!$B$18<>"",(fabric<>Configurator!$B$18)) +IF(Configurator!$B$22<>"",(OneG_copper<>Configurator!$B$22)) +IF(Configurator!$B$23<>"",(OneG_fiber<>Configurator!$B$23)) +IF(Configurator!$B$20<>"",(TenG_copper<>Configurator!$B$20)) +IF(Configurator!$B$21<>"",(TenG_fiber<>Configurator!$B$21)) +IF(Configurator!$B$25<>"",(OneG_PoE_Plus<>Configurator!$B$25)) +IF(Configurator!$B$26<>"",(OneG_UPOE<>Configurator!$B$26)) +IF(Configurator!$B$28<>"",(NPlusOne<>Configurator!$B$28)) +IF(Configurator!$B$31<>"",(Budget<>Configurator!$B$31)), 0)) -> 110V | K2: =INDEX(Budget,MATCH(0,COUNTIF(K$1:K1,Budget) +IF(Configurator!$B$16<>"",(size<>Configurator!$B$16)) +IF(Configurator!$B$18<>"",(fabric<>Configurator!$B$18)) +IF(Configurator!$B$22<>"",(OneG_copper<>Configurator!$B$22)) +IF(Configurator!$B$23<>"",(OneG_fiber<>Configurator!$B$23)) +IF(Configurator!$B$20<>"",(TenG_copper<>Configurator!$B$20)) +IF(Configurator!$B$21<>"",(TenG_fiber<>Configurator!$B$21)) +IF(Configurator!$B$25<>"",(OneG_PoE_Plus<>Configurator!$B$25)) +IF(Configurator!$B$26<>"",(OneG_UPOE<>Configurator!$B$26)) +IF(Configurator!$B$28<>"",(NPlusOne<>Configurator!$B$28)) +IF(Configurator!$B$29<>"",(AC_in<>Configurator!$B$29)), 0)) -> 360 | L2: =INDEX(INDEX,MATCH(0,COUNTIF(L$1:L1,INDEX) +IF(Configurator!$B$16<>"",(size<>Configurator!$B$16)) +IF(Configurator!$B$18<>"",(fabric<>Configurator!$B$18)) +IF(Configurator!$B$22<>"",(OneG_copper<>Configurator!$B$22)) +IF(Configurator!$B$23<>"",(OneG_fiber<>Configurator!$B$23)) +IF(Configurator!$B$20<>"",(TenG_copper<>Configurator!$B$20)) +IF(Configurator!$B$21<>"",(TenG_fiber<>Configurator!$B$21)) +IF(Configurator!$B$25<>"",(OneG_PoE_Plus<>Configurator!$B$25)) +IF(Configurator!$B$26<>"",(OneG_UPOE<>Configurator!$B$26)) +IF(Configurator!$B$28<>"",(NPlusOne<>Configurator!$B$28)) +IF(Configurator!$B$29<>"",(AC_in<>Configurator!$B$29)) +IF(Configurator!$B$31<>"",(Budget<>Configurator!$B$31)), 0)) -> 123No110V1
A3: =INDEX(size,MATCH(0,COUNTIF($A$1:A2,size) +IF(Configurator!$B$18<>"",(fabric<>Configurator!$B$18)) +IF(Configurator!$B$22<>"",(OneG_copper<>Configurator!$B$22)) +IF(Configurator!$B$23<>"",(OneG_fiber<>Configurator!$B$23)) +IF(Configurator!$B$20<>"",(TenG_copper<>Configurator!$B$20)) +IF(Configurator!$B$21<>"",(TenG_fiber<>Configurator!$B$21)) +IF(Configurator!$B$25<>"",(OneG_PoE_Plus<>Configurator!$B$25)) +IF(Configurator!$B$26<>"",(OneG_UPOE<>Configurator!$B$26)) +IF(Configurator!$B$28<>"",(NPlusOne<>Configurator!$B$28)) +IF(Configurator!$B$29<>"",(AC_in<>Configurator!$B$29)) +IF(Configurator!$B$31<>"",(Budget<>Configurator!$B$31)), 0)) ->  | B3: =INDEX(fabric,MATCH(0,COUNTIF($B$1:B2,fabric) +IF(Configurator!$B$16<>"",(size<>Configurator!$B$16)) +IF(Configurator!$B$22<>"",(OneG_copper<>Configurator!$B$22)) +IF(Configurator!$B$23<>"",(OneG_fiber<>Configurator!$B$23)) +IF(Configurator!$B$20<>"",(TenG_copper<>Configurator!$B$20)) +IF(Configurator!$B$21<>"",(TenG_fiber<>Configurator!$B$21)) +IF(Configurator!$B$25<>"",(OneG_PoE_Plus<>Configurator!$B$25)) +IF(Configurator!$B$26<>"",(OneG_UPOE<>Configurator!$B$26)) +IF(Configurator!$B$28<>"",(NPlusOne<>Configurator!$B$28)) +IF(Configurator!$B$29<>"",(AC_in<>Configurator!$B$29)) +IF(Configurator!$B$31<>"",(Budget<>Configurator!$B$31)), 0)) ->  | C3: =INDEX(OneG_copper,MATCH(0,COUNTIF(C$1:C2,OneG_copper) +IF(Configurator!$B$16<>"",(size<>Configurator!$B$16)) +IF(Configurator!$B$18<>"",(fabric<>Configurator!$B$18)) +IF(Configurator!$B$23<>"",(OneG_fiber<>Configurator!$B$23)) +IF(Configurator!$B$20<>"",(TenG_copper<>Configurator!$B$20)) +IF(Configurator!$B$21<>"",(TenG_fiber<>Configurator!$B$21)) +IF(Configurator!$B$25<>"",(OneG_PoE_Plus<>Configurator!$B$25)) +IF(Configurator!$B$26<>"",(OneG_UPOE<>Configurator!$B$26)) +IF(Configurator!$B$28<>"",(NPlusOne<>Configurator!$B$28)) +IF(Configurator!$B$29<>"",(AC_in<>Configurator!$B$29)) +IF(Configurator!$B$31<>"",(Budget<>Configurator!$B$31)), 0)) -> 136 | D3: =INDEX(OneG_fiber,MATCH(0,COUNTIF(D$1:D2,OneG_fiber) +IF(Configurator!$B$16<>"",(size<>Configurator!$B$16)) +IF(Configurator!$B$18<>"",(fabric<>Configurator!$B$18)) +IF(Configurator!$B$22<>"",(OneG_copper<>Configurator!$B$22)) +IF(Configurator!$B$20<>"",(TenG_copper<>Configurator!$B$20)) +IF(Configurator!$B$21<>"",(TenG_fiber<>Configurator!$B$21)) +IF(Configurator!$B$25<>"",(OneG_PoE_Plus<>Configurator!$B$25)) +IF(Configurator!$B$26<>"",(OneG_UPOE<>Configurator!$B$26)) +IF(Configurator!$B$28<>"",(NPlusOne<>Configurator!$B$28)) +IF(Configurator!$B$29<>"",(AC_in<>Configurator!$B$29)) +IF(Configurator!$B$31<>"",(Budget<>Configurator!$B$31)), 0)) -> 0 | E3: =INDEX(TenG_copper,MATCH(0,COUNTIF(E$1:E2,TenG_copper) +IF(Configurator!$B$16<>"",(size<>Configurator!$B$16)) +IF(Configurator!$B$18<>"",(fabric<>Configurator!$B$18)) +IF(Configurator!$B$22<>"",(OneG_copper<>Configurator!$B$22)) +IF(Configurator!$B$23<>"",(OneG_fiber<>Configurator!$B$23)) +IF(Configurator!$B$21<>"",(TenG_fiber<>Configurator!$B$21)) +IF(Configurator!$B$25<>"",(OneG_PoE_Plus<>Configurator!$B$25)) +IF(Configurator!$B$26<>"",(OneG_UPOE<>Configurator!$B$26)) +IF(Configurator!$B$28<>"",(NPlusOne<>Configurator!$B$28)) +IF(Configurator!$B$29<>"",(AC_in<>Configurator!$B$29)) +IF(Configurator!$B$31<>"",(Budget<>Configurator!$B$31)), 0)) -> 26 | F3: =INDEX(TenG_fiber,MATCH(0,COUNTIF(F$1:F2,TenG_fiber) +IF(Configurator!$B$16<>"",(size<>Configurator!$B$16)) +IF(Configurator!$B$18<>"",(fabric<>Configurator!$B$18)) +IF(Configurator!$B$22<>"",(OneG_copper<>Configurator!$B$22)) +IF(Configurator!$B$23<>"",(OneG_fiber<>Configurator!$B$23)) +IF(Configurator!$B$20<>"",(TenG_copper<>Configurator!$B$20)) +IF(Configurator!$B$25<>"",(OneG_PoE_Plus<>Configurator!$B$25)) +IF(Configurator!$B$26<>"",(OneG_UPOE<>Configurator!$B$26)) +IF(Configurator!$B$28<>"",(NPlusOne<>Configurator!$B$28)) +IF(Configurator!$B$29<>"",(AC_in<>Configurator!$B$29)) +IF(Configurator!$B$31<>"",(Budget<>Configurator!$B$31)), 0)) -> 18 | G3: =INDEX(OneG_PoE_Plus,MATCH(0,COUNTIF(G$1:G2,OneG_PoE_Plus) +IF(Configurator!$B$16<>"",(size<>Configurator!$B$16)) +IF(Configurator!$B$18<>"",(fabric<>Configurator!$B$18)) +IF(Configurator!$B$22<>"",(OneG_copper<>Configurator!$B$22)) +IF(Configurator!$B$23<>"",(OneG_fiber<>Configurator!$B$23)) +IF(Configurator!$B$20<>"",(TenG_copper<>Configurator!$B$20)) +IF(Configurator!$B$21<>"",(TenG_fiber<>Configurator!$B$21)) +IF(Configurator!$B$26<>"",(OneG_UPOE<>Configurator!$B$26)) +IF(Configurator!$B$28<>"",(NPlusOne<>Configurator!$B$28)) +IF(Configurator!$B$29<>"",(AC_in<>Configurator!$B$29)) +IF(Configurator!$B$31<>"",(Budget<>Configurator!$B$31)), 0)) -> 48 | H3: =INDEX(OneG_UPOE,MATCH(0,COUNTIF(H$1:H2,OneG_UPOE) +IF(Configurator!$B$16<>"",(size<>Configurator!$B$16)) +IF(Configurator!$B$18<>"",(fabric<>Configurator!$B$18)) +IF(Configurator!$B$22<>"",(OneG_copper<>Configurator!$B$22)) +IF(Configurator!$B$23<>"",(OneG_fiber<>Configurator!$B$23)) +IF(Configurator!$B$20<>"",(TenG_copper<>Configurator!$B$20)) +IF(Configurator!$B$21<>"",(TenG_fiber<>Configurator!$B$21)) +IF(Configurator!$B$25<>"",(OneG_PoE_Plus<>Configurator!$B$25)) +IF(Configurator!$B$28<>"",(NPlusOne<>Configurator!$B$28)) +IF(Configurator!$B$29<>"",(AC_in<>Configurator!$B$29)) +IF(Configurator!$B$31<>"",(Budget<>Configurator!$B$31)), 0)) -> 48 | I3: =INDEX(NPlusOne,MATCH(0,COUNTIF(I$1:I2,NPlusOne) +IF(Configurator!$B$16<>"",(size<>Configurator!$B$16)) +IF(Configurator!$B$18<>"",(fabric<>Configurator!$B$18)) +IF(Configurator!$B$22<>"",(OneG_copper<>Configurator!$B$22)) +IF(Configurator!$B$23<>"",(OneG_fiber<>Configurator!$B$23)) +IF(Configurator!$B$20<>"",(TenG_copper<>Configurator!$B$20)) +IF(Configurator!$B$21<>"",(TenG_fiber<>Configurator!$B$21)) +IF(Configurator!$B$25<>"",(OneG_PoE_Plus<>Configurator!$B$25)) +IF(Configurator!$B$26<>"",(OneG_UPOE<>Configurator!$B$26)) +IF(Configurator!$B$29<>"",(AC_in<>Configurator!$B$29)) +IF(Configurator!$B$31<>"",(Budget<>Configurator!$B$31)), 0)) -> Yes | J3: =INDEX(AC_in,MATCH(0,COUNTIF(J$1:J2,AC_in) +IF(Configurator!$B$16<>"",(size<>Configurator!$B$16)) +IF(Configurator!$B$18<>"",(fabric<>Configurator!$B$18)) +IF(Configurator!$B$22<>"",(OneG_copper<>Configurator!$B$22)) +IF(Configurator!$B$23<>"",(OneG_fiber<>Configurator!$B$23)) +IF(Configurator!$B$20<>"",(TenG_copper<>Configurator!$B$20)) +IF(Configurator!$B$21<>"",(TenG_fiber<>Configurator!$B$21)) +IF(Configurator!$B$25<>"",(OneG_PoE_Plus<>Configurator!$B$25)) +IF(Configurator!$B$26<>"",(OneG_UPOE<>Configurator!$B$26)) +IF(Configurator!$B$28<>"",(NPlusOne<>Configurator!$B$28)) +IF(Configurator!$B$31<>"",(Budget<>Configurator!$B$31)), 0)) -> 220V | K3: =INDEX(Budget,MATCH(0,COUNTIF(K$1:K2,Budget) +IF(Configurator!$B$16<>"",(size<>Configurator!$B$16)) +IF(Configurator!$B$18<>"",(fabric<>Configurator!$B$18)) +IF(Configurator!$B$22<>"",(OneG_copper<>Configurator!$B$22)) +IF(Configurator!$B$23<>"",(OneG_fiber<>Configurator!$B$23)) +IF(Configurator!$B$20<>"",(TenG_copper<>Configurator!$B$20)) +IF(Configurator!$B$21<>"",(TenG_fiber<>Configurator!$B$21)) +IF(Configurator!$B$25<>"",(OneG_PoE_Plus<>Configurator!$B$25)) +IF(Configurator!$B$26<>"",(OneG_UPOE<>Configurator!$B$26)) +IF(Configurator!$B$28<>"",(NPlusOne<>Configurator!$B$28)) +IF(Configurator!$B$29<>"",(AC_in<>Configurator!$B$29)), 0)) -> 310 | L3: =INDEX(INDEX,MATCH(0,COUNTIF(L$1:L2,INDEX) +IF(Configurator!$B$16<>"",(size<>Configurator!$B$16)) +IF(Configurator!$B$18<>"",(fabric<>Configurator!$B$18)) +IF(Configurator!$B$22<>"",(OneG_copper<>Configurator!$B$22)) +IF(Configurator!$B$23<>"",(OneG_fiber<>Configurator!$B$23)) +IF(Configurator!$B$20<>"",(TenG_copper<>Configurator!$B$20)) +IF(Configurator!$B$21<>"",(TenG_fiber<>Configurator!$B$21)) +IF(Configurator!$B$25<>"",(OneG_PoE_Plus<>Configurator!$B$25)) +IF(Configurator!$B$26<>"",(OneG_UPOE<>Configurator!$B$26)) +IF(Configurator!$B$28<>"",(NPlusOne<>Configurator!$B$28)) +IF(Configurator!$B$29<>"",(AC_in<>Configurator!$B$29)) +IF(Configurator!$B$31<>"",(Budget<>Configurator!$B$31)), 0)) -> 124No110V1
A4: =INDEX(size,MATCH(0,COUNTIF($A$1:A3,size) +IF(Configurator!$B$18<>"",(fabric<>Configurator!$B$18)) +IF(Configurator!$B$22<>"",(OneG_copper<>Configurator!$B$22)) +IF(Configurator!$B$23<>"",(OneG_fiber<>Configurator!$B$23)) +IF(Configurator!$B$20<>"",(TenG_copper<>Configurator!$B$20)) +IF(Configurator!$B$21<>"",(TenG_fiber<>Configurator!$B$21)) +IF(Configurator!$B$25<>"",(OneG_PoE_Plus<>Configurator!$B$25)) +IF(Configurator!$B$26<>"",(OneG_UPOE<>Configurator!$B$26)) +IF(Configurator!$B$28<>"",(NPlusOne<>Configurator!$B$28)) +IF(Configurator!$B$29<>"",(AC_in<>Configurator!$B$29)) +IF(Configurator!$B$31<>"",(Budget<>Configurator!$B$31)), 0)) ->  | B4: =INDEX(fabric,MATCH(0,COUNTIF($B$1:B3,fabric) +IF(Configurator!$B$16<>"",(size<>Configurator!$B$16)) +IF(Configurator!$B$22<>"",(OneG_copper<>Configurator!$B$22)) +IF(Configurator!$B$23<>"",(OneG_fiber<>Configurator!$B$23)) +IF(Configurator!$B$20<>"",(TenG_copper<>Configurator!$B$20)) +IF(Configurator!$B$21<>"",(TenG_fiber<>Configurator!$B$21)) +IF(Configurator!$B$25<>"",(OneG_PoE_Plus<>Configurator!$B$25)) +IF(Configurator!$B$26<>"",(OneG_UPOE<>Configurator!$B$26)) +IF(Configurator!$B$28<>"",(NPlusOne<>Configurator!$B$28)) +IF(Configurator!$B$29<>"",(AC_in<>Configurator!$B$29)) +IF(Configurator!$B$31<>"",(Budget<>Configurator!$B$31)), 0)) ->  | C4: =INDEX(OneG_copper,MATCH(0,COUNTIF(C$1:C3,OneG_copper) +IF(Configurator!$B$16<>"",(size<>Configurator!$B$16)) +IF(Configurator!$B$18<>"",(fabric<>Configurator!$B$18)) +IF(Configurator!$B$23<>"",(OneG_fiber<>Configurator!$B$23)) +IF(Configurator!$B$20<>"",(TenG_copper<>Configurator!$B$20)) +IF(Configurator!$B$21<>"",(TenG_fiber<>Configurator!$B$21)) +IF(Configurator!$B$25<>"",(OneG_PoE_Plus<>Configurator!$B$25)) +IF(Configurator!$B$26<>"",(OneG_UPOE<>Configurator!$B$26)) +IF(Configurator!$B$28<>"",(NPlusOne<>Configurator!$B$28)) +IF(Configurator!$B$29<>"",(AC_in<>Configurator!$B$29)) +IF(Configurator!$B$31<>"",(Budget<>Configurator!$B$31)), 0)) -> 128 | D4: =INDEX(OneG_fiber,MATCH(0,COUNTIF(D$1:D3,OneG_fiber) +IF(Configurator!$B$16<>"",(size<>Configurator!$B$16)) +IF(Configurator!$B$18<>"",(fabric<>Configurator!$B$18)) +IF(Configurator!$B$22<>"",(OneG_copper<>Configurator!$B$22)) +IF(Configurator!$B$20<>"",(TenG_copper<>Configurator!$B$20)) +IF(Configurator!$B$21<>"",(TenG_fiber<>Configurator!$B$21)) +IF(Configurator!$B$25<>"",(OneG_PoE_Plus<>Configurator!$B$25)) +IF(Configurator!$B$26<>"",(OneG_UPOE<>Configurator!$B$26)) +IF(Configurator!$B$28<>"",(NPlusOne<>Configurator!$B$28)) +IF(Configurator!$B$29<>"",(AC_in<>Configurator!$B$29)) +IF(Configurator!$B$31<>"",(Budget<>Configurator!$B$31)), 0)) -> 80 | E4: =INDEX(TenG_copper,MATCH(0,COUNTIF(E$1:E3,TenG_copper) +IF(Configurator!$B$16<>"",(size<>Configurator!$B$16)) +IF(Configurator!$B$18<>"",(fabric<>Configurator!$B$18)) +IF(Configurator!$B$22<>"",(OneG_copper<>Configurator!$B$22)) +IF(Configurator!$B$23<>"",(OneG_fiber<>Configurator!$B$23)) +IF(Configurator!$B$21<>"",(TenG_fiber<>Configurator!$B$21)) +IF(Configurator!$B$25<>"",(OneG_PoE_Plus<>Configurator!$B$25)) +IF(Configurator!$B$26<>"",(OneG_UPOE<>Configurator!$B$26)) +IF(Configurator!$B$28<>"",(NPlusOne<>Configurator!$B$28)) +IF(Configurator!$B$29<>"",(AC_in<>Configurator!$B$29)) +IF(Configurator!$B$31<>"",(Budget<>Configurator!$B$31)), 0)) -> 2 | F4: =INDEX(TenG_fiber,MATCH(0,COUNTIF(F$1:F3,TenG_fiber) +IF(Configurator!$B$16<>"",(size<>Configurator!$B$16)) +IF(Configurator!$B$18<>"",(fabric<>Configurator!$B$18)) +IF(Configurator!$B$22<>"",(OneG_copper<>Configurator!$B$22)) +IF(Configurator!$B$23<>"",(OneG_fiber<>Configurator!$B$23)) +IF(Configurator!$B$20<>"",(TenG_copper<>Configurator!$B$20)) +IF(Configurator!$B$25<>"",(OneG_PoE_Plus<>Configurator!$B$25)) +IF(Configurator!$B$26<>"",(OneG_UPOE<>Configurator!$B$26)) +IF(Configurator!$B$28<>"",(NPlusOne<>Configurator!$B$28)) +IF(Configurator!$B$29<>"",(AC_in<>Configurator!$B$29)) +IF(Configurator!$B$31<>"",(Budget<>Configurator!$B$31)), 0)) -> 2 | G4: =INDEX(OneG_PoE_Plus,MATCH(0,COUNTIF(G$1:G3,OneG_PoE_Plus) +IF(Configurator!$B$16<>"",(size<>Configurator!$B$16)) +IF(Configurator!$B$18<>"",(fabric<>Configurator!$B$18)) +IF(Configurator!$B$22<>"",(OneG_copper<>Configurator!$B$22)) +IF(Configurator!$B$23<>"",(OneG_fiber<>Configurator!$B$23)) +IF(Configurator!$B$20<>"",(TenG_copper<>Configurator!$B$20)) +IF(Configurator!$B$21<>"",(TenG_fiber<>Configurator!$B$21)) +IF(Configurator!$B$26<>"",(OneG_UPOE<>Configurator!$B$26)) +IF(Configurator!$B$28<>"",(NPlusOne<>Configurator!$B$28)) +IF(Configurator!$B$29<>"",(AC_in<>Configurator!$B$29)) +IF(Configurator!$B$31<>"",(Budget<>Configurator!$B$31)), 0)) -> 40 | H4: =INDEX(OneG_UPOE,MATCH(0,COUNTIF(H$1:H3,OneG_UPOE) +IF(Configurator!$B$16<>"",(size<>Configurator!$B$16)) +IF(Configurator!$B$18<>"",(fabric<>Configurator!$B$18)) +IF(Configurator!$B$22<>"",(OneG_copper<>Configurator!$B$22)) +IF(Configurator!$B$23<>"",(OneG_fiber<>Configurator!$B$23)) +IF(Configurator!$B$20<>"",(TenG_copper<>Configurator!$B$20)) +IF(Configurator!$B$21<>"",(TenG_fiber<>Configurator!$B$21)) +IF(Configurator!$B$25<>"",(OneG_PoE_Plus<>Configurator!$B$25)) +IF(Configurator!$B$28<>"",(NPlusOne<>Configurator!$B$28)) +IF(Configurator!$B$29<>"",(AC_in<>Configurator!$B$29)) +IF(Configurator!$B$31<>"",(Budget<>Configurator!$B$31)), 0)) -> 40 | I4: =INDEX(NPlusOne,MATCH(0,COUNTIF(I$1:I3,NPlusOne) +IF(Configurator!$B$16<>"",(size<>Configurator!$B$16)) +IF(Configurator!$B$18<>"",(fabric<>Configurator!$B$18)) +IF(Configurator!$B$22<>"",(OneG_copper<>Configurator!$B$22)) +IF(Configurator!$B$23<>"",(OneG_fiber<>Configurator!$B$23)) +IF(Configurator!$B$20<>"",(TenG_copper<>Configurator!$B$20)) +IF(Configurator!$B$21<>"",(TenG_fiber<>Configurator!$B$21)) +IF(Configurator!$B$25<>"",(OneG_PoE_Plus<>Configurator!$B$25)) +IF(Configurator!$B$26<>"",(OneG_UPOE<>Configurator!$B$26)) +IF(Configurator!$B$29<>"",(AC_in<>Configurator!$B$29)) +IF(Configurator!$B$31<>"",(Budget<>Configurator!$B$31)), 0)) ->  | J4: =INDEX(AC_in,MATCH(0,COUNTIF(J$1:J3,AC_in) +IF(Configurator!$B$16<>"",(size<>Configurator!$B$16)) +IF(Configurator!$B$18<>"",(fabric<>Configurator!$B$18)) +IF(Configurator!$B$22<>"",(OneG_copper<>Configurator!$B$22)) +IF(Configurator!$B$23<>"",(OneG_fiber<>Configurator!$B$23)) +IF(Configurator!$B$20<>"",(TenG_copper<>Configurator!$B$20)) +IF(Configurator!$B$21<>"",(TenG_fiber<>Configurator!$B$21)) +IF(Configurator!$B$25<>"",(OneG_PoE_Plus<>Configurator!$B$25)) +IF(Configurator!$B$26<>"",(OneG_UPOE<>Configurator!$B$26)) +IF(Configurator!$B$28<>"",(NPlusOne<>Configurator!$B$28)) +IF(Configurator!$B$31<>"",(Budget<>Configurator!$B$31)), 0)) ->  | K4: =INDEX(Budget,MATCH(0,COUNTIF(K$1:K3,Budget) +IF(Configurator!$B$16<>"",(size<>Configurator!$B$16)) +IF(Configurator!$B$18<>"",(fabric<>Configurator!$B$18)) +IF(Configurator!$B$22<>"",(OneG_copper<>Configurator!$B$22)) +IF(Configurator!$B$23<>"",(OneG_fiber<>Configurator!$B$23)) +IF(Configurator!$B$20<>"",(TenG_copper<>Configurator!$B$20)) +IF(Configurator!$B$21<>"",(TenG_fiber<>Configurator!$B$21)) +IF(Configurator!$B$25<>"",(OneG_PoE_Plus<>Configurator!$B$25)) +IF(Configurator!$B$26<>"",(OneG_UPOE<>Configurator!$B$26)) +IF(Configurator!$B$28<>"",(NPlusOne<>Configurator!$B$28)) +IF(Configurator!$B$29<>"",(AC_in<>Configurator!$B$29)), 0)) -> 510 | L4: =INDEX(INDEX,MATCH(0,COUNTIF(L$1:L3,INDEX) +IF(Configurator!$B$16<>"",(size<>Configurator!$B$16)) +IF(Configurator!$B$18<>"",(fabric<>Configurator!$B$18)) +IF(Configurator!$B$22<>"",(OneG_copper<>Configurator!$B$22)) +IF(Configurator!$B$23<>"",(OneG_fiber<>Configurator!$B$23)) +IF(Configurator!$B$20<>"",(TenG_copper<>Configurator!$B$20)) +IF(Configurator!$B$21<>"",(TenG_fiber<>Configurator!$B$21)) +IF(Configurator!$B$25<>"",(OneG_PoE_Plus<>Configurator!$B$25)) +IF(Configurator!$B$26<>"",(OneG_UPOE<>Configurator!$B$26)) +IF(Configurator!$B$28<>"",(NPlusOne<>Configurator!$B$28)) +IF(Configurator!$B$29<>"",(AC_in<>Configurator!$B$29)) +IF(Configurator!$B$31<>"",(Budget<>Configurator!$B$31)), 0)) -> 125No110V1
A5: =INDEX(size,MATCH(0,COUNTIF($A$1:A4,size) +IF(Configurator!$B$18<>"",(fabric<>Configurator!$B$18)) +IF(Configurator!$B$22<>"",(OneG_copper<>Configurator!$B$22)) +IF(Configurator!$B$23<>"",(OneG_fiber<>Configurator!$B$23)) +IF(Configurator!$B$20<>"",(TenG_copper<>Configurator!$B$20)) +IF(Configurator!$B$21<>"",(TenG_fiber<>Configurator!$B$21)) +IF(Configurator!$B$25<>"",(OneG_PoE_Plus<>Configurator!$B$25)) +IF(Configurator!$B$26<>"",(OneG_UPOE<>Configurator!$B$26)) +IF(Configurator!$B$28<>"",(NPlusOne<>Configurator!$B$28)) +IF(Configurator!$B$29<>"",(AC_in<>Configurator!$B$29)) +IF(Configurator!$B$31<>"",(Budget<>Configurator!$B$31)), 0)) ->  | B5: =INDEX(fabric,MATCH(0,COUNTIF($B$1:B4,fabric) +IF(Configurator!$B$16<>"",(size<>Configurator!$B$16)) +IF(Configurator!$B$22<>"",(OneG_copper<>Configurator!$B$22)) +IF(Configurator!$B$23<>"",(OneG_fiber<>Configurator!$B$23)) +IF(Configurator!$B$20<>"",(TenG_copper<>Configurator!$B$20)) +IF(Configurator!$B$21<>"",(TenG_fiber<>Configurator!$B$21)) +IF(Configurator!$B$25<>"",(OneG_PoE_Plus<>Configurator!$B$25)) +IF(Configurator!$B$26<>"",(OneG_UPOE<>Configurator!$B$26)) +IF(Configurator!$B$28<>"",(NPlusOne<>Configurator!$B$28)) +IF(Configurator!$B$29<>"",(AC_in<>Configurator!$B$29)) +IF(Configurator!$B$31<>"",(Budget<>Configurator!$B$31)), 0)) ->  | C5: =INDEX(OneG_copper,MATCH(0,COUNTIF(C$1:C4,OneG_copper) +IF(Configurator!$B$16<>"",(size<>Configurator!$B$16)) +IF(Configurator!$B$18<>"",(fabric<>Configurator!$B$18)) +IF(Configurator!$B$23<>"",(OneG_fiber<>Configurator!$B$23)) +IF(Configurator!$B$20<>"",(TenG_copper<>Configurator!$B$20)) +IF(Configurator!$B$21<>"",(TenG_fiber<>Configurator!$B$21)) +IF(Configurator!$B$25<>"",(OneG_PoE_Plus<>Configurator!$B$25)) +IF(Configurator!$B$26<>"",(OneG_UPOE<>Configurator!$B$26)) +IF(Configurator!$B$28<>"",(NPlusOne<>Configurator!$B$28)) +IF(Configurator!$B$29<>"",(AC_in<>Configurator!$B$29)) +IF(Configurator!$B$31<>"",(Budget<>Configurator!$B$31)), 0)) -> 48 | D5: =INDEX(OneG_fiber,MATCH(0,COUNTIF(D$1:D4,OneG_fiber) +IF(Configurator!$B$16<>"",(size<>Configurator!$B$16)) +IF(Configurator!$B$18<>"",(fabric<>Configurator!$B$18)) +IF(Configurator!$B$22<>"",(OneG_copper<>Configurator!$B$22)) +IF(Configurator!$B$20<>"",(TenG_copper<>Configurator!$B$20)) +IF(Configurator!$B$21<>"",(TenG_fiber<>Configurator!$B$21)) +IF(Configurator!$B$25<>"",(OneG_PoE_Plus<>Configurator!$B$25)) +IF(Configurator!$B$26<>"",(OneG_UPOE<>Configurator!$B$26)) +IF(Configurator!$B$28<>"",(NPlusOne<>Configurator!$B$28)) +IF(Configurator!$B$29<>"",(AC_in<>Configurator!$B$29)) +IF(Configurator!$B$31<>"",(Budget<>Configurator!$B$31)), 0)) -> 120 | E5: =INDEX(TenG_copper,MATCH(0,COUNTIF(E$1:E4,TenG_copper) +IF(Configurator!$B$16<>"",(size<>Configurator!$B$16)) +IF(Configurator!$B$18<>"",(fabric<>Configurator!$B$18)) +IF(Configurator!$B$22<>"",(OneG_copper<>Configurator!$B$22)) +IF(Configurator!$B$23<>"",(OneG_fiber<>Configurator!$B$23)) +IF(Configurator!$B$21<>"",(TenG_fiber<>Configurator!$B$21)) +IF(Configurator!$B$25<>"",(OneG_PoE_Plus<>Configurator!$B$25)) +IF(Configurator!$B$26<>"",(OneG_UPOE<>Configurator!$B$26)) +IF(Configurator!$B$28<>"",(NPlusOne<>Configurator!$B$28)) +IF(Configurator!$B$29<>"",(AC_in<>Configurator!$B$29)) +IF(Configurator!$B$31<>"",(Budget<>Configurator!$B$31)), 0)) -> 24 | F5: =INDEX(TenG_fiber,MATCH(0,COUNTIF(F$1:F4,TenG_fiber) +IF(Configurator!$B$16<>"",(size<>Configurator!$B$16)) +IF(Configurator!$B$18<>"",(fabric<>Configurator!$B$18)) +IF(Configurator!$B$22<>"",(OneG_copper<>Configurator!$B$22)) +IF(Configurator!$B$23<>"",(OneG_fiber<>Configurator!$B$23)) +IF(Configurator!$B$20<>"",(TenG_copper<>Configurator!$B$20)) +IF(Configurator!$B$25<>"",(OneG_PoE_Plus<>Configurator!$B$25)) +IF(Configurator!$B$26<>"",(OneG_UPOE<>Configurator!$B$26)) +IF(Configurator!$B$28<>"",(NPlusOne<>Configurator!$B$28)) +IF(Configurator!$B$29<>"",(AC_in<>Configurator!$B$29)) +IF(Configurator!$B$31<>"",(Budget<>Configurator!$B$31)), 0)) -> 16 | G5: =INDEX(OneG_PoE_Plus,MATCH(0,COUNTIF(G$1:G4,OneG_PoE_Plus) +IF(Configurator!$B$16<>"",(size<>Configurator!$B$16)) +IF(Configurator!$B$18<>"",(fabric<>Configurator!$B$18)) +IF(Configurator!$B$22<>"",(OneG_copper<>Configurator!$B$22)) +IF(Configurator!$B$23<>"",(OneG_fiber<>Configurator!$B$23)) +IF(Configurator!$B$20<>"",(TenG_copper<>Configurator!$B$20)) +IF(Configurator!$B$21<>"",(TenG_fiber<>Configurator!$B$21)) +IF(Configurator!$B$26<>"",(OneG_UPOE<>Configurator!$B$26)) +IF(Configurator!$B$28<>"",(NPlusOne<>Configurator!$B$28)) +IF(Configurator!$B$29<>"",(AC_in<>Configurator!$B$29)) +IF(Configurator!$B$31<>"",(Budget<>Configurator!$B$31)), 0)) -> 88 | H5: =INDEX(OneG_UPOE,MATCH(0,COUNTIF(H$1:H4,OneG_UPOE) +IF(Configurator!$B$16<>"",(size<>Configurator!$B$16)) +IF(Configurator!$B$18<>"",(fabric<>Configurator!$B$18)) +IF(Configurator!$B$22<>"",(OneG_copper<>Configurator!$B$22)) +IF(Configurator!$B$23<>"",(OneG_fiber<>Configurator!$B$23)) +IF(Configurator!$B$20<>"",(TenG_copper<>Configurator!$B$20)) +IF(Configurator!$B$21<>"",(TenG_fiber<>Configurator!$B$21)) +IF(Configurator!$B$25<>"",(OneG_PoE_Plus<>Configurator!$B$25)) +IF(Configurator!$B$28<>"",(NPlusOne<>Configurator!$B$28)) +IF(Configurator!$B$29<>"",(AC_in<>Configurator!$B$29)) +IF(Configurator!$B$31<>"",(Budget<>Configurator!$B$31)), 0)) -> 88 | I5: =INDEX(NPlusOne,MATCH(0,COUNTIF(I$1:I4,NPlusOne) +IF(Configurator!$B$16<>"",(size<>Configurator!$B$16)) +IF(Configurator!$B$18<>"",(fabric<>Configurator!$B$18)) +IF(Configurator!$B$22<>"",(OneG_copper<>Configurator!$B$22)) +IF(Configurator!$B$23<>"",(OneG_fiber<>Configurator!$B$23)) +IF(Configurator!$B$20<>"",(TenG_copper<>Configurator!$B$20)) +IF(Configurator!$B$21<>"",(TenG_fiber<>Configurator!$B$21)) +IF(Configurator!$B$25<>"",(OneG_PoE_Plus<>Configurator!$B$25)) +IF(Configurator!$B$26<>"",(OneG_UPOE<>Configurator!$B$26)) +IF(Configurator!$B$29<>"",(AC_in<>Configurator!$B$29)) +IF(Configurator!$B$31<>"",(Budget<>Configurator!$B$31)), 0)) ->  | J5: =INDEX(AC_in,MATCH(0,COUNTIF(J$1:J4,AC_in) +IF(Configurator!$B$16<>"",(size<>Configurator!$B$16)) +IF(Configurator!$B$18<>"",(fabric<>Configurator!$B$18)) +IF(Configurator!$B$22<>"",(OneG_copper<>Configurator!$B$22)) +IF(Configurator!$B$23<>"",(OneG_fiber<>Configurator!$B$23)) +IF(Configurator!$B$20<>"",(TenG_copper<>Configurator!$B$20)) +IF(Configurator!$B$21<>"",(TenG_fiber<>Configurator!$B$21)) +IF(Configurator!$B$25<>"",(OneG_PoE_Plus<>Configurator!$B$25)) +IF(Configurator!$B$26<>"",(OneG_UPOE<>Configurator!$B$26)) +IF(Configurator!$B$28<>"",(NPlusOne<>Configurator!$B$28)) +IF(Configurator!$B$31<>"",(Budget<>Configurator!$B$31)), 0)) ->  | K5: =INDEX(Budget,MATCH(0,COUNTIF(K$1:K4,Budget) +IF(Configurator!$B$16<>"",(size<>Configurator!$B$16)) +IF(Configurator!$B$18<>"",(fabric<>Configurator!$B$18)) +IF(Configurator!$B$22<>"",(OneG_copper<>Configurator!$B$22)) +IF(Configurator!$B$23<>"",(OneG_fiber<>Configurator!$B$23)) +IF(Configurator!$B$20<>"",(TenG_copper<>Configurator!$B$20)) +IF(Configurator!$B$21<>"",(TenG_fiber<>Configurator!$B$21)) +IF(Configurator!$B$25<>"",(OneG_PoE_Plus<>Configurator!$B$25)) +IF(Configurator!$B$26<>"",(OneG_UPOE<>Configurator!$B$26)) +IF(Configurator!$B$28<>"",(NPlusOne<>Configurator!$B$28)) +IF(Configurator!$B$29<>"",(AC_in<>Configurator!$B$29)), 0)) -> 450 | L5: =INDEX(INDEX,MATCH(0,COUNTIF(L$1:L4,INDEX) +IF(Configurator!$B$16<>"",(size<>Configurator!$B$16)) +IF(Configurator!$B$18<>"",(fabric<>Configurator!$B$18)) +IF(Configurator!$B$22<>"",(OneG_copper<>Configurator!$B$22)) +IF(Configurator!$B$23<>"",(OneG_fiber<>Configurator!$B$23)) +IF(Configurator!$B$20<>"",(TenG_copper<>Configurator!$B$20)) +IF(Configurator!$B$21<>"",(TenG_fiber<>Configurator!$B$21)) +IF(Configurator!$B$25<>"",(OneG_PoE_Plus<>Configurator!$B$25)) +IF(Configurator!$B$26<>"",(OneG_UPOE<>Configurator!$B$26)) +IF(Configurator!$B$28<>"",(NPlusOne<>Configurator!$B$28)) +IF(Configurator!$B$29<>"",(AC_in<>Configurator!$B$29)) +IF(Configurator!$B$31<>"",(Budget<>Configurator!$B$31)), 0)) -> 126No110V1
A6: =INDEX(size,MATCH(0,COUNTIF($A$1:A5,size) +IF(Configurator!$B$18<>"",(fabric<>Configurator!$B$18)) +IF(Configurator!$B$22<>"",(OneG_copper<>Configurator!$B$22)) +IF(Configurator!$B$23<>"",(OneG_fiber<>Configurator!$B$23)) +IF(Configurator!$B$20<>"",(TenG_copper<>Configurator!$B$20)) +IF(Configurator!$B$21<>"",(TenG_fiber<>Configurator!$B$21)) +IF(Configurator!$B$25<>"",(OneG_PoE_Plus<>Configurator!$B$25)) +IF(Configurator!$B$26<>"",(OneG_UPOE<>Configurator!$B$26)) +IF(Configurator!$B$28<>"",(NPlusOne<>Configurator!$B$28)) +IF(Configurator!$B$29<>"",(AC_in<>Configurator!$B$29)) +IF(Configurator!$B$31<>"",(Budget<>Configurator!$B$31)), 0)) ->  | B6: =INDEX(fabric,MATCH(0,COUNTIF($B$1:B5,fabric) +IF(Configurator!$B$16<>"",(size<>Configurator!$B$16)) +IF(Configurator!$B$22<>"",(OneG_copper<>Configurator!$B$22)) +IF(Configurator!$B$23<>"",(OneG_fiber<>Configurator!$B$23)) +IF(Configurator!$B$20<>"",(TenG_copper<>Configurator!$B$20)) +IF(Configurator!$B$21<>"",(TenG_fiber<>Configurator!$B$21)) +IF(Configurator!$B$25<>"",(OneG_PoE_Plus<>Configurator!$B$25)) +IF(Configurator!$B$26<>"",(OneG_UPOE<>Configurator!$B$26)) +IF(Configurator!$B$28<>"",(NPlusOne<>Configurator!$B$28)) +IF(Configurator!$B$29<>"",(AC_in<>Configurator!$B$29)) +IF(Configurator!$B$31<>"",(Budget<>Configurator!$B$31)), 0)) ->  | C6: =INDEX(OneG_copper,MATCH(0,COUNTIF(C$1:C5,OneG_copper) +IF(Configurator!$B$16<>"",(size<>Configurator!$B$16)) +IF(Configurator!$B$18<>"",(fabric<>Configurator!$B$18)) +IF(Configurator!$B$23<>"",(OneG_fiber<>Configurator!$B$23)) +IF(Configurator!$B$20<>"",(TenG_copper<>Configurator!$B$20)) +IF(Configurator!$B$21<>"",(TenG_fiber<>Configurator!$B$21)) +IF(Configurator!$B$25<>"",(OneG_PoE_Plus<>Configurator!$B$25)) +IF(Configurator!$B$26<>"",(OneG_UPOE<>Configurator!$B$26)) +IF(Configurator!$B$28<>"",(NPlusOne<>Configurator!$B$28)) +IF(Configurator!$B$29<>"",(AC_in<>Configurator!$B$29)) +IF(Configurator!$B$31<>"",(Budget<>Configurator!$B$31)), 0)) -> 96 | D6: =INDEX(OneG_fiber,MATCH(0,COUNTIF(D$1:D5,OneG_fiber) +IF(Configurator!$B$16<>"",(size<>Configurator!$B$16)) +IF(Configurator!$B$18<>"",(fabric<>Configurator!$B$18)) +IF(Configurator!$B$22<>"",(OneG_copper<>Configurator!$B$22)) +IF(Configurator!$B$20<>"",(TenG_copper<>Configurator!$B$20)) +IF(Configurator!$B$21<>"",(TenG_fiber<>Configurator!$B$21)) +IF(Configurator!$B$25<>"",(OneG_PoE_Plus<>Configurator!$B$25)) +IF(Configurator!$B$26<>"",(OneG_UPOE<>Configurator!$B$26)) +IF(Configurator!$B$28<>"",(NPlusOne<>Configurator!$B$28)) +IF(Configurator!$B$29<>"",(AC_in<>Configurator!$B$29)) +IF(Configurator!$B$31<>"",(Budget<>Configurator!$B$31)), 0)) ->  | E6: =INDEX(TenG_copper,MATCH(0,COUNTIF(E$1:E5,TenG_copper) +IF(Configurator!$B$16<>"",(size<>Configurator!$B$16)) +IF(Configurator!$B$18<>"",(fabric<>Configurator!$B$18)) +IF(Configurator!$B$22<>"",(OneG_copper<>Configurator!$B$22)) +IF(Configurator!$B$23<>"",(OneG_fiber<>Configurator!$B$23)) +IF(Configurator!$B$21<>"",(TenG_fiber<>Configurator!$B$21)) +IF(Configurator!$B$25<>"",(OneG_PoE_Plus<>Configurator!$B$25)) +IF(Configurator!$B$26<>"",(OneG_UPOE<>Configurator!$B$26)) +IF(Configurator!$B$28<>"",(NPlusOne<>Configurator!$B$28)) +IF(Configurator!$B$29<>"",(AC_in<>Configurator!$B$29)) +IF(Configurator!$B$31<>"",(Budget<>Configurator!$B$31)), 0)) -> 48 | F6: =INDEX(TenG_fiber,MATCH(0,COUNTIF(F$1:F5,TenG_fiber) +IF(Configurator!$B$16<>"",(size<>Configurator!$B$16)) +IF(Configurator!$B$18<>"",(fabric<>Configurator!$B$18)) +IF(Configurator!$B$22<>"",(OneG_copper<>Configurator!$B$22)) +IF(Configurator!$B$23<>"",(OneG_fiber<>Configurator!$B$23)) +IF(Configurator!$B$20<>"",(TenG_copper<>Configurator!$B$20)) +IF(Configurator!$B$25<>"",(OneG_PoE_Plus<>Configurator!$B$25)) +IF(Configurator!$B$26<>"",(OneG_UPOE<>Configurator!$B$26)) +IF(Configurator!$B$28<>"",(NPlusOne<>Configurator!$B$28)) +IF(Configurator!$B$29<>"",(AC_in<>Configurator!$B$29)) +IF(Configurator!$B$31<>"",(Budget<>Configurator!$B$31)), 0)) -> 32 | G6: =INDEX(OneG_PoE_Plus,MATCH(0,COUNTIF(G$1:G5,OneG_PoE_Plus) +IF(Configurator!$B$16<>"",(size<>Configurator!$B$16)) +IF(Configurator!$B$18<>"",(fabric<>Configurator!$B$18)) +IF(Configurator!$B$22<>"",(OneG_copper<>Configurator!$B$22)) +IF(Configurator!$B$23<>"",(OneG_fiber<>Configurator!$B$23)) +IF(Configurator!$B$20<>"",(TenG_copper<>Configurator!$B$20)) +IF(Configurator!$B$21<>"",(TenG_fiber<>Configurator!$B$21)) +IF(Configurator!$B$26<>"",(OneG_UPOE<>Configurator!$B$26)) +IF(Configurator!$B$28<>"",(NPlusOne<>Configurator!$B$28)) +IF(Configurator!$B$29<>"",(AC_in<>Configurator!$B$29)) +IF(Configurator!$B$31<>"",(Budget<>Configurator!$B$31)), 0)) -> 96 | H6: =INDEX(OneG_UPOE,MATCH(0,COUNTIF(H$1:H5,OneG_UPOE) +IF(Configurator!$B$16<>"",(size<>Configurator!$B$16)) +IF(Configurator!$B$18<>"",(fabric<>Configurator!$B$18)) +IF(Configurator!$B$22<>"",(OneG_copper<>Configurator!$B$22)) +IF(Configurator!$B$23<>"",(OneG_fiber<>Configurator!$B$23)) +IF(Configurator!$B$20<>"",(TenG_copper<>Configurator!$B$20)) +IF(Configurator!$B$21<>"",(TenG_fiber<>Configurator!$B$21)) +IF(Configurator!$B$25<>"",(OneG_PoE_Plus<>Configurator!$B$25)) +IF(Configurator!$B$28<>"",(NPlusOne<>Configurator!$B$28)) +IF(Configurator!$B$29<>"",(AC_in<>Configurator!$B$29)) +IF(Configurator!$B$31<>"",(Budget<>Configurator!$B$31)), 0)) -> 96 | I6: =INDEX(NPlusOne,MATCH(0,COUNTIF(I$1:I5,NPlusOne) +IF(Configurator!$B$16<>"",(size<>Configurator!$B$16)) +IF(Configurator!$B$18<>"",(fabric<>Configurator!$B$18)) +IF(Configurator!$B$22<>"",(OneG_copper<>Configurator!$B$22)) +IF(Configurator!$B$23<>"",(OneG_fiber<>Configurator!$B$23)) +IF(Configurator!$B$20<>"",(TenG_copper<>Configurator!$B$20)) +IF(Configurator!$B$21<>"",(TenG_fiber<>Configurator!$B$21)) +IF(Configurator!$B$25<>"",(OneG_PoE_Plus<>Configurator!$B$25)) +IF(Configurator!$B$26<>"",(OneG_UPOE<>Configurator!$B$26)) +IF(Configurator!$B$29<>"",(AC_in<>Configurator!$B$29)) +IF(Configurator!$B$31<>"",(Budget<>Configurator!$B$31)), 0)) ->  | J6: =INDEX(AC_in,MATCH(0,COUNTIF(J$1:J5,AC_in) +IF(Configurator!$B$16<>"",(size<>Configurator!$B$16)) +IF(Configurator!$B$18<>"",(fabric<>Configurator!$B$18)) +IF(Configurator!$B$22<>"",(OneG_copper<>Configurator!$B$22)) +IF(Configurator!$B$23<>"",(OneG_fiber<>Configurator!$B$23)) +IF(Configurator!$B$20<>"",(TenG_copper<>Configurator!$B$20)) +IF(Configurator!$B$21<>"",(TenG_fiber<>Configurator!$B$21)) +IF(Configurator!$B$25<>"",(OneG_PoE_Plus<>Configurator!$B$25)) +IF(Configurator!$B$26<>"",(OneG_UPOE<>Configurator!$B$26)) +IF(Configurator!$B$28<>"",(NPlusOne<>Configurator!$B$28)) +IF(Configurator!$B$31<>"",(Budget<>Configurator!$B$31)), 0)) ->  | K6: =INDEX(Budget,MATCH(0,COUNTIF(K$1:K5,Budget) +IF(Configurator!$B$16<>"",(size<>Configurator!$B$16)) +IF(Configurator!$B$18<>"",(fabric<>Configurator!$B$18)) +IF(Configurator!$B$22<>"",(OneG_copper<>Configurator!$B$22)) +IF(Configurator!$B$23<>"",(OneG_fiber<>Configurator!$B$23)) +IF(Configurator!$B$20<>"",(TenG_copper<>Configurator!$B$20)) +IF(Configurator!$B$21<>"",(TenG_fiber<>Configurator!$B$21)) +IF(Configurator!$B$25<>"",(OneG_PoE_Plus<>Configurator!$B$25)) +IF(Configurator!$B$26<>"",(OneG_UPOE<>Configurator!$B$26)) +IF(Configurator!$B$28<>"",(NPlusOne<>Configurator!$B$28)) +IF(Configurator!$B$29<>"",(AC_in<>Configurator!$B$29)), 0)) -> 440 | L6: =INDEX(INDEX,MATCH(0,COUNTIF(L$1:L5,INDEX) +IF(Configurator!$B$16<>"",(size<>Configurator!$B$16)) +IF(Configurator!$B$18<>"",(fabric<>Configurator!$B$18)) +IF(Configurator!$B$22<>"",(OneG_copper<>Configurator!$B$22)) +IF(Configurator!$B$23<>"",(OneG_fiber<>Configurator!$B$23)) +IF(Configurator!$B$20<>"",(TenG_copper<>Configurator!$B$20)) +IF(Configurator!$B$21<>"",(TenG_fiber<>Configurator!$B$21)) +IF(Configurator!$B$25<>"",(OneG_PoE_Plus<>Configurator!$B$25)) +IF(Configurator!$B$26<>"",(OneG_UPOE<>Configurator!$B$26)) +IF(Configurator!$B$28<>"",(NPlusOne<>Configurator!$B$28)) +IF(Configurator!$B$29<>"",(AC_in<>Configurator!$B$29)) +IF(Configurator!$B$31<>"",(Budget<>Configurator!$B$31)), 0)) -> 127No110V1
A7: =INDEX(size,MATCH(0,COUNTIF($A$1:A6,size) +IF(Configurator!$B$18<>"",(fabric<>Configurator!$B$18)) +IF(Configurator!$B$22<>"",(OneG_copper<>Configurator!$B$22)) +IF(Configurator!$B$23<>"",(OneG_fiber<>Configurator!$B$23)) +IF(Configurator!$B$20<>"",(TenG_copper<>Configurator!$B$20)) +IF(Configurator!$B$21<>"",(TenG_fiber<>Configurator!$B$21)) +IF(Configurator!$B$25<>"",(OneG_PoE_Plus<>Configurator!$B$25)) +IF(Configurator!$B$26<>"",(OneG_UPOE<>Configurator!$B$26)) +IF(Configurator!$B$28<>"",(NPlusOne<>Configurator!$B$28)) +IF(Configurator!$B$29<>"",(AC_in<>Configurator!$B$29)) +IF(Configurator!$B$31<>"",(Budget<>Configurator!$B$31)), 0)) ->  | B7: =INDEX(fabric,MATCH(0,COUNTIF($B$1:B6,fabric) +IF(Configurator!$B$16<>"",(size<>Configurator!$B$16)) +IF(Configurator!$B$22<>"",(OneG_copper<>Configurator!$B$22)) +IF(Configurator!$B$23<>"",(OneG_fiber<>Configurator!$B$23)) +IF(Configurator!$B$20<>"",(TenG_copper<>Configurator!$B$20)) +IF(Configurator!$B$21<>"",(TenG_fiber<>Configurator!$B$21)) +IF(Configurator!$B$25<>"",(OneG_PoE_Plus<>Configurator!$B$25)) +IF(Configurator!$B$26<>"",(OneG_UPOE<>Configurator!$B$26)) +IF(Configurator!$B$28<>"",(NPlusOne<>Configurator!$B$28)) +IF(Configurator!$B$29<>"",(AC_in<>Configurator!$B$29)) +IF(Configurator!$B$31<>"",(Budget<>Configurator!$B$31)), 0)) ->  | C7: =INDEX(OneG_copper,MATCH(0,COUNTIF(C$1:C6,OneG_copper) +IF(Configurator!$B$16<>"",(size<>Configurator!$B$16)) +IF(Configurator!$B$18<>"",(fabric<>Configurator!$B$18)) +IF(Configurator!$B$23<>"",(OneG_fiber<>Configurator!$B$23)) +IF(Configurator!$B$20<>"",(TenG_copper<>Configurator!$B$20)) +IF(Configurator!$B$21<>"",(TenG_fiber<>Configurator!$B$21)) +IF(Configurator!$B$25<>"",(OneG_PoE_Plus<>Configurator!$B$25)) +IF(Configurator!$B$26<>"",(OneG_UPOE<>Configurator!$B$26)) +IF(Configurator!$B$28<>"",(NPlusOne<>Configurator!$B$28)) +IF(Configurator!$B$29<>"",(AC_in<>Configurator!$B$29)) +IF(Configurator!$B$31<>"",(Budget<>Configurator!$B$31)), 0)) -> 144 | D7: =INDEX(OneG_fiber,MATCH(0,COUNTIF(D$1:D6,OneG_fiber) +IF(Configurator!$B$16<>"",(size<>Configurator!$B$16)) +IF(Configurator!$B$18<>"",(fabric<>Configurator!$B$18)) +IF(Configurator!$B$22<>"",(OneG_copper<>Configurator!$B$22)) +IF(Configurator!$B$20<>"",(TenG_copper<>Configurator!$B$20)) +IF(Configurator!$B$21<>"",(TenG_fiber<>Configurator!$B$21)) +IF(Configurator!$B$25<>"",(OneG_PoE_Plus<>Configurator!$B$25)) +IF(Configurator!$B$26<>"",(OneG_UPOE<>Configurator!$B$26)) +IF(Configurator!$B$28<>"",(NPlusOne<>Configurator!$B$28)) +IF(Configurator!$B$29<>"",(AC_in<>Configurator!$B$29)) +IF(Configurator!$B$31<>"",(Budget<>Configurator!$B$31)), 0)) ->  | E7: =INDEX(TenG_copper,MATCH(0,COUNTIF(E$1:E6,TenG_copper) +IF(Configurator!$B$16<>"",(size<>Configurator!$B$16)) +IF(Configurator!$B$18<>"",(fabric<>Configurator!$B$18)) +IF(Configurator!$B$22<>"",(OneG_copper<>Configurator!$B$22)) +IF(Configurator!$B$23<>"",(OneG_fiber<>Configurator!$B$23)) +IF(Configurator!$B$21<>"",(TenG_fiber<>Configurator!$B$21)) +IF(Configurator!$B$25<>"",(OneG_PoE_Plus<>Configurator!$B$25)) +IF(Configurator!$B$26<>"",(OneG_UPOE<>Configurator!$B$26)) +IF(Configurator!$B$28<>"",(NPlusOne<>Configurator!$B$28)) +IF(Configurator!$B$29<>"",(AC_in<>Configurator!$B$29)) +IF(Configurator!$B$31<>"",(Budget<>Configurator!$B$31)), 0)) -> 0 | F7: =INDEX(TenG_fiber,MATCH(0,COUNTIF(F$1:F6,TenG_fiber) +IF(Configurator!$B$16<>"",(size<>Configurator!$B$16)) +IF(Configurator!$B$18<>"",(fabric<>Configurator!$B$18)) +IF(Configurator!$B$22<>"",(OneG_copper<>Configurator!$B$22)) +IF(Configurator!$B$23<>"",(OneG_fiber<>Configurator!$B$23)) +IF(Configurator!$B$20<>"",(TenG_copper<>Configurator!$B$20)) +IF(Configurator!$B$25<>"",(OneG_PoE_Plus<>Configurator!$B$25)) +IF(Configurator!$B$26<>"",(OneG_UPOE<>Configurator!$B$26)) +IF(Configurator!$B$28<>"",(NPlusOne<>Configurator!$B$28)) +IF(Configurator!$B$29<>"",(AC_in<>Configurator!$B$29)) +IF(Configurator!$B$31<>"",(Budget<>Configurator!$B$31)), 0)) -> 0 | G7: =INDEX(OneG_PoE_Plus,MATCH(0,COUNTIF(G$1:G6,OneG_PoE_Plus) +IF(Configurator!$B$16<>"",(size<>Configurator!$B$16)) +IF(Configurator!$B$18<>"",(fabric<>Configurator!$B$18)) +IF(Configurator!$B$22<>"",(OneG_copper<>Configurator!$B$22)) +IF(Configurator!$B$23<>"",(OneG_fiber<>Configurator!$B$23)) +IF(Configurator!$B$20<>"",(TenG_copper<>Configurator!$B$20)) +IF(Configurator!$B$21<>"",(TenG_fiber<>Configurator!$B$21)) +IF(Configurator!$B$26<>"",(OneG_UPOE<>Configurator!$B$26)) +IF(Configurator!$B$28<>"",(NPlusOne<>Configurator!$B$28)) +IF(Configurator!$B$29<>"",(AC_in<>Configurator!$B$29)) +IF(Configurator!$B$31<>"",(Budget<>Configurator!$B$31)), 0)) -> 80 | H7: =INDEX(OneG_UPOE,MATCH(0,COUNTIF(H$1:H6,OneG_UPOE) +IF(Configurator!$B$16<>"",(size<>Configurator!$B$16)) +IF(Configurator!$B$18<>"",(fabric<>Configurator!$B$18)) +IF(Configurator!$B$22<>"",(OneG_copper<>Configurator!$B$22)) +IF(Configurator!$B$23<>"",(OneG_fiber<>Configurator!$B$23)) +IF(Configurator!$B$20<>"",(TenG_copper<>Configurator!$B$20)) +IF(Configurator!$B$21<>"",(TenG_fiber<>Configurator!$B$21)) +IF(Configurator!$B$25<>"",(OneG_PoE_Plus<>Configurator!$B$25)) +IF(Configurator!$B$28<>"",(NPlusOne<>Configurator!$B$28)) +IF(Configurator!$B$29<>"",(AC_in<>Configurator!$B$29)) +IF(Configurator!$B$31<>"",(Budget<>Configurator!$B$31)), 0)) -> 80 | I7: =INDEX(NPlusOne,MATCH(0,COUNTIF(I$1:I6,NPlusOne) +IF(Configurator!$B$16<>"",(size<>Configurator!$B$16)) +IF(Configurator!$B$18<>"",(fabric<>Configurator!$B$18)) +IF(Configurator!$B$22<>"",(OneG_copper<>Configurator!$B$22)) +IF(Configurator!$B$23<>"",(OneG_fiber<>Configurator!$B$23)) +IF(Configurator!$B$20<>"",(TenG_copper<>Configurator!$B$20)) +IF(Configurator!$B$21<>"",(TenG_fiber<>Configurator!$B$21)) +IF(Configurator!$B$25<>"",(OneG_PoE_Plus<>Configurator!$B$25)) +IF(Configurator!$B$26<>"",(OneG_UPOE<>Configurator!$B$26)) +IF(Configurator!$B$29<>"",(AC_in<>Configurator!$B$29)) +IF(Configurator!$B$31<>"",(Budget<>Configurator!$B$31)), 0)) ->  | J7: =INDEX(AC_in,MATCH(0,COUNTIF(J$1:J6,AC_in) +IF(Configurator!$B$16<>"",(size<>Configurator!$B$16)) +IF(Configurator!$B$18<>"",(fabric<>Configurator!$B$18)) +IF(Configurator!$B$22<>"",(OneG_copper<>Configurator!$B$22)) +IF(Configurator!$B$23<>"",(OneG_fiber<>Configurator!$B$23)) +IF(Configurator!$B$20<>"",(TenG_copper<>Configurator!$B$20)) +IF(Configurator!$B$21<>"",(TenG_fiber<>Configurator!$B$21)) +IF(Configurator!$B$25<>"",(OneG_PoE_Plus<>Configurator!$B$25)) +IF(Configurator!$B$26<>"",(OneG_UPOE<>Configurator!$B$26)) +IF(Configurator!$B$28<>"",(NPlusOne<>Configurator!$B$28)) +IF(Configurator!$B$31<>"",(Budget<>Configurator!$B$31)), 0)) ->  | K7: =INDEX(Budget,MATCH(0,COUNTIF(K$1:K6,Budget) +IF(Configurator!$B$16<>"",(size<>Configurator!$B$16)) +IF(Configurator!$B$18<>"",(fabric<>Configurator!$B$18)) +IF(Configurator!$B$22<>"",(OneG_copper<>Configurator!$B$22)) +IF(Configurator!$B$23<>"",(OneG_fiber<>Configurator!$B$23)) +IF(Configurator!$B$20<>"",(TenG_copper<>Configurator!$B$20)) +IF(Configurator!$B$21<>"",(TenG_fiber<>Configurator!$B$21)) +IF(Configurator!$B$25<>"",(OneG_PoE_Plus<>Configurator!$B$25)) +IF(Configurator!$B$26<>"",(OneG_UPOE<>Configurator!$B$26)) +IF(Configurator!$B$28<>"",(NPlusOne<>Configurator!$B$28)) +IF(Configurator!$B$29<>"",(AC_in<>Configurator!$B$29)), 0)) -> 230 | L7: =INDEX(INDEX,MATCH(0,COUNTIF(L$1:L6,INDEX) +IF(Configurator!$B$16<>"",(size<>Configurator!$B$16)) +IF(Configurator!$B$18<>"",(fabric<>Configurator!$B$18)) +IF(Configurator!$B$22<>"",(OneG_copper<>Configurator!$B$22)) +IF(Configurator!$B$23<>"",(OneG_fiber<>Configurator!$B$23)) +IF(Configurator!$B$20<>"",(TenG_copper<>Configurator!$B$20)) +IF(Configurator!$B$21<>"",(TenG_fiber<>Configurator!$B$21)) +IF(Configurator!$B$25<>"",(OneG_PoE_Plus<>Configurator!$B$25)) +IF(Configurator!$B$26<>"",(OneG_UPOE<>Configurator!$B$26)) +IF(Configurator!$B$28<>"",(NPlusOne<>Configurator!$B$28)) +IF(Configurator!$B$29<>"",(AC_in<>Configurator!$B$29)) +IF(Configurator!$B$31<>"",(Budget<>Configurator!$B$31)), 0)) -> 128No110V1
A8: =INDEX(size,MATCH(0,COUNTIF($A$1:A7,size) +IF(Configurator!$B$18<>"",(fabric<>Configurator!$B$18)) +IF(Configurator!$B$22<>"",(OneG_copper<>Configurator!$B$22)) +IF(Configurator!$B$23<>"",(OneG_fiber<>Configurator!$B$23)) +IF(Configurator!$B$20<>"",(TenG_copper<>Configurator!$B$20)) +IF(Configurator!$B$21<>"",(TenG_fiber<>Configurator!$B$21)) +IF(Configurator!$B$25<>"",(OneG_PoE_Plus<>Configurator!$B$25)) +IF(Configurator!$B$26<>"",(OneG_UPOE<>Configurator!$B$26)) +IF(Configurator!$B$28<>"",(NPlusOne<>Configurator!$B$28)) +IF(Configurator!$B$29<>"",(AC_in<>Configurator!$B$29)) +IF(Configurator!$B$31<>"",(Budget<>Configurator!$B$31)), 0)) ->  | B8: =INDEX(fabric,MATCH(0,COUNTIF($B$1:B7,fabric) +IF(Configurator!$B$16<>"",(size<>Configurator!$B$16)) +IF(Configurator!$B$22<>"",(OneG_copper<>Configurator!$B$22)) +IF(Configurator!$B$23<>"",(OneG_fiber<>Configurator!$B$23)) +IF(Configurator!$B$20<>"",(TenG_copper<>Configurator!$B$20)) +IF(Configurator!$B$21<>"",(TenG_fiber<>Configurator!$B$21)) +IF(Configurator!$B$25<>"",(OneG_PoE_Plus<>Configurator!$B$25)) +IF(Configurator!$B$26<>"",(OneG_UPOE<>Configurator!$B$26)) +IF(Configurator!$B$28<>"",(NPlusOne<>Configurator!$B$28)) +IF(Configurator!$B$29<>"",(AC_in<>Configurator!$B$29)) +IF(Configurator!$B$31<>"",(Budget<>Configurator!$B$31)), 0)) ->  | C8: =INDEX(OneG_copper,MATCH(0,COUNTIF(C$1:C7,OneG_copper) +IF(Configurator!$B$16<>"",(size<>Configurator!$B$16)) +IF(Configurator!$B$18<>"",(fabric<>Configurator!$B$18)) +IF(Configurator!$B$23<>"",(OneG_fiber<>Configurator!$B$23)) +IF(Configurator!$B$20<>"",(TenG_copper<>Configurator!$B$20)) +IF(Configurator!$B$21<>"",(TenG_fiber<>Configurator!$B$21)) +IF(Configurator!$B$25<>"",(OneG_PoE_Plus<>Configurator!$B$25)) +IF(Configurator!$B$26<>"",(OneG_UPOE<>Configurator!$B$26)) +IF(Configurator!$B$28<>"",(NPlusOne<>Configurator!$B$28)) +IF(Configurator!$B$29<>"",(AC_in<>Configurator!$B$29)) +IF(Configurator!$B$31<>"",(Budget<>Configurator!$B$31)), 0)) -> 40 | D8: =INDEX(OneG_fiber,MATCH(0,COUNTIF(D$1:D7,OneG_fiber) +IF(Configurator!$B$16<>"",(size<>Configurator!$B$16)) +IF(Configurator!$B$18<>"",(fabric<>Configurator!$B$18)) +IF(Configurator!$B$22<>"",(OneG_copper<>Configurator!$B$22)) +IF(Configurator!$B$20<>"",(TenG_copper<>Configurator!$B$20)) +IF(Configurator!$B$21<>"",(TenG_fiber<>Configurator!$B$21)) +IF(Configurator!$B$25<>"",(OneG_PoE_Plus<>Configurator!$B$25)) +IF(Configurator!$B$26<>"",(OneG_UPOE<>Configurator!$B$26)) +IF(Configurator!$B$28<>"",(NPlusOne<>Configurator!$B$28)) +IF(Configurator!$B$29<>"",(AC_in<>Configurator!$B$29)) +IF(Configurator!$B$31<>"",(Budget<>Configurator!$B$31)), 0)) ->  | E8: =INDEX(TenG_copper,MATCH(0,COUNTIF(E$1:E7,TenG_copper) +IF(Configurator!$B$16<>"",(size<>Configurator!$B$16)) +IF(Configurator!$B$18<>"",(fabric<>Configurator!$B$18)) +IF(Configurator!$B$22<>"",(OneG_copper<>Configurator!$B$22)) +IF(Configurator!$B$23<>"",(OneG_fiber<>Configurator!$B$23)) +IF(Configurator!$B$21<>"",(TenG_fiber<>Configurator!$B$21)) +IF(Configurator!$B$25<>"",(OneG_PoE_Plus<>Configurator!$B$25)) +IF(Configurator!$B$26<>"",(OneG_UPOE<>Configurator!$B$26)) +IF(Configurator!$B$28<>"",(NPlusOne<>Configurator!$B$28)) +IF(Configurator!$B$29<>"",(AC_in<>Configurator!$B$29)) +IF(Configurator!$B$31<>"",(Budget<>Configurator!$B$31)), 0)) -> 28 | F8: =INDEX(TenG_fiber,MATCH(0,COUNTIF(F$1:F7,TenG_fiber) +IF(Configurator!$B$16<>"",(size<>Configurator!$B$16)) +IF(Configurator!$B$18<>"",(fabric<>Configurator!$B$18)) +IF(Configurator!$B$22<>"",(OneG_copper<>Configurator!$B$22)) +IF(Configurator!$B$23<>"",(OneG_fiber<>Configurator!$B$23)) +IF(Configurator!$B$20<>"",(TenG_copper<>Configurator!$B$20)) +IF(Configurator!$B$25<>"",(OneG_PoE_Plus<>Configurator!$B$25)) +IF(Configurator!$B$26<>"",(OneG_UPOE<>Configurator!$B$26)) +IF(Configurator!$B$28<>"",(NPlusOne<>Configurator!$B$28)) +IF(Configurator!$B$29<>"",(AC_in<>Configurator!$B$29)) +IF(Configurator!$B$31<>"",(Budget<>Configurator!$B$31)), 0)) -> 20 | G8: =INDEX(OneG_PoE_Plus,MATCH(0,COUNTIF(G$1:G7,OneG_PoE_Plus) +IF(Configurator!$B$16<>"",(size<>Configurator!$B$16)) +IF(Configurator!$B$18<>"",(fabric<>Configurator!$B$18)) +IF(Configurator!$B$22<>"",(OneG_copper<>Configurator!$B$22)) +IF(Configurator!$B$23<>"",(OneG_fiber<>Configurator!$B$23)) +IF(Configurator!$B$20<>"",(TenG_copper<>Configurator!$B$20)) +IF(Configurator!$B$21<>"",(TenG_fiber<>Configurator!$B$21)) +IF(Configurator!$B$26<>"",(OneG_UPOE<>Configurator!$B$26)) +IF(Configurator!$B$28<>"",(NPlusOne<>Configurator!$B$28)) +IF(Configurator!$B$29<>"",(AC_in<>Configurator!$B$29)) +IF(Configurator!$B$31<>"",(Budget<>Configurator!$B$31)), 0)) -> 136 | H8: =INDEX(OneG_UPOE,MATCH(0,COUNTIF(H$1:H7,OneG_UPOE) +IF(Configurator!$B$16<>"",(size<>Configurator!$B$16)) +IF(Configurator!$B$18<>"",(fabric<>Configurator!$B$18)) +IF(Configurator!$B$22<>"",(OneG_copper<>Configurator!$B$22)) +IF(Configurator!$B$23<>"",(OneG_fiber<>Configurator!$B$23)) +IF(Configurator!$B$20<>"",(TenG_copper<>Configurator!$B$20)) +IF(Configurator!$B$21<>"",(TenG_fiber<>Configurator!$B$21)) +IF(Configurator!$B$25<>"",(OneG_PoE_Plus<>Configurator!$B$25)) +IF(Configurator!$B$28<>"",(NPlusOne<>Configurator!$B$28)) +IF(Configurator!$B$29<>"",(AC_in<>Configurator!$B$29)) +IF(Configurator!$B$31<>"",(Budget<>Configurator!$B$31)), 0)) -> 136 | I8: =INDEX(NPlusOne,MATCH(0,COUNTIF(I$1:I7,NPlusOne) +IF(Configurator!$B$16<>"",(size<>Configurator!$B$16)) +IF(Configurator!$B$18<>"",(fabric<>Configurator!$B$18)) +IF(Configurator!$B$22<>"",(OneG_copper<>Configurator!$B$22)) +IF(Configurator!$B$23<>"",(OneG_fiber<>Configurator!$B$23)) +IF(Configurator!$B$20<>"",(TenG_copper<>Configurator!$B$20)) +IF(Configurator!$B$21<>"",(TenG_fiber<>Configurator!$B$21)) +IF(Configurator!$B$25<>"",(OneG_PoE_Plus<>Configurator!$B$25)) +IF(Configurator!$B$26<>"",(OneG_UPOE<>Configurator!$B$26)) +IF(Configurator!$B$29<>"",(AC_in<>Configurator!$B$29)) +IF(Configurator!$B$31<>"",(Budget<>Configurator!$B$31)), 0)) ->  | J8: =INDEX(AC_in,MATCH(0,COUNTIF(J$1:J7,AC_in) +IF(Configurator!$B$16<>"",(size<>Configurator!$B$16)) +IF(Configurator!$B$18<>"",(fabric<>Configurator!$B$18)) +IF(Configurator!$B$22<>"",(OneG_copper<>Configurator!$B$22)) +IF(Configurator!$B$23<>"",(OneG_fiber<>Configurator!$B$23)) +IF(Configurator!$B$20<>"",(TenG_copper<>Configurator!$B$20)) +IF(Configurator!$B$21<>"",(TenG_fiber<>Configurator!$B$21)) +IF(Configurator!$B$25<>"",(OneG_PoE_Plus<>Configurator!$B$25)) +IF(Configurator!$B$26<>"",(OneG_UPOE<>Configurator!$B$26)) +IF(Configurator!$B$28<>"",(NPlusOne<>Configurator!$B$28)) +IF(Configurator!$B$31<>"",(Budget<>Configurator!$B$31)), 0)) ->  | K8: =INDEX(Budget,MATCH(0,COUNTIF(K$1:K7,Budget) +IF(Configurator!$B$16<>"",(size<>Configurator!$B$16)) +IF(Configurator!$B$18<>"",(fabric<>Configurator!$B$18)) +IF(Configurator!$B$22<>"",(OneG_copper<>Configurator!$B$22)) +IF(Configurator!$B$23<>"",(OneG_fiber<>Configurator!$B$23)) +IF(Configurator!$B$20<>"",(TenG_copper<>Configurator!$B$20)) +IF(Configurator!$B$21<>"",(TenG_fiber<>Configurator!$B$21)) +IF(Configurator!$B$25<>"",(OneG_PoE_Plus<>Configurator!$B$25)) +IF(Configurator!$B$26<>"",(OneG_UPOE<>Configurator!$B$26)) +IF(Configurator!$B$28<>"",(NPlusOne<>Configurator!$B$28)) +IF(Configurator!$B$29<>"",(AC_in<>Configurator!$B$29)), 0)) -> 430 | L8: =INDEX(INDEX,MATCH(0,COUNTIF(L$1:L7,INDEX) +IF(Configurator!$B$16<>"",(size<>Configurator!$B$16)) +IF(Configurator!$B$18<>"",(fabric<>Configurator!$B$18)) +IF(Configurator!$B$22<>"",(OneG_copper<>Configurator!$B$22)) +IF(Configurator!$B$23<>"",(OneG_fiber<>Configurator!$B$23)) +IF(Configurator!$B$20<>"",(TenG_copper<>Configurator!$B$20)) +IF(Configurator!$B$21<>"",(TenG_fiber<>Configurator!$B$21)) +IF(Configurator!$B$25<>"",(OneG_PoE_Plus<>Configurator!$B$25)) +IF(Configurator!$B$26<>"",(OneG_UPOE<>Configurator!$B$26)) +IF(Configurator!$B$28<>"",(NPlusOne<>Configurator!$B$28)) +IF(Configurator!$B$29<>"",(AC_in<>Configurator!$B$29)) +IF(Configurator!$B$31<>"",(Budget<>Configurator!$B$31)), 0)) -> 129No110V1
A9: =INDEX(size,MATCH(0,COUNTIF($A$1:A8,size) +IF(Configurator!$B$18<>"",(fabric<>Configurator!$B$18)) +IF(Configurator!$B$22<>"",(OneG_copper<>Configurator!$B$22)) +IF(Configurator!$B$23<>"",(OneG_fiber<>Configurator!$B$23)) +IF(Configurator!$B$20<>"",(TenG_copper<>Configurator!$B$20)) +IF(Configurator!$B$21<>"",(TenG_fiber<>Configurator!$B$21)) +IF(Configurator!$B$25<>"",(OneG_PoE_Plus<>Configurator!$B$25)) +IF(Configurator!$B$26<>"",(OneG_UPOE<>Configurator!$B$26)) +IF(Configurator!$B$28<>"",(NPlusOne<>Configurator!$B$28)) +IF(Configurator!$B$29<>"",(AC_in<>Configurator!$B$29)) +IF(Configurator!$B$31<>"",(Budget<>Configurator!$B$31)), 0)) ->  | B9: =INDEX(fabric,MATCH(0,COUNTIF($B$1:B8,fabric) +IF(Configurator!$B$16<>"",(size<>Configurator!$B$16)) +IF(Configurator!$B$22<>"",(OneG_copper<>Configurator!$B$22)) +IF(Configurator!$B$23<>"",(OneG_fiber<>Configurator!$B$23)) +IF(Configurator!$B$20<>"",(TenG_copper<>Configurator!$B$20)) +IF(Configurator!$B$21<>"",(TenG_fiber<>Configurator!$B$21)) +IF(Configurator!$B$25<>"",(OneG_PoE_Plus<>Configurator!$B$25)) +IF(Configurator!$B$26<>"",(OneG_UPOE<>Configurator!$B$26)) +IF(Configurator!$B$28<>"",(NPlusOne<>Configurator!$B$28)) +IF(Configurator!$B$29<>"",(AC_in<>Configurator!$B$29)) +IF(Configurator!$B$31<>"",(Budget<>Configurator!$B$31)), 0)) ->  | C9: =INDEX(OneG_copper,MATCH(0,COUNTIF(C$1:C8,OneG_copper) +IF(Configurator!$B$16<>"",(size<>Configurator!$B$16)) +IF(Configurator!$B$18<>"",(fabric<>Configurator!$B$18)) +IF(Configurator!$B$23<>"",(OneG_fiber<>Configurator!$B$23)) +IF(Configurator!$B$20<>"",(TenG_copper<>Configurator!$B$20)) +IF(Configurator!$B$21<>"",(TenG_fiber<>Configurator!$B$21)) +IF(Configurator!$B$25<>"",(OneG_PoE_Plus<>Configurator!$B$25)) +IF(Configurator!$B$26<>"",(OneG_UPOE<>Configurator!$B$26)) +IF(Configurator!$B$28<>"",(NPlusOne<>Configurator!$B$28)) +IF(Configurator!$B$29<>"",(AC_in<>Configurator!$B$29)) +IF(Configurator!$B$31<>"",(Budget<>Configurator!$B$31)), 0)) -> 80 | D9: =INDEX(OneG_fiber,MATCH(0,COUNTIF(D$1:D8,OneG_fiber) +IF(Configurator!$B$16<>"",(size<>Configurator!$B$16)) +IF(Configurator!$B$18<>"",(fabric<>Configurator!$B$18)) +IF(Configurator!$B$22<>"",(OneG_copper<>Configurator!$B$22)) +IF(Configurator!$B$20<>"",(TenG_copper<>Configurator!$B$20)) +IF(Configurator!$B$21<>"",(TenG_fiber<>Configurator!$B$21)) +IF(Configurator!$B$25<>"",(OneG_PoE_Plus<>Configurator!$B$25)) +IF(Configurator!$B$26<>"",(OneG_UPOE<>Configurator!$B$26)) +IF(Configurator!$B$28<>"",(NPlusOne<>Configurator!$B$28)) +IF(Configurator!$B$29<>"",(AC_in<>Configurator!$B$29)) +IF(Configurator!$B$31<>"",(Budget<>Configurator!$B$31)), 0)) ->  | E9: =INDEX(TenG_copper,MATCH(0,COUNTIF(E$1:E8,TenG_copper) +IF(Configurator!$B$16<>"",(size<>Configurator!$B$16)) +IF(Configurator!$B$18<>"",(fabric<>Configurator!$B$18)) +IF(Configurator!$B$22<>"",(OneG_copper<>Configurator!$B$22)) +IF(Configurator!$B$23<>"",(OneG_fiber<>Configurator!$B$23)) +IF(Configurator!$B$21<>"",(TenG_fiber<>Configurator!$B$21)) +IF(Configurator!$B$25<>"",(OneG_PoE_Plus<>Configurator!$B$25)) +IF(Configurator!$B$26<>"",(OneG_UPOE<>Configurator!$B$26)) +IF(Configurator!$B$28<>"",(NPlusOne<>Configurator!$B$28)) +IF(Configurator!$B$29<>"",(AC_in<>Configurator!$B$29)) +IF(Configurator!$B$31<>"",(Budget<>Configurator!$B$31)), 0)) -> 6 | F9: =INDEX(TenG_fiber,MATCH(0,COUNTIF(F$1:F8,TenG_fiber) +IF(Configurator!$B$16<>"",(size<>Configurator!$B$16)) +IF(Configurator!$B$18<>"",(fabric<>Configurator!$B$18)) +IF(Configurator!$B$22<>"",(OneG_copper<>Configurator!$B$22)) +IF(Configurator!$B$23<>"",(OneG_fiber<>Configurator!$B$23)) +IF(Configurator!$B$20<>"",(TenG_copper<>Configurator!$B$20)) +IF(Configurator!$B$25<>"",(OneG_PoE_Plus<>Configurator!$B$25)) +IF(Configurator!$B$26<>"",(OneG_UPOE<>Configurator!$B$26)) +IF(Configurator!$B$28<>"",(NPlusOne<>Configurator!$B$28)) +IF(Configurator!$B$29<>"",(AC_in<>Configurator!$B$29)) +IF(Configurator!$B$31<>"",(Budget<>Configurator!$B$31)), 0)) -> 6 | G9: =INDEX(OneG_PoE_Plus,MATCH(0,COUNTIF(G$1:G8,OneG_PoE_Plus) +IF(Configurator!$B$16<>"",(size<>Configurator!$B$16)) +IF(Configurator!$B$18<>"",(fabric<>Configurator!$B$18)) +IF(Configurator!$B$22<>"",(OneG_copper<>Configurator!$B$22)) +IF(Configurator!$B$23<>"",(OneG_fiber<>Configurator!$B$23)) +IF(Configurator!$B$20<>"",(TenG_copper<>Configurator!$B$20)) +IF(Configurator!$B$21<>"",(TenG_fiber<>Configurator!$B$21)) +IF(Configurator!$B$26<>"",(OneG_UPOE<>Configurator!$B$26)) +IF(Configurator!$B$28<>"",(NPlusOne<>Configurator!$B$28)) +IF(Configurator!$B$29<>"",(AC_in<>Configurator!$B$29)) +IF(Configurator!$B$31<>"",(Budget<>Configurator!$B$31)), 0)) -> 128 | H9: =INDEX(OneG_UPOE,MATCH(0,COUNTIF(H$1:H8,OneG_UPOE) +IF(Configurator!$B$16<>"",(size<>Configurator!$B$16)) +IF(Configurator!$B$18<>"",(fabric<>Configurator!$B$18)) +IF(Configurator!$B$22<>"",(OneG_copper<>Configurator!$B$22)) +IF(Configurator!$B$23<>"",(OneG_fiber<>Configurator!$B$23)) +IF(Configurator!$B$20<>"",(TenG_copper<>Configurator!$B$20)) +IF(Configurator!$B$21<>"",(TenG_fiber<>Configurator!$B$21)) +IF(Configurator!$B$25<>"",(OneG_PoE_Plus<>Configurator!$B$25)) +IF(Configurator!$B$28<>"",(NPlusOne<>Configurator!$B$28)) +IF(Configurator!$B$29<>"",(AC_in<>Configurator!$B$29)) +IF(Configurator!$B$31<>"",(Budget<>Configurator!$B$31)), 0)) -> 128 | I9: =INDEX(NPlusOne,MATCH(0,COUNTIF(I$1:I8,NPlusOne) +IF(Configurator!$B$16<>"",(size<>Configurator!$B$16)) +IF(Configurator!$B$18<>"",(fabric<>Configurator!$B$18)) +IF(Configurator!$B$22<>"",(OneG_copper<>Configurator!$B$22)) +IF(Configurator!$B$23<>"",(OneG_fiber<>Configurator!$B$23)) +IF(Configurator!$B$20<>"",(TenG_copper<>Configurator!$B$20)) +IF(Configurator!$B$21<>"",(TenG_fiber<>Configurator!$B$21)) +IF(Configurator!$B$25<>"",(OneG_PoE_Plus<>Configurator!$B$25)) +IF(Configurator!$B$26<>"",(OneG_UPOE<>Configurator!$B$26)) +IF(Configurator!$B$29<>"",(AC_in<>Configurator!$B$29)) +IF(Configurator!$B$31<>"",(Budget<>Configurator!$B$31)), 0)) ->  | J9: =INDEX(AC_in,MATCH(0,COUNTIF(J$1:J8,AC_in) +IF(Configurator!$B$16<>"",(size<>Configurator!$B$16)) +IF(Configurator!$B$18<>"",(fabric<>Configurator!$B$18)) +IF(Configurator!$B$22<>"",(OneG_copper<>Configurator!$B$22)) +IF(Configurator!$B$23<>"",(OneG_fiber<>Configurator!$B$23)) +IF(Configurator!$B$20<>"",(TenG_copper<>Configurator!$B$20)) +IF(Configurator!$B$21<>"",(TenG_fiber<>Configurator!$B$21)) +IF(Configurator!$B$25<>"",(OneG_PoE_Plus<>Configurator!$B$25)) +IF(Configurator!$B$26<>"",(OneG_UPOE<>Configurator!$B$26)) +IF(Configurator!$B$28<>"",(NPlusOne<>Configurator!$B$28)) +IF(Configurator!$B$31<>"",(Budget<>Configurator!$B$31)), 0)) ->  | K9: =INDEX(Budget,MATCH(0,COUNTIF(K$1:K8,Budget) +IF(Configurator!$B$16<>"",(size<>Configurator!$B$16)) +IF(Configurator!$B$18<>"",(fabric<>Configurator!$B$18)) +IF(Configurator!$B$22<>"",(OneG_copper<>Configurator!$B$22)) +IF(Configurator!$B$23<>"",(OneG_fiber<>Configurator!$B$23)) +IF(Configurator!$B$20<>"",(TenG_copper<>Configurator!$B$20)) +IF(Configurator!$B$21<>"",(TenG_fiber<>Configurator!$B$21)) +IF(Configurator!$B$25<>"",(OneG_PoE_Plus<>Configurator!$B$25)) +IF(Configurator!$B$26<>"",(OneG_UPOE<>Configurator!$B$26)) +IF(Configurator!$B$28<>"",(NPlusOne<>Configurator!$B$28)) +IF(Configurator!$B$29<>"",(AC_in<>Configurator!$B$29)), 0)) -> 370 | L9: =INDEX(INDEX,MATCH(0,COUNTIF(L$1:L8,INDEX) +IF(Configurator!$B$16<>"",(size<>Configurator!$B$16)) +IF(Configurator!$B$18<>"",(fabric<>Configurator!$B$18)) +IF(Configurator!$B$22<>"",(OneG_copper<>Configurator!$B$22)) +IF(Configurator!$B$23<>"",(OneG_fiber<>Configurator!$B$23)) +IF(Configurator!$B$20<>"",(TenG_copper<>Configurator!$B$20)) +IF(Configurator!$B$21<>"",(TenG_fiber<>Configurator!$B$21)) +IF(Configurator!$B$25<>"",(OneG_PoE_Plus<>Configurator!$B$25)) +IF(Configurator!$B$26<>"",(OneG_UPOE<>Configurator!$B$26)) +IF(Configurator!$B$28<>"",(NPlusOne<>Configurator!$B$28)) +IF(Configurator!$B$29<>"",(AC_in<>Configurator!$B$29)) +IF(Configurator!$B$31<>"",(Budget<>Configurator!$B$31)), 0)) -> 112No110V1
A10: =INDEX(size,MATCH(0,COUNTIF($A$1:A9,size) +IF(Configurator!$B$18<>"",(fabric<>Configurator!$B$18)) +IF(Configurator!$B$22<>"",(OneG_copper<>Configurator!$B$22)) +IF(Configurator!$B$23<>"",(OneG_fiber<>Configurator!$B$23)) +IF(Configurator!$B$20<>"",(TenG_copper<>Configurator!$B$20)) +IF(Configurator!$B$21<>"",(TenG_fiber<>Configurator!$B$21)) +IF(Configurator!$B$25<>"",(OneG_PoE_Plus<>Configurator!$B$25)) +IF(Configurator!$B$26<>"",(OneG_UPOE<>Configurator!$B$26)) +IF(Configurator!$B$28<>"",(NPlusOne<>Configurator!$B$28)) +IF(Configurator!$B$29<>"",(AC_in<>Configurator!$B$29)) +IF(Configurator!$B$31<>"",(Budget<>Configurator!$B$31)), 0)) ->  | B10: =INDEX(fabric,MATCH(0,COUNTIF($B$1:B9,fabric) +IF(Configurator!$B$16<>"",(size<>Configurator!$B$16)) +IF(Configurator!$B$22<>"",(OneG_copper<>Configurator!$B$22)) +IF(Configurator!$B$23<>"",(OneG_fiber<>Configurator!$B$23)) +IF(Configurator!$B$20<>"",(TenG_copper<>Configurator!$B$20)) +IF(Configurator!$B$21<>"",(TenG_fiber<>Configurator!$B$21)) +IF(Configurator!$B$25<>"",(OneG_PoE_Plus<>Configurator!$B$25)) +IF(Configurator!$B$26<>"",(OneG_UPOE<>Configurator!$B$26)) +IF(Configurator!$B$28<>"",(NPlusOne<>Configurator!$B$28)) +IF(Configurator!$B$29<>"",(AC_in<>Configurator!$B$29)) +IF(Configurator!$B$31<>"",(Budget<>Configurator!$B$31)), 0)) ->  | C10: =INDEX(OneG_copper,MATCH(0,COUNTIF(C$1:C9,OneG_copper) +IF(Configurator!$B$16<>"",(size<>Configurator!$B$16)) +IF(Configurator!$B$18<>"",(fabric<>Configurator!$B$18)) +IF(Configurator!$B$23<>"",(OneG_fiber<>Configurator!$B$23)) +IF(Configurator!$B$20<>"",(TenG_copper<>Configurator!$B$20)) +IF(Configurator!$B$21<>"",(TenG_fiber<>Configurator!$B$21)) +IF(Configurator!$B$25<>"",(OneG_PoE_Plus<>Configurator!$B$25)) +IF(Configurator!$B$26<>"",(OneG_UPOE<>Configurator!$B$26)) +IF(Configurator!$B$28<>"",(NPlusOne<>Configurator!$B$28)) +IF(Configurator!$B$29<>"",(AC_in<>Configurator!$B$29)) +IF(Configurator!$B$31<>"",(Budget<>Configurator!$B$31)), 0)) -> 120 | D10: =INDEX(OneG_fiber,MATCH(0,COUNTIF(D$1:D9,OneG_fiber) +IF(Configurator!$B$16<>"",(size<>Configurator!$B$16)) +IF(Configurator!$B$18<>"",(fabric<>Configurator!$B$18)) +IF(Configurator!$B$22<>"",(OneG_copper<>Configurator!$B$22)) +IF(Configurator!$B$20<>"",(TenG_copper<>Configurator!$B$20)) +IF(Configurator!$B$21<>"",(TenG_fiber<>Configurator!$B$21)) +IF(Configurator!$B$25<>"",(OneG_PoE_Plus<>Configurator!$B$25)) +IF(Configurator!$B$26<>"",(OneG_UPOE<>Configurator!$B$26)) +IF(Configurator!$B$28<>"",(NPlusOne<>Configurator!$B$28)) +IF(Configurator!$B$29<>"",(AC_in<>Configurator!$B$29)) +IF(Configurator!$B$31<>"",(Budget<>Configurator!$B$31)), 0)) ->  | E10: =INDEX(TenG_copper,MATCH(0,COUNTIF(E$1:E9,TenG_copper) +IF(Configurator!$B$16<>"",(size<>Configurator!$B$16)) +IF(Configurator!$B$18<>"",(fabric<>Configurator!$B$18)) +IF(Configurator!$B$22<>"",(OneG_copper<>Configurator!$B$22)) +IF(Configurator!$B$23<>"",(OneG_fiber<>Configurator!$B$23)) +IF(Configurator!$B$21<>"",(TenG_fiber<>Configurator!$B$21)) +IF(Configurator!$B$25<>"",(OneG_PoE_Plus<>Configurator!$B$25)) +IF(Configurator!$B$26<>"",(OneG_UPOE<>Configurator!$B$26)) +IF(Configurator!$B$28<>"",(NPlusOne<>Configurator!$B$28)) +IF(Configurator!$B$29<>"",(AC_in<>Configurator!$B$29)) +IF(Configurator!$B$31<>"",(Budget<>Configurator!$B$31)), 0)) -> 50 | F10: =INDEX(TenG_fiber,MATCH(0,COUNTIF(F$1:F9,TenG_fiber) +IF(Configurator!$B$16<>"",(size<>Configurator!$B$16)) +IF(Configurator!$B$18<>"",(fabric<>Configurator!$B$18)) +IF(Configurator!$B$22<>"",(OneG_copper<>Configurator!$B$22)) +IF(Configurator!$B$23<>"",(OneG_fiber<>Configurator!$B$23)) +IF(Configurator!$B$20<>"",(TenG_copper<>Configurator!$B$20)) +IF(Configurator!$B$25<>"",(OneG_PoE_Plus<>Configurator!$B$25)) +IF(Configurator!$B$26<>"",(OneG_UPOE<>Configurator!$B$26)) +IF(Configurator!$B$28<>"",(NPlusOne<>Configurator!$B$28)) +IF(Configurator!$B$29<>"",(AC_in<>Configurator!$B$29)) +IF(Configurator!$B$31<>"",(Budget<>Configurator!$B$31)), 0)) -> 34 | G10: =INDEX(OneG_PoE_Plus,MATCH(0,COUNTIF(G$1:G9,OneG_PoE_Plus) +IF(Configurator!$B$16<>"",(size<>Configurator!$B$16)) +IF(Configurator!$B$18<>"",(fabric<>Configurator!$B$18)) +IF(Configurator!$B$22<>"",(OneG_copper<>Configurator!$B$22)) +IF(Configurator!$B$23<>"",(OneG_fiber<>Configurator!$B$23)) +IF(Configurator!$B$20<>"",(TenG_copper<>Configurator!$B$20)) +IF(Configurator!$B$21<>"",(TenG_fiber<>Configurator!$B$21)) +IF(Configurator!$B$26<>"",(OneG_UPOE<>Configurator!$B$26)) +IF(Configurator!$B$28<>"",(NPlusOne<>Configurator!$B$28)) +IF(Configurator!$B$29<>"",(AC_in<>Configurator!$B$29)) +IF(Configurator!$B$31<>"",(Budget<>Configurator!$B$31)), 0)) -> 144 | H10: =INDEX(OneG_UPOE,MATCH(0,COUNTIF(H$1:H9,OneG_UPOE) +IF(Configurator!$B$16<>"",(size<>Configurator!$B$16)) +IF(Configurator!$B$18<>"",(fabric<>Configurator!$B$18)) +IF(Configurator!$B$22<>"",(OneG_copper<>Configurator!$B$22)) +IF(Configurator!$B$23<>"",(OneG_fiber<>Configurator!$B$23)) +IF(Configurator!$B$20<>"",(TenG_copper<>Configurator!$B$20)) +IF(Configurator!$B$21<>"",(TenG_fiber<>Configurator!$B$21)) +IF(Configurator!$B$25<>"",(OneG_PoE_Plus<>Configurator!$B$25)) +IF(Configurator!$B$28<>"",(NPlusOne<>Configurator!$B$28)) +IF(Configurator!$B$29<>"",(AC_in<>Configurator!$B$29)) +IF(Configurator!$B$31<>"",(Budget<>Configurator!$B$31)), 0)) -> 144 | I10: =INDEX(NPlusOne,MATCH(0,COUNTIF(I$1:I9,NPlusOne) +IF(Configurator!$B$16<>"",(size<>Configurator!$B$16)) +IF(Configurator!$B$18<>"",(fabric<>Configurator!$B$18)) +IF(Configurator!$B$22<>"",(OneG_copper<>Configurator!$B$22)) +IF(Configurator!$B$23<>"",(OneG_fiber<>Configurator!$B$23)) +IF(Configurator!$B$20<>"",(TenG_copper<>Configurator!$B$20)) +IF(Configurator!$B$21<>"",(TenG_fiber<>Configurator!$B$21)) +IF(Configurator!$B$25<>"",(OneG_PoE_Plus<>Configurator!$B$25)) +IF(Configurator!$B$26<>"",(OneG_UPOE<>Configurator!$B$26)) +IF(Configurator!$B$29<>"",(AC_in<>Configurator!$B$29)) +IF(Configurator!$B$31<>"",(Budget<>Configurator!$B$31)), 0)) ->  | J10: =INDEX(AC_in,MATCH(0,COUNTIF(J$1:J9,AC_in) +IF(Configurator!$B$16<>"",(size<>Configurator!$B$16)) +IF(Configurator!$B$18<>"",(fabric<>Configurator!$B$18)) +IF(Configurator!$B$22<>"",(OneG_copper<>Configurator!$B$22)) +IF(Configurator!$B$23<>"",(OneG_fiber<>Configurator!$B$23)) +IF(Configurator!$B$20<>"",(TenG_copper<>Configurator!$B$20)) +IF(Configurator!$B$21<>"",(TenG_fiber<>Configurator!$B$21)) +IF(Configurator!$B$25<>"",(OneG_PoE_Plus<>Configurator!$B$25)) +IF(Configurator!$B$26<>"",(OneG_UPOE<>Configurator!$B$26)) +IF(Configurator!$B$28<>"",(NPlusOne<>Configurator!$B$28)) +IF(Configurator!$B$31<>"",(Budget<>Configurator!$B$31)), 0)) ->  | K10: =INDEX(Budget,MATCH(0,COUNTIF(K$1:K9,Budget) +IF(Configurator!$B$16<>"",(size<>Configurator!$B$16)) +IF(Configurator!$B$18<>"",(fabric<>Configurator!$B$18)) +IF(Configurator!$B$22<>"",(OneG_copper<>Configurator!$B$22)) +IF(Configurator!$B$23<>"",(OneG_fiber<>Configurator!$B$23)) +IF(Configurator!$B$20<>"",(TenG_copper<>Configurator!$B$20)) +IF(Configurator!$B$21<>"",(TenG_fiber<>Configurator!$B$21)) +IF(Configurator!$B$25<>"",(OneG_PoE_Plus<>Configurator!$B$25)) +IF(Configurator!$B$26<>"",(OneG_UPOE<>Configurator!$B$26)) +IF(Configurator!$B$28<>"",(NPlusOne<>Configurator!$B$28)) +IF(Configurator!$B$29<>"",(AC_in<>Configurator!$B$29)), 0)) -> 280 | L10: =INDEX(INDEX,MATCH(0,COUNTIF(L$1:L9,INDEX) +IF(Configurator!$B$16<>"",(size<>Configurator!$B$16)) +IF(Configurator!$B$18<>"",(fabric<>Configurator!$B$18)) +IF(Configurator!$B$22<>"",(OneG_copper<>Configurator!$B$22)) +IF(Configurator!$B$23<>"",(OneG_fiber<>Configurator!$B$23)) +IF(Configurator!$B$20<>"",(TenG_copper<>Configurator!$B$20)) +IF(Configurator!$B$21<>"",(TenG_fiber<>Configurator!$B$21)) +IF(Configurator!$B$25<>"",(OneG_PoE_Plus<>Configurator!$B$25)) +IF(Configurator!$B$26<>"",(OneG_UPOE<>Configurator!$B$26)) +IF(Configurator!$B$28<>"",(NPlusOne<>Configurator!$B$28)) +IF(Configurator!$B$29<>"",(AC_in<>Configurator!$B$29)) +IF(Configurator!$B$31<>"",(Budget<>Configurator!$B$31)), 0)) -> 122No110V1
A11: =INDEX(size,MATCH(0,COUNTIF($A$1:A10,size) +IF(Configurator!$B$18<>"",(fabric<>Configurator!$B$18)) +IF(Configurator!$B$22<>"",(OneG_copper<>Configurator!$B$22)) +IF(Configurator!$B$23<>"",(OneG_fiber<>Configurator!$B$23)) +IF(Configurator!$B$20<>"",(TenG_copper<>Configurator!$B$20)) +IF(Configurator!$B$21<>"",(TenG_fiber<>Configurator!$B$21)) +IF(Configurator!$B$25<>"",(OneG_PoE_Plus<>Configurator!$B$25)) +IF(Configurator!$B$26<>"",(OneG_UPOE<>Configurator!$B$26)) +IF(Configurator!$B$28<>"",(NPlusOne<>Configurator!$B$28)) +IF(Configurator!$B$29<>"",(AC_in<>Configurator!$B$29)) +IF(Configurator!$B$31<>"",(Budget<>Configurator!$B$31)), 0)) ->  | B11: =INDEX(fabric,MATCH(0,COUNTIF($B$1:B10,fabric) +IF(Configurator!$B$16<>"",(size<>Configurator!$B$16)) +IF(Configurator!$B$22<>"",(OneG_copper<>Configurator!$B$22)) +IF(Configurator!$B$23<>"",(OneG_fiber<>Configurator!$B$23)) +IF(Configurator!$B$20<>"",(TenG_copper<>Configurator!$B$20)) +IF(Configurator!$B$21<>"",(TenG_fiber<>Configurator!$B$21)) +IF(Configurator!$B$25<>"",(OneG_PoE_Plus<>Configurator!$B$25)) +IF(Configurator!$B$26<>"",(OneG_UPOE<>Configurator!$B$26)) +IF(Configurator!$B$28<>"",(NPlusOne<>Configurator!$B$28)) +IF(Configurator!$B$29<>"",(AC_in<>Configurator!$B$29)) +IF(Configurator!$B$31<>"",(Budget<>Configurator!$B$31)), 0)) ->  | C11: =INDEX(OneG_copper,MATCH(0,COUNTIF(C$1:C10,OneG_copper) +IF(Configurator!$B$16<>"",(size<>Configurator!$B$16)) +IF(Configurator!$B$18<>"",(fabric<>Configurator!$B$18)) +IF(Configurator!$B$23<>"",(OneG_fiber<>Configurator!$B$23)) +IF(Configurator!$B$20<>"",(TenG_copper<>Configurator!$B$20)) +IF(Configurator!$B$21<>"",(TenG_fiber<>Configurator!$B$21)) +IF(Configurator!$B$25<>"",(OneG_PoE_Plus<>Configurator!$B$25)) +IF(Configurator!$B$26<>"",(OneG_UPOE<>Configurator!$B$26)) +IF(Configurator!$B$28<>"",(NPlusOne<>Configurator!$B$28)) +IF(Configurator!$B$29<>"",(AC_in<>Configurator!$B$29)) +IF(Configurator!$B$31<>"",(Budget<>Configurator!$B$31)), 0)) -> 0 | D11: =INDEX(OneG_fiber,MATCH(0,COUNTIF(D$1:D10,OneG_fiber) +IF(Configurator!$B$16<>"",(size<>Configurator!$B$16)) +IF(Configurator!$B$18<>"",(fabric<>Configurator!$B$18)) +IF(Configurator!$B$22<>"",(OneG_copper<>Configurator!$B$22)) +IF(Configurator!$B$20<>"",(TenG_copper<>Configurator!$B$20)) +IF(Configurator!$B$21<>"",(TenG_fiber<>Configurator!$B$21)) +IF(Configurator!$B$25<>"",(OneG_PoE_Plus<>Configurator!$B$25)) +IF(Configurator!$B$26<>"",(OneG_UPOE<>Configurator!$B$26)) +IF(Configurator!$B$28<>"",(NPlusOne<>Configurator!$B$28)) +IF(Configurator!$B$29<>"",(AC_in<>Configurator!$B$29)) +IF(Configurator!$B$31<>"",(Budget<>Configurator!$B$31)), 0)) ->  | E11: =INDEX(TenG_copper,MATCH(0,COUNTIF(E$1:E10,TenG_copper) +IF(Configurator!$B$16<>"",(size<>Configurator!$B$16)) +IF(Configurator!$B$18<>"",(fabric<>Configurator!$B$18)) +IF(Configurator!$B$22<>"",(OneG_copper<>Configurator!$B$22)) +IF(Configurator!$B$23<>"",(OneG_fiber<>Configurator!$B$23)) +IF(Configurator!$B$21<>"",(TenG_fiber<>Configurator!$B$21)) +IF(Configurator!$B$25<>"",(OneG_PoE_Plus<>Configurator!$B$25)) +IF(Configurator!$B$26<>"",(OneG_UPOE<>Configurator!$B$26)) +IF(Configurator!$B$28<>"",(NPlusOne<>Configurator!$B$28)) +IF(Configurator!$B$29<>"",(AC_in<>Configurator!$B$29)) +IF(Configurator!$B$31<>"",(Budget<>Configurator!$B$31)), 0)) -> 72 | F11: =INDEX(TenG_fiber,MATCH(0,COUNTIF(F$1:F10,TenG_fiber) +IF(Configurator!$B$16<>"",(size<>Configurator!$B$16)) +IF(Configurator!$B$18<>"",(fabric<>Configurator!$B$18)) +IF(Configurator!$B$22<>"",(OneG_copper<>Configurator!$B$22)) +IF(Configurator!$B$23<>"",(OneG_fiber<>Configurator!$B$23)) +IF(Configurator!$B$20<>"",(TenG_copper<>Configurator!$B$20)) +IF(Configurator!$B$25<>"",(OneG_PoE_Plus<>Configurator!$B$25)) +IF(Configurator!$B$26<>"",(OneG_UPOE<>Configurator!$B$26)) +IF(Configurator!$B$28<>"",(NPlusOne<>Configurator!$B$28)) +IF(Configurator!$B$29<>"",(AC_in<>Configurator!$B$29)) +IF(Configurator!$B$31<>"",(Budget<>Configurator!$B$31)), 0)) -> 48 | G11: =INDEX(OneG_PoE_Plus,MATCH(0,COUNTIF(G$1:G10,OneG_PoE_Plus) +IF(Configurator!$B$16<>"",(size<>Configurator!$B$16)) +IF(Configurator!$B$18<>"",(fabric<>Configurator!$B$18)) +IF(Configurator!$B$22<>"",(OneG_copper<>Configurator!$B$22)) +IF(Configurator!$B$23<>"",(OneG_fiber<>Configurator!$B$23)) +IF(Configurator!$B$20<>"",(TenG_copper<>Configurator!$B$20)) +IF(Configurator!$B$21<>"",(TenG_fiber<>Configurator!$B$21)) +IF(Configurator!$B$26<>"",(OneG_UPOE<>Configurator!$B$26)) +IF(Configurator!$B$28<>"",(NPlusOne<>Configurator!$B$28)) +IF(Configurator!$B$29<>"",(AC_in<>Configurator!$B$29)) +IF(Configurator!$B$31<>"",(Budget<>Configurator!$B$31)), 0)) -> 120 | H11: =INDEX(OneG_UPOE,MATCH(0,COUNTIF(H$1:H10,OneG_UPOE) +IF(Configurator!$B$16<>"",(size<>Configurator!$B$16)) +IF(Configurator!$B$18<>"",(fabric<>Configurator!$B$18)) +IF(Configurator!$B$22<>"",(OneG_copper<>Configurator!$B$22)) +IF(Configurator!$B$23<>"",(OneG_fiber<>Configurator!$B$23)) +IF(Configurator!$B$20<>"",(TenG_copper<>Configurator!$B$20)) +IF(Configurator!$B$21<>"",(TenG_fiber<>Configurator!$B$21)) +IF(Configurator!$B$25<>"",(OneG_PoE_Plus<>Configurator!$B$25)) +IF(Configurator!$B$28<>"",(NPlusOne<>Configurator!$B$28)) +IF(Configurator!$B$29<>"",(AC_in<>Configurator!$B$29)) +IF(Configurator!$B$31<>"",(Budget<>Configurator!$B$31)), 0)) -> 120 | I11: =INDEX(NPlusOne,MATCH(0,COUNTIF(I$1:I10,NPlusOne) +IF(Configurator!$B$16<>"",(size<>Configurator!$B$16)) +IF(Configurator!$B$18<>"",(fabric<>Configurator!$B$18)) +IF(Configurator!$B$22<>"",(OneG_copper<>Configurator!$B$22)) +IF(Configurator!$B$23<>"",(OneG_fiber<>Configurator!$B$23)) +IF(Configurator!$B$20<>"",(TenG_copper<>Configurator!$B$20)) +IF(Configurator!$B$21<>"",(TenG_fiber<>Configurator!$B$21)) +IF(Configurator!$B$25<>"",(OneG_PoE_Plus<>Configurator!$B$25)) +IF(Configurator!$B$26<>"",(OneG_UPOE<>Configurator!$B$26)) +IF(Configurator!$B$29<>"",(AC_in<>Configurator!$B$29)) +IF(Configurator!$B$31<>"",(Budget<>Configurator!$B$31)), 0)) ->  | J11: =INDEX(AC_in,MATCH(0,COUNTIF(J$1:J10,AC_in) +IF(Configurator!$B$16<>"",(size<>Configurator!$B$16)) +IF(Configurator!$B$18<>"",(fabric<>Configurator!$B$18)) +IF(Configurator!$B$22<>"",(OneG_copper<>Configurator!$B$22)) +IF(Configurator!$B$23<>"",(OneG_fiber<>Configurator!$B$23)) +IF(Configurator!$B$20<>"",(TenG_copper<>Configurator!$B$20)) +IF(Configurator!$B$21<>"",(TenG_fiber<>Configurator!$B$21)) +IF(Configurator!$B$25<>"",(OneG_PoE_Plus<>Configurator!$B$25)) +IF(Configurator!$B$26<>"",(OneG_UPOE<>Configurator!$B$26)) +IF(Configurator!$B$28<>"",(NPlusOne<>Configurator!$B$28)) +IF(Configurator!$B$31<>"",(Budget<>Configurator!$B$31)), 0)) ->  | K11: =INDEX(Budget,MATCH(0,COUNTIF(K$1:K10,Budget) +IF(Configurator!$B$16<>"",(size<>Configurator!$B$16)) +IF(Configurator!$B$18<>"",(fabric<>Configurator!$B$18)) +IF(Configurator!$B$22<>"",(OneG_copper<>Configurator!$B$22)) +IF(Configurator!$B$23<>"",(OneG_fiber<>Configurator!$B$23)) +IF(Configurator!$B$20<>"",(TenG_copper<>Configurator!$B$20)) +IF(Configurator!$B$21<>"",(TenG_fiber<>Configurator!$B$21)) +IF(Configurator!$B$25<>"",(OneG_PoE_Plus<>Configurator!$B$25)) +IF(Configurator!$B$26<>"",(OneG_UPOE<>Configurator!$B$26)) +IF(Configurator!$B$28<>"",(NPlusOne<>Configurator!$B$28)) +IF(Configurator!$B$29<>"",(AC_in<>Configurator!$B$29)), 0)) -> 380 | L11: =INDEX(INDEX,MATCH(0,COUNTIF(L$1:L10,INDEX) +IF(Configurator!$B$16<>"",(size<>Configurator!$B$16)) +IF(Configurator!$B$18<>"",(fabric<>Configurator!$B$18)) +IF(Configurator!$B$22<>"",(OneG_copper<>Configurator!$B$22)) +IF(Configurator!$B$23<>"",(OneG_fiber<>Configurator!$B$23)) +IF(Configurator!$B$20<>"",(TenG_copper<>Configurator!$B$20)) +IF(Configurator!$B$21<>"",(TenG_fiber<>Configurator!$B$21)) +IF(Configurator!$B$25<>"",(OneG_PoE_Plus<>Configurator!$B$25)) +IF(Configurator!$B$26<>"",(OneG_UPOE<>Configurator!$B$26)) +IF(Configurator!$B$28<>"",(NPlusOne<>Configurator!$B$28)) +IF(Configurator!$B$29<>"",(AC_in<>Configurator!$B$29)) +IF(Configurator!$B$31<>"",(Budget<>Configurator!$B$31)), 0)) -> 134No110V1
A12: =INDEX(size,MATCH(0,COUNTIF($A$1:A11,size) +IF(Configurator!$B$18<>"",(fabric<>Configurator!$B$18)) +IF(Configurator!$B$22<>"",(OneG_copper<>Configurator!$B$22)) +IF(Configurator!$B$23<>"",(OneG_fiber<>Configurator!$B$23)) +IF(Configurator!$B$20<>"",(TenG_copper<>Configurator!$B$20)) +IF(Configurator!$B$21<>"",(TenG_fiber<>Configurator!$B$21)) +IF(Configurator!$B$25<>"",(OneG_PoE_Plus<>Configurator!$B$25)) +IF(Configurator!$B$26<>"",(OneG_UPOE<>Configurator!$B$26)) +IF(Configurator!$B$28<>"",(NPlusOne<>Configurator!$B$28)) +IF(Configurator!$B$29<>"",(AC_in<>Configurator!$B$29)) +IF(Configurator!$B$31<>"",(Budget<>Configurator!$B$31)), 0)) ->  | B12: =INDEX(fabric,MATCH(0,COUNTIF($B$1:B11,fabric) +IF(Configurator!$B$16<>"",(size<>Configurator!$B$16)) +IF(Configurator!$B$22<>"",(OneG_copper<>Configurator!$B$22)) +IF(Configurator!$B$23<>"",(OneG_fiber<>Configurator!$B$23)) +IF(Configurator!$B$20<>"",(TenG_copper<>Configurator!$B$20)) +IF(Configurator!$B$21<>"",(TenG_fiber<>Configurator!$B$21)) +IF(Configurator!$B$25<>"",(OneG_PoE_Plus<>Configurator!$B$25)) +IF(Configurator!$B$26<>"",(OneG_UPOE<>Configurator!$B$26)) +IF(Configurator!$B$28<>"",(NPlusOne<>Configurator!$B$28)) +IF(Configurator!$B$29<>"",(AC_in<>Configurator!$B$29)) +IF(Configurator!$B$31<>"",(Budget<>Configurator!$B$31)), 0)) ->  | C12: =INDEX(OneG_copper,MATCH(0,COUNTIF(C$1:C11,OneG_copper) +IF(Configurator!$B$16<>"",(size<>Configurator!$B$16)) +IF(Configurator!$B$18<>"",(fabric<>Configurator!$B$18)) +IF(Configurator!$B$23<>"",(OneG_fiber<>Configurator!$B$23)) +IF(Configurator!$B$20<>"",(TenG_copper<>Configurator!$B$20)) +IF(Configurator!$B$21<>"",(TenG_fiber<>Configurator!$B$21)) +IF(Configurator!$B$25<>"",(OneG_PoE_Plus<>Configurator!$B$25)) +IF(Configurator!$B$26<>"",(OneG_UPOE<>Configurator!$B$26)) +IF(Configurator!$B$28<>"",(NPlusOne<>Configurator!$B$28)) +IF(Configurator!$B$29<>"",(AC_in<>Configurator!$B$29)) +IF(Configurator!$B$31<>"",(Budget<>Configurator!$B$31)), 0)) ->  | D12: =INDEX(OneG_fiber,MATCH(0,COUNTIF(D$1:D11,OneG_fiber) +IF(Configurator!$B$16<>"",(size<>Configurator!$B$16)) +IF(Configurator!$B$18<>"",(fabric<>Configurator!$B$18)) +IF(Configurator!$B$22<>"",(OneG_copper<>Configurator!$B$22)) +IF(Configurator!$B$20<>"",(TenG_copper<>Configurator!$B$20)) +IF(Configurator!$B$21<>"",(TenG_fiber<>Configurator!$B$21)) +IF(Configurator!$B$25<>"",(OneG_PoE_Plus<>Configurator!$B$25)) +IF(Configurator!$B$26<>"",(OneG_UPOE<>Configurator!$B$26)) +IF(Configurator!$B$28<>"",(NPlusOne<>Configurator!$B$28)) +IF(Configurator!$B$29<>"",(AC_in<>Configurator!$B$29)) +IF(Configurator!$B$31<>"",(Budget<>Configurator!$B$31)), 0)) ->  | E12: =INDEX(TenG_copper,MATCH(0,COUNTIF(E$1:E11,TenG_copper) +IF(Configurator!$B$16<>"",(size<>Configurator!$B$16)) +IF(Configurator!$B$18<>"",(fabric<>Configurator!$B$18)) +IF(Configurator!$B$22<>"",(OneG_copper<>Configurator!$B$22)) +IF(Configurator!$B$23<>"",(OneG_fiber<>Configurator!$B$23)) +IF(Configurator!$B$21<>"",(TenG_fiber<>Configurator!$B$21)) +IF(Configurator!$B$25<>"",(OneG_PoE_Plus<>Configurator!$B$25)) +IF(Configurator!$B$26<>"",(OneG_UPOE<>Configurator!$B$26)) +IF(Configurator!$B$28<>"",(NPlusOne<>Configurator!$B$28)) +IF(Configurator!$B$29<>"",(AC_in<>Configurator!$B$29)) +IF(Configurator!$B$31<>"",(Budget<>Configurator!$B$31)), 0)) ->  | F12: =INDEX(TenG_fiber,MATCH(0,COUNTIF(F$1:F11,TenG_fiber) +IF(Configurator!$B$16<>"",(size<>Configurator!$B$16)) +IF(Configurator!$B$18<>"",(fabric<>Configurator!$B$18)) +IF(Configurator!$B$22<>"",(OneG_copper<>Configurator!$B$22)) +IF(Configurator!$B$23<>"",(OneG_fiber<>Configurator!$B$23)) +IF(Configurator!$B$20<>"",(TenG_copper<>Configurator!$B$20)) +IF(Configurator!$B$25<>"",(OneG_PoE_Plus<>Configurator!$B$25)) +IF(Configurator!$B$26<>"",(OneG_UPOE<>Configurator!$B$26)) +IF(Configurator!$B$28<>"",(NPlusOne<>Configurator!$B$28)) +IF(Configurator!$B$29<>"",(AC_in<>Configurator!$B$29)) +IF(Configurator!$B$31<>"",(Budget<>Configurator!$B$31)), 0)) ->  | G12: =INDEX(OneG_PoE_Plus,MATCH(0,COUNTIF(G$1:G11,OneG_PoE_Plus) +IF(Configurator!$B$16<>"",(size<>Configurator!$B$16)) +IF(Configurator!$B$18<>"",(fabric<>Configurator!$B$18)) +IF(Configurator!$B$22<>"",(OneG_copper<>Configurator!$B$22)) +IF(Configurator!$B$23<>"",(OneG_fiber<>Configurator!$B$23)) +IF(Configurator!$B$20<>"",(TenG_copper<>Configurator!$B$20)) +IF(Configurator!$B$21<>"",(TenG_fiber<>Configurator!$B$21)) +IF(Configurator!$B$26<>"",(OneG_UPOE<>Configurator!$B$26)) +IF(Configurator!$B$28<>"",(NPlusOne<>Configurator!$B$28)) +IF(Configurator!$B$29<>"",(AC_in<>Configurator!$B$29)) +IF(Configurator!$B$31<>"",(Budget<>Configurator!$B$31)), 0)) ->  | H12: =INDEX(OneG_UPOE,MATCH(0,COUNTIF(H$1:H11,OneG_UPOE) +IF(Configurator!$B$16<>"",(size<>Configurator!$B$16)) +IF(Configurator!$B$18<>"",(fabric<>Configurator!$B$18)) +IF(Configurator!$B$22<>"",(OneG_copper<>Configurator!$B$22)) +IF(Configurator!$B$23<>"",(OneG_fiber<>Configurator!$B$23)) +IF(Configurator!$B$20<>"",(TenG_copper<>Configurator!$B$20)) +IF(Configurator!$B$21<>"",(TenG_fiber<>Configurator!$B$21)) +IF(Configurator!$B$25<>"",(OneG_PoE_Plus<>Configurator!$B$25)) +IF(Configurator!$B$28<>"",(NPlusOne<>Configurator!$B$28)) +IF(Configurator!$B$29<>"",(AC_in<>Configurator!$B$29)) +IF(Configurator!$B$31<>"",(Budget<>Configurator!$B$31)), 0)) ->  | I12: =INDEX(NPlusOne,MATCH(0,COUNTIF(I$1:I11,NPlusOne) +IF(Configurator!$B$16<>"",(size<>Configurator!$B$16)) +IF(Configurator!$B$18<>"",(fabric<>Configurator!$B$18)) +IF(Configurator!$B$22<>"",(OneG_copper<>Configurator!$B$22)) +IF(Configurator!$B$23<>"",(OneG_fiber<>Configurator!$B$23)) +IF(Configurator!$B$20<>"",(TenG_copper<>Configurator!$B$20)) +IF(Configurator!$B$21<>"",(TenG_fiber<>Configurator!$B$21)) +IF(Configurator!$B$25<>"",(OneG_PoE_Plus<>Configurator!$B$25)) +IF(Configurator!$B$26<>"",(OneG_UPOE<>Configurator!$B$26)) +IF(Configurator!$B$29<>"",(AC_in<>Configurator!$B$29)) +IF(Configurator!$B$31<>"",(Budget<>Configurator!$B$31)), 0)) ->  | J12: =INDEX(AC_in,MATCH(0,COUNTIF(J$1:J11,AC_in) +IF(Configurator!$B$16<>"",(size<>Configurator!$B$16)) +IF(Configurator!$B$18<>"",(fabric<>Configurator!$B$18)) +IF(Configurator!$B$22<>"",(OneG_copper<>Configurator!$B$22)) +IF(Configurator!$B$23<>"",(OneG_fiber<>Configurator!$B$23)) +IF(Configurator!$B$20<>"",(TenG_copper<>Configurator!$B$20)) +IF(Configurator!$B$21<>"",(TenG_fiber<>Configurator!$B$21)) +IF(Configurator!$B$25<>"",(OneG_PoE_Plus<>Configurator!$B$25)) +IF(Configurator!$B$26<>"",(OneG_UPOE<>Configurator!$B$26)) +IF(Configurator!$B$28<>"",(NPlusOne<>Configurator!$B$28)) +IF(Configurator!$B$31<>"",(Budget<>Configurator!$B$31)), 0)) ->  | K12: =INDEX(Budget,MATCH(0,COUNTIF(K$1:K11,Budget) +IF(Configurator!$B$16<>"",(size<>Configurator!$B$16)) +IF(Configurator!$B$18<>"",(fabric<>Configurator!$B$18)) +IF(Configurator!$B$22<>"",(OneG_copper<>Configurator!$B$22)) +IF(Configurator!$B$23<>"",(OneG_fiber<>Configurator!$B$23)) +IF(Configurator!$B$20<>"",(TenG_copper<>Configurator!$B$20)) +IF(Configurator!$B$21<>"",(TenG_fiber<>Configurator!$B$21)) +IF(Configurator!$B$25<>"",(OneG_PoE_Plus<>Configurator!$B$25)) +IF(Configurator!$B$26<>"",(OneG_UPOE<>Configurator!$B$26)) +IF(Configurator!$B$28<>"",(NPlusOne<>Configurator!$B$28)) +IF(Configurator!$B$29<>"",(AC_in<>Configurator!$B$29)), 0)) -> 320 | L12: =INDEX(INDEX,MATCH(0,COUNTIF(L$1:L11,INDEX) +IF(Configurator!$B$16<>"",(size<>Configurator!$B$16)) +IF(Configurator!$B$18<>"",(fabric<>Configurator!$B$18)) +IF(Configurator!$B$22<>"",(OneG_copper<>Configurator!$B$22)) +IF(Configurator!$B$23<>"",(OneG_fiber<>Configurator!$B$23)) +IF(Configurator!$B$20<>"",(TenG_copper<>Configurator!$B$20)) +IF(Configurator!$B$21<>"",(TenG_fiber<>Configurator!$B$21)) +IF(Configurator!$B$25<>"",(OneG_PoE_Plus<>Configurator!$B$25)) +IF(Configurator!$B$26<>"",(OneG_UPOE<>Configurator!$B$26)) +IF(Configurator!$B$28<>"",(NPlusOne<>Configurator!$B$28)) +IF(Configurator!$B$29<>"",(AC_in<>Configurator!$B$29)) +IF(Configurator!$B$31<>"",(Budget<>Configurator!$B$31)), 0)) -> 135No110V1
A13: =INDEX(size,MATCH(0,COUNTIF($A$1:A12,size) +IF(Configurator!$B$18<>"",(fabric<>Configurator!$B$18)) +IF(Configurator!$B$22<>"",(OneG_copper<>Configurator!$B$22)) +IF(Configurator!$B$23<>"",(OneG_fiber<>Configurator!$B$23)) +IF(Configurator!$B$20<>"",(TenG_copper<>Configurator!$B$20)) +IF(Configurator!$B$21<>"",(TenG_fiber<>Configurator!$B$21)) +IF(Configurator!$B$25<>"",(OneG_PoE_Plus<>Configurator!$B$25)) +IF(Configurator!$B$26<>"",(OneG_UPOE<>Configurator!$B$26)) +IF(Configurator!$B$28<>"",(NPlusOne<>Configurator!$B$28)) +IF(Configurator!$B$29<>"",(AC_in<>Configurator!$B$29)) +IF(Configurator!$B$31<>"",(Budget<>Configurator!$B$31)), 0)) ->  | B13: =INDEX(fabric,MATCH(0,COUNTIF($B$1:B12,fabric) +IF(Configurator!$B$16<>"",(size<>Configurator!$B$16)) +IF(Configurator!$B$22<>"",(OneG_copper<>Configurator!$B$22)) +IF(Configurator!$B$23<>"",(OneG_fiber<>Configurator!$B$23)) +IF(Configurator!$B$20<>"",(TenG_copper<>Configurator!$B$20)) +IF(Configurator!$B$21<>"",(TenG_fiber<>Configurator!$B$21)) +IF(Configurator!$B$25<>"",(OneG_PoE_Plus<>Configurator!$B$25)) +IF(Configurator!$B$26<>"",(OneG_UPOE<>Configurator!$B$26)) +IF(Configurator!$B$28<>"",(NPlusOne<>Configurator!$B$28)) +IF(Configurator!$B$29<>"",(AC_in<>Configurator!$B$29)) +IF(Configurator!$B$31<>"",(Budget<>Configurator!$B$31)), 0)) ->  | C13: =INDEX(OneG_copper,MATCH(0,COUNTIF(C$1:C12,OneG_copper) +IF(Configurator!$B$16<>"",(size<>Configurator!$B$16)) +IF(Configurator!$B$18<>"",(fabric<>Configurator!$B$18)) +IF(Configurator!$B$23<>"",(OneG_fiber<>Configurator!$B$23)) +IF(Configurator!$B$20<>"",(TenG_copper<>Configurator!$B$20)) +IF(Configurator!$B$21<>"",(TenG_fiber<>Configurator!$B$21)) +IF(Configurator!$B$25<>"",(OneG_PoE_Plus<>Configurator!$B$25)) +IF(Configurator!$B$26<>"",(OneG_UPOE<>Configurator!$B$26)) +IF(Configurator!$B$28<>"",(NPlusOne<>Configurator!$B$28)) +IF(Configurator!$B$29<>"",(AC_in<>Configurator!$B$29)) +IF(Configurator!$B$31<>"",(Budget<>Configurator!$B$31)), 0)) ->  | D13: =INDEX(OneG_fiber,MATCH(0,COUNTIF(D$1:D12,OneG_fiber) +IF(Configurator!$B$16<>"",(size<>Configurator!$B$16)) +IF(Configurator!$B$18<>"",(fabric<>Configurator!$B$18)) +IF(Configurator!$B$22<>"",(OneG_copper<>Configurator!$B$22)) +IF(Configurator!$B$20<>"",(TenG_copper<>Configurator!$B$20)) +IF(Configurator!$B$21<>"",(TenG_fiber<>Configurator!$B$21)) +IF(Configurator!$B$25<>"",(OneG_PoE_Plus<>Configurator!$B$25)) +IF(Configurator!$B$26<>"",(OneG_UPOE<>Configurator!$B$26)) +IF(Configurator!$B$28<>"",(NPlusOne<>Configurator!$B$28)) +IF(Configurator!$B$29<>"",(AC_in<>Configurator!$B$29)) +IF(Configurator!$B$31<>"",(Budget<>Configurator!$B$31)), 0)) ->  | E13: =INDEX(TenG_copper,MATCH(0,COUNTIF(E$1:E12,TenG_copper) +IF(Configurator!$B$16<>"",(size<>Configurator!$B$16)) +IF(Configurator!$B$18<>"",(fabric<>Configurator!$B$18)) +IF(Configurator!$B$22<>"",(OneG_copper<>Configurator!$B$22)) +IF(Configurator!$B$23<>"",(OneG_fiber<>Configurator!$B$23)) +IF(Configurator!$B$21<>"",(TenG_fiber<>Configurator!$B$21)) +IF(Configurator!$B$25<>"",(OneG_PoE_Plus<>Configurator!$B$25)) +IF(Configurator!$B$26<>"",(OneG_UPOE<>Configurator!$B$26)) +IF(Configurator!$B$28<>"",(NPlusOne<>Configurator!$B$28)) +IF(Configurator!$B$29<>"",(AC_in<>Configurator!$B$29)) +IF(Configurator!$B$31<>"",(Budget<>Configurator!$B$31)), 0)) ->  | F13: =INDEX(TenG_fiber,MATCH(0,COUNTIF(F$1:F12,TenG_fiber) +IF(Configurator!$B$16<>"",(size<>Configurator!$B$16)) +IF(Configurator!$B$18<>"",(fabric<>Configurator!$B$18)) +IF(Configurator!$B$22<>"",(OneG_copper<>Configurator!$B$22)) +IF(Configurator!$B$23<>"",(OneG_fiber<>Configurator!$B$23)) +IF(Configurator!$B$20<>"",(TenG_copper<>Configurator!$B$20)) +IF(Configurator!$B$25<>"",(OneG_PoE_Plus<>Configurator!$B$25)) +IF(Configurator!$B$26<>"",(OneG_UPOE<>Configurator!$B$26)) +IF(Configurator!$B$28<>"",(NPlusOne<>Configurator!$B$28)) +IF(Configurator!$B$29<>"",(AC_in<>Configurator!$B$29)) +IF(Configurator!$B$31<>"",(Budget<>Configurator!$B$31)), 0)) ->  | G13: =INDEX(OneG_PoE_Plus,MATCH(0,COUNTIF(G$1:G12,OneG_PoE_Plus) +IF(Configurator!$B$16<>"",(size<>Configurator!$B$16)) +IF(Configurator!$B$18<>"",(fabric<>Configurator!$B$18)) +IF(Configurator!$B$22<>"",(OneG_copper<>Configurator!$B$22)) +IF(Configurator!$B$23<>"",(OneG_fiber<>Configurator!$B$23)) +IF(Configurator!$B$20<>"",(TenG_copper<>Configurator!$B$20)) +IF(Configurator!$B$21<>"",(TenG_fiber<>Configurator!$B$21)) +IF(Configurator!$B$26<>"",(OneG_UPOE<>Configurator!$B$26)) +IF(Configurator!$B$28<>"",(NPlusOne<>Configurator!$B$28)) +IF(Configurator!$B$29<>"",(AC_in<>Configurator!$B$29)) +IF(Configurator!$B$31<>"",(Budget<>Configurator!$B$31)), 0)) ->  | H13: =INDEX(OneG_UPOE,MATCH(0,COUNTIF(H$1:H12,OneG_UPOE) +IF(Configurator!$B$16<>"",(size<>Configurator!$B$16)) +IF(Configurator!$B$18<>"",(fabric<>Configurator!$B$18)) +IF(Configurator!$B$22<>"",(OneG_copper<>Configurator!$B$22)) +IF(Configurator!$B$23<>"",(OneG_fiber<>Configurator!$B$23)) +IF(Configurator!$B$20<>"",(TenG_copper<>Configurator!$B$20)) +IF(Configurator!$B$21<>"",(TenG_fiber<>Configurator!$B$21)) +IF(Configurator!$B$25<>"",(OneG_PoE_Plus<>Configurator!$B$25)) +IF(Configurator!$B$28<>"",(NPlusOne<>Configurator!$B$28)) +IF(Configurator!$B$29<>"",(AC_in<>Configurator!$B$29)) +IF(Configurator!$B$31<>"",(Budget<>Configurator!$B$31)), 0)) ->  | I13: =INDEX(NPlusOne,MATCH(0,COUNTIF(I$1:I12,NPlusOne) +IF(Configurator!$B$16<>"",(size<>Configurator!$B$16)) +IF(Configurator!$B$18<>"",(fabric<>Configurator!$B$18)) +IF(Configurator!$B$22<>"",(OneG_copper<>Configurator!$B$22)) +IF(Configurator!$B$23<>"",(OneG_fiber<>Configurator!$B$23)) +IF(Configurator!$B$20<>"",(TenG_copper<>Configurator!$B$20)) +IF(Configurator!$B$21<>"",(TenG_fiber<>Configurator!$B$21)) +IF(Configurator!$B$25<>"",(OneG_PoE_Plus<>Configurator!$B$25)) +IF(Configurator!$B$26<>"",(OneG_UPOE<>Configurator!$B$26)) +IF(Configurator!$B$29<>"",(AC_in<>Configurator!$B$29)) +IF(Configurator!$B$31<>"",(Budget<>Configurator!$B$31)), 0)) ->  | J13: =INDEX(AC_in,MATCH(0,COUNTIF(J$1:J12,AC_in) +IF(Configurator!$B$16<>"",(size<>Configurator!$B$16)) +IF(Configurator!$B$18<>"",(fabric<>Configurator!$B$18)) +IF(Configurator!$B$22<>"",(OneG_copper<>Configurator!$B$22)) +IF(Configurator!$B$23<>"",(OneG_fiber<>Configurator!$B$23)) +IF(Configurator!$B$20<>"",(TenG_copper<>Configurator!$B$20)) +IF(Configurator!$B$21<>"",(TenG_fiber<>Configurator!$B$21)) +IF(Configurator!$B$25<>"",(OneG_PoE_Plus<>Configurator!$B$25)) +IF(Configurator!$B$26<>"",(OneG_UPOE<>Configurator!$B$26)) +IF(Configurator!$B$28<>"",(NPlusOne<>Configurator!$B$28)) +IF(Configurator!$B$31<>"",(Budget<>Configurator!$B$31)), 0)) ->  | K13: =INDEX(Budget,MATCH(0,COUNTIF(K$1:K12,Budget) +IF(Configurator!$B$16<>"",(size<>Configurator!$B$16)) +IF(Configurator!$B$18<>"",(fabric<>Configurator!$B$18)) +IF(Configurator!$B$22<>"",(OneG_copper<>Configurator!$B$22)) +IF(Configurator!$B$23<>"",(OneG_fiber<>Configurator!$B$23)) +IF(Configurator!$B$20<>"",(TenG_copper<>Configurator!$B$20)) +IF(Configurator!$B$21<>"",(TenG_fiber<>Configurator!$B$21)) +IF(Configurator!$B$25<>"",(OneG_PoE_Plus<>Configurator!$B$25)) +IF(Configurator!$B$26<>"",(OneG_UPOE<>Configurator!$B$26)) +IF(Configurator!$B$28<>"",(NPlusOne<>Configurator!$B$28)) +IF(Configurator!$B$29<>"",(AC_in<>Configurator!$B$29)), 0)) -> 180 | L13: =INDEX(INDEX,MATCH(0,COUNTIF(L$1:L12,INDEX) +IF(Configurator!$B$16<>"",(size<>Configurator!$B$16)) +IF(Configurator!$B$18<>"",(fabric<>Configurator!$B$18)) +IF(Configurator!$B$22<>"",(OneG_copper<>Configurator!$B$22)) +IF(Configurator!$B$23<>"",(OneG_fiber<>Configurator!$B$23)) +IF(Configurator!$B$20<>"",(TenG_copper<>Configurator!$B$20)) +IF(Configurator!$B$21<>"",(TenG_fiber<>Configurator!$B$21)) +IF(Configurator!$B$25<>"",(OneG_PoE_Plus<>Configurator!$B$25)) +IF(Configurator!$B$26<>"",(OneG_UPOE<>Configurator!$B$26)) +IF(Configurator!$B$28<>"",(NPlusOne<>Configurator!$B$28)) +IF(Configurator!$B$29<>"",(AC_in<>Configurator!$B$29)) +IF(Configurator!$B$31<>"",(Budget<>Configurator!$B$31)), 0)) -> 136No110V1
A14: =INDEX(size,MATCH(0,COUNTIF($A$1:A13,size) +IF(Configurator!$B$18<>"",(fabric<>Configurator!$B$18)) +IF(Configurator!$B$22<>"",(OneG_copper<>Configurator!$B$22)) +IF(Configurator!$B$23<>"",(OneG_fiber<>Configurator!$B$23)) +IF(Configurator!$B$20<>"",(TenG_copper<>Configurator!$B$20)) +IF(Configurator!$B$21<>"",(TenG_fiber<>Configurator!$B$21)) +IF(Configurator!$B$25<>"",(OneG_PoE_Plus<>Configurator!$B$25)) +IF(Configurator!$B$26<>"",(OneG_UPOE<>Configurator!$B$26)) +IF(Configurator!$B$28<>"",(NPlusOne<>Configurator!$B$28)) +IF(Configurator!$B$29<>"",(AC_in<>Configurator!$B$29)) +IF(Configurator!$B$31<>"",(Budget<>Configurator!$B$31)), 0)) ->  | B14: =INDEX(fabric,MATCH(0,COUNTIF($B$1:B13,fabric) +IF(Configurator!$B$16<>"",(size<>Configurator!$B$16)) +IF(Configurator!$B$22<>"",(OneG_copper<>Configurator!$B$22)) +IF(Configurator!$B$23<>"",(OneG_fiber<>Configurator!$B$23)) +IF(Configurator!$B$20<>"",(TenG_copper<>Configurator!$B$20)) +IF(Configurator!$B$21<>"",(TenG_fiber<>Configurator!$B$21)) +IF(Configurator!$B$25<>"",(OneG_PoE_Plus<>Configurator!$B$25)) +IF(Configurator!$B$26<>"",(OneG_UPOE<>Configurator!$B$26)) +IF(Configurator!$B$28<>"",(NPlusOne<>Configurator!$B$28)) +IF(Configurator!$B$29<>"",(AC_in<>Configurator!$B$29)) +IF(Configurator!$B$31<>"",(Budget<>Configurator!$B$31)), 0)) ->  | C14: =INDEX(OneG_copper,MATCH(0,COUNTIF(C$1:C13,OneG_copper) +IF(Configurator!$B$16<>"",(size<>Configurator!$B$16)) +IF(Configurator!$B$18<>"",(fabric<>Configurator!$B$18)) +IF(Configurator!$B$23<>"",(OneG_fiber<>Configurator!$B$23)) +IF(Configurator!$B$20<>"",(TenG_copper<>Configurator!$B$20)) +IF(Configurator!$B$21<>"",(TenG_fiber<>Configurator!$B$21)) +IF(Configurator!$B$25<>"",(OneG_PoE_Plus<>Configurator!$B$25)) +IF(Configurator!$B$26<>"",(OneG_UPOE<>Configurator!$B$26)) +IF(Configurator!$B$28<>"",(NPlusOne<>Configurator!$B$28)) +IF(Configurator!$B$29<>"",(AC_in<>Configurator!$B$29)) +IF(Configurator!$B$31<>"",(Budget<>Configurator!$B$31)), 0)) ->  | D14: =INDEX(OneG_fiber,MATCH(0,COUNTIF(D$1:D13,OneG_fiber) +IF(Configurator!$B$16<>"",(size<>Configurator!$B$16)) +IF(Configurator!$B$18<>"",(fabric<>Configurator!$B$18)) +IF(Configurator!$B$22<>"",(OneG_copper<>Configurator!$B$22)) +IF(Configurator!$B$20<>"",(TenG_copper<>Configurator!$B$20)) +IF(Configurator!$B$21<>"",(TenG_fiber<>Configurator!$B$21)) +IF(Configurator!$B$25<>"",(OneG_PoE_Plus<>Configurator!$B$25)) +IF(Configurator!$B$26<>"",(OneG_UPOE<>Configurator!$B$26)) +IF(Configurator!$B$28<>"",(NPlusOne<>Configurator!$B$28)) +IF(Configurator!$B$29<>"",(AC_in<>Configurator!$B$29)) +IF(Configurator!$B$31<>"",(Budget<>Configurator!$B$31)), 0)) ->  | E14: =INDEX(TenG_copper,MATCH(0,COUNTIF(E$1:E13,TenG_copper) +IF(Configurator!$B$16<>"",(size<>Configurator!$B$16)) +IF(Configurator!$B$18<>"",(fabric<>Configurator!$B$18)) +IF(Configurator!$B$22<>"",(OneG_copper<>Configurator!$B$22)) +IF(Configurator!$B$23<>"",(OneG_fiber<>Configurator!$B$23)) +IF(Configurator!$B$21<>"",(TenG_fiber<>Configurator!$B$21)) +IF(Configurator!$B$25<>"",(OneG_PoE_Plus<>Configurator!$B$25)) +IF(Configurator!$B$26<>"",(OneG_UPOE<>Configurator!$B$26)) +IF(Configurator!$B$28<>"",(NPlusOne<>Configurator!$B$28)) +IF(Configurator!$B$29<>"",(AC_in<>Configurator!$B$29)) +IF(Configurator!$B$31<>"",(Budget<>Configurator!$B$31)), 0)) ->  | F14: =INDEX(TenG_fiber,MATCH(0,COUNTIF(F$1:F13,TenG_fiber) +IF(Configurator!$B$16<>"",(size<>Configurator!$B$16)) +IF(Configurator!$B$18<>"",(fabric<>Configurator!$B$18)) +IF(Configurator!$B$22<>"",(OneG_copper<>Configurator!$B$22)) +IF(Configurator!$B$23<>"",(OneG_fiber<>Configurator!$B$23)) +IF(Configurator!$B$20<>"",(TenG_copper<>Configurator!$B$20)) +IF(Configurator!$B$25<>"",(OneG_PoE_Plus<>Configurator!$B$25)) +IF(Configurator!$B$26<>"",(OneG_UPOE<>Configurator!$B$26)) +IF(Configurator!$B$28<>"",(NPlusOne<>Configurator!$B$28)) +IF(Configurator!$B$29<>"",(AC_in<>Configurator!$B$29)) +IF(Configurator!$B$31<>"",(Budget<>Configurator!$B$31)), 0)) ->  | G14: =INDEX(OneG_PoE_Plus,MATCH(0,COUNTIF(G$1:G13,OneG_PoE_Plus) +IF(Configurator!$B$16<>"",(size<>Configurator!$B$16)) +IF(Configurator!$B$18<>"",(fabric<>Configurator!$B$18)) +IF(Configurator!$B$22<>"",(OneG_copper<>Configurator!$B$22)) +IF(Configurator!$B$23<>"",(OneG_fiber<>Configurator!$B$23)) +IF(Configurator!$B$20<>"",(TenG_copper<>Configurator!$B$20)) +IF(Configurator!$B$21<>"",(TenG_fiber<>Configurator!$B$21)) +IF(Configurator!$B$26<>"",(OneG_UPOE<>Configurator!$B$26)) +IF(Configurator!$B$28<>"",(NPlusOne<>Configurator!$B$28)) +IF(Configurator!$B$29<>"",(AC_in<>Configurator!$B$29)) +IF(Configurator!$B$31<>"",(Budget<>Configurator!$B$31)), 0)) ->  | H14: =INDEX(OneG_UPOE,MATCH(0,COUNTIF(H$1:H13,OneG_UPOE) +IF(Configurator!$B$16<>"",(size<>Configurator!$B$16)) +IF(Configurator!$B$18<>"",(fabric<>Configurator!$B$18)) +IF(Configurator!$B$22<>"",(OneG_copper<>Configurator!$B$22)) +IF(Configurator!$B$23<>"",(OneG_fiber<>Configurator!$B$23)) +IF(Configurator!$B$20<>"",(TenG_copper<>Configurator!$B$20)) +IF(Configurator!$B$21<>"",(TenG_fiber<>Configurator!$B$21)) +IF(Configurator!$B$25<>"",(OneG_PoE_Plus<>Configurator!$B$25)) +IF(Configurator!$B$28<>"",(NPlusOne<>Configurator!$B$28)) +IF(Configurator!$B$29<>"",(AC_in<>Configurator!$B$29)) +IF(Configurator!$B$31<>"",(Budget<>Configurator!$B$31)), 0)) ->  | I14: =INDEX(NPlusOne,MATCH(0,COUNTIF(I$1:I13,NPlusOne) +IF(Configurator!$B$16<>"",(size<>Configurator!$B$16)) +IF(Configurator!$B$18<>"",(fabric<>Configurator!$B$18)) +IF(Configurator!$B$22<>"",(OneG_copper<>Configurator!$B$22)) +IF(Configurator!$B$23<>"",(OneG_fiber<>Configurator!$B$23)) +IF(Configurator!$B$20<>"",(TenG_copper<>Configurator!$B$20)) +IF(Configurator!$B$21<>"",(TenG_fiber<>Configurator!$B$21)) +IF(Configurator!$B$25<>"",(OneG_PoE_Plus<>Configurator!$B$25)) +IF(Configurator!$B$26<>"",(OneG_UPOE<>Configurator!$B$26)) +IF(Configurator!$B$29<>"",(AC_in<>Configurator!$B$29)) +IF(Configurator!$B$31<>"",(Budget<>Configurator!$B$31)), 0)) ->  | J14: =INDEX(AC_in,MATCH(0,COUNTIF(J$1:J13,AC_in) +IF(Configurator!$B$16<>"",(size<>Configurator!$B$16)) +IF(Configurator!$B$18<>"",(fabric<>Configurator!$B$18)) +IF(Configurator!$B$22<>"",(OneG_copper<>Configurator!$B$22)) +IF(Configurator!$B$23<>"",(OneG_fiber<>Configurator!$B$23)) +IF(Configurator!$B$20<>"",(TenG_copper<>Configurator!$B$20)) +IF(Configurator!$B$21<>"",(TenG_fiber<>Configurator!$B$21)) +IF(Configurator!$B$25<>"",(OneG_PoE_Plus<>Configurator!$B$25)) +IF(Configurator!$B$26<>"",(OneG_UPOE<>Configurator!$B$26)) +IF(Configurator!$B$28<>"",(NPlusOne<>Configurator!$B$28)) +IF(Configurator!$B$31<>"",(Budget<>Configurator!$B$31)), 0)) ->  | K14: =INDEX(Budget,MATCH(0,COUNTIF(K$1:K13,Budget) +IF(Configurator!$B$16<>"",(size<>Configurator!$B$16)) +IF(Configurator!$B$18<>"",(fabric<>Configurator!$B$18)) +IF(Configurator!$B$22<>"",(OneG_copper<>Configurator!$B$22)) +IF(Configurator!$B$23<>"",(OneG_fiber<>Configurator!$B$23)) +IF(Configurator!$B$20<>"",(TenG_copper<>Configurator!$B$20)) +IF(Configurator!$B$21<>"",(TenG_fiber<>Configurator!$B$21)) +IF(Configurator!$B$25<>"",(OneG_PoE_Plus<>Configurator!$B$25)) +IF(Configurator!$B$26<>"",(OneG_UPOE<>Configurator!$B$26)) +IF(Configurator!$B$28<>"",(NPlusOne<>Configurator!$B$28)) +IF(Configurator!$B$29<>"",(AC_in<>Configurator!$B$29)), 0)) -> 520 | L14: =INDEX(INDEX,MATCH(0,COUNTIF(L$1:L13,INDEX) +IF(Configurator!$B$16<>"",(size<>Configurator!$B$16)) +IF(Configurator!$B$18<>"",(fabric<>Configurator!$B$18)) +IF(Configurator!$B$22<>"",(OneG_copper<>Configurator!$B$22)) +IF(Configurator!$B$23<>"",(OneG_fiber<>Configurator!$B$23)) +IF(Configurator!$B$20<>"",(TenG_copper<>Configurator!$B$20)) +IF(Configurator!$B$21<>"",(TenG_fiber<>Configurator!$B$21)) +IF(Configurator!$B$25<>"",(OneG_PoE_Plus<>Configurator!$B$25)) +IF(Configurator!$B$26<>"",(OneG_UPOE<>Configurator!$B$26)) +IF(Configurator!$B$28<>"",(NPlusOne<>Configurator!$B$28)) +IF(Configurator!$B$29<>"",(AC_in<>Configurator!$B$29)) +IF(Configurator!$B$31<>"",(Budget<>Configurator!$B$31)), 0)) -> 137No110V1
A15: =INDEX(size,MATCH(0,COUNTIF($A$1:A14,size) +IF(Configurator!$B$18<>"",(fabric<>Configurator!$B$18)) +IF(Configurator!$B$22<>"",(OneG_copper<>Configurator!$B$22)) +IF(Configurator!$B$23<>"",(OneG_fiber<>Configurator!$B$23)) +IF(Configurator!$B$20<>"",(TenG_copper<>Configurator!$B$20)) +IF(Configurator!$B$21<>"",(TenG_fiber<>Configurator!$B$21)) +IF(Configurator!$B$25<>"",(OneG_PoE_Plus<>Configurator!$B$25)) +IF(Configurator!$B$26<>"",(OneG_UPOE<>Configurator!$B$26)) +IF(Configurator!$B$28<>"",(NPlusOne<>Configurator!$B$28)) +IF(Configurator!$B$29<>"",(AC_in<>Configurator!$B$29)) +IF(Configurator!$B$31<>"",(Budget<>Configurator!$B$31)), 0)) ->  | B15: =INDEX(fabric,MATCH(0,COUNTIF($B$1:B14,fabric) +IF(Configurator!$B$16<>"",(size<>Configurator!$B$16)) +IF(Configurator!$B$22<>"",(OneG_copper<>Configurator!$B$22)) +IF(Configurator!$B$23<>"",(OneG_fiber<>Configurator!$B$23)) +IF(Configurator!$B$20<>"",(TenG_copper<>Configurator!$B$20)) +IF(Configurator!$B$21<>"",(TenG_fiber<>Configurator!$B$21)) +IF(Configurator!$B$25<>"",(OneG_PoE_Plus<>Configurator!$B$25)) +IF(Configurator!$B$26<>"",(OneG_UPOE<>Configurator!$B$26)) +IF(Configurator!$B$28<>"",(NPlusOne<>Configurator!$B$28)) +IF(Configurator!$B$29<>"",(AC_in<>Configurator!$B$29)) +IF(Configurator!$B$31<>"",(Budget<>Configurator!$B$31)), 0)) ->  | C15: =INDEX(OneG_copper,MATCH(0,COUNTIF(C$1:C14,OneG_copper) +IF(Configurator!$B$16<>"",(size<>Configurator!$B$16)) +IF(Configurator!$B$18<>"",(fabric<>Configurator!$B$18)) +IF(Configurator!$B$23<>"",(OneG_fiber<>Configurator!$B$23)) +IF(Configurator!$B$20<>"",(TenG_copper<>Configurator!$B$20)) +IF(Configurator!$B$21<>"",(TenG_fiber<>Configurator!$B$21)) +IF(Configurator!$B$25<>"",(OneG_PoE_Plus<>Configurator!$B$25)) +IF(Configurator!$B$26<>"",(OneG_UPOE<>Configurator!$B$26)) +IF(Configurator!$B$28<>"",(NPlusOne<>Configurator!$B$28)) +IF(Configurator!$B$29<>"",(AC_in<>Configurator!$B$29)) +IF(Configurator!$B$31<>"",(Budget<>Configurator!$B$31)), 0)) ->  | D15: =INDEX(OneG_fiber,MATCH(0,COUNTIF(D$1:D14,OneG_fiber) +IF(Configurator!$B$16<>"",(size<>Configurator!$B$16)) +IF(Configurator!$B$18<>"",(fabric<>Configurator!$B$18)) +IF(Configurator!$B$22<>"",(OneG_copper<>Configurator!$B$22)) +IF(Configurator!$B$20<>"",(TenG_copper<>Configurator!$B$20)) +IF(Configurator!$B$21<>"",(TenG_fiber<>Configurator!$B$21)) +IF(Configurator!$B$25<>"",(OneG_PoE_Plus<>Configurator!$B$25)) +IF(Configurator!$B$26<>"",(OneG_UPOE<>Configurator!$B$26)) +IF(Configurator!$B$28<>"",(NPlusOne<>Configurator!$B$28)) +IF(Configurator!$B$29<>"",(AC_in<>Configurator!$B$29)) +IF(Configurator!$B$31<>"",(Budget<>Configurator!$B$31)), 0)) ->  | E15: =INDEX(TenG_copper,MATCH(0,COUNTIF(E$1:E14,TenG_copper) +IF(Configurator!$B$16<>"",(size<>Configurator!$B$16)) +IF(Configurator!$B$18<>"",(fabric<>Configurator!$B$18)) +IF(Configurator!$B$22<>"",(OneG_copper<>Configurator!$B$22)) +IF(Configurator!$B$23<>"",(OneG_fiber<>Configurator!$B$23)) +IF(Configurator!$B$21<>"",(TenG_fiber<>Configurator!$B$21)) +IF(Configurator!$B$25<>"",(OneG_PoE_Plus<>Configurator!$B$25)) +IF(Configurator!$B$26<>"",(OneG_UPOE<>Configurator!$B$26)) +IF(Configurator!$B$28<>"",(NPlusOne<>Configurator!$B$28)) +IF(Configurator!$B$29<>"",(AC_in<>Configurator!$B$29)) +IF(Configurator!$B$31<>"",(Budget<>Configurator!$B$31)), 0)) ->  | F15: =INDEX(TenG_fiber,MATCH(0,COUNTIF(F$1:F14,TenG_fiber) +IF(Configurator!$B$16<>"",(size<>Configurator!$B$16)) +IF(Configurator!$B$18<>"",(fabric<>Configurator!$B$18)) +IF(Configurator!$B$22<>"",(OneG_copper<>Configurator!$B$22)) +IF(Configurator!$B$23<>"",(OneG_fiber<>Configurator!$B$23)) +IF(Configurator!$B$20<>"",(TenG_copper<>Configurator!$B$20)) +IF(Configurator!$B$25<>"",(OneG_PoE_Plus<>Configurator!$B$25)) +IF(Configurator!$B$26<>"",(OneG_UPOE<>Configurator!$B$26)) +IF(Configurator!$B$28<>"",(NPlusOne<>Configurator!$B$28)) +IF(Configurator!$B$29<>"",(AC_in<>Configurator!$B$29)) +IF(Configurator!$B$31<>"",(Budget<>Configurator!$B$31)), 0)) ->  | G15: =INDEX(OneG_PoE_Plus,MATCH(0,COUNTIF(G$1:G14,OneG_PoE_Plus) +IF(Configurator!$B$16<>"",(size<>Configurator!$B$16)) +IF(Configurator!$B$18<>"",(fabric<>Configurator!$B$18)) +IF(Configurator!$B$22<>"",(OneG_copper<>Configurator!$B$22)) +IF(Configurator!$B$23<>"",(OneG_fiber<>Configurator!$B$23)) +IF(Configurator!$B$20<>"",(TenG_copper<>Configurator!$B$20)) +IF(Configurator!$B$21<>"",(TenG_fiber<>Configurator!$B$21)) +IF(Configurator!$B$26<>"",(OneG_UPOE<>Configurator!$B$26)) +IF(Configurator!$B$28<>"",(NPlusOne<>Configurator!$B$28)) +IF(Configurator!$B$29<>"",(AC_in<>Configurator!$B$29)) +IF(Configurator!$B$31<>"",(Budget<>Configurator!$B$31)), 0)) ->  | H15: =INDEX(OneG_UPOE,MATCH(0,COUNTIF(H$1:H14,OneG_UPOE) +IF(Configurator!$B$16<>"",(size<>Configurator!$B$16)) +IF(Configurator!$B$18<>"",(fabric<>Configurator!$B$18)) +IF(Configurator!$B$22<>"",(OneG_copper<>Configurator!$B$22)) +IF(Configurator!$B$23<>"",(OneG_fiber<>Configurator!$B$23)) +IF(Configurator!$B$20<>"",(TenG_copper<>Configurator!$B$20)) +IF(Configurator!$B$21<>"",(TenG_fiber<>Configurator!$B$21)) +IF(Configurator!$B$25<>"",(OneG_PoE_Plus<>Configurator!$B$25)) +IF(Configurator!$B$28<>"",(NPlusOne<>Configurator!$B$28)) +IF(Configurator!$B$29<>"",(AC_in<>Configurator!$B$29)) +IF(Configurator!$B$31<>"",(Budget<>Configurator!$B$31)), 0)) ->  | I15: =INDEX(NPlusOne,MATCH(0,COUNTIF(I$1:I14,NPlusOne) +IF(Configurator!$B$16<>"",(size<>Configurator!$B$16)) +IF(Configurator!$B$18<>"",(fabric<>Configurator!$B$18)) +IF(Configurator!$B$22<>"",(OneG_copper<>Configurator!$B$22)) +IF(Configurator!$B$23<>"",(OneG_fiber<>Configurator!$B$23)) +IF(Configurator!$B$20<>"",(TenG_copper<>Configurator!$B$20)) +IF(Configurator!$B$21<>"",(TenG_fiber<>Configurator!$B$21)) +IF(Configurator!$B$25<>"",(OneG_PoE_Plus<>Configurator!$B$25)) +IF(Configurator!$B$26<>"",(OneG_UPOE<>Configurator!$B$26)) +IF(Configurator!$B$29<>"",(AC_in<>Configurator!$B$29)) +IF(Configurator!$B$31<>"",(Budget<>Configurator!$B$31)), 0)) ->  | J15: =INDEX(AC_in,MATCH(0,COUNTIF(J$1:J14,AC_in) +IF(Configurator!$B$16<>"",(size<>Configurator!$B$16)) +IF(Configurator!$B$18<>"",(fabric<>Configurator!$B$18)) +IF(Configurator!$B$22<>"",(OneG_copper<>Configurator!$B$22)) +IF(Configurator!$B$23<>"",(OneG_fiber<>Configurator!$B$23)) +IF(Configurator!$B$20<>"",(TenG_copper<>Configurator!$B$20)) +IF(Configurator!$B$21<>"",(TenG_fiber<>Configurator!$B$21)) +IF(Configurator!$B$25<>"",(OneG_PoE_Plus<>Configurator!$B$25)) +IF(Configurator!$B$26<>"",(OneG_UPOE<>Configurator!$B$26)) +IF(Configurator!$B$28<>"",(NPlusOne<>Configurator!$B$28)) +IF(Configurator!$B$31<>"",(Budget<>Configurator!$B$31)), 0)) ->  | K15: =INDEX(Budget,MATCH(0,COUNTIF(K$1:K14,Budget) +IF(Configurator!$B$16<>"",(size<>Configurator!$B$16)) +IF(Configurator!$B$18<>"",(fabric<>Configurator!$B$18)) +IF(Configurator!$B$22<>"",(OneG_copper<>Configurator!$B$22)) +IF(Configurator!$B$23<>"",(OneG_fiber<>Configurator!$B$23)) +IF(Configurator!$B$20<>"",(TenG_copper<>Configurator!$B$20)) +IF(Configurator!$B$21<>"",(TenG_fiber<>Configurator!$B$21)) +IF(Configurator!$B$25<>"",(OneG_PoE_Plus<>Configurator!$B$25)) +IF(Configurator!$B$26<>"",(OneG_UPOE<>Configurator!$B$26)) +IF(Configurator!$B$28<>"",(NPlusOne<>Configurator!$B$28)) +IF(Configurator!$B$29<>"",(AC_in<>Configurator!$B$29)), 0)) -> 580 | L15: =INDEX(INDEX,MATCH(0,COUNTIF(L$1:L14,INDEX) +IF(Configurator!$B$16<>"",(size<>Configurator!$B$16)) +IF(Configurator!$B$18<>"",(fabric<>Configurator!$B$18)) +IF(Configurator!$B$22<>"",(OneG_copper<>Configurator!$B$22)) +IF(Configurator!$B$23<>"",(OneG_fiber<>Configurator!$B$23)) +IF(Configurator!$B$20<>"",(TenG_copper<>Configurator!$B$20)) +IF(Configurator!$B$21<>"",(TenG_fiber<>Configurator!$B$21)) +IF(Configurator!$B$25<>"",(OneG_PoE_Plus<>Configurator!$B$25)) +IF(Configurator!$B$26<>"",(OneG_UPOE<>Configurator!$B$26)) +IF(Configurator!$B$28<>"",(NPlusOne<>Configurator!$B$28)) +IF(Configurator!$B$29<>"",(AC_in<>Configurator!$B$29)) +IF(Configurator!$B$31<>"",(Budget<>Configurator!$B$31)), 0)) -> 138No110V1
A16: =INDEX(size,MATCH(0,COUNTIF($A$1:A15,size) +IF(Configurator!$B$18<>"",(fabric<>Configurator!$B$18)) +IF(Configurator!$B$22<>"",(OneG_copper<>Configurator!$B$22)) +IF(Configurator!$B$23<>"",(OneG_fiber<>Configurator!$B$23)) +IF(Configurator!$B$20<>"",(TenG_copper<>Configurator!$B$20)) +IF(Configurator!$B$21<>"",(TenG_fiber<>Configurator!$B$21)) +IF(Configurator!$B$25<>"",(OneG_PoE_Plus<>Configurator!$B$25)) +IF(Configurator!$B$26<>"",(OneG_UPOE<>Configurator!$B$26)) +IF(Configurator!$B$28<>"",(NPlusOne<>Configurator!$B$28)) +IF(Configurator!$B$29<>"",(AC_in<>Configurator!$B$29)) +IF(Configurator!$B$31<>"",(Budget<>Configurator!$B$31)), 0)) ->  | B16: =INDEX(fabric,MATCH(0,COUNTIF($B$1:B15,fabric) +IF(Configurator!$B$16<>"",(size<>Configurator!$B$16)) +IF(Configurator!$B$22<>"",(OneG_copper<>Configurator!$B$22)) +IF(Configurator!$B$23<>"",(OneG_fiber<>Configurator!$B$23)) +IF(Configurator!$B$20<>"",(TenG_copper<>Configurator!$B$20)) +IF(Configurator!$B$21<>"",(TenG_fiber<>Configurator!$B$21)) +IF(Configurator!$B$25<>"",(OneG_PoE_Plus<>Configurator!$B$25)) +IF(Configurator!$B$26<>"",(OneG_UPOE<>Configurator!$B$26)) +IF(Configurator!$B$28<>"",(NPlusOne<>Configurator!$B$28)) +IF(Configurator!$B$29<>"",(AC_in<>Configurator!$B$29)) +IF(Configurator!$B$31<>"",(Budget<>Configurator!$B$31)), 0)) ->  | C16: =INDEX(OneG_copper,MATCH(0,COUNTIF(C$1:C15,OneG_copper) +IF(Configurator!$B$16<>"",(size<>Configurator!$B$16)) +IF(Configurator!$B$18<>"",(fabric<>Configurator!$B$18)) +IF(Configurator!$B$23<>"",(OneG_fiber<>Configurator!$B$23)) +IF(Configurator!$B$20<>"",(TenG_copper<>Configurator!$B$20)) +IF(Configurator!$B$21<>"",(TenG_fiber<>Configurator!$B$21)) +IF(Configurator!$B$25<>"",(OneG_PoE_Plus<>Configurator!$B$25)) +IF(Configurator!$B$26<>"",(OneG_UPOE<>Configurator!$B$26)) +IF(Configurator!$B$28<>"",(NPlusOne<>Configurator!$B$28)) +IF(Configurator!$B$29<>"",(AC_in<>Configurator!$B$29)) +IF(Configurator!$B$31<>"",(Budget<>Configurator!$B$31)), 0)) ->  | D16: =INDEX(OneG_fiber,MATCH(0,COUNTIF(D$1:D15,OneG_fiber) +IF(Configurator!$B$16<>"",(size<>Configurator!$B$16)) +IF(Configurator!$B$18<>"",(fabric<>Configurator!$B$18)) +IF(Configurator!$B$22<>"",(OneG_copper<>Configurator!$B$22)) +IF(Configurator!$B$20<>"",(TenG_copper<>Configurator!$B$20)) +IF(Configurator!$B$21<>"",(TenG_fiber<>Configurator!$B$21)) +IF(Configurator!$B$25<>"",(OneG_PoE_Plus<>Configurator!$B$25)) +IF(Configurator!$B$26<>"",(OneG_UPOE<>Configurator!$B$26)) +IF(Configurator!$B$28<>"",(NPlusOne<>Configurator!$B$28)) +IF(Configurator!$B$29<>"",(AC_in<>Configurator!$B$29)) +IF(Configurator!$B$31<>"",(Budget<>Configurator!$B$31)), 0)) ->  | E16: =INDEX(TenG_copper,MATCH(0,COUNTIF(E$1:E15,TenG_copper) +IF(Configurator!$B$16<>"",(size<>Configurator!$B$16)) +IF(Configurator!$B$18<>"",(fabric<>Configurator!$B$18)) +IF(Configurator!$B$22<>"",(OneG_copper<>Configurator!$B$22)) +IF(Configurator!$B$23<>"",(OneG_fiber<>Configurator!$B$23)) +IF(Configurator!$B$21<>"",(TenG_fiber<>Configurator!$B$21)) +IF(Configurator!$B$25<>"",(OneG_PoE_Plus<>Configurator!$B$25)) +IF(Configurator!$B$26<>"",(OneG_UPOE<>Configurator!$B$26)) +IF(Configurator!$B$28<>"",(NPlusOne<>Configurator!$B$28)) +IF(Configurator!$B$29<>"",(AC_in<>Configurator!$B$29)) +IF(Configurator!$B$31<>"",(Budget<>Configurator!$B$31)), 0)) ->  | F16: =INDEX(TenG_fiber,MATCH(0,COUNTIF(F$1:F15,TenG_fiber) +IF(Configurator!$B$16<>"",(size<>Configurator!$B$16)) +IF(Configurator!$B$18<>"",(fabric<>Configurator!$B$18)) +IF(Configurator!$B$22<>"",(OneG_copper<>Configurator!$B$22)) +IF(Configurator!$B$23<>"",(OneG_fiber<>Configurator!$B$23)) +IF(Configurator!$B$20<>"",(TenG_copper<>Configurator!$B$20)) +IF(Configurator!$B$25<>"",(OneG_PoE_Plus<>Configurator!$B$25)) +IF(Configurator!$B$26<>"",(OneG_UPOE<>Configurator!$B$26)) +IF(Configurator!$B$28<>"",(NPlusOne<>Configurator!$B$28)) +IF(Configurator!$B$29<>"",(AC_in<>Configurator!$B$29)) +IF(Configurator!$B$31<>"",(Budget<>Configurator!$B$31)), 0)) ->  | G16: =INDEX(OneG_PoE_Plus,MATCH(0,COUNTIF(G$1:G15,OneG_PoE_Plus) +IF(Configurator!$B$16<>"",(size<>Configurator!$B$16)) +IF(Configurator!$B$18<>"",(fabric<>Configurator!$B$18)) +IF(Configurator!$B$22<>"",(OneG_copper<>Configurator!$B$22)) +IF(Configurator!$B$23<>"",(OneG_fiber<>Configurator!$B$23)) +IF(Configurator!$B$20<>"",(TenG_copper<>Configurator!$B$20)) +IF(Configurator!$B$21<>"",(TenG_fiber<>Configurator!$B$21)) +IF(Configurator!$B$26<>"",(OneG_UPOE<>Configurator!$B$26)) +IF(Configurator!$B$28<>"",(NPlusOne<>Configurator!$B$28)) +IF(Configurator!$B$29<>"",(AC_in<>Configurator!$B$29)) +IF(Configurator!$B$31<>"",(Budget<>Configurator!$B$31)), 0)) ->  | H16: =INDEX(OneG_UPOE,MATCH(0,COUNTIF(H$1:H15,OneG_UPOE) +IF(Configurator!$B$16<>"",(size<>Configurator!$B$16)) +IF(Configurator!$B$18<>"",(fabric<>Configurator!$B$18)) +IF(Configurator!$B$22<>"",(OneG_copper<>Configurator!$B$22)) +IF(Configurator!$B$23<>"",(OneG_fiber<>Configurator!$B$23)) +IF(Configurator!$B$20<>"",(TenG_copper<>Configurator!$B$20)) +IF(Configurator!$B$21<>"",(TenG_fiber<>Configurator!$B$21)) +IF(Configurator!$B$25<>"",(OneG_PoE_Plus<>Configurator!$B$25)) +IF(Configurator!$B$28<>"",(NPlusOne<>Configurator!$B$28)) +IF(Configurator!$B$29<>"",(AC_in<>Configurator!$B$29)) +IF(Configurator!$B$31<>"",(Budget<>Configurator!$B$31)), 0)) ->  | I16: =INDEX(NPlusOne,MATCH(0,COUNTIF(I$1:I15,NPlusOne) +IF(Configurator!$B$16<>"",(size<>Configurator!$B$16)) +IF(Configurator!$B$18<>"",(fabric<>Configurator!$B$18)) +IF(Configurator!$B$22<>"",(OneG_copper<>Configurator!$B$22)) +IF(Configurator!$B$23<>"",(OneG_fiber<>Configurator!$B$23)) +IF(Configurator!$B$20<>"",(TenG_copper<>Configurator!$B$20)) +IF(Configurator!$B$21<>"",(TenG_fiber<>Configurator!$B$21)) +IF(Configurator!$B$25<>"",(OneG_PoE_Plus<>Configurator!$B$25)) +IF(Configurator!$B$26<>"",(OneG_UPOE<>Configurator!$B$26)) +IF(Configurator!$B$29<>"",(AC_in<>Configurator!$B$29)) +IF(Configurator!$B$31<>"",(Budget<>Configurator!$B$31)), 0)) ->  | J16: =INDEX(AC_in,MATCH(0,COUNTIF(J$1:J15,AC_in) +IF(Configurator!$B$16<>"",(size<>Configurator!$B$16)) +IF(Configurator!$B$18<>"",(fabric<>Configurator!$B$18)) +IF(Configurator!$B$22<>"",(OneG_copper<>Configurator!$B$22)) +IF(Configurator!$B$23<>"",(OneG_fiber<>Configurator!$B$23)) +IF(Configurator!$B$20<>"",(TenG_copper<>Configurator!$B$20)) +IF(Configurator!$B$21<>"",(TenG_fiber<>Configurator!$B$21)) +IF(Configurator!$B$25<>"",(OneG_PoE_Plus<>Configurator!$B$25)) +IF(Configurator!$B$26<>"",(OneG_UPOE<>Configurator!$B$26)) +IF(Configurator!$B$28<>"",(NPlusOne<>Configurator!$B$28)) +IF(Configurator!$B$31<>"",(Budget<>Configurator!$B$31)), 0)) ->  | K16: =INDEX(Budget,MATCH(0,COUNTIF(K$1:K15,Budget) +IF(Configurator!$B$16<>"",(size<>Configurator!$B$16)) +IF(Configurator!$B$18<>"",(fabric<>Configurator!$B$18)) +IF(Configurator!$B$22<>"",(OneG_copper<>Configurator!$B$22)) +IF(Configurator!$B$23<>"",(OneG_fiber<>Configurator!$B$23)) +IF(Configurator!$B$20<>"",(TenG_copper<>Configurator!$B$20)) +IF(Configurator!$B$21<>"",(TenG_fiber<>Configurator!$B$21)) +IF(Configurator!$B$25<>"",(OneG_PoE_Plus<>Configurator!$B$25)) +IF(Configurator!$B$26<>"",(OneG_UPOE<>Configurator!$B$26)) +IF(Configurator!$B$28<>"",(NPlusOne<>Configurator!$B$28)) +IF(Configurator!$B$29<>"",(AC_in<>Configurator!$B$29)), 0)) -> 460 | L16: =INDEX(INDEX,MATCH(0,COUNTIF(L$1:L15,INDEX) +IF(Configurator!$B$16<>"",(size<>Configurator!$B$16)) +IF(Configurator!$B$18<>"",(fabric<>Configurator!$B$18)) +IF(Configurator!$B$22<>"",(OneG_copper<>Configurator!$B$22)) +IF(Configurator!$B$23<>"",(OneG_fiber<>Configurator!$B$23)) +IF(Configurator!$B$20<>"",(TenG_copper<>Configurator!$B$20)) +IF(Configurator!$B$21<>"",(TenG_fiber<>Configurator!$B$21)) +IF(Configurator!$B$25<>"",(OneG_PoE_Plus<>Configurator!$B$25)) +IF(Configurator!$B$26<>"",(OneG_UPOE<>Configurator!$B$26)) +IF(Configurator!$B$28<>"",(NPlusOne<>Configurator!$B$28)) +IF(Configurator!$B$29<>"",(AC_in<>Configurator!$B$29)) +IF(Configurator!$B$31<>"",(Budget<>Configurator!$B$31)), 0)) -> 139No110V1
A17: =INDEX(size,MATCH(0,COUNTIF($A$1:A16,size) +IF(Configurator!$B$18<>"",(fabric<>Configurator!$B$18)) +IF(Configurator!$B$22<>"",(OneG_copper<>Configurator!$B$22)) +IF(Configurator!$B$23<>"",(OneG_fiber<>Configurator!$B$23)) +IF(Configurator!$B$20<>"",(TenG_copper<>Configurator!$B$20)) +IF(Configurator!$B$21<>"",(TenG_fiber<>Configurator!$B$21)) +IF(Configurator!$B$25<>"",(OneG_PoE_Plus<>Configurator!$B$25)) +IF(Configurator!$B$26<>"",(OneG_UPOE<>Configurator!$B$26)) +IF(Configurator!$B$28<>"",(NPlusOne<>Configurator!$B$28)) +IF(Configurator!$B$29<>"",(AC_in<>Configurator!$B$29)) +IF(Configurator!$B$31<>"",(Budget<>Configurator!$B$31)), 0)) ->  | B17: =INDEX(fabric,MATCH(0,COUNTIF($B$1:B16,fabric) +IF(Configurator!$B$16<>"",(size<>Configurator!$B$16)) +IF(Configurator!$B$22<>"",(OneG_copper<>Configurator!$B$22)) +IF(Configurator!$B$23<>"",(OneG_fiber<>Configurator!$B$23)) +IF(Configurator!$B$20<>"",(TenG_copper<>Configurator!$B$20)) +IF(Configurator!$B$21<>"",(TenG_fiber<>Configurator!$B$21)) +IF(Configurator!$B$25<>"",(OneG_PoE_Plus<>Configurator!$B$25)) +IF(Configurator!$B$26<>"",(OneG_UPOE<>Configurator!$B$26)) +IF(Configurator!$B$28<>"",(NPlusOne<>Configurator!$B$28)) +IF(Configurator!$B$29<>"",(AC_in<>Configurator!$B$29)) +IF(Configurator!$B$31<>"",(Budget<>Configurator!$B$31)), 0)) ->  | C17: =INDEX(OneG_copper,MATCH(0,COUNTIF(C$1:C16,OneG_copper) +IF(Configurator!$B$16<>"",(size<>Configurator!$B$16)) +IF(Configurator!$B$18<>"",(fabric<>Configurator!$B$18)) +IF(Configurator!$B$23<>"",(OneG_fiber<>Configurator!$B$23)) +IF(Configurator!$B$20<>"",(TenG_copper<>Configurator!$B$20)) +IF(Configurator!$B$21<>"",(TenG_fiber<>Configurator!$B$21)) +IF(Configurator!$B$25<>"",(OneG_PoE_Plus<>Configurator!$B$25)) +IF(Configurator!$B$26<>"",(OneG_UPOE<>Configurator!$B$26)) +IF(Configurator!$B$28<>"",(NPlusOne<>Configurator!$B$28)) +IF(Configurator!$B$29<>"",(AC_in<>Configurator!$B$29)) +IF(Configurator!$B$31<>"",(Budget<>Configurator!$B$31)), 0)) ->  | D17: =INDEX(OneG_fiber,MATCH(0,COUNTIF(D$1:D16,OneG_fiber) +IF(Configurator!$B$16<>"",(size<>Configurator!$B$16)) +IF(Configurator!$B$18<>"",(fabric<>Configurator!$B$18)) +IF(Configurator!$B$22<>"",(OneG_copper<>Configurator!$B$22)) +IF(Configurator!$B$20<>"",(TenG_copper<>Configurator!$B$20)) +IF(Configurator!$B$21<>"",(TenG_fiber<>Configurator!$B$21)) +IF(Configurator!$B$25<>"",(OneG_PoE_Plus<>Configurator!$B$25)) +IF(Configurator!$B$26<>"",(OneG_UPOE<>Configurator!$B$26)) +IF(Configurator!$B$28<>"",(NPlusOne<>Configurator!$B$28)) +IF(Configurator!$B$29<>"",(AC_in<>Configurator!$B$29)) +IF(Configurator!$B$31<>"",(Budget<>Configurator!$B$31)), 0)) ->  | E17: =INDEX(TenG_copper,MATCH(0,COUNTIF(E$1:E16,TenG_copper) +IF(Configurator!$B$16<>"",(size<>Configurator!$B$16)) +IF(Configurator!$B$18<>"",(fabric<>Configurator!$B$18)) +IF(Configurator!$B$22<>"",(OneG_copper<>Configurator!$B$22)) +IF(Configurator!$B$23<>"",(OneG_fiber<>Configurator!$B$23)) +IF(Configurator!$B$21<>"",(TenG_fiber<>Configurator!$B$21)) +IF(Configurator!$B$25<>"",(OneG_PoE_Plus<>Configurator!$B$25)) +IF(Configurator!$B$26<>"",(OneG_UPOE<>Configurator!$B$26)) +IF(Configurator!$B$28<>"",(NPlusOne<>Configurator!$B$28)) +IF(Configurator!$B$29<>"",(AC_in<>Configurator!$B$29)) +IF(Configurator!$B$31<>"",(Budget<>Configurator!$B$31)), 0)) ->  | F17: =INDEX(TenG_fiber,MATCH(0,COUNTIF(F$1:F16,TenG_fiber) +IF(Configurator!$B$16<>"",(size<>Configurator!$B$16)) +IF(Configurator!$B$18<>"",(fabric<>Configurator!$B$18)) +IF(Configurator!$B$22<>"",(OneG_copper<>Configurator!$B$22)) +IF(Configurator!$B$23<>"",(OneG_fiber<>Configurator!$B$23)) +IF(Configurator!$B$20<>"",(TenG_copper<>Configurator!$B$20)) +IF(Configurator!$B$25<>"",(OneG_PoE_Plus<>Configurator!$B$25)) +IF(Configurator!$B$26<>"",(OneG_UPOE<>Configurator!$B$26)) +IF(Configurator!$B$28<>"",(NPlusOne<>Configurator!$B$28)) +IF(Configurator!$B$29<>"",(AC_in<>Configurator!$B$29)) +IF(Configurator!$B$31<>"",(Budget<>Configurator!$B$31)), 0)) ->  | G17: =INDEX(OneG_PoE_Plus,MATCH(0,COUNTIF(G$1:G16,OneG_PoE_Plus) +IF(Configurator!$B$16<>"",(size<>Configurator!$B$16)) +IF(Configurator!$B$18<>"",(fabric<>Configurator!$B$18)) +IF(Configurator!$B$22<>"",(OneG_copper<>Configurator!$B$22)) +IF(Configurator!$B$23<>"",(OneG_fiber<>Configurator!$B$23)) +IF(Configurator!$B$20<>"",(TenG_copper<>Configurator!$B$20)) +IF(Configurator!$B$21<>"",(TenG_fiber<>Configurator!$B$21)) +IF(Configurator!$B$26<>"",(OneG_UPOE<>Configurator!$B$26)) +IF(Configurator!$B$28<>"",(NPlusOne<>Configurator!$B$28)) +IF(Configurator!$B$29<>"",(AC_in<>Configurator!$B$29)) +IF(Configurator!$B$31<>"",(Budget<>Configurator!$B$31)), 0)) ->  | H17: =INDEX(OneG_UPOE,MATCH(0,COUNTIF(H$1:H16,OneG_UPOE) +IF(Configurator!$B$16<>"",(size<>Configurator!$B$16)) +IF(Configurator!$B$18<>"",(fabric<>Configurator!$B$18)) +IF(Configurator!$B$22<>"",(OneG_copper<>Configurator!$B$22)) +IF(Configurator!$B$23<>"",(OneG_fiber<>Configurator!$B$23)) +IF(Configurator!$B$20<>"",(TenG_copper<>Configurator!$B$20)) +IF(Configurator!$B$21<>"",(TenG_fiber<>Configurator!$B$21)) +IF(Configurator!$B$25<>"",(OneG_PoE_Plus<>Configurator!$B$25)) +IF(Configurator!$B$28<>"",(NPlusOne<>Configurator!$B$28)) +IF(Configurator!$B$29<>"",(AC_in<>Configurator!$B$29)) +IF(Configurator!$B$31<>"",(Budget<>Configurator!$B$31)), 0)) ->  | I17: =INDEX(NPlusOne,MATCH(0,COUNTIF(I$1:I16,NPlusOne) +IF(Configurator!$B$16<>"",(size<>Configurator!$B$16)) +IF(Configurator!$B$18<>"",(fabric<>Configurator!$B$18)) +IF(Configurator!$B$22<>"",(OneG_copper<>Configurator!$B$22)) +IF(Configurator!$B$23<>"",(OneG_fiber<>Configurator!$B$23)) +IF(Configurator!$B$20<>"",(TenG_copper<>Configurator!$B$20)) +IF(Configurator!$B$21<>"",(TenG_fiber<>Configurator!$B$21)) +IF(Configurator!$B$25<>"",(OneG_PoE_Plus<>Configurator!$B$25)) +IF(Configurator!$B$26<>"",(OneG_UPOE<>Configurator!$B$26)) +IF(Configurator!$B$29<>"",(AC_in<>Configurator!$B$29)) +IF(Configurator!$B$31<>"",(Budget<>Configurator!$B$31)), 0)) ->  | J17: =INDEX(AC_in,MATCH(0,COUNTIF(J$1:J16,AC_in) +IF(Configurator!$B$16<>"",(size<>Configurator!$B$16)) +IF(Configurator!$B$18<>"",(fabric<>Configurator!$B$18)) +IF(Configurator!$B$22<>"",(OneG_copper<>Configurator!$B$22)) +IF(Configurator!$B$23<>"",(OneG_fiber<>Configurator!$B$23)) +IF(Configurator!$B$20<>"",(TenG_copper<>Configurator!$B$20)) +IF(Configurator!$B$21<>"",(TenG_fiber<>Configurator!$B$21)) +IF(Configurator!$B$25<>"",(OneG_PoE_Plus<>Configurator!$B$25)) +IF(Configurator!$B$26<>"",(OneG_UPOE<>Configurator!$B$26)) +IF(Configurator!$B$28<>"",(NPlusOne<>Configurator!$B$28)) +IF(Configurator!$B$31<>"",(Budget<>Configurator!$B$31)), 0)) ->  | K17: =INDEX(Budget,MATCH(0,COUNTIF(K$1:K16,Budget) +IF(Configurator!$B$16<>"",(size<>Configurator!$B$16)) +IF(Configurator!$B$18<>"",(fabric<>Configurator!$B$18)) +IF(Configurator!$B$22<>"",(OneG_copper<>Configurator!$B$22)) +IF(Configurator!$B$23<>"",(OneG_fiber<>Configurator!$B$23)) +IF(Configurator!$B$20<>"",(TenG_copper<>Configurator!$B$20)) +IF(Configurator!$B$21<>"",(TenG_fiber<>Configurator!$B$21)) +IF(Configurator!$B$25<>"",(OneG_PoE_Plus<>Configurator!$B$25)) +IF(Configurator!$B$26<>"",(OneG_UPOE<>Configurator!$B$26)) +IF(Configurator!$B$28<>"",(NPlusOne<>Configurator!$B$28)) +IF(Configurator!$B$29<>"",(AC_in<>Configurator!$B$29)), 0)) -> 220 | L17: =INDEX(INDEX,MATCH(0,COUNTIF(L$1:L16,INDEX) +IF(Configurator!$B$16<>"",(size<>Configurator!$B$16)) +IF(Configurator!$B$18<>"",(fabric<>Configurator!$B$18)) +IF(Configurator!$B$22<>"",(OneG_copper<>Configurator!$B$22)) +IF(Configurator!$B$23<>"",(OneG_fiber<>Configurator!$B$23)) +IF(Configurator!$B$20<>"",(TenG_copper<>Configurator!$B$20)) +IF(Configurator!$B$21<>"",(TenG_fiber<>Configurator!$B$21)) +IF(Configurator!$B$25<>"",(OneG_PoE_Plus<>Configurator!$B$25)) +IF(Configurator!$B$26<>"",(OneG_UPOE<>Configurator!$B$26)) +IF(Configurator!$B$28<>"",(NPlusOne<>Configurator!$B$28)) +IF(Configurator!$B$29<>"",(AC_in<>Configurator!$B$29)) +IF(Configurator!$B$31<>"",(Budget<>Configurator!$B$31)), 0)) -> 113No110V1
